Workbook

Sheet Instructions
C35: Date of Optimization | D35: 2019-07-02 | F35: AAA | G35: AA | H35: A | I35: BBB | J35: BBB-
F36: 5 | G36: 12 | H36: 45 | I36: 39 | J36: 0

Sheet Net of Default Costs
B1: Default and Transition costs come from the appropriate tab of the EIOPA_RDR_20141231_PD_CoD spreadsheet
C2: Find it here | F2: https://eiopa.europa.eu/Publications/Standards/EIOPA_RFR_20141231.zip
B3: Note that Classes below BBB have been excluded due to the difficulty of matching up spreads and default costs
B4: Ignore spreads and RC beyond year 20 | H4: Weight Financials: | J4: 0.5 | U4: CORPORATE BONDS
D5: Loading | E5: 0.35 | H5: We do not have stats, but Europe seems heavily into financials (varying by country)
H6: However they are using 50% mix for their model.
A7: =I10 -> CAD | C7: Discount Rates | E7: 12.31.2014 | J7: Composite. PD+CoD | V7: Financial. Probability of default (probability) | AF7: Financial. Probability of default (percentages) | AP7: Financial. Fundamental spread (percentages) | AZ7: Financial. Cost of downgrade (percentages)
R8: Weighted
B9: Risk | C9: Gross | D9: Risk | E9: Net | F9: Gross | I9: Weights | J9: 0.05 | K9: 0.12 | L9: 0.45 | M9: 0.39 | R9: Average | Y9: Credit quality steps | AI9: Credit quality steps | AS9: Credit quality steps | BC9: Credit quality steps
B10: Free | C10: Spread | D10: Correction | E10: spread | F10: Rate | I10: =U10 -> CAD | J10: 0 | K10: 1 | L10: 2 | M10: 3 | N10: 4 | O10: 5 | P10: 6 | U10: CAD | V10: 0 | W10: 1 | X10: 2 | Y10: 3 | Z10: 4 | AA10: 5 | AB10: 6 | AE10: CAD | AF10: 0 | AG10: 1 | AH10: 2 | AI10: 3 | AJ10: 4 | AK10: 5 | AL10: 6 | AO10: CAD | AP10: 0 | AQ10: 1 | AR10: 2 | AS10: 3 | AT10: 4 | AU10: 5 | AV10: 6 | AY10: CAD | AZ10: 0 | BA10: 1 | BB10: 2 | BC10: 3 | BD10: 4 | BE10: 5 | BF10: 6
A11: 1 | B11: ='Data Entry'!M4 -> 0.01832244807 | C11: ='Final Spread'!B3 -> 0.001192061289 | D11: =(R11*(1+E$5))/100 -> 0.001217025 | E11: =C11-D11 -> -2.496371065e-05 | F11: =MAX(E11+B11,0) -> 0.01829748436 | I11: 1 | J11: =$J$4*(AF11+AZ11)+(1-$J$4)*(AF51+AZ51) -> 0 | K11: =$J$4*(AG11+BA11)+(1-$J$4)*(AG51+BA51) -> 0.025 | L11: =$J$4*(AH11+BB11)+(1-$J$4)*(AH51+BB51) -> 0.055 | M11: =$J$4*(AI11+BC11)+(1-$J$4)*(AI51+BC51) -> 0.16 | N11: =$J$4*(AJ11+BD11)+(1-$J$4)*(AJ51+BD51) -> 0.69 | O11: =$J$4*(AK11+BE11)+(1-$J$4)*(AK51+BE51) -> 2.78 | P11: =$J$4*(AL11+BF11)+(1-$J$4)*(AL51+BF51) -> 21.9 | R11: =SUMPRODUCT(J$9:M$9,J11:M11) -> 0.09015 | T11: Maturity | U11: 1 | V11: 0 | W11: 0.0007 | X11: 0.001 | Y11: 0.0025 | Z11: 0.011 | AA11: 0.0332 | AB11: 0.1692 | AD11: Maturity | AE11: 1 | AF11: 0 | AG11: 0.05 | AH11: 0.07 | AI11: 0.18 | AJ11: 0.79 | AK11: 2.42 | AL11: 13.69 | AN11: Maturity | AO11: 1 | AP11: 0.17 | AQ11: 0.29 | AR11: 0.56 | AS11: 1.46 | AT11: 2.61 | AU11: 6.59 | AV11: 13.69 | AX11: Maturity | AY11: 1 | AZ11: 0 | BA11: 0 | BB11: 0 | BC11: 0 | BD11: 0 | BE11: 0 | BF11: 0
A12: =1+A11 -> 2 | B12: ='Data Entry'!M5 -> 0.01697618949 | C12: ='Final Spread'!B4 -> 0.003116409958 | D12: 0.001722820472 | E12: 0.001393589486 | F12: =MAX(E12+B12,0) -> 0.01836977898 | I12: 2 | J12: 0.01187677012 | K12: 0.03546561556 | L12: 0.086378705 | M12: 0.2151184657 | N12: 0.8957745858 | O12: 3.009335324 | P12: 16.965 | R12: 0.1276163312 | U12: 2 | V12: 0.00027961 | W12: 0.00147632 | X12: 0.00211938 | Y12: 0.00552137 | Z12: 0.02428142 | AA12: 0.06730863 | AB12: 0.27444586 | AE12: 2 | AF12: 0.01 | AG12: 0.05 | AH12: 0.08 | AI12: 0.2 | AJ12: 0.87 | AK12: 2.45 | AL12: 11.1 | AO12: 2 | AP12: 0.13 | AQ12: 0.3 | AR12: 0.57 | AS12: 1.47 | AT12: 2.62 | AU12: 6.6 | AV12: 11.1 | AY12: 2 | AZ12: 0.008802730356 | BA12: 0.009757500234 | BB12: 0.02025968533 | BC12: 0.03186492885 | BD12: 0.09613398751 | BE12: 0.02419492327 | BF12: 0
A13: 3 | B13: ='Data Entry'!M6 -> 0.01652764635 | C13: ='Final Spread'!B5 -> 0.005040758626 | D13: 0.002271223046 | E13: 0.002769535581 | F13: 0.01929718193 | I13: 3 | J13: 0.02383275634 | K13: 0.05611009645 | L13: 0.1179806744 | M13: 0.2749297211 | N13: 1.076447999 | O13: 3.100377879 | P13: 13.3949401 | R13: 0.1682387441 | U13: 3 | V13: 0.000749237296 | W13: 0.002323652414 | X13: 0.003372945376 | Y13: 0.00902414611 | Z13: 0.03890402252 | AA13: 0.1002778228 | AB13: 0.3432175769 | AE13: 3 | AF13: 0.02 | AG13: 0.06 | AH13: 0.08 | AI13: 0.22 | AJ13: 0.93 | AK13: 2.43 | AL13: 9.15 | AO13: 3 | AP13: 0.15 | AQ13: 0.34 | AR13: 0.59 | AS13: 1.31 | AT13: 2.6 | AU13: 6.57 | AV13: 9.15 | AY13: 3 | AZ13: 0.01765985466 | BA13: 0.0196874992 | BB13: 0.04062168108 | BC13: 0.06326608599 | BD13: 0.1862440331 | BE13: 0.05174081846 | BF13: 0.005139668399
A14: 4 | B14: ='Data Entry'!M7 -> 0.01633085896 | C14: ='Final Spread'!B6 -> 0.006965107295 | D14: 0.002779844018 | E14: 0.004185263277 | F14: 0.02051612224 | I14: 4 | J14: 0.03090091906 | K14: 0.06698391481 | L14: 0.1549435643 | M14: 0.3246324412 | N14: 1.237931174 | O14: 3.122806491 | P14: 10.82832801 | R14: 0.2059143717 | U14: 4 | V14: 0.001356747817 | W14: 0.003242514677 | X14: 0.00477145944 | Y14: 0.01296649009 | Z14: 0.05422525645 | AA14: 0.1312365545 | AB14: 0.390797247 | AE14: 4 | AF14: 0.02 | AG14: 0.06 | AH14: 0.09 | AI14: 0.23 | AJ14: 0.98 | AK14: 2.38 | AL14: 7.66 | AO14: 4 | AP14: 0.17 | AQ14: 0.37 | AR14: 0.62 | AS14: 1.33 | AT14: 2.59 | AU14: 6.56 | AV14: 7.68 | AY14: 4 | AZ14: 0.02661396502 | BA14: 0.02983688751 | BB14: 0.06118763443 | BC14: 0.09438598427 | BD14: 0.2713375965 | BE14: 0.08197446589 | BF14: 0.01428962595
A15: 5 | B15: ='Data Entry'!M8 -> 0.01634150885 | C15: ='Final Spread'!B7 -> 0.008889455963 | D15: 0.003326079215 | E15: 0.005563376749 | F15: 0.02190488559 | I15: 5 | J15: 0.04311112394 | K15: 0.08313352739 | L15: 0.1873939943 | M15: 0.3844034903 | N15: 1.38099451 | O15: 3.096366441 | P15: 8.969196386 | R15: 0.2463762381 | U15: 5 | V15: 0.002071494612 | W15: 0.004236497683 | X15: 0.006322461566 | Y15: 0.01730462455 | Z15: 0.06980602491 | AA15: 0.1599089471 | AB15: 0.4257442597 | AE15: 5 | AF15: 0.03 | AG15: 0.06 | AH15: 0.09 | AI15: 0.25 | AJ15: 1.01 | AK15: 2.31 | AL15: 6.53 | AO15: 5 | AP15: 0.19 | AQ15: 0.4 | AR15: 0.67 | AS15: 1.27 | AT15: 2.59 | AU15: 6.56 | AV15: 6.56 | AY15: 5 | AZ15: 0.03570328235 | BA15: 0.04024883258 | BB15: 0.08204971422 | BC15: 0.1253851795 | BD15: 0.3522598783 | BE15: 0.1143655565 | BF15: 0.02659315109
A16: 6 | B16: ='Data Entry'!M9 -> 0.01652696447 | C16: ='Final Spread'!B8 -> 0.01081380463 | D16: 0.003883930119 | E16: 0.006929874513 | F16: 0.02345683898 | I16: 6 | J16: 0.05552990551 | K16: 0.09966251801 | L16: 0.2256002791 | M16: 0.4395959084 | N16: 1.506785197 | O16: 3.05103494 | P16: 7.601936057 | R16: 0.2876985273 | U16: 6 | V16: 0.00287540502 | W16: 0.005310670865 | X16: 0.008030801354 | Y16: 0.02199390319 | Z16: 0.08534806415 | AA16: 0.1863069865 | AB16: 0.4529010469 | AE16: 6 | AF16: 0.03 | AG16: 0.07 | AH16: 0.1 | AI16: 0.27 | AJ16: 1.03 | AK16: 2.24 | AL16: 5.65 | AO16: 6 | AP16: 0.2 | AQ16: 0.42 | AR16: 0.71 | AS16: 1.31 | AT16: 2.59 | AU16: 6.57 | AV16: 6.57 | AY16: 6 | AZ16: 0.04501212165 | BA16: 0.05101982738 | BB16: 0.1034068737 | BC16: 0.1565799416 | BD16: 0.4302079014 | BE16: 0.1486554092 | BF16: 0.04143686805
A17: 7 | B17: ='Data Entry'!M10 -> 0.01679344357 | C17: ='Final Spread'!B9 -> 0.0127381533 | D17: 0.004453599064 | E17: 0.008284554236 | F17: 0.02507799781 | I17: 7 | J17: 0.06823490364 | K17: 0.1166930143 | L17: 0.2648756291 | M17: 0.4956084283 | N17: 1.621477742 | O17: 2.996894595 | P17: 6.5861715 | R17: 0.329896227 | U17: 7 | V17: 0.00375795052 | W17: 0.006470642244 | X17: 0.00989903777 | Y17: 0.02699009947 | Z17: 0.1006515175 | AA17: 0.2105707559 | AB17: 0.4750458148 | AE17: 7 | AF17: 0.04 | AG17: 0.07 | AH17: 0.11 | AI17: 0.28 | AJ17: 1.04 | AK17: 2.16 | AL17: 4.98 | AO17: 7 | AP17: 0.21 | AQ17: 0.45 | AR17: 0.73 | AS17: 1.32 | AT17: 2.59 | AU17: 6.57 | AV17: 6.57 | AY17: 7 | AZ17: 0.05463802002 | BA17: 0.06226371222 | BB17: 0.125489896 | BC17: 0.1883232503 | BD17: 0.5063809988 | BE17: 0.1847398491 | BF17: 0.05839662927
A18: 8 | B18: ='Data Entry'!M11 -> 0.01711373621 | C18: ='Final Spread'!B10 -> 0.01397805973 | D18: 0.005046974481 | E18: 0.008931085244 | F18: 0.02604482146 | I18: 8 | J18: 0.07616558479 | K18: 0.1291348996 | L18: 0.3050073829 | M18: 0.5571594156 | N18: 1.729508855 | O18: 2.938433842 | P18: 5.786493061 | R18: 0.3738499616 | U18: 8 | V18: 0.004713259669 | W18: 0.00772199675 | X18: 0.01192777179 | Y18: 0.03225053182 | Z18: 0.1155857086 | AA18: 0.2328873569 | AB18: 0.4938033134 | AE18: 8 | AF18: 0.04 | AG18: 0.07 | AH18: 0.11 | AI18: 0.3 | AJ18: 1.05 | AK18: 2.09 | AL18: 4.43 | AO18: 8 | AP18: 0.21 | AQ18: 0.45 | AR18: 0.72 | AS18: 1.28 | AT18: 2.59 | AU18: 6.57 | AV18: 6.57 | AY18: 8 | AZ18: 0.06450335092 | BA18: 0.07389620219 | BB18: 0.1481280517 | BC18: 0.2203574362 | BD18: 0.5802592984 | BE18: 0.2219956014 | BF18: 0.07697430343
A19: 9 | B19: ='Data Entry'!M12 -> 0.01746311023 | C19: ='Final Spread'!B11 -> 0.01525553907 | D19: 0.005619280638 | E19: 0.009636258435 | F19: 0.02709936867 | I19: 9 | J19: 0.08444265069 | K19: 0.1521785205 | L19: 0.346480459 | M19: 0.6098544838 | N19: 1.827476199 | O19: 2.88600697 | P19: 5.157792486 | R19: 0.4162430102 | U19: 9 | V19: 0.005738420572 | W19: 0.009069958742 | X19: 0.01411594173 | Y19: 0.03773490295 | Z19: 0.1300687295 | AA19: 0.2534513747 | AB19: 0.5101482577 | AE19: 9 | AF19: 0.04 | AG19: 0.08 | AH19: 0.12 | AI19: 0.31 | AJ19: 1.05 | AK19: 2.02 | AL19: 3.98 | AO19: 9 | AP19: 0.21 | AQ19: 0.46 | AR19: 0.72 | AS19: 1.27 | AT19: 2.59 | AU19: 6.57 | AV19: 6.57 | AY19: 9 | AZ19: 0.07475936052 | BA19: 0.08609479005 | BB19: 0.1716786057 | BC19: 0.2532148348 | BD19: 0.6534271437 | BE19: 0.2606413472 | BF19: 0.09700289546
A20: 10 | B20: ='Data Entry'!M13 -> 0.01781934378 | C20: ='Final Spread'!B12 -> 0.0164954455 | D20: 0.006221369461 | E20: 0.01027407604 | F20: 0.02809341982 | I20: 10 | J20: 0.09807857349 | K20: 0.1658482153 | L20: 0.389370342 | M20: 0.6687687535 | N20: 1.925627716 | O20: 2.829496906 | P20: 4.654892335 | R20: 0.4608421823 | U20: 10 | V20: 0.006832449594 | W20: 0.01051919171 | X20: 0.01646109201 | Y20: 0.04340584867 | Z20: 0.1440530304 | AA20: 0.272446947 | AB20: 0.5246847475 | AE20: 10 | AF20: 0.05 | AG20: 0.08 | AH20: 0.13 | AI20: 0.32 | AJ20: 1.05 | AK20: 1.95 | AL20: 3.62 | AO20: 10 | AP20: 0.22 | AQ20: 0.47 | AR20: 0.72 | AS20: 1.27 | AT20: 2.59 | AU20: 6.57 | AV20: 6.57 | AY20: 10 | AZ20: 0.08542009624 | BA20: 0.09888197186 | BB20: 0.1961852079 | BC20: 0.2869508702 | BD20: 0.7261330233 | BE20: 0.3004784192 | BF20: 0.11823444
A21: 11 | B21: ='Data Entry'!M14 -> 0.01824269836 | C21: ='Final Spread'!B13 -> 0.01688229104 | D21: 0.006832204599 | E21: 0.01005008644 | F21: 0.0282927848 | I21: 11 | J21: 0.1121172776 | K21: 0.1902180326 | L21: 0.4338792098 | M21: 0.7241321984 | N21: 2.014561401 | O21: 2.778951357 | P21: 4.242696899 | R21: 0.5060892296 | U21: 11 | V21: 0.0079956386 | W21: 0.01207368485 | X21: 0.0189596185 | Y21: 0.04922923842 | Z21: 0.1575151653 | AA21: 0.2900408038 | AB21: 0.5378022409 | AE21: 11 | AF21: 0.05 | AG21: 0.09 | AH21: 0.13 | AI21: 0.33 | AJ21: 1.05 | AK21: 1.88 | AL21: 3.31 | AO21: 11 | AP21: 0.23 | AQ21: 0.48 | AR21: 0.72 | AS21: 1.27 | AT21: 2.59 | AU21: 6.57 | AV21: 6.57 | AY21: 11 | AZ21: 0.09653899066 | BA21: 0.1123265989 | BB21: 0.2217846062 | BC21: 0.3217556884 | BD21: 0.7989544659 | BE21: 0.3414839759 | BF21: 0.1405181316
A22: 12 | B22: ='Data Entry'!M15 -> 0.01866211889 | C22: ='Final Spread'!B14 -> 0.01726913658 | D22: 0.00747743781 | E22: 0.009791698772 | F22: 0.02845381766 | I22: 12 | J22: 0.1215646261 | K22: 0.2103036289 | L22: 0.4800696621 | M22: 0.7859955576 | N22: 2.104434291 | O22: 2.739259745 | P22: 3.906081865 | R22: 0.5538842822 | U22: 12 | V22: 0.009229122007 | W22: 0.01373669665 | X22: 0.02160699067 | Y22: 0.05517428245 | Z22: 0.1704484555 | AA22: 0.306380672 | AB22: 0.5497632937 | AE22: 12 | AF22: 0.05 | AG22: 0.09 | AH22: 0.14 | AI22: 0.35 | AJ22: 1.05 | AK22: 1.82 | AL22: 3.06 | AO22: 12 | AP22: 0.23 | AQ22: 0.49 | AR22: 0.72 | AS22: 1.27 | AT22: 2.6 | AU22: 6.57 | AV22: 6.57 | AY22: 12 | AZ22: 0.108121553 | BA22: 0.1264429156 | BB22: 0.2485054419 | BC22: 0.3576581157 | BD22: 0.8720327725 | BE22: 0.3834955091 | BF22: 0.1636726239
A23: 13 | B23: ='Data Entry'!M16 -> 0.01902230725 | C23: ='Final Spread'!B15 -> 0.01765598212 | D23: 0.008152911444 | E23: 0.009503070679 | F23: 0.02852537793 | I23: 13 | J23: 0.136396882 | K23: 0.2360746809 | L23: 0.527896237 | M23: 0.8492750097 | N23: 2.185092866 | O23: 2.700192492 | P23: 3.614892752 | R23: 0.6039193662 | U23: 13 | V23: 0.01053457562 | W23: 0.01551073682 | X23: 0.02439795014 | Y23: 0.06121349819 | Z23: 0.1828577252 | AA23: 0.3215961286 | AB23: 0.5607534297 | AE23: 13 | AF23: 0.06 | AG23: 0.1 | AH23: 0.15 | AI23: 0.36 | AJ23: 1.04 | AK23: 1.76 | AL23: 2.83 | AO23: 13 | AP23: 0.24 | AQ23: 0.5 | AR23: 0.73 | AS23: 1.28 | AT23: 2.6 | AU23: 6.57 | AV23: 6.57 | AY23: 13 | AZ23: 0.1201364602 | BA23: 0.1412021233 | BB23: 0.2762931386 | BC23: 0.3945672646 | BD23: 0.9452069169 | BE23: 0.4262416603 | BF23: 0.1874828546
A24: 14 | B24: ='Data Entry'!M17 -> 0.01937874888 | C24: ='Final Spread'!B16 -> 0.01804282767 | D24: 0.008834126915 | E24: 0.009208700751 | F24: 0.02858744963 | I24: 14 | J24: 0.1515871019 | K24: 0.252495763 | L24: 0.5823064406 | M24: 0.9088795552 | N24: 2.266376846 | O24: 2.6615233 | P24: 3.363981764 | R24: 0.6543797715 | U24: 14 | V24: 0.01191399798 | W24: 0.01739757473 | X24: 0.02732668599 | Y24: 0.0673225801 | Z24: 0.1947555206 | AA24: 0.3358004246 | AB24: 0.5709098802 | AE24: 14 | AF24: 0.06 | AG24: 0.1 | AH24: 0.16 | AI24: 0.37 | AJ24: 1.03 | AK24: 1.71 | AL24: 2.63 | AO24: 14 | AP24: 0.24 | AQ24: 0.51 | AR24: 0.73 | AS24: 1.28 | AT24: 2.6 | AU24: 6.58 | AV24: 6.58 | AY24: 14 | AZ24: 0.1325488103 | BA24: 0.1565705564 | BB24: 0.3050862041 | BC24: 0.4323855209 | BD24: 1.018308125 | BE24: 0.4694594933 | BF24: 0.2117438936
A25: 15 | B25: ='Data Entry'!M18 -> 0.01973153486 | C25: ='Final Spread'!B17 -> 0.01842967321 | D25: 0.009461002105 | E25: 0.008968671103 | F25: 0.02870020597 | I25: 15 | J25: 0.1670977029 | K25: 0.2795144792 | L25: 0.6282111662 | M25: 0.9646751879 | N25: 2.343037447 | O25: 2.622995602 | P25: 3.148195179 | R25: 0.7008149707 | U25: 15 | V25: 0.01336954625 | W25: 0.01939826598 | X25: 0.03038698729 | Y25: 0.0734802081 | Z25: 0.2061593976 | AA25: 0.3490925572 | AB25: 0.5803384435 | AE25: 15 | AF25: 0.07 | AG25: 0.11 | AH25: 0.16 | AI25: 0.38 | AJ25: 1.02 | AK25: 1.65 | AL25: 2.46 | AO25: 15 | AP25: 0.23 | AQ25: 0.51 | AR25: 0.73 | AS25: 1.28 | AT25: 2.6 | AU25: 6.58 | AV25: 6.58 | AY25: 15 | AZ25: 0.1453109125 | BA25: 0.1724986051 | BB25: 0.3347943561 | BC25: 0.4709774525 | BD25: 1.091082815 | BE25: 0.5128604682 | BF25: 0.2362456885
A26: 16 | B26: ='Data Entry'!M19 -> 0.01994231216 | C26: ='Final Spread'!B18 -> 0.01881651875 | D26: 0.01012496874 | E26: =E25 -> 0.008968671103 | F26: 0.02891098327 | I26: 16 | J26: 0.1828830477 | K26: 0.3020652477 | L26: 0.680493455 | M26: 1.021496533 | N26: 2.419765161 | O26: 2.594334821 | P26: 2.952376901 | R26: 0.7499976848 | U26: 16 | V26: 0.01490341019 | W26: 0.02151319161 | X26: 0.03357237407 | Y26: 0.07966782093 | Z26: 0.2170899845 | AA26: 0.3615592614 | AB26: 0.5891236038 | AE26: 16 | AF26: 0.07 | AG26: 0.11 | AH26: 0.17 | AI26: 0.38 | AJ26: 1.01 | AK26: 1.6 | AL26: 2.3 | AO26: 16 | AP26: 0.23 | AQ26: 0.5 | AR26: 0.72 | AS26: 1.27 | AT26: 2.6 | AU26: 6.57 | AV26: 6.57 | AY26: 16 | AZ26: 0.158365602 | BA26: 0.1889242639 | BB26: 0.3653055195 | BC26: 0.5101805742 | BD26: 1.163220798 | BE26: 0.5561415897 | BF26: 0.2607770649
A27: 17 | B27: ='Data Entry'!M20 -> 0.02014961001 | C27: ='Final Spread'!B19 -> 0.01920336429 | D27: 0.01086426268 | E27: 0.008968671103 | F27: 0.02911828111 | I27: 17 | J27: 0.1939119549 | K27: 0.3301049071 | L27: 0.7390965278 | M27: 1.084252755 | N27: 2.49142254 | O27: 2.555348824 | P27: 2.776406199 | R27: 0.8047601986 | U27: 17 | V27: 0.01651771465 | W27: 0.02374210535 | X27: 0.03687620838 | Y27: 0.08586937356 | Z27: 0.2275696046 | AA27: 0.3732767877 | AB27: 0.5973347725 | AE27: 17 | AF27: 0.07 | AG27: 0.12 | AH27: 0.18 | AI27: 0.39 | AJ27: 1 | AK27: 1.54 | AL27: 2.15 | AO27: 17 | AP27: 0.24 | AQ27: 0.5 | AR27: 0.72 | AS27: 1.27 | AT27: 2.6 | AU27: 6.57 | AV27: 6.57 | AY27: 17 | AZ27: 0.1716741795 | BA27: 0.205806402 | BB27: 0.3965507828 | BC27: 0.5498970428 | BD27: 1.234573752 | BE27: 0.5990857974 | BF27: 0.285172082
A28: 18 | B28: ='Data Entry'!M21 -> 0.02035351359 | C28: ='Final Spread'!B20 -> 0.01959020983 | D28: 0.01152815791 | E28: 0.008968671103 | F28: 0.02932218469 | I28: 18 | J28: 0.2151530535 | K28: 0.3535896593 | L28: 0.788966621 | M28: 1.142857005 | N28: 2.557881562 | O28: 2.520859693 | P28: 2.620173368 | R28: 0.8539376233 | U28: 18 | V28: 0.0182144439 | W28: 0.0260841861 | X28: 0.0402917872 | Y28: 0.09207109207 | Z28: 0.2376213079 | AA28: 0.3843124341 | AB28: 0.6050302644 | AE28: 18 | AF28: 0.08 | AG28: 0.12 | AH28: 0.18 | AI28: 0.4 | AJ28: 0.98 | AK28: 1.49 | AL28: 2.02 | AO28: 18 | AP28: 0.26 | AQ28: 0.5 | AR28: 0.72 | AS28: 1.27 | AT28: 2.6 | AU28: 6.57 | AV28: 6.57 | AY28: 18 | AZ28: 0.1851981133 | BA28: 0.2231032375 | BB28: 0.4284616825 | BC28: 0.5900318622 | BD28: 1.305000328 | BE28: 0.6414939226 | BF28: 0.3092803723
A29: 19 | B29: ='Data Entry'!M22 -> 0.02055410659 | C29: ='Final Spread'!B21 -> 0.01997705538 | D29: 0.01220927934 | E29: 0.008968671103 | F29: 0.0295227777 | I29: 19 | J29: 0.2265680604 | K29: 0.3824642318 | L29: 0.8450254948 | M29: 1.197193536 | N29: 2.628950872 | O29: 2.480672841 | P29: 2.47356772 | R29: 0.9043910626 | U29: 19 | V29: 0.01999538397 | W29: 0.02853809291 | X29: 0.04381241915 | Y29: 0.09826123495 | Z29: 0.247268198 | AA29: 0.3947258402 | AB29: 0.6122599239 | AE29: 19 | AF29: 0.08 | AG29: 0.13 | AH29: 0.19 | AI29: 0.4 | AJ29: 0.97 | AK29: 1.43 | AL29: 1.89 | AO29: 19 | AP29: 0.28 | AQ29: 0.5 | AR29: 0.72 | AS29: 1.27 | AT29: 2.6 | AU29: 6.57 | AV29: 6.57 | AY29: 19 | AZ29: 0.1988907151 | BA29: 0.2407622293 | BB29: 0.4609502176 | BC29: 0.6304648047 | BD29: 1.37429919 | BE29: 0.6831530019 | BF29: 0.3329520059
A30: 20 | B30: ='Data Entry'!M23 -> 0.02075147053 | C30: ='Final Spread'!B22 -> 0.02036390092 | D30: 0.01285743782 | E30: 0.008968671103 | F30: 0.02972014164 | I30: 20 | J30: 0.2431108959 | K30: 0.4016601829 | L30: 0.8971651451 | M30: 1.2521121 | N30: 2.689364517 | O30: 2.449573016 | P30: 2.346475607 | R30: 0.9524028012 | U30: 20 | V30: 0.02186207959 | W30: 0.03110202089 | X30: 0.04743148684 | Y30: 0.1044298665 | Z30: 0.2565329738 | AA30: 0.4045700709 | AB30: 0.6190669241 | AE30: 20 | AF30: 0.08 | AG30: 0.13 | AH30: 0.19 | AI30: 0.4 | AJ30: 0.95 | AK30: 1.38 | AL30: 1.78 | AO30: 20 | AP30: 0.29 | AQ30: 0.51 | AR30: 0.73 | AS30: 1.28 | AT30: 2.6 | AU30: 6.58 | AV30: 6.58 | AY30: 20 | AZ30: 0.2126960899 | BA30: 0.2587185167 | BB30: 0.4939055877 | BC30: 0.6710463258 | BD30: 1.442200868 | BE30: 0.7238315197 | BF30: 0.3560346164
A31: 21 | B31: ='Data Entry'!M24 -> 0.02073422473 | C31: ='Final Spread'!B23 -> 0.02064460463 | D31: 0.01357678728 | E31: 0.008968671103 | F31: 0.02970289583 | I31: 21 | J31: 0.2547561354 | K31: 0.4261416643 | L31: 0.9553632537 | M31: 1.312563271 | N31: 2.744072433 | O31: 2.417447309 | P31: 2.223827729 | R31: 1.005687946 | U31: 21 | V31: 0.02381580349 | W31: 0.03377375641 | X31: 0.05114249679 | Y31: 0.110568646 | Z31: 0.2654376266 | AA31: 0.413892522 | AB31: 0.6254890469 | AE31: 21 | AF31: 0.08 | AG31: 0.13 | AH31: 0.2 | AI31: 0.41 | AJ31: 0.93 | AK31: 1.33 | AL31: 1.67 | AO31: 21 | AP31: 0.31 | AQ31: 0.51 | AR31: 0.73 | AS31: 1.28 | AT31: 2.6 | AU31: 6.58 | AV31: 6.58 | AY31: 21 | AZ31: 0.2265841871 | BA31: 0.2769376529 | BB31: 0.5272773522 | BC31: 0.7117124675 | BD31: 1.508633924 | BE31: 0.7634037567 | BF31: 0.3784322795
A32: 22 | B32: ='Data Entry'!M25 -> 0.02071390882 | C32: ='Final Spread'!B24 -> 0.02092530834 | D32: 0.01427001427 | E32: 0.008968671103 | F32: 0.02968257992 | I32: 22 | J32: 0.2765962123 | K32: 0.4560642159 | L32: 1.010094897 | M32: 1.369071472 | N32: 2.804242178 | O32: 2.384696368 | P32: 2.110758558 | R32: 1.057038094 | U32: 22 | V32: 0.02585753614 | W32: 0.03655073078 | X32: 0.05493911853 | Y32: 0.1166706336 | Z32: 0.2740032483 | AA32: 0.4227356761 | AB32: 0.6315596258 | AE32: 22 | AF32: 0.09 | AG32: 0.14 | AH32: 0.2 | AI32: 0.41 | AJ32: 0.91 | AK32: 1.28 | AL32: 1.57 | AO32: 22 | AP32: 0.33 | AQ32: 0.51 | AR32: 0.76 | AS32: 1.28 | AT32: 2.6 | AU32: 6.58 | AV32: 6.58 | AY32: 22 | AZ32: 0.2406700046 | BA32: 0.2955637277 | BB32: 0.5613647375 | BC32: 0.7528787757 | BD32: 1.574619759 | BE32: 0.8022686711 | BF32: 0.4003062258
A33: 23 | B33: ='Data Entry'!M26 -> 0.02069060031 | C33: ='Final Spread'!B25 -> 0.02120601206 | D33: 0.01500328889 | E33: 0.008968671103 | F33: 0.02965927141 | I33: 23 | J33: 0.2887701041 | K33: 0.4816625466 | L33: 1.072063192 | M33: 1.427405859 | N33: 2.866535452 | O33: 2.351909204 | P33: 2.012480307 | R33: 1.111354732 | U33: 23 | V33: 0.02798795414 | W33: 0.03943007143 | X33: 0.05881521456 | Y33: 0.1227301146 | Z33: 0.2822499194 | AA33: 0.4311377369 | AB33: 0.6373082617 | AE33: 23 | AF33: 0.09 | AG33: 0.14 | AH33: 0.21 | AI33: 0.41 | AJ33: 0.89 | AK33: 1.23 | AL33: 1.48 | AO33: 23 | AP33: 0.35 | AQ33: 0.51 | AR33: 0.8 | AS33: 1.28 | AT33: 2.6 | AU33: 6.58 | AV33: 6.58 | AY33: 23 | AZ33: 0.2551250398 | BA33: 0.3148144358 | BB33: 0.5966128726 | BC33: 0.795151511 | BD33: 1.641583556 | BE33: 0.8410219214 | BF33: 0.4219190064
A34: 24 | B34: ='Data Entry'!M27 -> 0.02066437466 | C34: ='Final Spread'!B26 -> 0.02148671577 | D34: 0.01572622922 | E34: 0.008968671103 | F34: 0.02963304576 | I34: 24 | J34: 0.3064365146 | K34: 0.5132086763 | L34: 1.132106395 | M34: 1.48346442 | N34: 2.92786437 | O34: 2.334741097 | P34: 1.924232642 | R34: 1.164905868 | U34: 24 | V34: 0.03020742596 | W34: 0.04240865036 | X34: 0.06276486251 | Y34: 0.1287424409 | Z34: 0.2901966535 | AA34: 0.4391331628 | AB34: 0.642761381 | AE34: 24 | AF34: 0.09 | AG34: 0.15 | AH34: 0.21 | AI34: 0.41 | AJ34: 0.87 | AK34: 1.19 | AL34: 1.39 | AO34: 24 | AP34: 0.36 | AQ34: 0.5 | AR34: 0.85 | AS34: 1.27 | AT34: 2.6 | AU34: 6.57 | AV34: 6.57 | AY34: 24 | AZ34: 0.2701441095 | BA34: 0.3349418511 | BB34: 0.6335385055 | BC34: 0.8392233546 | BD34: 1.711114712 | BE34: 0.8803313998 | BF34: 0.44357159
A35: 25 | B35: ='Data Entry'!M28 -> 0.020635306 | C35: ='Final Spread'!B27 -> 0.02176741948 | D35: 0.01654495593 | E35: 0.008968671103 | F35: 0.02960397711 | I35: 25 | J35: 0.3247762687 | K35: 0.5410173314 | L35: 1.201229517 | M35: 1.54830286 | N35: 3.000467231 | O35: 2.313920657 | P35: 1.851281925 | R35: 1.225552291 | U35: 25 | V35: 0.03251601371 | W35: 0.04548312916 | X35: 0.06678237076 | Y35: 0.1347038887 | Z35: 0.297861381 | AA35: 0.446753119 | AB35: 0.6479426817 | AE35: 25 | AF35: 0.1 | AG35: 0.15 | AH35: 0.22 | AI35: 0.41 | AJ35: 0.85 | AK35: 1.15 | AL35: 1.32 | AO35: 25 | AP35: 0.38 | AQ35: 0.51 | AR35: 0.89 | AS35: 1.3 | AT35: 2.64 | AU35: 6.57 | AV35: 6.57 | AY35: 25 | AZ35: 0.2859482494 | BA35: 0.3562372688 | BB35: 0.6727427799 | BC35: 0.8858901321 | BD35: 1.785013208 | BE35: 0.9209437294 | BF35: 0.4656022958
A36: 26 | B36: ='Data Entry'!M29 -> 0.02057875639 | C36: ='Final Spread'!B28 -> 0.02204812319 | D36: 0.01740159029 | E36: 0.008968671103 | F36: 0.0295474275 | I36: 26 | J36: 0.3439653309 | K36: 0.5754030276 | L36: 1.270513542 | M36: 1.618022985 | N36: 3.08669825 | O36: 2.305136511 | P36: 1.783873928 | R36: 1.289006688 | U36: 26 | V36: 0.03491347986 | W36: 0.04865000076 | X36: 0.07086228869 | Y36: 0.1406115331 | Z36: 0.3052609599 | AA36: 0.454025862 | AB36: 0.6528734955 | AE36: 26 | AF36: 0.1 | AG36: 0.16 | AH36: 0.22 | AI36: 0.42 | AJ36: 0.84 | AK36: 1.11 | AL36: 1.25 | AO36: 26 | AP36: 0.4 | AQ36: 0.54 | AR36: 0.94 | AS36: 1.35 | AT36: 2.7 | AU36: 6.57 | AV36: 6.57 | AY36: 26 | AZ36: 0.3027517319 | BA36: 0.3789909764 | BB36: 0.7148366379 | BC36: 0.935950093 | BD36: 1.865077196 | BE36: 0.9635679731 | BF36: 0.4883268938
A37: 27 | B37: ='Data Entry'!M30 -> 0.02051950679 | C37: ='Final Spread'!B29 -> 0.02232882691 | D37: 0.01834884204 | E37: 0.008968671103 | F37: 0.02948817789 | I37: 27 | J37: 0.3640742789 | K37: 0.6065133277 | L37: 1.350684121 | M37: 1.693282863 | N37: 3.183029596 | O37: 2.303627799 | P37: 1.727074246 | R37: 1.359173484 | U37: 27 | V37: 0.03739929797 | W37: 0.05190562754 | X37: 0.07499941238 | Y37: 0.1464631363 | Z37: 0.3124112047 | AA37: 0.460977069 | AB37: 0.6575730863 | AE37: 27 | AF37: 0.11 | AG37: 0.16 | AH37: 0.23 | AI37: 0.42 | AJ37: 0.83 | AK37: 1.08 | AL37: 1.19 | AO37: 27 | AP37: 0.43 | AQ37: 0.57 | AR37: 0.99 | AS37: 1.41 | AT37: 2.78 | AU37: 6.56 | AV37: 6.56 | AY37: 27 | AZ37: 0.3206395279 | BA37: 0.40333681 | BB37: 0.7601384118 | BC37: 0.9898000302 | BD37: 1.952218094 | BE37: 1.008455985 | BF37: 0.5118354349
A38: 28 | B38: ='Data Entry'!M31 -> 0.02045762636 | C38: ='Final Spread'!B30 -> 0.02260953062 | D38: 0.0193419699 | E38: 0.008968671103 | F38: 0.02942629747 | I38: 28 | J38: 0.3851489349 | K38: 0.6394603131 | L38: 1.432470089 | M38: 1.7747033 | N38: 3.285950088 | O38: 2.304532654 | P38: 1.680903027 | R38: 1.432738511 | U38: 28 | V38: 0.03997266647 | W38: 0.05524627605 | X38: 0.07918878672 | Y38: 0.152257049 | Z38: 0.319326927 | AA38: 0.4676301217 | AB38: 0.6620589011 | AE38: 28 | AF38: 0.11 | AG38: 0.17 | AH38: 0.23 | AI38: 0.42 | AJ38: 0.81 | AK38: 1.05 | AL38: 1.14 | AO38: 28 | AP38: 0.45 | AQ38: 0.6 | AR38: 1.04 | AS38: 1.47 | AT38: 2.86 | AU38: 6.56 | AV38: 6.56 | AY38: 28 | AZ38: 0.3396665206 | BA38: 0.4293747119 | BB38: 0.8089160083 | BC38: 1.047768118 | BD38: 2.047236307 | BE38: 1.05575689 | BF38: 0.5361612848
A39: 29 | B39: ='Data Entry'!M32 -> 0.02039318353 | C39: ='Final Spread'!B31 -> 0.02289023433 | D39: 0.02045139499 | E39: 0.008968671103 | F39: 0.02936185464 | I39: 29 | J39: 0.4072403826 | K39: 0.6743708791 | L39: 1.526768104 | M39: 1.863040963 | N39: 3.412382157 | O39: 2.313015906 | P39: 1.640383689 | R39: 1.514918147 | U39: 29 | V39: 0.04263252488 | W39: 0.05866814816 | X39: 0.08342570459 | Y39: 0.1579921244 | Z39: 0.326021983 | AA39: 0.4740063517 | AB39: 0.6663467805 | AE39: 29 | AF39: 0.11 | AG39: 0.17 | AH39: 0.24 | AI39: 0.43 | AJ39: 0.8 | AK39: 1.02 | AL39: 1.09 | AO39: 29 | AP39: 0.47 | AQ39: 0.63 | AR39: 1.1 | AS39: 1.54 | AT39: 2.95 | AU39: 6.56 | AV39: 6.56 | AY39: 29 | AZ39: 0.3598943433 | BA39: 0.4572174486 | BB39: 0.8614823866 | BC39: 1.110243878 | BD39: 2.151132828 | BE39: 1.105647529 | BF39: 0.5613427027
A40: 30 | B40: ='Data Entry'!M33 -> 0.02032624462 | C40: ='Final Spread'!B32 -> 0.02317093804 | D40: 0.02166678895 | E40: 0.008968671103 | F40: 0.02929491572 | I40: 30 | J40: 0.430405432 | K40: 0.7163887328 | L40: 1.629694359 | M40: 1.95922551 | N40: 3.549843839 | O40: 2.334272659 | P40: 1.60554333 | R40: 1.60494733 | U40: 30 | V40: 0.04537757174 | W40: 0.06216740903 | X40: 0.0877057037 | Y40: 0.1636676423 | Z40: 0.3325093244 | AA40: 0.4801252543 | AB40: 0.6704511397 | AE40: 30 | AF40: 0.12 | AG40: 0.18 | AH40: 0.25 | AI40: 0.43 | AJ40: 0.79 | AK40: 1 | AL40: 1.05 | AO40: 30 | AP40: 0.5 | AQ40: 0.67 | AR40: 1.16 | AS40: 1.61 | AT40: 3.06 | AU40: 6.56 | AV40: 6.56 | AY40: 30 | AZ40: 0.3813920156 | BA40: 0.4869922558 | BB40: 0.9182039383 | BC40: 1.177690223 | BD40: 2.265162604 | BE40: 1.158336319 | BF40: 0.5874234551
A41: 31 | B41: ='Data Entry'!M34 -> 0.02027885493 | E41: 0.008968671103 | F41: 0.02924752603
A42: 32 | B42: ='Data Entry'!M35 -> 0.02024832023 | E42: 0.008968671103 | F42: 0.02921699133
A43: 33 | B43: ='Data Entry'!M36 -> 0.02023319356 | E43: 0.008968671103 | F43: 0.02920186466
A44: =1+A43 -> 34 | B44: ='Data Entry'!M37 -> 0.02023227211 | E44: 0.008968671103 | F44: 0.02920094321
A45: 35 | B45: ='Data Entry'!M38 -> 0.02024456235 | E45: 0.008968671103 | F45: 0.02921323345
A46: 36 | B46: ='Data Entry'!M39 -> 0.02026925022 | E46: 0.008968671103 | F46: 0.02923792132
A47: 37 | B47: ='Data Entry'!M40 -> 0.02030567687 | E47: 0.008968671103 | F47: 0.02927434797 | V47: Non-financial. Probability of default (probability) | AF47: Non-financial. Probability of default (percentages) | AP47: Non-financial. Fundamental spread (percentages) | AZ47: Non-financial. Cost of downgrade (percentages)
A48: 38 | B48: ='Data Entry'!M41 -> 0.02035331766 | E48: 0.008968671103 | F48: 0.02932198877
A49: 39 | B49: ='Data Entry'!M42 -> 0.02041176493 | E49: 0.008968671103 | F49: 0.02938043603 | Y49: Credit quality steps | AI49: Credit quality steps | AS49: Credit quality steps | BC49: Credit quality steps
A50: 40 | B50: ='Data Entry'!M43 -> 0.02048071287 | E50: 0.008968671103 | F50: 0.02944938397 | U50: CAD | V50: 0 | W50: 1 | X50: 2 | Y50: 3 | Z50: 4 | AA50: 5 | AB50: 6 | AE50: CAD | AF50: 0 | AG50: 1 | AH50: 2 | AI50: 3 | AJ50: 4 | AK50: 5 | AL50: 6 | AO50: CAD | AP50: 0 | AQ50: 1 | AR50: 2 | AS50: 3 | AT50: 4 | AU50: 5 | AV50: 6 | AY50: CAD | AZ50: 0 | BA50: 1 | BB50: 2 | BC50: 3 | BD50: 4 | BE50: 5 | BF50: 6
A51: 41 | B51: ='Data Entry'!M44 -> 0.02055994508 | E51: 0.008968671103 | F51: 0.02952861618 | T51: Maturity | U51: 1 | V51: 0 | W51: 0 | X51: 0.0005 | Y51: 0.0019 | Z51: 0.0083 | AA51: 0.0427 | AB51: 0.3256 | AD51: Maturity | AE51: 1 | AF51: 0 | AG51: 0 | AH51: 0.04 | AI51: 0.14 | AJ51: 0.59 | AK51: 3.14 | AL51: 30.11 | AN51: Maturity | AO51: 1 | AP51: 0.11 | AQ51: 0.22 | AR51: 0.29 | AS51: 0.53 | AT51: 1.72 | AU51: 20.63 | AV51: 30.11 | AX51: Maturity | AY51: 1 | AZ51: 0 | BA51: 0 | BB51: 0 | BC51: 0 | BD51: 0 | BE51: 0 | BF51: 0
A52: 42 | B52: ='Data Entry'!M45 -> 0.02064932366 | E52: 0.008968671103 | F52: 0.02961799476 | U52: 2 | V52: 1.366e-05 | W52: 8.797e-05 | X52: 0.00121255 | Y52: 0.00448965 | Z52: 0.02019262 | AA52: 0.09474471 | AB52: 0.48924141 | AE52: 2 | AF52: 0 | AG52: 0 | AH52: 0.04 | AI52: 0.16 | AJ52: 0.73 | AK52: 3.51 | AL52: 22.83 | AO52: 2 | AP52: 0.07 | AQ52: 0.23 | AR52: 0.3 | AS52: 0.55 | AT52: 1.73 | AU52: 20.64 | AV52: 22.83 | AY52: 2 | AZ52: 0.004950809892 | BA52: 0.01117373089 | BB52: 0.03249772466 | BC52: 0.03837200246 | BD52: 0.09541518413 | BE52: 0.03447572413 | BF52: 0
A53: 43 | B53: ='Data Entry'!M46 -> 0.02074877942 | E53: 0.008968671103 | F53: 0.02971745053 | U53: 3 | V53: 5.2615662e-05 | W53: 0.000285705689 | X53: 0.002177073029 | Y53: 0.007786574 | Z53: 0.03523885593 | AA53: 0.1472572493 | AB53: 0.5772976181 | AE53: 3 | AF53: 0 | AG53: 0.01 | AH53: 0.05 | AI53: 0.19 | AJ53: 0.85 | AK53: 3.65 | AL53: 17.63 | AO53: 3 | AP53: 0.08 | AQ53: 0.25 | AR53: 0.34 | AS53: 0.61 | AT53: 1.69 | AU53: 20.6 | AV53: 20.6 | AY53: 3 | AZ53: 0.01000565802 | BA53: 0.0225326937 | BB53: 0.06533966781 | BC53: 0.07659335619 | BD53: 0.1866519654 | BE53: 0.06901493886 | BF53: 0.004740525913
A54: 44 | B54: ='Data Entry'!M47 -> 0.02085830503 | E54: 0.008968671103 | F54: 0.02982697613 | U54: 4 | V54: 0.0001289689854 | W54: 0.0006100993397 | X54: 0.003424201052 | Y54: 0.01181153763 | Z54: 0.0527337935 | AA54: 0.1967847028 | AB54: 0.6293520911 | AE54: 4 | AF54: 0 | AG54: 0.01 | AH54: 0.06 | AI54: 0.21 | AJ54: 0.95 | AK54: 3.68 | AL54: 13.97 | AO54: 4 | AP54: 0.08 | AQ54: 0.27 | AR54: 0.38 | AS54: 0.66 | AT54: 1.69 | AU54: 20.6 | AV54: 20.6 | AY54: 4 | AZ54: 0.01518787311 | BA54: 0.03413094211 | BB54: 0.0986994941 | BC54: 0.1148788982 | BD54: 0.2745247509 | BE54: 0.1036385168 | BF54: 0.01236639679
A55: 45 | B55: ='Data Entry'!M48 -> 0.02097794633 | E55: 0.008968671103 | F55: 0.02994661743 | U55: 5 | V55: 0.0002544758932 | W55: 0.001076643091 | X55: 0.00497984044 | Y55: 0.01656893937 | Z55: 0.07197347429 | AA55: 0.2422345041 | AB55: 0.6636589766 | AE55: 5 | AF55: 0 | AG55: 0.02 | AH55: 0.07 | AI55: 0.24 | AJ55: 1.04 | AK55: 3.63 | AL55: 11.36 | AO55: 5 | AP55: 0.09 | AQ55: 0.29 | AR55: 0.41 | AS55: 0.67 | AT55: 1.69 | AU55: 20.6 | AV55: 20.6 | AY55: 5 | AZ55: 0.02051896552 | BA55: 0.0460182222 | BB55: 0.1327382743 | BC55: 0.1534218012 | BD55: 0.359729141 | BE55: 0.1383673253 | BF55: 0.02179962121
A56: 46 | B56: ='Data Entry'!M49 -> 0.02110779804 | E56: 0.008968671103 | F56: 0.03007646914 | U56: 6 | V56: 0.00044043215 | W56: 0.001700695765 | X56: 0.006866098389 | Y56: 0.02204371697 | Z56: 0.09234884452 | AA56: 0.2835025608 | AB56: 0.688728766 | AE56: 6 | AF56: 0.01 | AG56: 0.02 | AH56: 0.08 | AI56: 0.26 | AJ56: 1.11 | AK56: 3.54 | AL56: 9.48 | AO56: 6 | AP56: 0.11 | AQ56: 0.32 | AR56: 0.44 | AS56: 0.71 | AT56: 1.69 | AU56: 20.6 | AV56: 20.6 | AY56: 6 | AZ56: 0.02604768936 | BA56: 0.05830520864 | BB56: 0.1677936845 | BC56: 0.1926118752 | BD56: 0.4433624927 | BE56: 0.1734144705 | BF56: 0.03243524693
A57: 47 | B57: ='Data Entry'!M50 -> 0.02124799717 | E57: 0.008968671103 | F57: 0.03021666827 | U57: 7 | V57: 0.0006977889574 | W57: 0.002497739174 | X57: 0.009101192736 | Y57: 0.02820422165 | Z57: 0.1133671119 | AA57: 0.3208661113 | AB57: 0.708604337 | AE57: 7 | AF57: 0.01 | AG57: 0.03 | AH57: 0.09 | AI57: 0.29 | AJ57: 1.17 | AK57: 3.44 | AL57: 8.09 | AO57: 7 | AP57: 0.13 | AQ57: 0.34 | AR57: 0.46 | AS57: 0.73 | AT57: 1.7 | AU57: 20.6 | AV57: 20.6 | AY57: 7 | AZ57: 0.03183178726 | BA57: 0.07112231639 | BB57: 0.2042613622 | BC57: 0.2328936062 | BD57: 0.5265744859 | BE57: 0.2090493417 | BF57: 0.04394637139
A58: 48 | B58: ='Data Entry'!M51 -> 0.02139871902 | E58: =E57 -> 0.008968671103 | F58: 0.03036739012 | U58: 8 | V58: 0.001037303621 | W58: 0.003483202383 | X58: 0.0116991872 | Y58: 0.03500666576 | Z58: 0.1346448045 | AA58: 0.3547208277 | AB58: 0.7252668602 | AE58: 8 | AF58: 0.01 | AG58: 0.03 | AH58: 0.11 | AI58: 0.32 | AJ58: 1.22 | AK58: 3.32 | AL58: 7.01 | AO58: 8 | AP58: 0.11 | AQ58: 0.34 | AR58: 0.45 | AS58: 0.75 | AT58: 1.83 | AU58: 20.6 | AV58: 20.6 | AY58: 8 | AZ58: 0.03782781865 | BA58: 0.08437359696 | BB58: 0.241886714 | BC58: 0.2739613951 | BD58: 0.6087584113 | BE58: 0.2448720822 | BF58: 0.05601181886
A59: 49 | B59: ='Data Entry'!M52 -> 0.02156017301 | E59: 0.008968671103 | F59: 0.03052884411 | U59: 9 | V59: 0.001469652832 | W59: 0.004672128548 | X59: 0.01466984368 | Y59: 0.04239942068 | Z59: 0.1558916408 | AA59: 0.3854717349 | AB59: 0.7397354697 | AE59: 9 | AF59: 0.01 | AG59: 0.04 | AH59: 0.12 | AI59: 0.34 | AJ59: 1.26 | AK59: 3.21 | AL59: 6.17 | AO59: 9 | AP59: 0.12 | AQ59: 0.35 | AR59: 0.47 | AS59: 0.79 | AT59: 1.96 | AU59: 20.6 | AV59: 20.6 | AY59: 9 | AZ59: 0.04412594085 | BA59: 0.09826225087 | BB59: 0.2812823123 | BC59: 0.3164941327 | BD59: 0.6915252552 | BE59: 0.2813725934 | BF59: 0.0685820759
A60: 50 | B60: ='Data Entry'!M53 -> 0.02173259912 | E60: 0.008968671103 | F60: 0.03070127022 | U60: 10 | V60: 0.002005489247 | W60: 0.006078814339 | X60: 0.01801865728 | Y60: 0.05032659234 | Z60: 0.1768930952 | AA60: 0.413491944 | AB60: 0.7525719246 | AE60: 10 | AF60: 0.01 | AG60: 0.04 | AH60: 0.13 | AI60: 0.37 | AJ60: 1.3 | AK60: 3.09 | AL60: 5.49 | AO60: 10 | AP60: 0.12 | AQ60: 0.36 | AR60: 0.49 | AS60: 0.81 | AT60: 2.07 | AU60: 20.6 | AV60: 20.6 | AY60: 10 | AZ60: 0.05073705074 | BA60: 0.1128144587 | BB60: 0.3225554762 | BC60: 0.3605866368 | BD60: 0.7751224078 | BE60: 0.318515392 | BF60: 0.0815502305
A61: 51 | B61: ='Data Entry'!M54 -> 0.02191626483 | E61: 0.008968671103 | F61: 0.03088493593 | U61: 11 | V61: 0.00265544395 | W61: 0.007716481841 | X61: 0.02174705487 | Y61: 0.05873077667 | Z61: 0.1974946143 | AA61: 0.4391105447 | AB61: 0.7641138238 | AE61: 11 | AF61: 0.02 | AG61: 0.05 | AH61: 0.15 | AI61: 0.39 | AJ61: 1.32 | AK61: 2.98 | AL61: 4.94 | AO61: 11 | AP61: 0.12 | AQ61: 0.36 | AR61: 0.51 | AS61: 0.82 | AT61: 2.18 | AU61: 20.61 | AV61: 20.61 | AY61: 11 | AZ61: 0.05769556452 | BA61: 0.1281094664 | BB61: 0.3659738134 | BC61: 0.4065087084 | BD61: 0.860168337 | BE61: 0.3564187388 | BF61: 0.09487566561
A62: 52 | B62: ='Data Entry'!M55 -> 0.02211146212 | E62: 0.008968671103 | F62: 0.03108013322 | U62: 12 | V62: 0.003430085325 | W62: 0.009597008135 | X62: 0.02585271378 | Y62: 0.06755507466 | Z62: 0.2175883365 | AA62: 0.4626124308 | AB62: 0.7745836591 | AE62: 12 | AF62: 0.02 | AG62: 0.06 | AH62: 0.16 | AI62: 0.41 | AJ62: 1.34 | AK62: 2.88 | AL62: 4.48 | AO62: 12 | AP62: 0.12 | AQ62: 0.36 | AR62: 0.57 | AS62: 0.87 | AT62: 2.29 | AU62: 20.61 | AV62: 20.61 | AY62: 12 | AZ62: 0.06500769921 | BA62: 0.1441643423 | BB62: 0.4116338824 | BC62: 0.4543329996 | BD62: 0.9468358094 | BE62: 0.3950239806 | BF62: 0.108491106
A63: 53 | B63: ='Data Entry'!M56 -> 0.02231850529 | E63: 0.008968671103 | F63: 0.03128717639 | U63: 13 | V63: 0.00433984657 | W63: 0.01173072033 | X63: 0.03032995578 | Y63: 0.07674449864 | Z63: 0.2371023194 | AA63: 0.4842425046 | AB63: 0.784140818 | AE63: 13 | AF63: 0.02 | AG63: 0.07 | AH63: 0.17 | AI63: 0.44 | AJ63: 1.35 | AK63: 2.78 | AL63: 4.09 | AO63: 13 | AP63: 0.12 | AQ63: 0.36 | AR63: 0.63 | AS63: 0.94 | AT63: 2.39 | AU63: 20.61 | AV63: 20.61 | AY63: 13 | AZ63: 0.07265730375 | BA63: 0.1609472385 | BB63: 0.4594993353 | BC63: 0.5039827548 | BD63: 1.034978815 | BE63: 0.4341433231 | BF63: 0.1223026498
A64: 54 | B64: ='Data Entry'!M57 -> 0.02253772883 | E64: 0.008968671103 | F64: 0.03150639994 | U64: 14 | V64: 0.005394933388 | W64: 0.01412625496 | X64: 0.03517017905 | Y64: 0.08624690207 | Z64: 0.2559919732 | AA64: 0.5042110384 | AB64: 0.7929071713 | AE64: 14 | AF64: 0.03 | AG64: 0.07 | AH64: 0.19 | AI64: 0.46 | AJ64: 1.36 | AK64: 2.67 | AL64: 3.75 | AO64: 14 | AP64: 0.12 | AQ64: 0.37 | AR64: 0.7 | AS64: 1.01 | AT64: 2.49 | AU64: 20.61 | AV64: 20.61 | AY64: 14 | AZ64: 0.08062539349 | BA64: 0.1784209696 | BB64: 0.5095266772 | BC64: 0.5553735896 | BD64: 1.124445566 | BE64: 0.4735871068 | BF64: 0.1362196352
A65: 55 | B65: ='Data Entry'!M58 -> 0.02276948518 | E65: 0.008968671103 | F65: 0.03173815628 | U65: 15 | V65: 0.006605221564 | W65: 0.01679047637 | X65: 0.04036229983 | Y65: 0.09601354793 | Z65: 0.2742333323 | AA65: 0.5226989003 | AB65: 0.8009802688 | AE65: 15 | AF65: 0.03 | AG65: 0.08 | AH65: 0.2 | AI65: 0.47 | AJ65: 1.36 | AK65: 2.57 | AL65: 3.45 | AO65: 15 | AP65: 0.12 | AQ65: 0.37 | AR65: 0.76 | AS65: 1.08 | AT65: 2.58 | AU65: 20.61 | AV65: 20.61 | AY65: 15 | AZ65: 0.08888449324 | BA65: 0.1965303533 | BB65: 0.5616279763 | BC65: 0.6083729232 | BD65: 1.214992079 | BE65: 0.5131307351 | BF65: 0.1501446692
A66: 56 | B66: ='Data Entry'!M59 -> 0.02301414323 | E66: 0.008968671103 | F66: 0.03198281433 | U66: 16 | V66: 0.007980152284 | W66: 0.01972844664 | X66: 0.04589318338 | Y66: 0.1059994098 | Z66: 0.2918178099 | AA66: 0.5398621911 | AB66: 0.8084405993 | AE66: 16 | AF66: 0.04 | AG66: 0.09 | AH66: 0.21 | AI66: 0.49 | AJ66: 1.36 | AK66: 2.48 | AL66: 3.18 | AO66: 16 | AP66: 0.13 | AQ66: 0.36 | AR66: 0.83 | AS66: 1.15 | AT66: 2.67 | AU66: 20.61 | AV66: 20.61 | AY66: 16 | AZ66: 0.09740049337 | BA66: 0.2152062316 | BB66: 0.6156813905 | BC66: 0.662812492 | BD66: 1.306309523 | BE66: 0.5525280533 | BF66: 0.1639767367
A67: 57 | B67: ='Data Entry'!M60 -> 0.02327208662 | E67: 0.008968671103 | F67: 0.03224075772 | U67: 17 | V67: 0.009528631142 | W67: 0.02294343896 | X67: 0.05174805089 | Y67: 0.1161632798 | Z67: 0.3087481342 | AA67: 0.5558361916 | AB67: 0.8153559084 | AE67: 17 | AF67: 0.04 | AG67: 0.1 | AH67: 0.23 | AI67: 0.51 | AJ67: 1.35 | AK67: 2.38 | AL67: 2.94 | AO67: 17 | AP67: 0.15 | AQ67: 0.36 | AR67: 0.9 | AS67: 1.23 | AT67: 2.75 | AU67: 20.61 | AV67: 20.61 | AY67: 17 | AZ67: 0.1061497302 | BA67: 0.2344034122 | BB67: 0.6716422729 | BC67: 0.7186084676 | BD67: 1.398271329 | BE67: 0.5916118496 | BF67: 0.1776403153
A68: 58 | B68: ='Data Entry'!M61 -> 0.02354371269 | E68: 0.008968671103 | F68: 0.03251238379 | U68: 18 | V68: 0.01125893521 | W68: 0.02643698662 | X68: 0.05791085414 | Y68: 0.1264677398 | Z68: 0.3250352136 | AA68: 0.570738659 | AB68: 0.8217839881 | AE68: 18 | AF68: 0.05 | AG68: 0.11 | AH68: 0.24 | AI68: 0.52 | AJ68: 1.34 | AK68: 2.28 | AL68: 2.72 | AO68: 18 | AP68: 0.16 | AQ68: 0.36 | AR68: 0.97 | AS68: 1.3 | AT68: 2.83 | AU68: 20.61 | AV68: 20.61 | AY68: 18 | AZ68: 0.1151079936 | BA68: 0.2540760811 | BB68: 0.7294715595 | BC68: 0.7756821485 | BD68: 1.490762796 | BE68: 0.6302254636 | BF68: 0.1910663636
A69: 59 | B69: ='Data Entry'!M62 -> 0.02382943082 | E69: 0.008968671103 | F69: 0.03279810193 | U69: 19 | V69: 0.01317863111 | W69: 0.03020896 | X69: 0.06436461337 | Y69: 0.1368790402 | Z69: 0.3406957311 | AA69: 0.5846725575 | AB69: 0.8277746164 | AE69: 19 | AF69: 0.05 | AG69: 0.12 | AH69: 0.25 | AI69: 0.53 | AJ69: 1.33 | AK69: 2.18 | AL69: 2.52 | AO69: 19 | AP69: 0.17 | AQ69: 0.39 | AR69: 1.04 | AS69: 1.37 | AT69: 2.91 | AU69: 20.61 | AV69: 20.61 | AY69: 19 | AZ69: 0.1242454058 | BA69: 0.2741662343 | BB69: 0.7891007719 | BC69: 0.8339222676 | BD69: 1.583602553 | BE69: 0.6681926806 | BF69: 0.2041834332
A70: 60 | B70: ='Data Entry'!M63 -> 0.02412966166 | E70: 0.008968671103 | F70: 0.03309833276 | U70: 20 | V70: 0.01529450602 | W70: 0.03425766488 | X70: 0.07109171683 | Y70: 0.1473669174 | Z70: 0.3557503074 | AA70: 0.597728313 | AB70: 0.8333709867 | AE70: 20 | AF70: 0.06 | AG70: 0.12 | AH70: 0.26 | AI70: 0.54 | AJ70: 1.31 | AK70: 2.09 | AL70: 2.34 | AO70: 20 | AP70: 0.19 | AQ70: 0.42 | AR70: 1.11 | AS70: 1.44 | AT70: 2.98 | AU70: 20.61 | AV70: 20.61 | AY70: 20 | AZ70: 0.133525702 | BA70: 0.2946018491 | BB70: 0.8504247024 | BC70: 0.8931778751 | BD70: 1.676528166 | BE70: 0.705314512 | BF70: 0.2169165977
A71: 61 | B71: ='Data Entry'!M64 -> 0.02442013262 | E71: 0.008968671103 | F71: 0.03338880372 | U71: 21 | V71: 0.01761251244 | W71: 0.03857995612 | X71: 0.07807418229 | Y71: 0.1579043749 | Z71: 0.3702221059 | AA71: 0.609985677 | AB71: 0.8386108085 | AE71: 21 | AF71: 0.06 | AG71: 0.13 | AH71: 0.27 | AI71: 0.55 | AJ71: 1.28 | AK71: 2 | AL71: 2.17 | AO71: 21 | AP71: 0.2 | AQ71: 0.45 | AR71: 1.19 | AS71: 1.51 | AT71: 3.05 | AU71: 20.61 | AV71: 20.61 | AY71: 21 | AZ71: 0.1429280838 | BA71: 0.3153456757 | BB71: 0.9134491552 | BC71: 0.9534140748 | BD71: 1.769510941 | BE71: 0.7414908618 | BF71: 0.2292231794
A72: 62 | B72: ='Data Entry'!M65 -> 0.02470131199 | E72: 0.008968671103 | F72: 0.03366998309 | U72: 22 | V72: 0.02013772711 | W72: 0.04317136149 | X72: 0.08529388203 | Y72: 0.1684674448 | Z72: 0.384135781 | AA72: 0.62151527 | AB72: 0.8435271764 | AE72: 22 | AF72: 0.07 | AG72: 0.14 | AH72: 0.28 | AI72: 0.56 | AJ72: 1.26 | AK72: 1.91 | AL72: 2.01 | AO72: 22 | AP72: 0.22 | AQ72: 0.48 | AR72: 1.26 | AS72: 1.57 | AT72: 3.12 | AU72: 20.61 | AV72: 20.61 | AY72: 22 | AZ72: 0.15252242 | BA72: 0.3365647041 | BB72: 0.9788250558 | BC72: 1.015264168 | BD72: 1.863864596 | BE72: 0.7771240639 | BF72: 0.2412108902
A73: 63 | B73: ='Data Entry'!M66 -> 0.02497363857 | E73: 0.008968671103 | F73: 0.03394230967 | U73: 23 | V73: 0.02287432366 | W73: 0.04802621148 | X73: 0.09273273376 | Y73: 0.1790349424 | Z73: 0.397516693 | AA73: 0.6323798641 | AB73: 0.8481492723 | AE73: 23 | AF73: 0.07 | AG73: 0.15 | AH73: 0.29 | AI73: 0.57 | AJ73: 1.24 | AK73: 1.82 | AL73: 1.87 | AO73: 23 | AP73: 0.23 | AQ73: 0.51 | AR73: 1.34 | AS73: 1.65 | AT73: 3.2 | AU73: 20.61 | AV73: 20.61 | AY73: 23 | AZ73: 0.1624151684 | BA73: 0.3585106575 | BB73: 1.047513511 | BC73: 1.079660208 | BD73: 1.961487348 | BE73: 0.812796487 | BF73: 0.2530416069
A74: 64 | B74: ='Data Entry'!M67 -> 0.02523752396 | E74: 0.008968671103 | F74: 0.03420619507 | U74: 24 | V74: 0.02582555845 | W74: 0.05313777129 | X74: 0.1003728601 | Y74: 0.1895882227 | Z74: 0.4103903272 | AA74: 0.6426354535 | AB74: 0.8525029379 | AE74: 24 | AF74: 0.08 | AG74: 0.16 | AH74: 0.3 | AI74: 0.57 | AJ74: 1.21 | AK74: 1.75 | AL74: 1.75 | AO74: 24 | AP74: 0.25 | AQ74: 0.54 | AR74: 1.43 | AS74: 1.72 | AT74: 3.28 | AU74: 20.61 | AV74: 20.61 | AY74: 24 | AZ74: 0.1727289197 | BA74: 0.3814755015 | BB74: 1.120674284 | BC74: 1.147705485 | BD74: 2.064614028 | BE74: 0.8491507948 | BF74: 0.2648936936
A75: 65 | B75: ='Data Entry'!M68 -> 0.02549335464 | E75: 0.008968671103 | F75: 0.03446202574 | U75: 25 | V75: 0.02899376846 | W75: 0.05849837225 | X75: 0.1081967202 | Y75: 0.2001109445 | Z75: 0.4227818715 | AA75: 0.6523321511 | AB75: 0.8566111471 | AE75: 25 | AF75: 0.08 | AG75: 0.17 | AH75: 0.31 | AI75: 0.58 | AJ75: 1.19 | AK75: 1.67 | AL75: 1.64 | AO75: 25 | AP75: 0.27 | AQ75: 0.57 | AR75: 1.51 | AS75: 1.8 | AT75: 3.37 | AU75: 20.6 | AV75: 20.6 | AY75: 25 | AZ75: 0.1836042879 | BA75: 0.4057973941 | BB75: 1.199716254 | BC75: 1.220715588 | BD75: 2.175921255 | BE75: 0.886897584 | BF75: 0.2769615546
A76: =1+A75 -> 66 | B76: ='Data Entry'!M69 -> 0.02574149384 | E76: 0.008968671103 | F76: =MAX(E76+B76,0) -> 0.03471016494 | U76: 26 | V76: 0.03238038035 | W76: 0.0640995403 | X76: 0.1161872153 | Y76: 0.2105888464 | Z76: 0.4347159156 | AA76: 0.6615149442 | AB76: 0.8604943985 | AE76: 26 | AF76: 0.09 | AG76: 0.18 | AH76: 0.32 | AI76: 0.58 | AJ76: 1.17 | AK76: 1.61 | AL76: 1.54 | AO76: 26 | AP76: 0.28 | AQ76: 0.61 | AR76: 1.61 | AS76: 1.88 | AT76: 3.47 | AU76: 20.6 | AV76: 20.6 | AY76: 26 | AZ76: 0.1951789299 | BA76: 0.4318150788 | BB76: 1.286190445 | BC76: 1.300095877 | BD76: 2.298319303 | BE76: 0.9267050481 | BF76: 0.2894209621
A77: 67 | B77: ='Data Entry'!M70 -> 0.02598228328 | E77: 0.008968671103 | F77: 0.03495095438 | U77: 27 | V77: 0.03598592917 | W77: 0.06993211972 | X77: 0.1243277733 | Y77: 0.2210095364 | Z77: 0.4462162422 | AA77: 0.6702243331 | AB77: 0.8641710435 | AE77: 27 | AF77: 0.09 | AG77: 0.19 | AH77: 0.33 | AI77: 0.59 | AJ77: 1.15 | AK77: 1.55 | AL77: 1.45 | AO77: 27 | AP77: 0.3 | AQ77: 0.65 | AR77: 1.72 | AS77: 1.98 | AT77: 3.59 | AU77: 20.6 | AV77: 20.6 | AY77: 27 | AZ77: 0.2075090298 | BA77: 0.4596898454 | BB77: 1.38122983 | BC77: 1.386765696 | BD77: 2.433841099 | BE77: 0.9687996121 | BF77: 0.3023130573
A78: 68 | B78: ='Data Entry'!M71 -> 0.02621604473 | E78: 0.008968671103 | F78: 0.03518471583 | U78: 28 | V78: 0.03981008565 | W78: 0.07598639078 | X78: 0.1326024128 | Y78: 0.2313622969 | Z78: 0.4573056891 | AA78: 0.6784968742 | AB78: 0.8676575622 | AE78: 28 | AF78: 0.1 | AG78: 0.19 | AH78: 0.34 | AI78: 0.6 | AJ78: 1.13 | AK78: 1.49 | AL78: 1.37 | AO78: 28 | AP78: 0.32 | AQ78: 0.68 | AR78: 1.83 | AS78: 2.08 | AT78: 3.72 | AU78: 20.6 | AV78: 20.6 | AY78: 28 | AZ78: 0.2206313492 | BA78: 0.4895459143 | BB78: 1.486024169 | BC78: 1.481638482 | BD78: 2.58466387 | BE78: 1.013308417 | BF78: 0.3156447688
A79: 69 | B79: ='Data Entry'!M72 -> 0.02644308145 | E79: 0.008968671103 | F79: 0.03541175256 | U79: 29 | V79: 0.04385169069 | W79: 0.08225218041 | X79: 0.1409957913 | Y79: 0.2416379055 | Z79: 0.4680060642 | AA79: 0.6863656439 | AB79: 0.8709687964 | AE79: 29 | AF79: 0.11 | AG79: 0.2 | AH79: 0.35 | AI79: 0.6 | AJ79: 1.12 | AK79: 1.44 | AL79: 1.3 | AO79: 29 | AP79: 0.34 | AQ79: 0.73 | AR79: 1.96 | AS79: 2.19 | AT79: 3.87 | AU79: 20.59 | AV79: 20.59 | AY79: 29 | AZ79: 0.2345864219 | BA79: 0.5215243095 | BB79: 1.602053822 | BC79: 1.585838048 | BD79: 2.753631487 | BE79: 1.060384283 | BF79: 0.3294246757
A80: 70 | B80: ='Data Entry'!M73 -> 0.02666367951 | E80: 0.008968671103 | F80: 0.03563235061 | U80: 30 | V80: 0.0481087958 | W80: 0.0887189652 | X80: 0.1494932382 | Y80: 0.2518284708 | Z80: 0.4783381006 | AA80: 0.6938606368 | AB80: 0.8741181478 | AE80: 30 | AF80: 0.11 | AG80: 0.21 | AH80: 0.36 | AI80: 0.61 | AJ80: 1.1 | AK80: 1.4 | AL80: 1.23 | AO80: 30 | AP80: 0.36 | AQ80: 0.77 | AR80: 2.1 | AS80: 2.31 | AT80: 4.05 | AU80: 20.59 | AV80: 20.59 | AY80: 30 | AZ80: 0.2494188483 | BA80: 0.5557852098 | BB80: 1.73118478 | BC80: 1.700760796 | BD80: 2.944525074 | BE80: 1.110209 | BF80: 0.3436632045
A81: 71 | B81: ='Data Entry'!M74 -> 0.02687810896 | E81: 0.008968671103 | F81: 0.03584678007
A82: 72 | B82: ='Data Entry'!M75 -> 0.02708662498 | E82: 0.008968671103 | F82: 0.03605529608
A83: 73 | B83: ='Data Entry'!M76 -> 0.02728946884 | E83: 0.008968671103 | F83: 0.03625813995
A84: 74 | B84: ='Data Entry'!M77 -> 0.02748686889 | E84: 0.008968671103 | F84: 0.03645554
A85: 75 | B85: ='Data Entry'!M78 -> 0.02767904137 | E85: 0.008968671103 | F85: 0.03664771247
A86: 76 | B86: ='Data Entry'!M79 -> 0.02786619121 | E86: 0.008968671103 | F86: 0.03683486232
A87: 77 | B87: ='Data Entry'!M80 -> 0.02804851278 | E87: 0.008968671103 | F87: 0.03701718389
A88: 78 | B88: ='Data Entry'!M81 -> 0.02822619055 | E88: 0.008968671103 | F88: 0.03719486165
A89: 79 | B89: ='Data Entry'!M82 -> 0.0283993997 | E89: 0.008968671103 | F89: 0.0373680708
A90: 80 | B90: ='Data Entry'!M83 -> 0.02856830671 | E90: =E89 -> 0.008968671103 | F90: 0.03753697781
A91: 81 | B91: ='Data Entry'!M84 -> 0.0287330699 | E91: 0.008968671103 | F91: 0.037701741
A92: 82 | B92: ='Data Entry'!M85 -> 0.02889383991 | E92: 0.008968671103 | F92: 0.03786251101
A93: 83 | B93: ='Data Entry'!M86 -> 0.02905076017 | E93: 0.008968671103 | F93: 0.03801943127
A94: 84 | B94: ='Data Entry'!M87 -> 0.02920396732 | E94: 0.008968671103 | F94: 0.03817263842
A95: 85 | B95: ='Data Entry'!M88 -> 0.0293535916 | E95: 0.008968671103 | F95: 0.0383222627
A96: 86 | B96: ='Data Entry'!M89 -> 0.02949975725 | E96: 0.008968671103 | F96: 0.03846842835
A97: 87 | B97: ='Data Entry'!M90 -> 0.02964258281 | E97: 0.008968671103 | F97: 0.03861125392
A98: 88 | B98: ='Data Entry'!M91 -> 0.02978218149 | E98: 0.008968671103 | F98: 0.03875085259
A99: 89 | B99: ='Data Entry'!M92 -> 0.0299186614 | E99: 0.008968671103 | F99: 0.03888733251
A100: 90 | B100: ='Data Entry'!M93 -> 0.03005212592 | E100: 0.008968671103 | F100: 0.03902079703
A101: 91 | B101: ='Data Entry'!M94 -> 0.03018267389 | E101: 0.008968671103 | F101: 0.03915134499
A102: 92 | B102: ='Data Entry'!M95 -> 0.03031039986 | E102: 0.008968671103 | F102: 0.03927907096
A103: 93 | B103: ='Data Entry'!M96 -> 0.03043539437 | E103: 0.008968671103 | F103: 0.03940406547
A104: 94 | B104: ='Data Entry'!M97 -> 0.0305577441 | E104: 0.008968671103 | F104: 0.0395264152
A105: 95 | B105: ='Data Entry'!M98 -> 0.03067753212 | E105: 0.008968671103 | F105: 0.03964620322
A106: 96 | B106: ='Data Entry'!M99 -> 0.03079483805 | E106: 0.008968671103 | F106: 0.03976350915
A107: 97 | B107: ='Data Entry'!M100 -> 0.03090973824 | E107: 0.008968671103 | F107: 0.03987840934
A108: 98 | B108: ='Data Entry'!M101 -> 0.03102230595 | E108: 0.008968671103 | F108: 0.03999097705
A109: 99 | B109: ='Data Entry'!M102 -> 0.03113261148 | E109: 0.008968671103 | F109: 0.04010128258
A110: 100 | B110: ='Data Entry'!M103 -> 0.03124072235 | E110: 0.008968671103 | F110: 0.04020939346

Sheet Final Spread
B1: Final | E1: =N7 -> 0.05 | F1: =N8 -> 0.12 | G1: =N9 -> 0.45 | H1: =N10 -> 0.39 | I1: =N11 -> 0
A2: Duration | B2: Spread | D2: Maturity | E2: AAA | F2: AA | G2: A | H2: BBB | I2: BBB- | K2: Weighted
A3: 1 | B3: =B4+B4-B5 -> 0.001192061289 | D3: 1 | E3: =Results!J3 -> 5.942305351e-05 | F3: =Results!K3 -> 0 | G3: =Results!L3 -> 0.004087993962 | H3: =Results!M3 -> 0.006627774044 | I3: =Results!N3 -> 0 | K3: =SUMPRODUCT(E$1:I$1,E3:I3) -> 0.004427400313
A4: =1+A3 -> 2 | B4: =B5+B5-B6 -> 0.003116409958 | D4: 2 | E4: =Results!J4 -> 0.0002558358895 | F4: =Results!K4 -> 0.003876325785 | G4: =Results!L4 -> 0.003541828706 | H4: =Results!M4 -> 0.005740629992 | I4: =Results!N4 -> 0 | K4: 0.004310619503 | M4: Weights
A5: 3 | B5: =B6+B6-B7 -> 0.005040758626 | D5: 3 | E5: =Results!J5 -> 0.001353564065 | F5: =Results!K5 -> 0.005425606629 | G5: =Results!L5 -> 0.003475154321 | H5: =Results!M5 -> 0.00734902076 | I5: =Results!N5 -> 0 | K5: 0.00514868854 | M5: Actual | N5: Weights
A6: 4 | B6: =B7+B7-B8 -> 0.006965107295 | D6: 4 | E6: =Results!J6 -> 0.002639791359 | F6: =Results!K6 -> 0.00428705949 | G6: =Results!L6 -> 0.004768795438 | H6: =Results!M6 -> 0.01026908173 | I6: =Results!N6 -> 0.0003456023432 | K6: 0.006797336528 | M6: Filings | N6: Used
A7: 5 | B7: =K7 -> 0.008889455963 | D7: 5 | E7: =Results!J7 -> 0.003686181901 | F7: =Results!K7 -> 0.004253569059 | G7: =Results!L7 -> 0.006465356059 | H7: =Results!M7 -> 0.0135520727 | I7: =Results!N7 -> 0.00326708767 | K7: 0.008889455963 | M7: AAA 5% | N7: =Instructions!F36/100 -> 0.05
A8: 6 | B8: =0.5*B7+0.5*B9 -> 0.01081380463 | D8: 6 | E8: =Results!J8 -> 0.004394638926 | F8: =Results!K8 -> 0.004919055916 | G8: =Results!L8 -> 0.00799901279 | H8: =Results!M8 -> 0.01671445614 | I8: =Results!N8 -> 0.005669736223 | K8: 0.0109282123 | M8: AA 10% | N8: =Instructions!G36/100 -> 0.12
A9: 7 | B9: =K9 -> 0.0127381533 | D9: 7 | E9: =Results!J9 -> 0.004849609699 | F9: =Results!K9 -> 0.005780097374 | G9: =Results!L9 -> 0.009239209653 | H9: =Results!M9 -> 0.01960106868 | I9: =Results!N9 -> 0.007646193331 | K9: 0.0127381533 | M9: A 40% | N9: =Instructions!H36/100 -> 0.45
A10: 8 | B10: =0.67*B9+0.33*B12 -> 0.01397805973 | D10: 8 | E10: =Results!J10 -> 0.005104785795 | F10: =Results!K10 -> 0.006564498374 | G10: =Results!L10 -> 0.01017250192 | H10: =Results!M10 -> 0.02213629834 | I10: =Results!N10 -> 0.009251867346 | K10: 0.01425376131 | M10: BBB 35% | N10: =Instructions!I36/100 -> 0.39
A11: 9 | B11: =0.33*B9+0.67*B12 -> 0.01525553907 | D11: 9 | E11: =Results!J11 -> 0.005216404156 | F11: =Results!K11 -> 0.007192708762 | G11: =Results!L11 -> 0.01085028371 | H11: =Results!M11 -> 0.02431903395 | I11: =Results!N11 -> 0.01055049528 | K11: 0.01549099617 | M11: BB 5%
A12: 10 | B12: =K12 -> 0.0164954455 | D12: 10 | E12: =Results!J12 -> 0.005233762573 | F12: =Results!K12 -> 0.007670110721 | G12: =Results!L12 -> 0.0113370532 | H12: =Results!M12 -> 0.0261837696 | I12: =Results!N12 -> 0.01160471627 | K12: 0.0164954455 | M12: B 5%
A13: 11 | B13: =0.9*B12+0.1*B22 -> 0.01688229104 | D13: 11 | E13: =Results!J13 -> 0.005117545767 | F13: =Results!K13 -> 0.00795065309 | G13: =Results!L13 -> 0.01161190552 | H13: =Results!M13 -> 0.02769927163 | I13: =Results!N13 -> 0.01239172716 | K13: 0.01723802908
A14: 12 | B14: =0.8*B12+0.2*B22 -> 0.01726913658 | D14: 12 | E14: =Results!J14 -> 0.004954366934 | F14: =Results!K14 -> 0.008126891952 | G14: =Results!L14 -> 0.01177764157 | H14: =Results!M14 -> 0.02897102534 | I14: =Results!N14 -> 0.01301539188 | K14: 0.01782158397
A15: 13 | B15: =0.7*B12+0.3*B22 -> 0.01765598212 | D15: 13 | E15: =Results!J15 -> 0.00481093735 | F15: =Results!K15 -> 0.008274455007 | G15: =Results!L15 -> 0.01191386635 | H15: =Results!M15 -> 0.03008844418 | I15: =Results!N15 -> 0.01355884351 | K15: 0.01832921455
A16: 14 | B16: =0.6*B12+0.4*B22 -> 0.01804282767 | D16: 14 | E16: =Results!J16 -> 0.004640161703 | F16: =Results!K16 -> 0.008354751276 | G16: =Results!L16 -> 0.01198341076 | H16: =Results!M16 -> 0.03102723465 | I16: =Results!N16 -> 0.0139897761 | K16: 0.0187277346
A17: 15 | B17: =0.5*B12+0.5*B22 -> 0.01842967321 | D17: 15 | E17: =Results!J17 -> 0.004448178037 | F17: =Results!K17 -> 0.008381089349 | G17: =Results!L17 -> 0.01199999787 | H17: =Results!M17 -> 0.03181462847 | I17: =Results!N17 -> 0.01432719743 | K17: 0.01903584377
A18: 16 | B18: =0.4*B12+0.6*B22 -> 0.01881651875 | D18: 16 | E18: =Results!J18 -> 0.004378028256 | F18: =Results!K18 -> 0.008502295487 | G18: =Results!L18 -> 0.01211249166 | H18: =Results!M18 -> 0.0326123334 | I18: =Results!N18 -> 0.0147251121 | K18: 0.01940860814
A19: 17 | B19: =0.3*B12+0.7*B22 -> 0.01920336429 | D19: 17 | E19: =Results!J19 -> 0.004294766983 | F19: =Results!K19 -> 0.008588025022 | G19: =Results!L19 -> 0.01219045904 | H19: =Results!M19 -> 0.033301504 | I19: =Results!N19 -> 0.01505779338 | K19: 0.01971859448
A20: 18 | B20: =0.2*B12+0.8*B22 -> 0.01959020983 | D20: 18 | E20: =Results!J20 -> 0.004201090671 | F20: =Results!K20 -> 0.008644630829 | G20: =Results!L20 -> 0.01224013423 | H20: =Results!M20 -> 0.03389851863 | I20: =Results!N20 -> 0.01533563466 | K20: 0.01997589291
A21: 19 | B21: =0.1*B12+0.9*B22 -> 0.01997705538 | D21: 19 | E21: =Results!J21 -> 0.004099106454 | F21: =Results!K21 -> 0.008677141507 | G21: =Results!L21 -> 0.01226643109 | H21: =Results!M21 -> 0.03441701675 | I21: =Results!N21 -> 0.01556714918 | K21: 0.02018874283
A22: 20 | B22: =K22 -> 0.02036390092 | D22: 20 | E22: =Results!J22 -> 0.003990481777 | F22: =Results!K22 -> 0.008689577446 | G22: =Results!L22 -> 0.01227326936 | H22: =Results!M22 -> 0.03486834955 | I22: =Results!N22 -> 0.01575933429 | K22: 0.02036390092
A23: 21 | B23: =0.9*B22+0.1*B32 -> 0.02064460463 | D23: 21 | E23: =Results!J23 -> 0.00408801079 | F23: =Results!K23 -> 0.008896644826 | G23: =Results!L23 -> 0.01247527002 | H23: =Results!M23 -> 0.03547343592 | I23: =Results!N23 -> 0.01612942579 | K23: 0.02072050944
A24: 22 | B24: =0.8*B22+0.2*B32 -> 0.02092530834 | D24: 22 | E24: =Results!J24 -> 0.004181308924 | F24: =Results!K24 -> 0.009089526863 | G24: =Results!L24 -> 0.01266354508 | H24: =Results!M24 -> 0.03602871624 | I24: =Results!N24 -> 0.01647075154 | K24: 0.02104960329
A25: 23 | B25: =0.7*B22+0.3*B32 -> 0.02120601206 | D25: 23 | E25: =Results!J25 -> 0.004271252049 | F25: =Results!K25 -> 0.009270396173 | G25: =Results!L25 -> 0.01284020766 | H25: =Results!M25 -> 0.03654081428 | I25: =Results!N25 -> 0.01678730247 | K25: 0.02135502116
A26: 24 | B26: =0.6*B22+0.4*B32 -> 0.02148671577 | D26: 24 | E26: =Results!J26 -> 0.004358558737 | F26: =Results!K26 -> 0.009441052729 | G26: =Results!L26 -> 0.01300700789 | H26: =Results!M26 -> 0.03701530648 | I26: =Results!N26 -> 0.01708242267 | K26: 0.02163997734
A27: 25 | B27: =0.5*B22+0.5*B32 -> 0.02176741948 | D27: 25 | E27: =Results!J27 -> 0.004443821589 | F27: =Results!K27 -> 0.009602997888 | G27: =Results!L27 -> 0.01316540518 | H27: =Results!M27 -> 0.03745690797 | I27: =Results!N27 -> 0.01735892839 | K27: 0.02190717727
A28: 26 | B28: =0.4*B22+0.6*B32 -> 0.02204812319 | D28: 26 | E28: =Results!J28 -> 0.004552242576 | F28: =Results!K28 -> 0.009782202756 | G28: =Results!L28 -> 0.01334133507 | H28: =Results!M28 -> 0.03789433481 | I28: =Results!N28 -> 0.01764391427 | K28: 0.02218386782
A29: 27 | B29: =0.3*B22+0.7*B32 -> 0.02232882691 | D29: 27 | E29: =Results!J29 -> 0.004659521137 | F29: =Results!K29 -> 0.009955022055 | G29: =Results!L29 -> 0.01351112196 | H29: =Results!M29 -> 0.03830629582 | I29: =Results!N29 -> 0.0179146989 | K29: 0.02244703896
A30: 28 | B30: =0.2*B22+0.8*B32 -> 0.02260953062 | D30: 28 | E30: =Results!J30 -> 0.004765999835 | F30: =Results!K30 -> 0.01012236006 | G30: =Results!L30 -> 0.01367564416 | H30: =Results!M30 -> 0.03869572276 | I30: =Results!N30 -> 0.01817301682 | K30: 0.02269835495
A31: 29 | B31: =0.1*B22+0.9*B32 -> 0.02289023433 | D31: 29 | E31: =Results!J31 -> 0.004871965164 | F31: =Results!K31 -> 0.01028498753 | G31: =Results!L31 -> 0.01383565002 | H31: =Results!M31 -> 0.03906514021 | I31: =Results!N31 -> 0.01842035708 | K31: 0.02293924395
A32: 30 | B32: =K32 -> 0.02317093804 | D32: 30 | E32: =Results!J32 -> 0.004977658407 | F32: =Results!K32 -> 0.01044356545 | G32: =Results!L32 -> 0.0139917811 | H32: =Results!M32 -> 0.03941673275 | I32: =Results!N32 -> 0.01865800474 | K32: 0.02317093804
D33: avg | E33: =AVERAGE(E3:E32) -> 0.004096633352 | F33: =AVERAGE(F3:F32) -> 0.007701576647 | G33: =AVERAGE(G3:G32) -> 0.01082712551 | H33: =AVERAGE(H3:H32) -> 0.02823616466 | I33: =AVERAGE(I3:I32) -> 0.01222341603

Sheet Results
K1: Spreads | R1: Raw Yields
I2: Maturity | J2: AAA | K2: AA | L2: A | M2: BBB | N2: BBB- | P2: Maturity | Q2: AAA | R2: AA | S2: A | T2: BBB | U2: BBB-
I3: ='All Curves'!A10 -> 1 | J3: ='All Curves'!H10 -> 5.942305351e-05 | K3: ='All Curves'!I10 -> 0 | L3: ='All Curves'!J10 -> 0.004087993962 | M3: ='All Curves'!K10 -> 0.006627774044 | N3: ='All Curves'!L10 -> 0 | P3: =I3 -> 1 | Q3: ='All Curves'!C10 -> 0.01838187113 | R3: ='All Curves'!D10 -> -0.01210788228 | S3: ='All Curves'!E10 -> 0.02241044203 | T3: ='All Curves'!F10 -> 0.02495022212 | U3: ='All Curves'!G10 -> 0.00721931314
I4: ='All Curves'!A11 -> 2 | J4: ='All Curves'!H11 -> 0.0002558358895 | K4: ='All Curves'!I11 -> 0.003876325785 | L4: ='All Curves'!J11 -> 0.003541828706 | M4: ='All Curves'!K11 -> 0.005740629992 | N4: ='All Curves'!L11 -> 0 | P4: 2 | Q4: ='All Curves'!C11 -> 0.01723202538 | R4: ='All Curves'!D11 -> 0.02085251527 | S4: ='All Curves'!E11 -> 0.0205180182 | T4: ='All Curves'!F11 -> 0.02271681948 | U4: ='All Curves'!G11 -> 0.0101687396
I5: ='All Curves'!A12 -> 3 | J5: ='All Curves'!H12 -> 0.001353564065 | K5: ='All Curves'!I12 -> 0.005425606629 | L5: ='All Curves'!J12 -> 0.003475154321 | M5: ='All Curves'!K12 -> 0.00734902076 | N5: ='All Curves'!L12 -> 0 | P5: 3 | Q5: ='All Curves'!C12 -> 0.01788121041 | R5: ='All Curves'!D12 -> 0.02195325298 | S5: ='All Curves'!E12 -> 0.02000280067 | T5: ='All Curves'!F12 -> 0.02387666711 | U5: ='All Curves'!G12 -> 0.01346557353
I6: ='All Curves'!A13 -> 4 | J6: ='All Curves'!H13 -> 0.002639791359 | K6: ='All Curves'!I13 -> 0.00428705949 | L6: ='All Curves'!J13 -> 0.004768795438 | M6: ='All Curves'!K13 -> 0.01026908173 | N6: ='All Curves'!L13 -> 0.0003456023432 | P6: 4 | Q6: ='All Curves'!C13 -> 0.01897065032 | R6: ='All Curves'!D13 -> 0.02061791845 | S6: ='All Curves'!E13 -> 0.0210996544 | T6: ='All Curves'!F13 -> 0.02659994069 | U6: ='All Curves'!G13 -> 0.0166764613
I7: ='All Curves'!A14 -> 5 | J7: ='All Curves'!H14 -> 0.003686181901 | K7: ='All Curves'!I14 -> 0.004253569059 | L7: ='All Curves'!J14 -> 0.006465356059 | M7: ='All Curves'!K14 -> 0.0135520727 | N7: ='All Curves'!L14 -> 0.00326708767 | P7: 5 | Q7: ='All Curves'!C14 -> 0.02002769075 | R7: ='All Curves'!D14 -> 0.0205950779 | S7: ='All Curves'!E14 -> 0.0228068649 | T7: ='All Curves'!F14 -> 0.02989358155 | U7: ='All Curves'!G14 -> 0.01960859652
I8: ='All Curves'!A15 -> 6 | J8: ='All Curves'!H15 -> 0.004394638926 | K8: ='All Curves'!I15 -> 0.004919055916 | L8: ='All Curves'!J15 -> 0.00799901279 | M8: ='All Curves'!K15 -> 0.01671445614 | N8: ='All Curves'!L15 -> 0.005669736223 | P8: 6 | Q8: ='All Curves'!C15 -> 0.02092160339 | R8: ='All Curves'!D15 -> 0.02144602038 | S8: ='All Curves'!E15 -> 0.02452597726 | T8: ='All Curves'!F15 -> 0.0332414206 | U8: ='All Curves'!G15 -> 0.02219670069
I9: ='All Curves'!A16 -> 7 | J9: ='All Curves'!H16 -> 0.004849609699 | K9: ='All Curves'!I16 -> 0.005780097374 | L9: ='All Curves'!J16 -> 0.009239209653 | M9: ='All Curves'!K16 -> 0.01960106868 | N9: ='All Curves'!L16 -> 0.007646193331 | P9: 7 | Q9: ='All Curves'!C16 -> 0.02164305327 | R9: ='All Curves'!D16 -> 0.02257354095 | S9: ='All Curves'!E16 -> 0.02603265323 | T9: ='All Curves'!F16 -> 0.03639451226 | U9: ='All Curves'!G16 -> 0.0244396369
I10: ='All Curves'!A17 -> 8 | J10: ='All Curves'!H17 -> 0.005104785795 | K10: ='All Curves'!I17 -> 0.006564498374 | L10: ='All Curves'!J17 -> 0.01017250192 | M10: ='All Curves'!K17 -> 0.02213629834 | N10: ='All Curves'!L17 -> 0.009251867346 | P10: 8 | Q10: ='All Curves'!C17 -> 0.02221852201 | R10: ='All Curves'!D17 -> 0.02367823459 | S10: ='All Curves'!E17 -> 0.02728623813 | T10: ='All Curves'!F17 -> 0.03925003455 | U10: ='All Curves'!G17 -> 0.02636560356
I11: ='All Curves'!A18 -> 9 | J11: ='All Curves'!H18 -> 0.005216404156 | K11: ='All Curves'!I18 -> 0.007192708762 | L11: ='All Curves'!J18 -> 0.01085028371 | M11: ='All Curves'!K18 -> 0.02431903395 | N11: ='All Curves'!L18 -> 0.01055049528 | P11: 9 | Q11: ='All Curves'!C18 -> 0.02267951439 | R11: ='All Curves'!D18 -> 0.024655819 | S11: ='All Curves'!E18 -> 0.02831339394 | T11: ='All Curves'!F18 -> 0.04178214419 | U11: ='All Curves'!G18 -> 0.02801360552
I12: ='All Curves'!A19 -> 10 | J12: ='All Curves'!H19 -> 0.005233762573 | K12: ='All Curves'!I19 -> 0.007670110721 | L12: ='All Curves'!J19 -> 0.0113370532 | M12: ='All Curves'!K19 -> 0.0261837696 | N12: ='All Curves'!L19 -> 0.01160471627 | P12: 10 | Q12: ='All Curves'!C19 -> 0.02305310635 | R12: ='All Curves'!D19 -> 0.0254894545 | S12: ='All Curves'!E19 -> 0.02915639698 | T12: ='All Curves'!F19 -> 0.04400311338 | U12: ='All Curves'!G19 -> 0.02942406005
I13: ='All Curves'!A20 -> 11 | J13: ='All Curves'!H20 -> 0.005117545767 | K13: ='All Curves'!I20 -> 0.00795065309 | L13: ='All Curves'!J20 -> 0.01161190552 | M13: ='All Curves'!K20 -> 0.02769927163 | N13: ='All Curves'!L20 -> 0.01239172716 | P13: 11 | Q13: ='All Curves'!C20 -> 0.02336024413 | R13: ='All Curves'!D20 -> 0.02619335145 | S13: ='All Curves'!E20 -> 0.02985460388 | T13: ='All Curves'!F20 -> 0.04594196999 | U13: ='All Curves'!G20 -> 0.03063442552
I14: ='All Curves'!A21 -> 12 | J14: ='All Curves'!H21 -> 0.004954366934 | K14: ='All Curves'!I21 -> 0.008126891952 | L14: ='All Curves'!J21 -> 0.01177764157 | M14: ='All Curves'!K21 -> 0.02897102534 | N14: ='All Curves'!L21 -> 0.01301539188 | P14: 12 | Q14: ='All Curves'!C21 -> 0.02361648582 | R14: ='All Curves'!D21 -> 0.02678901084 | S14: ='All Curves'!E21 -> 0.03043976046 | T14: ='All Curves'!F21 -> 0.04763314423 | U14: ='All Curves'!G21 -> 0.03167751077
I15: ='All Curves'!A22 -> 13 | J15: ='All Curves'!H22 -> 0.00481093735 | K15: ='All Curves'!I22 -> 0.008274455007 | L15: ='All Curves'!J22 -> 0.01191386635 | M15: ='All Curves'!K22 -> 0.03008844418 | N15: ='All Curves'!L22 -> 0.01355884351 | P15: 13 | Q15: ='All Curves'!C22 -> 0.0238332446 | R15: ='All Curves'!D22 -> 0.02729676225 | S15: ='All Curves'!E22 -> 0.03093617359 | T15: ='All Curves'!F22 -> 0.04911075143 | U15: ='All Curves'!G22 -> 0.03258115075
I16: ='All Curves'!A23 -> 14 | J16: ='All Curves'!H23 -> 0.004640161703 | K16: ='All Curves'!I23 -> 0.008354751276 | L16: ='All Curves'!J23 -> 0.01198341076 | M16: ='All Curves'!K23 -> 0.03102723465 | N16: ='All Curves'!L23 -> 0.0139897761 | P16: 14 | Q16: ='All Curves'!C23 -> 0.02401891058 | R16: ='All Curves'!D23 -> 0.02773350016 | S16: ='All Curves'!E23 -> 0.03136215964 | T16: ='All Curves'!F23 -> 0.05040598353 | U16: ='All Curves'!G23 -> 0.03336852498
I17: ='All Curves'!A24 -> 15 | J17: ='All Curves'!H24 -> 0.004448178037 | K17: ='All Curves'!I24 -> 0.008381089349 | L17: ='All Curves'!J24 -> 0.01199999787 | M17: ='All Curves'!K24 -> 0.03181462847 | N17: ='All Curves'!L24 -> 0.01432719743 | P17: 15 | Q17: ='All Curves'!C24 -> 0.0241797129 | R17: ='All Curves'!D24 -> 0.02811262421 | S17: ='All Curves'!E24 -> 0.03173153274 | T17: ='All Curves'!F24 -> 0.05154616333 | U17: ='All Curves'!G24 -> 0.03405873229
I18: ='All Curves'!A25 -> 16 | J18: ='All Curves'!H25 -> 0.004378028256 | K18: ='All Curves'!I25 -> 0.008502295487 | L18: ='All Curves'!J25 -> 0.01211249166 | M18: ='All Curves'!K25 -> 0.0326123334 | N18: ='All Curves'!L25 -> 0.0147251121 | P18: 16 | Q18: ='All Curves'!C25 -> 0.02432034042 | R18: ='All Curves'!D25 -> 0.02844460765 | S18: ='All Curves'!E25 -> 0.03205480382 | T18: ='All Curves'!F25 -> 0.05255464556 | U18: ='All Curves'!G25 -> 0.03466742426
I19: ='All Curves'!A26 -> 17 | J19: ='All Curves'!H26 -> 0.004294766983 | K19: ='All Curves'!I26 -> 0.008588025022 | L19: ='All Curves'!J26 -> 0.01219045904 | M19: ='All Curves'!K26 -> 0.033301504 | N19: ='All Curves'!L26 -> 0.01505779338 | P19: 17 | Q19: ='All Curves'!C26 -> 0.02444437699 | R19: ='All Curves'!D26 -> 0.02873763503 | S19: ='All Curves'!E26 -> 0.03234006905 | T19: ='All Curves'!F26 -> 0.05345111401 | U19: ='All Curves'!G26 -> 0.03520740339
I20: ='All Curves'!A27 -> 18 | J20: ='All Curves'!H27 -> 0.004201090671 | K20: ='All Curves'!I27 -> 0.008644630829 | L20: ='All Curves'!J27 -> 0.01224013423 | M20: ='All Curves'!K27 -> 0.03389851863 | N20: ='All Curves'!L27 -> 0.01533563466 | P20: 18 | Q20: ='All Curves'!C27 -> 0.02455460426 | R20: ='All Curves'!D27 -> 0.02899814442 | S20: ='All Curves'!E27 -> 0.03259364783 | T20: ='All Curves'!F27 -> 0.05425203222 | U20: ='All Curves'!G27 -> 0.03568914825
I21: ='All Curves'!A28 -> 19 | J21: ='All Curves'!H28 -> 0.004099106454 | K21: ='All Curves'!I28 -> 0.008677141507 | L21: ='All Curves'!J28 -> 0.01226643109 | M21: ='All Curves'!K28 -> 0.03441701675 | N21: ='All Curves'!L28 -> 0.01556714918 | P21: 19 | Q21: ='All Curves'!C28 -> 0.02465321305 | R21: ='All Curves'!D28 -> 0.0292312481 | S21: ='All Curves'!E28 -> 0.03282053769 | T21: ='All Curves'!F28 -> 0.05497112335 | U21: ='All Curves'!G28 -> 0.03612125577
I22: ='All Curves'!A29 -> 20 | J22: ='All Curves'!H29 -> 0.003990481777 | K22: ='All Curves'!I29 -> 0.008689577446 | L22: ='All Curves'!J29 -> 0.01227326936 | M22: ='All Curves'!K29 -> 0.03486834955 | N22: ='All Curves'!L29 -> 0.01575933429 | P22: 20 | Q22: ='All Curves'!C29 -> 0.02474195231 | R22: ='All Curves'!D29 -> 0.02944104798 | S22: ='All Curves'!E29 -> 0.03302473989 | T22: ='All Curves'!F29 -> 0.05561982009 | U22: ='All Curves'!G29 -> 0.03651080482
I23: ='All Curves'!A30 -> 21 | J23: ='All Curves'!H30 -> 0.00408801079 | K23: ='All Curves'!I30 -> 0.008896644826 | L23: ='All Curves'!J30 -> 0.01247527002 | M23: ='All Curves'!K30 -> 0.03547343592 | N23: ='All Curves'!L30 -> 0.01612942579 | P23: 21 | Q23: ='All Curves'!C30 -> 0.02482223552 | R23: ='All Curves'!D30 -> 0.02963086956 | S23: ='All Curves'!E30 -> 0.03320949475 | T23: ='All Curves'!F30 -> 0.05620766065 | U23: ='All Curves'!G30 -> 0.03686365051
I24: ='All Curves'!A31 -> 22 | J24: ='All Curves'!H31 -> 0.004181308924 | K24: ='All Curves'!I31 -> 0.009089526863 | L24: ='All Curves'!J31 -> 0.01266354508 | M24: ='All Curves'!K31 -> 0.03602871624 | N24: ='All Curves'!L31 -> 0.01647075154 | P24: 22 | Q24: ='All Curves'!C31 -> 0.02489521774 | R24: ='All Curves'!D31 -> 0.02980343568 | S24: ='All Curves'!E31 -> 0.0333774539 | T24: ='All Curves'!F31 -> 0.05674262506 | U24: ='All Curves'!G31 -> 0.03718466036
I25: ='All Curves'!A32 -> 23 | J25: ='All Curves'!H32 -> 0.004271252049 | K25: ='All Curves'!I32 -> 0.009270396173 | L25: ='All Curves'!J32 -> 0.01284020766 | M25: ='All Curves'!K32 -> 0.03654081428 | N25: ='All Curves'!L32 -> 0.01678730247 | P25: 23 | Q25: ='All Curves'!C32 -> 0.02496185236 | R25: ='All Curves'!D32 -> 0.02996099648 | S25: ='All Curves'!E32 -> 0.03353080797 | T25: ='All Curves'!F32 -> 0.05723141459 | U25: ='All Curves'!G32 -> 0.03747790278
I26: ='All Curves'!A33 -> 24 | J26: ='All Curves'!H33 -> 0.004358558737 | K26: ='All Curves'!I33 -> 0.009441052729 | L26: ='All Curves'!J33 -> 0.01300700789 | M26: ='All Curves'!K33 -> 0.03701530648 | N26: ='All Curves'!L33 -> 0.01708242267 | P26: 24 | Q26: ='All Curves'!C33 -> 0.0250229334 | R26: ='All Curves'!D33 -> 0.03010542739 | S26: ='All Curves'!E33 -> 0.03367138255 | T26: ='All Curves'!F33 -> 0.05767968114 | U26: ='All Curves'!G33 -> 0.03774679733
I27: ='All Curves'!A34 -> 25 | J27: ='All Curves'!H34 -> 0.004443821589 | K27: ='All Curves'!I34 -> 0.009602997888 | L27: ='All Curves'!J34 -> 0.01316540518 | M27: ='All Curves'!K34 -> 0.03745690797 | N27: ='All Curves'!L34 -> 0.01735892839 | P27: 25 | Q27: ='All Curves'!C34 -> 0.02507912759 | R27: ='All Curves'!D34 -> 0.03023830389 | S27: ='All Curves'!E34 -> 0.03380071118 | T27: ='All Curves'!F34 -> 0.05809221397 | U27: ='All Curves'!G34 -> 0.03799423439
I28: ='All Curves'!A35 -> 26 | J28: ='All Curves'!H35 -> 0.004552242576 | K28: ='All Curves'!I35 -> 0.009782202756 | L28: ='All Curves'!J35 -> 0.01334133507 | M28: ='All Curves'!K35 -> 0.03789433481 | N28: ='All Curves'!L35 -> 0.01764391427 | P28: 26 | Q28: ='All Curves'!C35 -> 0.02513099897 | R28: ='All Curves'!D35 -> 0.03036095915 | S28: ='All Curves'!E35 -> 0.03392009146 | T28: ='All Curves'!F35 -> 0.05847309121 | U28: ='All Curves'!G35 -> 0.03822267067
I29: ='All Curves'!A36 -> 27 | J29: ='All Curves'!H36 -> 0.004659521137 | K29: ='All Curves'!I36 -> 0.009955022055 | L29: ='All Curves'!J36 -> 0.01351112196 | M29: ='All Curves'!K36 -> 0.03830629582 | N29: ='All Curves'!L36 -> 0.0179146989 | P29: 27 | Q29: ='All Curves'!C36 -> 0.02517902793 | R29: ='All Curves'!D36 -> 0.03047452884 | S29: ='All Curves'!E36 -> 0.03403062875 | T29: ='All Curves'!F36 -> 0.05882580261 | U29: ='All Curves'!G36 -> 0.03843420569
I30: ='All Curves'!A37 -> 28 | J30: ='All Curves'!H37 -> 0.004765999835 | K30: ='All Curves'!I37 -> 0.01012236006 | L30: ='All Curves'!J37 -> 0.01367564416 | M30: ='All Curves'!K37 -> 0.03869572276 | N30: ='All Curves'!L37 -> 0.01817301682 | P30: 28 | Q30: ='All Curves'!C37 -> 0.0252236262 | R30: ='All Curves'!D37 -> 0.03057998642 | S30: ='All Curves'!E37 -> 0.03413327052 | T30: ='All Curves'!F37 -> 0.05915334913 | U30: ='All Curves'!G37 -> 0.03863064318
I31: ='All Curves'!A38 -> 29 | J31: ='All Curves'!H38 -> 0.004871965164 | K31: ='All Curves'!I38 -> 0.01028498753 | L31: ='All Curves'!J38 -> 0.01383565002 | M31: ='All Curves'!K38 -> 0.03906514021 | N31: ='All Curves'!L38 -> 0.01842035708 | P31: 29 | Q31: ='All Curves'!C38 -> 0.0252651487 | R31: ='All Curves'!D38 -> 0.03067817107 | S31: ='All Curves'!E38 -> 0.03422883355 | T31: ='All Curves'!F38 -> 0.05945832374 | U31: ='All Curves'!G38 -> 0.03881354061
I32: ='All Curves'!A39 -> 30 | J32: ='All Curves'!H39 -> 0.004977658407 | K32: ='All Curves'!I39 -> 0.01044356545 | L32: ='All Curves'!J39 -> 0.0139917811 | M32: ='All Curves'!K39 -> 0.03941673275 | N32: ='All Curves'!L39 -> 0.01865800474 | P32: 30 | Q32: ='All Curves'!C39 -> 0.02530390302 | R32: ='All Curves'!D39 -> 0.03076981007 | S32: ='All Curves'!E39 -> 0.03431802572 | T32: ='All Curves'!F39 -> 0.05974297737 | U32: ='All Curves'!G39 -> 0.03898424935

Sheet Data Entry
B3: AAA | C3: NXT_CPN_DT | D3: MATURITY | E3: CPN_FREQ | F3: PX_CLEAN_MID | G3: INT_ACC | H3: CPN | I3: PX_DIRTY_MID | J3: Check | L3: BMA Yield Curves with Swap Adjustment
B4: EK759849 Corp | C4: 12/1/2019 | D4: 6/1/2020 | E4: 2 | F4: 99.5305 | G4: 0.1130136986 | H4: 1.25 | I4: 99.6435137 | J4: =IF(ROUND(F4+G4,2)=ROUND(I4,2),1,0) -> 1 | L4: 1 Year | M4: 0.01832244807
B5: EI054583 Corp | C5: 11/25/2019 | D5: 11/25/2019 | E5: 2 | F5: 100.8045 | G5: 0.4888888889 | H5: 4.4 | I5: 101.2933889 | J5: =IF(ROUND(F5+G5,2)=ROUND(I5,2),1,0) -> 1 | L5: 2 Years | M5: 0.01697618949
B6: EK398301 Corp | C6: 7/24/2019 | D6: 7/24/2024 | E6: 2 | F6: 105.188 | G6: 1.40875 | H6: 3.15 | I6: 106.59675 | J6: 1 | L6: 3 Years | M6: 0.01652764635
B7: EI054595 Corp | C7: 11/25/2019 | D7: 11/25/2039 | E7: 2 | F7: 134.572 | G7: 0.6222222222 | H7: 5.6 | I7: 135.1942222 | J7: 1 | L7: 4 Years | M7: 0.01633085896
B8: EK399453 Corp | C8: 7/24/2019 | D8: 7/24/2024 | E8: 2 | F8: 105.188 | G8: 1.40875 | H8: 3.15 | I8: 106.59675 | J8: 1 | L8: 5 Years | M8: 0.01634150885
C9: #N/A Field Not Applicable | D9: 1/25/2016 | E9: 2 | F9: #N/A N/A | G9: 0 | H9: 3.24 | I9: #N/A N/A | L9: 6 Years | M9: 0.01652696447
B10: EJ891161 Corp | C10: 10/22/2019 | D10: 10/22/2020 | E10: 2 | F10: 101.6605 | G10: 0.606 | H10: 3.03 | I10: 102.2665 | J10: 1 | L10: 7 Years | M10: 0.01679344357
B11: EK159595 Corp | C11: 10/4/2019 | D11: 4/4/2024 | E11: 2 | F11: 106.647 | G11: 0.8202465753 | H11: 3.29 | I11: 107.4672466 | J11: 1 | L11: 8 Years | M11: 0.01711373621
B12: EI108681 Corp | C12: 7/15/2019 | D12: 7/15/2020 | E12: 2 | F12: 102.7725 | G12: 2.142465753 | H12: 4.6 | I12: 104.9149658 | J12: 1 | L12: 9 Years | M12: 0.01746311023
B13: EI291093 Corp | C13: 6/23/2020 | D13: 6/23/2020 | E13: 1 | F13: 103.5705 | G13: 0.1051912568 | H13: 3.5 | I13: 103.6756913 | J13: 1 | L13: 10 Years | M13: 0.01781934378
B14: EI666313 Corp | C14: #N/A Field Not Applicable | D14: 5/9/2018 | E14: 2 | F14: #N/A N/A | G14: 0 | H14: 3.64 | I14: #N/A N/A | L14: 11 Years | M14: 0.01824269836
C15: #N/A Field Not Applicable | D15: 4/1/2015 | E15: 2 | F15: #N/A N/A | G15: 0 | H15: 4.3 | I15: #N/A N/A | L15: 12 Years | M15: 0.01866211889
B16: EK331665 Corp | C16: 8/19/2019 | D16: 8/19/2019 | E16: 2 | F16: 99.9295 | G16: 0.6611111111 | H16: 1.75 | I16: 100.5906111 | J16: 1 | L16: 13 Years | M16: 0.01902230725
B17: EJ027787 Corp | C17: #N/A Field Not Applicable | D17: 2/16/2017 | E17: 2 | F17: #N/A N/A | G17: 0 | H17: 2.26 | I17: #N/A N/A | L17: 14 Years | M17: 0.01937874888
C18: #N/A Field Not Applicable | D18: 7/15/2015 | E18: 4 | F18: #N/A N/A | G18: 0 | H18: 1.446 | I18: #N/A N/A | L18: 15 Years | M18: 0.01973153486
B19: EI545856 Corp | C19: 7/25/2019 | D19: 1/25/2021 | E19: 2 | F19: 103.7955 | G19: 1.889315068 | H19: 4.31 | I19: 105.6848151 | J19: 1 | L19: 16 Years | M19: 0.01994231216
B20: EG506833 Corp | C20: #N/A Field Not Applicable | D20: 6/15/2017 | E20: 2 | F20: #N/A N/A | G20: 0 | H20: 4.65 | I20: #N/A N/A | L20: 17 Years | M20: 0.02014961001
B21: EI057829 Corp | C21: 11/25/2019 | D21: 11/25/2019 | E21: 2 | F21: 100.8045 | G21: 0.4888888889 | H21: 4.4 | I21: 101.2933889 | J21: 1 | L21: 18 Years | M21: 0.02035351359
B22: EI057837 Corp | C22: 11/25/2019 | D22: 11/25/2039 | E22: 2 | F22: 134.572 | G22: 0.6222222222 | H22: 5.6 | I22: 135.1942222 | J22: 1 | L22: 19 Years | M22: 0.02055410659
B23: EK499492 Corp | C23: 9/20/2019 | D23: 9/20/2019 | E23: 2 | F23: 100.1285 | G23: 0.7457753425 | H23: 2.568 | I23: 100.8742753 | J23: 1 | L23: 20 Years | M23: 0.02075147053
B24: EH348329 Corp | C24: #N/A Field Not Applicable | D24: 6/4/2018 | E24: 2 | F24: #N/A N/A | G24: 0 | H24: 4.74 | I24: #N/A N/A | L24: 21 Years | M24: 0.02073422473
C25: #N/A Field Not Applicable | D25: 5/5/2016 | E25: 2 | F25: #N/A N/A | G25: 0 | H25: 4.75 | I25: #N/A N/A | L25: 22 Years | M25: 0.02071390882
C26: #N/A Field Not Applicable | D26: 9/24/2015 | E26: 2 | F26: #N/A N/A | G26: 0 | H26: 1.596 | I26: #N/A N/A | L26: 23 Years | M26: 0.02069060031
B27: EF118458 Corp | C27: 12/15/2019 | D27: 12/15/2025 | E27: 2 | F27: 114.4755 | G27: 0.2316438356 | H27: 4.45 | I27: 114.7071438 | J27: 1 | L27: 24 Years | M27: 0.02066437466
B28: EI109073 Corp | C28: 7/15/2019 | D28: 7/15/2020 | E28: 2 | F28: 102.777 | G28: 2.155068493 | H28: 4.6 | I28: 104.9320685 | J28: 1 | L28: 25 Years | M28: 0.020635306
C29: #N/A Field Not Applicable | D29: 12/3/2015 | E29: 2 | F29: #N/A N/A | G29: 0 | H29: 2.94 | I29: #N/A N/A | L29: 26 Years | M29: 0.02057875639
C30: #N/A Field Not Applicable | D30: 4/4/2016 | E30: 4 | F30: #N/A N/A | G30: 0 | H30: 0.876 | I30: #N/A N/A | L30: 27 Years | M30: 0.02051950679
C31: #N/A Field Not Applicable | D31: 10/1/2015 | E31: 2 | F31: #N/A N/A | G31: 0 | H31: 4.1 | I31: #N/A N/A | L31: 28 Years | M31: 0.02045762636
B32: EF579826 Corp | C32: 7/26/2019 | D32: 7/26/2021 | E32: 2 | F32: 106.417 | G32: 2.069178082 | H32: 4.75 | I32: 108.4861781 | J32: 1 | L32: 29 Years | M32: 0.02039318353
B33: EF355132 Corp | C33: 10/12/2019 | D33: 4/12/2021 | E33: 2 | F33: 104.8915 | G33: 1.034657534 | H33: 4.55 | I33: 105.9261575 | J33: 1 | L33: 30 Years | M33: 0.02032624462
B34: EJ951715 Corp | C34: #N/A Field Not Applicable | D34: 11/20/2018 | E34: 2 | F34: #N/A N/A | G34: 0 | H34: 2.755 | I34: #N/A N/A | L34: 31 Years | M34: 0.02027885493
L35: 32 Years | M35: 0.02024832023
B36: AA | C36: NXT_CPN_DT | D36: MATURITY | E36: CPN_FREQ | F36: PX_CLEAN_MID | G36: INT_ACC | H36: CPN | I36: PX_DIRTY_MID | J36: Check | L36: 33 Years | M36: 0.02023319356
B37: EK706180 Corp | C37: 12/2/2019 | D37: 6/2/2025 | E37: 2 | F37: 102.79 | G37: 0.2147945205 | H37: 2.45 | I37: 103.0047945 | J37: =IF(ROUND(F37+G37,2)=ROUND(I37,2),1,0) -> 1 | L37: 34 Years | M37: 0.02023227211
B38: EK451587 Corp | C38: 9/3/2019 | D38: 3/3/2025 | E38: 2 | F38: 112.973 | G38: 1.421 | H38: 4.25 | I38: 114.394 | J38: =IF(ROUND(F38+G38,2)=ROUND(I38,2),1,0) -> 1 | L38: 35 Years | M38: 0.02024456235
B39: EI887865 Corp | C39: 12/6/2019 | D39: 12/6/2021 | E39: 2 | F39: 104.0055 | G39: 0.2684931507 | H39: 3.5 | I39: 104.2739932 | J39: 1 | L39: 36 Years | M39: 0.02026925022
B40: EI700144 Corp | C40: 12/10/2019 | D40: 6/10/2041 | E40: 2 | F40: 131.5935 | G40: 0.3090410959 | H40: 4.7 | I40: 131.9025411 | J40: 1 | L40: 37 Years | M40: 0.02030567687
B41: EH423416 Corp | C41: #N/A Field Not Applicable | D41: 6/27/2018 | E41: 2 | F41: #N/A N/A | G41: 0 | H41: 4.95 | I41: #N/A N/A | L41: 38 Years | M41: 0.02035331766
B42: EK096035 Corp | C42: 9/10/2019 | D42: 3/10/2044 | E42: 2 | F42: 124.47 | G42: 1.31890411 | H42: 4.15 | I42: 125.7889041 | J42: 1 | L42: 39 Years | M42: 0.02041176493
B43: EF554644 Corp | C43: 7/17/2019 | D43: 7/17/2036 | E43: 2 | F43: 133.4075 | G43: 2.393424658 | H43: 5.2 | I43: 135.8009247 | J43: 1 | L43: 40 Years | M43: 0.02048071287
B44: EC361024 Corp | C44: 7/30/2019 | D44: 7/30/2022 | E44: 2 | F44: 117.746 | G44: 3.552083333 | H44: 8.25 | I44: 121.2980833 | J44: 1 | L44: 41 Years | M44: 0.02055994508
B45: EG603836 Corp | C45: #N/A Field Not Applicable | D45: 7/18/2017 | E45: 2 | F45: #N/A N/A | G45: 0 | H45: 5.05 | I45: #N/A N/A | L45: 42 Years | M45: 0.02064932366
B46: CC000451 Corp | C46: #N/A Field Not Applicable | D46: 9/27/2016 | E46: 2 | F46: #N/A N/A | G46: 0 | H46: 8 | I46: #N/A N/A | L46: 43 Years | M46: 0.02074877942
C47: #N/A Field Not Applicable | D47: 6/8/2015 | E47: 2 | F47: #N/A N/A | G47: 0 | H47: 8.65 | I47: #N/A N/A | L47: 44 Years | M47: 0.02085830503
B48: EC421252 Corp | C48: 7/18/2019 | D48: 7/18/2031 | E48: 2 | F48: 141.339 | G48: 3.102082192 | H48: 6.78 | I48: 144.4410822 | J48: 1 | L48: 45 Years | M48: 0.02097794633
B49: CC001864 Corp | C49: #N/A Field Not Applicable | D49: 11/17/2017 | E49: 2 | F49: #N/A N/A | G49: 0 | H49: 6.25 | I49: #N/A N/A | L49: 46 Years | M49: 0.02110779804
B50: ED254988 Corp | C50: 12/15/2019 | D50: 12/15/2043 | E50: 2 | F50: 150.3935 | G50: 0.3040520548 | H50: 5.841 | I50: 150.6975521 | J50: 1 | L50: 47 Years | M50: 0.02124799717
B51: EC074526 Corp | C51: #N/A Field Not Applicable | D51: 12/18/2018 | E51: 2 | F51: #N/A N/A | G51: 0 | H51: 5.6 | I51: #N/A N/A | L51: 48 Years | M51: 0.02139871902
B52: EK186681 Corp | C52: 12/1/2019 | D52: 6/1/2045 | E52: 2 | F52: 123.1985 | G52: 0.3706849315 | H52: 4.1 | I52: 123.5691849 | J52: 1 | L52: 49 Years | M52: 0.02156017301
B53: CC000494 Corp | C53: #N/A Field Not Applicable | D53: 12/12/2017 | E53: 2 | F53: #N/A N/A | G53: 0 | H53: 6.1 | I53: #N/A N/A | L53: 50 Years | M53: 0.02173259912
C54: #N/A Field Not Applicable | D54: 10/28/2015 | E54: 2 | F54: #N/A N/A | G54: 0 | H54: 4.375 | I54: #N/A N/A | L54: 51 Years | M54: 0.02191626483
B55: EC370851 Corp | C55: 10/1/2019 | D55: 4/1/2022 | E55: 2 | F55: 116.95 | G55: 2.284722222 | H55: 8.75 | I55: 119.2347222 | J55: 1 | L55: 52 Years | M55: 0.02211146212
B56: EC423063 Corp | C56: 7/26/2019 | D56: 7/26/2021 | E56: 2 | F56: 110.059 | G56: 2.962191781 | H56: 6.8 | I56: 113.0211918 | J56: 1 | L56: 53 Years | M56: 0.02231850529
B57: EG075715 Corp | C57: 12/13/2019 | D57: 12/13/2046 | E57: 2 | F57: 128.914 | G57: 0.2585013699 | H57: 4.493 | I57: 129.1725014 | J57: 1 | L57: 54 Years | M57: 0.02253772883
B58: EF167571 Corp | C58: 11/16/2019 | D58: 11/16/2045 | E58: 2 | F58: 136.6095 | G58: 0.6627753425 | H58: 4.937 | I58: 137.2722753 | J58: 1 | L58: 55 Years | M58: 0.02276948518
B59: EI203751 Corp | C59: 12/3/2019 | D59: 6/3/2041 | E59: 2 | F59: 137.6725 | G59: 0.4373972603 | H59: 5.15 | I59: 138.1098973 | J59: 1 | L59: 56 Years | M59: 0.02301414323
B60: EK719902 Corp | C60: 8/6/2019 | D60: 2/6/2025 | E60: 2 | F60: 102.055 | G60: 0.9934246575 | H60: 2.45 | I60: 103.0484247 | J60: 1 | L60: 57 Years | M60: 0.02327208662
B61: EK265731 Corp | C61: 11/21/2019 | D61: 5/21/2024 | E61: 2 | F61: 106.537 | G61: 0.4098630137 | H61: 3.4 | I61: 106.946863 | J61: 1 | L61: 58 Years | M61: 0.02354371269
B62: CC000399 Corp | C62: 12/1/2019 | D62: 6/1/2027 | E62: 2 | F62: 137.385 | G62: 0.6690410959 | H62: 7.4 | I62: 138.0540411 | J62: 1 | L62: 59 Years | M62: 0.02382943082
C63: #N/A Field Not Applicable | D63: 5/20/2015 | E63: 2 | F63: #N/A N/A | G63: 0 | H63: 4.55 | I63: #N/A N/A | L63: 60 Years | M63: 0.02412966166
B64: EI849146 Corp | C64: 11/15/2019 | D64: 11/15/2051 | E64: 2 | F64: 131.212 | G64: 0.5890410959 | H64: 4.3 | I64: 131.8010411 | J64: 1 | L64: 61 Years | M64: 0.02442013262
C65: #N/A Field Not Applicable | D65: 7/28/2016 | E65: 2 | F65: #N/A N/A | G65: 0 | H65: 4.85 | I65: #N/A N/A | L65: 62 Years | M65: 0.02470131199
B66: EJ839224 Corp | C66: 9/29/2019 | D66: 9/29/2023 | E66: 2 | F66: 108.0075 | G66: 1.036438356 | H66: 3.9 | I66: 109.0439384 | J66: 1 | L66: 63 Years | M66: 0.02497363857
B67: EI898726 Corp | C67: 12/7/2019 | D67: 12/7/2051 | E67: 2 | F67: 127.538 | G67: 0.3144575342 | H67: 4.251 | I67: 127.8524575 | J67: 1 | L67: 64 Years | M67: 0.02523752396
L68: 65 Years | M68: 0.02549335464
L69: 66 Years | M69: 0.02574149384
L70: 67 Years | M70: 0.02598228328
B71: A | C71: NXT_CPN_DT | D71: MATURITY | E71: CPN_FREQ | F71: PX_CLEAN_MID | G71: INT_ACC | H71: CPN | I71: PX_DIRTY_MID | J71: Check | L71: 68 Years | M71: 0.02621604473
B72: EF763566 Corp | C72: #N/A Field Not Applicable | D72: 10/15/2016 | E72: 2 | F72: #N/A N/A | G72: 0 | H72: 5.625 | I72: #N/A N/A | J72: =IF(ROUND(F72+G72,2)=ROUND(I72,2),1,0) ->  | L72: 69 Years | M72: 0.02644308145
C73: #N/A Field Not Applicable | D73: 8/20/2015 | E73: 2 | F73: #N/A N/A | G73: 0 | H73: 4.079 | I73: #N/A N/A | J73: =IF(ROUND(F73+G73,2)=ROUND(I73,2),1,0) ->  | L73: 70 Years | M73: 0.02666367951
B74: EC460812 Corp | C74: 10/15/2019 | D74: 10/15/2031 | E74: 2 | F74: 140.912 | G74: 1.611111111 | H74: 7.25 | I74: 142.5231111 | J74: 1 | L74: 71 Years | M74: 0.02687810896
B75: EC439533 Corp | C75: 8/15/2019 | D75: 8/15/2031 | E75: 2 | F75: 140.404 | G75: 2.8 | H75: 7.2 | I75: 143.204 | J75: 1 | L75: 72 Years | M75: 0.02708662498
B76: EI241766 Corp | C76: 11/5/2019 | D76: 5/5/2020 | E76: 2 | F76: 102.5435 | G76: 0.8526575342 | H76: 5.187 | I76: 103.3961575 | J76: 1 | L76: 73 Years | M76: 0.02728946884
B77: EC637049 Corp | C77: 12/1/2019 | D77: 12/1/2031 | E77: 2 | F77: 143.0675 | G77: 0.6988888889 | H77: 7.4 | I77: 143.7663889 | J77: 1 | L77: 74 Years | M77: 0.02748686889
B78: EF763582 Corp | C78: 10/15/2019 | D78: 10/15/2036 | E78: 2 | F78: 130.9195 | G78: 1.322222222 | H78: 5.95 | I78: 132.2417222 | J78: 1 | L78: 75 Years | M78: 0.02767904137
B79: EH431703 Corp | C79: #N/A Field Not Applicable | D79: 6/26/2018 | E79: 2 | F79: #N/A N/A | G79: 0 | H79: 5.505 | I79: #N/A N/A | L79: 76 Years | M79: 0.02786619121
B80: EH777402 Corp | C80: #N/A Field Not Applicable | D80: 4/8/2019 | E80: 2 | F80: #N/A N/A | G80: 0 | H80: 7.768 | I80: #N/A N/A | L80: 77 Years | M80: 0.02804851278
C81: #N/A Field Not Applicable | D81: 2/15/2016 | E81: 2 | F81: #N/A N/A | G81: 0 | H81: 4.7 | I81: #N/A N/A | L81: 78 Years | M81: 0.02822619055
B82: EJ434781 Corp | C82: 11/9/2019 | D82: 11/9/2022 | E82: 2 | F82: 103.666 | G82: 0.4789917808 | H82: 3.122 | I82: 104.1449918 | J82: 1 | L82: 79 Years | M82: 0.0283993997
B83: EI850133 Corp | C83: 10/24/2019 | D83: 10/24/2041 | E83: 2 | F83: 123.377 | G83: 0.8837068493 | H83: 4.543 | I83: 124.2607068 | J83: 1 | L83: 80 Years | M83: 0.02856830671
B84: EH830958 Corp | C84: #N/A Field Not Applicable | D84: 11/20/2019 | E84: 2 | F84: #N/A N/A | G84: 0 | H84: 5.96 | I84: #N/A N/A | L84: 81 Years | M84: 0.0287330699
C85: #N/A Field Not Applicable | D85: 6/26/2015 | E85: 2 | F85: #N/A N/A | G85: 0 | H85: 5.161 | I85: #N/A N/A | L85: 82 Years | M85: 0.02889383991
B86: EI585193 Corp | C86: 8/25/2019 | D86: 2/25/2041 | E86: 2 | F86: 139.358 | G86: 1.873150685 | H86: 5.3 | I86: 141.2311507 | J86: 1 | L86: 83 Years | M86: 0.02905076017
C87: #N/A Field Not Applicable | D87: 6/16/2015 | E87: 2 | F87: #N/A N/A | G87: 0 | H87: 3.88 | I87: #N/A N/A | L87: 84 Years | M87: 0.02920396732
B88: EC169692 Corp | C88: 8/13/2019 | D88: 8/13/2019 | E88: 2 | F88: 100.555 | G88: 2.626849315 | H88: 6.8 | I88: 103.1818493 | J88: 1 | L88: 85 Years | M88: 0.0293535916
C89: #N/A Field Not Applicable | D89: 7/5/2016 | E89: 2 | F89: #N/A N/A | G89: 0 | H89: 2.3 | I89: #N/A N/A | L89: 86 Years | M89: 0.02949975725
B90: EH314421 Corp | C90: #N/A Field Not Applicable | D90: 4/17/2018 | E90: 2 | F90: #N/A N/A | G90: 0 | H90: 5.26 | I90: #N/A N/A | L90: 87 Years | M90: 0.02964258281
B91: EJ404866 Corp | C91: #N/A Field Not Applicable | D91: 10/18/2017 | E91: 2 | F91: #N/A N/A | G91: 0 | H91: 2.25 | I91: #N/A N/A | L91: 88 Years | M91: 0.02978218149
B92: EH883358 Corp | C92: 7/2/2019 | D92: 7/2/2019 | E92: 2 | F92: 100.13 | G92: 2.810958904 | H92: 5.7 | I92: 102.9409589 | J92: 1 | L92: 89 Years | M92: 0.0299186614
B93: EI893613 Corp | C93: 12/2/2019 | D93: 12/2/2041 | E93: 2 | F93: 127.9665 | G93: 0.3971506849 | H93: 4.53 | I93: 128.3636507 | J93: 1 | L93: 90 Years | M93: 0.03005212592
B94: EI480636 Corp | C94: 11/26/2019 | D94: 5/26/2021 | E94: 2 | F94: 103.8505 | G94: 0.4594520548 | H94: 4.3 | I94: 104.3099521 | J94: 1 | L94: 91 Years | M94: 0.03018267389
B95: EJ691584 Corp | C95: #N/A Field Not Applicable | D95: 6/1/2018 | E95: 2 | F95: #N/A N/A | G95: 0 | H95: 2.29 | I95: #N/A N/A | L95: 92 Years | M95: 0.03031039986
B96: EJ354659 Corp | C96: 9/10/2019 | D96: 9/10/2042 | E96: 2 | F96: 111.88 | G96: 1.209260274 | H96: 3.805 | I96: 113.0892603 | J96: 1 | L96: 93 Years | M96: 0.03043539437
B97: EI787909 Corp | C97: 8/23/2019 | D97: 8/23/2021 | E97: 2 | F97: 105.443 | G97: 1.640191781 | H97: 4.57 | I97: 107.0831918 | J97: 1 | L97: 94 Years | M97: 0.0305577441
B98: EC161269 Corp | C98: 7/27/2019 | D98: 7/27/2029 | E98: 2 | F98: 135.1745 | G98: 2.800712329 | H98: 6.47 | I98: 137.9752123 | J98: 1 | L98: 95 Years | M98: 0.03067753212
B99: CC001874 Corp | C99: 12/3/2019 | D99: 12/3/2027 | E99: 2 | F99: 132.204 | G99: 0.5478082192 | H99: 6.45 | I99: 132.7518082 | J99: 1 | L99: 96 Years | M99: 0.03079483805
B100: EI282453 Corp | C100: #N/A Field Not Applicable | D100: 6/16/2020 | E100: 2 | F100: #N/A N/A | G100: 1.476493151 | H100: 4.99 | I100: #N/A N/A | L100: 97 Years | M100: 0.03090973824
B101: EH013942 Corp | C101: #N/A Field Not Applicable | D101: 11/14/2017 | E101: 2 | F101: #N/A N/A | G101: 0 | H101: 5.15 | I101: #N/A N/A | L101: 98 Years | M101: 0.03102230595
B102: EC264206 Corp | C102: 12/12/2019 | D102: 6/12/2030 | E102: 2 | F102: 142.743 | G102: 0.4249315068 | H102: 7.05 | I102: 143.1679315 | J102: 1 | L102: 99 Years | M102: 0.03113261148
L103: 100 Years | M103: 0.03124072235
B106: BBB | C106: NXT_CPN_DT | D106: MATURITY | E106: CPN_FREQ | F106: PX_CLEAN_MID | G106: INT_ACC | H106: CPN | I106: PX_DIRTY_MID | J106: Check
B107: EJ411865 Corp | C107: 10/25/2019 | D107: 10/25/2022 | E107: 2 | F107: 104.677 | G107: 0.8263888889 | H107: 4.25 | I107: 105.5033889 | J107: =IF(ROUND(F107+G107,2)=ROUND(I107,2),1,0) -> 1
B108: EJ410755 Corp | C108: 10/25/2019 | D108: 10/25/2042 | E108: 2 | F108: 104.7845 | G108: 1.079166667 | H108: 5.55 | I108: 105.8636667 | J108: =IF(ROUND(F108+G108,2)=ROUND(I108,2),1,0) -> 1
C109: #N/A Field Not Applicable | D109: 12/1/2017 | E109: 2 | F109: #N/A N/A | G109: 0 | H109: 5.9 | I109: #N/A N/A
B110: ED966495 Corp | C110: 12/15/2019 | D110: 6/15/2035 | E110: 2 | F110: 110.724 | G110: 0.3444444444 | H110: 6.2 | I110: 111.0684444 | J110: 1
B111: EI866858 Corp | C111: 11/15/2019 | D111: 11/15/2041 | E111: 2 | F111: 109.384 | G111: 0.8333333333 | H111: 6 | I111: 110.2173333 | J111: 1
B112: ED560396 Corp | C112: 8/15/2019 | D112: 8/15/2034 | E112: 2 | F112: 123.8365 | G112: 2.527777778 | H112: 6.5 | I112: 126.3642778 | J112: 1
B113: EG537252 Corp | C113: #N/A Field Not Applicable | D113: 6/13/2017 | E113: 1 | F113: #N/A N/A | G113: 0 | H113: 5.25 | I113: #N/A N/A
B114: EH094163 Corp | C114: 8/1/2019 | D114: 2/1/2038 | E114: 2 | F114: 123.023 | G114: 2.780555556 | H114: 6.5 | I114: 125.8035556 | J114: 1
B115: EC469919 Corp | C115: 11/1/2019 | D115: 11/1/2031 | E115: 2 | F115: 129.0875 | G115: 1.311111111 | H115: 7.375 | I115: 130.3986111 | J115: 1
B116: EK733475 Corp | C116: 9/14/2019 | D116: 9/14/2020 | E116: 2 | F116: 100.1375 | G116: 0.7048328767 | H116: 2.297 | I116: 100.8423329 | J116: 1
B117: EH884499 Corp | C117: 7/3/2019 | D117: 7/3/2019 | E117: 2 | F117: 100.036 | G117: 3.05260274 | H117: 6.19 | I117: 103.0886027 | J117: 1
B118: EI868158 Corp | C118: #N/A Field Not Applicable | D118: 1/15/2017 | E118: 2 | F118: #N/A N/A | G118: 0 | H118: 3.6 | I118: #N/A N/A
C119: #N/A Field Not Applicable | D119: 10/23/2015 | E119: 2 | F119: #N/A N/A | G119: 0 | H119: 2.05 | I119: #N/A N/A
B120: EI508499 Corp | C120: 12/16/2019 | D120: 12/16/2020 | E120: 2 | F120: 103.0705 | G120: 0.2370575342 | H120: 4.807 | I120: 103.3075575 | J120: 1
B121: EK327386 Corp | C121: #N/A Field Not Applicable | D121: 6/13/2019 | E121: 2 | F121: #N/A N/A | G121: 0 | H121: 3.06 | I121: #N/A N/A
B122: EJ823735 Corp | C122: #N/A Field Not Applicable | D122: 3/12/2019 | E122: 2 | F122: #N/A N/A | G122: 1.10899726 | H122: 3.748 | I122: #N/A N/A
B123: EJ795362 Corp | C123: 11/15/2019 | D123: 11/15/2037 | E123: 2 | F123: 120.63 | G123: 0.9583333333 | H123: 6.9 | I123: 121.5883333 | J123: 1
C124: #N/A Field Not Applicable | D124: 1/18/2018 | E124: 2 | F124: #N/A N/A | G124: 0 | H124: 5.8 | I124: #N/A N/A
B125: EJ795312 Corp | C125: 8/21/2019 | D125: 8/21/2020 | E125: 2 | F125: 102.2205 | G125: 1.535512329 | H125: 4.214 | I125: 103.7560123 | J125: 1
B126: EI431281 Corp | C126: 10/13/2019 | D126: 10/13/2020 | E126: 2 | F126: 103.567 | G126: 1.154739726 | H126: 5.14 | I126: 104.7217397 | J126: 1
B127: EJ422350 Corp | C127: 11/1/2019 | D127: 11/1/2022 | E127: 2 | F127: 105.0085 | G127: 0.683660274 | H127: 3.899 | I127: 105.6921603 | J127: 1
B128: EI078885 Corp | C128: #N/A Field Not Applicable | D128: 12/16/2019 | E128: 2 | F128: #N/A N/A | G128: 1.864726027 | H128: 5.625 | I128: #N/A N/A
B129: EJ680966 Corp | C129: #N/A Field Not Applicable | D129: 5/24/2018 | E129: 2 | F129: #N/A N/A | G129: 0 | H129: 2.36 | I129: #N/A N/A
C130: #N/A Field Not Applicable | D130: 12/16/2015 | E130: 2 | F130: #N/A N/A | G130: 0 | H130: 3.531 | I130: #N/A N/A
B131: DD109543 Corp | C131: #N/A Field Not Applicable | D131: 2/1/2017 | E131: 2 | F131: #N/A N/A | G131: 0 | H131: 7.7 | I131: #N/A N/A
B132: EF432866 Corp | C132: 11/23/2019 | D132: 5/23/2036 | E132: 2 | F132: 136.5695 | G132: 0.83125 | H132: 7.125 | I132: 137.40075 | J132: 1
C133: #N/A Field Not Applicable | D133: 5/24/2016 | E133: 4 | F133: #N/A N/A | G133: 0 | H133: 1.506 | I133: #N/A N/A
B134: EI866850 Corp | C134: #N/A Field Not Applicable | D134: 1/15/2017 | E134: 2 | F134: #N/A N/A | G134: 0 | H134: 3.6 | I134: #N/A N/A
B135: EF802345 Corp | C135: 11/5/2019 | D135: 11/5/2036 | E135: 2 | F135: 122.446 | G135: 0.96 | H135: 5.84 | I135: 123.406 | J135: 1
B136: EI063029 Corp | C136: #N/A Field Not Applicable | D136: 11/30/2016 | E136: 2 | F136: #N/A N/A | G136: 0 | H136: 6.132 | I136: #N/A N/A
B137: EJ380744 Corp | C137: 9/28/2019 | D137: 9/28/2021 | E137: 2 | F137: 103.1215 | G137: 0.9987945205 | H137: 3.72 | I137: 104.1202945 | J137: 1
B141: BBB- | C141: NXT_CPN_DT | D141: MATURITY | E141: CPN_FREQ | F141: PX_CLEAN_MID | G141: INT_ACC | H141: CPN | I141: PX_DIRTY_MID | J141: Check
B142: EJ800179 Corp | C142: 2016-11-01 | D142: 2023-05-01 | E142: 2 | F142: 107.8275 | G142: 1.435 | H142: 4.1 | I142: 109.2625 | J142: =IF(ROUND(F142+G142,2)=ROUND(I142,2),1,0) -> 1
B143: EI665769 Corp | C143: 2016-11-15 | D143: 2021-05-15 | E143: 2 | F143: 109.538 | G143: 1.804444444 | H143: 5.8 | I143: 111.3424444 | J143: =IF(ROUND(F143+G143,2)=ROUND(I143,2),1,0) -> 1
B144: EH846401 Corp | C144: 2016-12-01 | D144: 2019-06-01 | E144: 2 | F144: 109.939 | G144: 2.066666667 | H144: 7.75 | I144: 112.0056667 | J144: 1
B145: EJ108852 Corp | C145: 2016-10-01 | D145: 2022-04-01 | E145: 2 | F145: 103.121 | G145: 1.95 | H145: 4.5 | I145: 105.071 | J145: 1
B146: EJ034710 Corp | C146: 2017-03-01 | D146: 2019-03-01 | E146: 2 | F146: 97.5625 | G146: 0.05 | H146: 3 | I146: 97.6125 | J146: 1
B147: EH764547 Corp | C147: 2016-10-01 | D147: 2019-04-01 | E147: 2 | F147: 111.925 | G147: 3.011666667 | H147: 6.95 | I147: 114.9366667 | J147: 1
B148: DD106058 Corp | C148: 2016-10-15 | D148: 2026-04-15 | E148: 2 | F148: 119.8035 | G148: 3.273888889 | H148: 8.3 | I148: 123.0773889 | J148: 1
B149: EJ399699 Corp | C149: 2016-10-14 | D149: 2022-10-14 | E149: 2 | F149: 111.812 | G149: 2.336 | H149: 5.84 | I149: 114.148 | J149: 1
B150: EJ038806 Corp | C150: 2017-03-01 | D150: 2022-03-01 | E150: 2 | F150: 104.8125 | G150: 0.0875 | H150: 5.25 | I150: 104.9 | J150: 1
B151: EF255354 Corp | C151: 2017-02-01 | D151: 2037-02-01 | E151: 2 | F151: 99.113 | G151: 0.585 | H151: 5.85 | I151: 99.698 | J151: 1
B152: EI182608 Corp | C152: 2016-09-15 | D152: 2040-03-15 | E152: 2 | F152: 91.125 | G152: 3.105555556 | H152: 6.5 | I152: 94.23055556 | J152: 1
B153: EJ951649 Corp | C153: 2016-11-25 | D153: 2020-11-25 | E153: 2 | F153: 100.25 | G153: 1.438356164 | H153: 5 | I153: 101.6883562 | J153: 1
B154: EK071152 Corp | C154: 2017-02-19 | D154: 2019-02-19 | E154: 2 | F154: 102.422 | G154: 0.152989041 | H154: 2.939 | I154: 102.574989 | J154: 1
B155: EJ214547 Corp | C155: 2016-09-01 | D155: 2016-09-01 | E155: 2 | F155: 100 | G155: 1.8125 | H155: 3.625 | I155: 101.8125 | J155: 1
B156: EK722756 Corp | C156: 2016-09-15 | D156: 2020-09-15 | E156: 2 | F156: 101.9085 | G156: 1.83859726 | H156: 3.813 | I156: 103.7470973 | J156: 1
B157: EI038691 Corp | C157: 2016-11-09 | D157: 2039-11-09 | E157: 2 | F157: 124.472 | G157: 2.237671233 | H157: 6.75 | I157: 126.7096712 | J157: 1
B158: EJ197848 Corp | C158: 2016-11-17 | D158: 2019-05-17 | E158: 2 | F158: 102.65 | G158: 1.73369863 | H158: 5.6 | I158: 104.3836986 | J158: 1
B159: ED482134 Corp | C159: 2016-10-15 | D159: 2035-10-15 | E159: 2 | F159: 115.7415 | G159: 2.544166667 | H159: 6.45 | I159: 118.2856667 | J159: 1
B160: EC441012 Corp | C160: 2017-03-01 | D160: 2021-09-01 | E160: 2 | F160: 126.875 | G160: 0.156666667 | H160: 9.4 | I160: 127.0316667 | J160: 1
B161: EJ452717 Corp | C161: 2017-01-22 | D161: 2018-01-22 | E161: 2 | F161: 101.4415 | G161: 0.560136986 | H161: 4.35 | I161: 102.001637 | J161: 1
B162: EI491680 Corp | C162: 2016-12-07 | D162: 2020-12-07 | E162: 2 | F162: 112 | G162: 1.38630137 | H162: 5.5 | I162: 113.3863014 | J162: 1
J163: 1
B164: EJ775381 Corp | C164: 2017-02-08 | D164: 2018-08-08 | E164: 2 | F164: 101.9965 | G164: 0.289315068 | H164: 3.52 | I164: 102.2858151 | J164: 1
B165: EJ030120 Corp | C165: 2017-02-21 | D165: 2019-02-21 | E165: 2 | F165: 102.982 | G165: 0.225890411 | H165: 4.85 | I165: 103.2078904 | J165: 1
J166: 1
J167: 1
B168: EJ534170 Corp | C168: 2017-02-01 | D168: 2018-02-01 | E168: 2 | F168: 102.2315 | G168: 0.37 | H168: 3.65 | I168: 102.6015 | J168: 1
B169: DD010165 Corp | C169: 2016-10-01 | D169: 2027-04-01 | E169: 2 | F169: 126.8695 | G169: 3.553333333 | H169: 8.2 | I169: 130.4228333 | J169: 1
B170: EI785015 Corp | C170: 2016-09-01 | D170: 2016-09-01 | E170: 2 | F170: 100 | G170: 1.802430556 | H170: 3.625 | I170: 101.8024306 | J170: 1
J171: 1
B172: EC384248 Corp | C172: 2017-01-15 | D172: 2026-06-03 | E172: 2 | F172: 128.6635 | G172: 1.162777778 | H172: 8.05 | I172: 129.8262778 | J172: 1

Sheet All Curves
A1: NSS | C1: AAA Rate | D1: AA Rate | E1: A Rate | F1: BBB Rate | G1: BBB- Rate
A2: b0 | C2: ='AAA Yield Curve'!B5 -> 0.026427778 | D2: ='AA Yield Curve'!B5 -> 0.03342734113 | E2: ='A Yield Curve'!B5 -> 0.0369045984 | F2: ='BBB Yield Curve'!B5 -> 0.06799847041 | G2: ='BBB- Yield Curve'!B5 -> 0.04393502744
A3: b1 | C3: ='AAA Yield Curve'!B6 -> -0.001546102995 | D3: ='AA Yield Curve'!B6 -> -0.2637420316 | E3: ='A Yield Curve'!B6 -> -0.0229442265 | F3: ='BBB Yield Curve'!B6 -> -0.03414140647 | G3: ='BBB- Yield Curve'!B6 -> -0.03844534327
A4: b2 | C4: ='AAA Yield Curve'!B7 -> -1.241364241 | D4: ='AA Yield Curve'!B7 -> -0.2812777808 | E4: ='A Yield Curve'!B7 -> -0.3705389558 | F4: ='BBB Yield Curve'!B7 -> -0.03485592974 | G4: ='BBB- Yield Curve'!B7 -> -0.01790825737
A5: b3 | C5: ='AAA Yield Curve'!B8 -> 1.213472738 | D5: ='AA Yield Curve'!B8 -> 0.6884874081 | E5: ='A Yield Curve'!B8 -> 0.3549071541 | F5: ='BBB Yield Curve'!B8 -> -0.05483550892 | G5: ='BBB- Yield Curve'!B8 -> -0.01790825768
A6: tau | C6: ='AAA Yield Curve'!B9 -> 1.340100938 | D6: ='AA Yield Curve'!B9 -> 1.091822122 | E6: ='A Yield Curve'!B9 -> 0.9818723403 | F6: ='BBB Yield Curve'!B9 -> 2 | G6: ='BBB- Yield Curve'!B9 -> 2
A7: rho | C7: ='AAA Yield Curve'!B10 -> 1.344825489 | D7: ='AA Yield Curve'!B10 -> 0.7485086147 | E7: ='A Yield Curve'!B10 -> 0.869954491 | F7: ='BBB Yield Curve'!B10 -> 2 | G7: ='BBB- Yield Curve'!B10 -> 2
A9: Year | B9: Risk Free Rate | C9: AAA Rate | D9: AA Rate | E9: A Rate | F9: BBB Rate | G9: BBB- Rate | H9: Spread AAA | I9: Spread AA | J9: Spread A | K9: Spread BBB | L9: Spread BBB-
A10: 1 | B10: ='Data Entry'!M4 -> 0.01832244807 | C10: =C$2+C$3*((1-EXP(-$A10/C$6))/($A10/C$6))+C$4*((1-EXP(-$A10/C$6))/($A10/C$6)-EXP(-$A10/C$6))+C$5*((1-EXP(-$A10/C$7))/($A10/C$7)-EXP(-$A10/C$7)) -> 0.01838187113 | D10: =D$2+D$3*((1-EXP(-$A10/D$6))/($A10/D$6))+D$4*((1-EXP(-$A10/D$6))/($A10/D$6)-EXP(-$A10/D$6))+D$5*((1-EXP(-$A10/D$7))/($A10/D$7)-EXP(-$A10/D$7)) -> -0.01210788228 | E10: =E$2+E$3*((1-EXP(-$A10/E$6))/($A10/E$6))+E$4*((1-EXP(-$A10/E$6))/($A10/E$6)-EXP(-$A10/E$6))+E$5*((1-EXP(-$A10/E$7))/($A10/E$7)-EXP(-$A10/E$7)) -> 0.02241044203 | F10: =F$2+F$3*((1-EXP(-$A10/F$6))/($A10/F$6))+F$4*((1-EXP(-$A10/F$6))/($A10/F$6)-EXP(-$A10/F$6))+F$5*((1-EXP(-$A10/F$7))/($A10/F$7)-EXP(-$A10/F$7)) -> 0.02495022212 | G10: =G$2+G$3*((1-EXP(-$A10/G$6))/($A10/G$6))+G$4*((1-EXP(-$A10/G$6))/($A10/G$6)-EXP(-$A10/G$6))+G$5*((1-EXP(-$A10/G$7))/($A10/G$7)-EXP(-$A10/G$7)) -> 0.00721931314 | H10: =MAX(C10-$B10,0) -> 5.942305351e-05 | I10: =MAX(D10-$B10,0) -> 0 | J10: =MAX(E10-$B10,0) -> 0.004087993962 | K10: 0.006627774044 | L10: 0
A11: =A10+1 -> 2 | B11: ='Data Entry'!M5 -> 0.01697618949 | C11: =C$2+C$3*((1-EXP(-$A11/C$6))/($A11/C$6))+C$4*((1-EXP(-$A11/C$6))/($A11/C$6)-EXP(-$A11/C$6))+C$5*((1-EXP(-$A11/C$7))/($A11/C$7)-EXP(-$A11/C$7)) -> 0.01723202538 | D11: 0.02085251527 | E11: 0.0205180182 | F11: 0.02271681948 | G11: 0.0101687396 | H11: =MAX(C11-$B11,0) -> 0.0002558358895 | I11: =MAX(D11-$B11,0) -> 0.003876325785 | J11: =MAX(E11-$B11,0) -> 0.003541828706 | K11: =MAX(F11-$B11,0) -> 0.005740629992 | L11: =MAX(G11-$B11,0) -> 0
A12: =A11+1 -> 3 | B12: ='Data Entry'!M6 -> 0.01652764635 | C12: 0.01788121041 | D12: 0.02195325298 | E12: 0.02000280067 | F12: 0.02387666711 | G12: 0.01346557353 | H12: 0.001353564065 | I12: 0.005425606629 | J12: 0.003475154321 | K12: 0.00734902076 | L12: 0
A13: 4 | B13: ='Data Entry'!M7 -> 0.01633085896 | C13: 0.01897065032 | D13: 0.02061791845 | E13: 0.0210996544 | F13: 0.02659994069 | G13: 0.0166764613 | H13: 0.002639791359 | I13: 0.00428705949 | J13: 0.004768795438 | K13: 0.01026908173 | L13: 0.0003456023432
A14: 5 | B14: ='Data Entry'!M8 -> 0.01634150885 | C14: 0.02002769075 | D14: 0.0205950779 | E14: 0.0228068649 | F14: 0.02989358155 | G14: 0.01960859652 | H14: 0.003686181901 | I14: 0.004253569059 | J14: 0.006465356059 | K14: 0.0135520727 | L14: 0.00326708767
A15: 6 | B15: ='Data Entry'!M9 -> 0.01652696447 | C15: 0.02092160339 | D15: 0.02144602038 | E15: 0.02452597726 | F15: 0.0332414206 | G15: 0.02219670069 | H15: 0.004394638926 | I15: 0.004919055916 | J15: 0.00799901279 | K15: 0.01671445614 | L15: 0.005669736223
A16: 7 | B16: ='Data Entry'!M10 -> 0.01679344357 | C16: 0.02164305327 | D16: 0.02257354095 | E16: 0.02603265323 | F16: 0.03639451226 | G16: 0.0244396369 | H16: 0.004849609699 | I16: 0.005780097374 | J16: 0.009239209653 | K16: 0.01960106868 | L16: 0.007646193331
A17: 8 | B17: ='Data Entry'!M11 -> 0.01711373621 | C17: 0.02221852201 | D17: 0.02367823459 | E17: 0.02728623813 | F17: 0.03925003455 | G17: 0.02636560356 | H17: 0.005104785795 | I17: 0.006564498374 | J17: 0.01017250192 | K17: 0.02213629834 | L17: 0.009251867346
A18: 9 | B18: ='Data Entry'!M12 -> 0.01746311023 | C18: 0.02267951439 | D18: 0.024655819 | E18: 0.02831339394 | F18: 0.04178214419 | G18: 0.02801360552 | H18: 0.005216404156 | I18: 0.007192708762 | J18: 0.01085028371 | K18: 0.02431903395 | L18: 0.01055049528
A19: 10 | B19: ='Data Entry'!M13 -> 0.01781934378 | C19: 0.02305310635 | D19: 0.0254894545 | E19: 0.02915639698 | F19: 0.04400311338 | G19: 0.02942406005 | H19: 0.005233762573 | I19: 0.007670110721 | J19: 0.0113370532 | K19: 0.0261837696 | L19: 0.01160471627
A20: 11 | B20: ='Data Entry'!M14 -> 0.01824269836 | C20: 0.02336024413 | D20: 0.02619335145 | E20: 0.02985460388 | F20: 0.04594196999 | G20: 0.03063442552 | H20: 0.005117545767 | I20: 0.00795065309 | J20: 0.01161190552 | K20: 0.02769927163 | L20: 0.01239172716
A21: 12 | B21: ='Data Entry'!M15 -> 0.01866211889 | C21: 0.02361648582 | D21: 0.02678901084 | E21: 0.03043976046 | F21: 0.04763314423 | G21: 0.03167751077 | H21: 0.004954366934 | I21: 0.008126891952 | J21: 0.01177764157 | K21: 0.02897102534 | L21: 0.01301539188
A22: 13 | B22: ='Data Entry'!M16 -> 0.01902230725 | C22: 0.0238332446 | D22: 0.02729676225 | E22: 0.03093617359 | F22: 0.04911075143 | G22: 0.03258115075 | H22: 0.00481093735 | I22: 0.008274455007 | J22: 0.01191386635 | K22: 0.03008844418 | L22: 0.01355884351
A23: 14 | B23: ='Data Entry'!M17 -> 0.01937874888 | C23: 0.02401891058 | D23: 0.02773350016 | E23: 0.03136215964 | F23: 0.05040598353 | G23: 0.03336852498 | H23: 0.004640161703 | I23: 0.008354751276 | J23: 0.01198341076 | K23: 0.03102723465 | L23: 0.0139897761
A24: 15 | B24: ='Data Entry'!M18 -> 0.01973153486 | C24: 0.0241797129 | D24: 0.02811262421 | E24: 0.03173153274 | F24: 0.05154616333 | G24: 0.03405873229 | H24: 0.004448178037 | I24: 0.008381089349 | J24: 0.01199999787 | K24: 0.03181462847 | L24: 0.01432719743
A25: 16 | B25: ='Data Entry'!M19 -> 0.01994231216 | C25: 0.02432034042 | D25: 0.02844460765 | E25: 0.03205480382 | F25: 0.05255464556 | G25: 0.03466742426 | H25: 0.004378028256 | I25: 0.008502295487 | J25: 0.01211249166 | K25: 0.0326123334 | L25: 0.0147251121
A26: 17 | B26: ='Data Entry'!M20 -> 0.02014961001 | C26: 0.02444437699 | D26: 0.02873763503 | E26: 0.03234006905 | F26: 0.05345111401 | G26: 0.03520740339 | H26: 0.004294766983 | I26: 0.008588025022 | J26: 0.01219045904 | K26: 0.033301504 | L26: 0.01505779338
A27: 18 | B27: ='Data Entry'!M21 -> 0.02035351359 | C27: 0.02455460426 | D27: 0.02899814442 | E27: 0.03259364783 | F27: 0.05425203222 | G27: 0.03568914825 | H27: 0.004201090671 | I27: 0.008644630829 | J27: 0.01224013423 | K27: 0.03389851863 | L27: 0.01533563466
A28: 19 | B28: ='Data Entry'!M22 -> 0.02055410659 | C28: 0.02465321305 | D28: 0.0292312481 | E28: 0.03282053769 | F28: 0.05497112335 | G28: 0.03612125577 | H28: 0.004099106454 | I28: 0.008677141507 | J28: 0.01226643109 | K28: 0.03441701675 | L28: 0.01556714918
A29: 20 | B29: ='Data Entry'!M23 -> 0.02075147053 | C29: 0.02474195231 | D29: 0.02944104798 | E29: 0.03302473989 | F29: 0.05561982009 | G29: 0.03651080482 | H29: 0.003990481777 | I29: 0.008689577446 | J29: 0.01227326936 | K29: 0.03486834955 | L29: 0.01575933429
A30: 21 | B30: ='Data Entry'!M24 -> 0.02073422473 | C30: 0.02482223552 | D30: 0.02963086956 | E30: 0.03320949475 | F30: 0.05620766065 | G30: 0.03686365051 | H30: 0.00408801079 | I30: 0.008896644826 | J30: 0.01247527002 | K30: 0.03547343592 | L30: 0.01612942579
A31: 22 | B31: ='Data Entry'!M25 -> 0.02071390882 | C31: 0.02489521774 | D31: 0.02980343568 | E31: 0.0333774539 | F31: 0.05674262506 | G31: 0.03718466036 | H31: 0.004181308924 | I31: 0.009089526863 | J31: 0.01266354508 | K31: 0.03602871624 | L31: 0.01647075154
A32: 23 | B32: ='Data Entry'!M26 -> 0.02069060031 | C32: 0.02496185236 | D32: 0.02996099648 | E32: 0.03353080797 | F32: 0.05723141459 | G32: 0.03747790278 | H32: 0.004271252049 | I32: 0.009270396173 | J32: 0.01284020766 | K32: 0.03654081428 | L32: 0.01678730247
A33: 24 | B33: ='Data Entry'!M27 -> 0.02066437466 | C33: =C$2+C$3*((1-EXP(-$A33/C$6))/($A33/C$6))+C$4*((1-EXP(-$A33/C$6))/($A33/C$6)-EXP(-$A33/C$6))+C$5*((1-EXP(-$A33/C$7))/($A33/C$7)-EXP(-$A33/C$7)) -> 0.0250229334 | D33: 0.03010542739 | E33: 0.03367138255 | F33: 0.05767968114 | G33: 0.03774679733 | H33: 0.004358558737 | I33: 0.009441052729 | J33: 0.01300700789 | K33: 0.03701530648 | L33: 0.01708242267
A34: 25 | B34: ='Data Entry'!M28 -> 0.020635306 | C34: 0.02507912759 | D34: 0.03023830389 | E34: 0.03380071118 | F34: 0.05809221397 | G34: 0.03799423439 | H34: 0.004443821589 | I34: 0.009602997888 | J34: 0.01316540518 | K34: 0.03745690797 | L34: 0.01735892839
A35: 26 | B35: ='Data Entry'!M29 -> 0.02057875639 | C35: 0.02513099897 | D35: 0.03036095915 | E35: 0.03392009146 | F35: 0.05847309121 | G35: 0.03822267067 | H35: 0.004552242576 | I35: 0.009782202756 | J35: 0.01334133507 | K35: 0.03789433481 | L35: 0.01764391427
A36: 27 | B36: ='Data Entry'!M30 -> 0.02051950679 | C36: 0.02517902793 | D36: 0.03047452884 | E36: 0.03403062875 | F36: 0.05882580261 | G36: 0.03843420569 | H36: 0.004659521137 | I36: 0.009955022055 | J36: 0.01351112196 | K36: 0.03830629582 | L36: 0.0179146989
A37: 28 | B37: ='Data Entry'!M31 -> 0.02045762636 | C37: 0.0252236262 | D37: 0.03057998642 | E37: 0.03413327052 | F37: 0.05915334913 | G37: 0.03863064318 | H37: 0.004765999835 | I37: 0.01012236006 | J37: 0.01367564416 | K37: 0.03869572276 | L37: 0.01817301682
A38: 29 | B38: ='Data Entry'!M32 -> 0.02039318353 | C38: 0.0252651487 | D38: 0.03067817107 | E38: 0.03422883355 | F38: 0.05945832374 | G38: 0.03881354061 | H38: 0.004871965164 | I38: 0.01028498753 | J38: 0.01383565002 | K38: 0.03906514021 | L38: 0.01842035708
A39: 30 | B39: ='Data Entry'!M33 -> 0.02032624462 | C39: 0.02530390302 | D39: 0.03076981007 | E39: 0.03431802572 | F39: 0.05974297737 | G39: 0.03898424935 | H39: 0.004977658407 | I39: 0.01044356545 | J39: 0.0139917811 | K39: 0.03941673275 | L39: 0.01865800474
A40: 31 | B40: ='Data Entry'!M34 -> 0.02027885493 | C40: 0.02534015706 | D40: 0.03085553688 | E40: 0.03440146354 | F40: 0.06000927272 | G40: 0.03914394734 | H40: 0.005061302134 | I40: 0.01057668195 | J40: 0.01412260862 | K40: 0.0397304178 | L40: 0.01886509241
A41: 32 | B41: ='Data Entry'!M35 -> 0.02024832023 | C41: 0.02537414522 | D41: 0.03093590576 | E41: 0.03447968651 | F41: 0.06025892856 | G41: 0.03929366584 | H41: 0.005125824993 | I41: 0.01068758553 | J41: 0.01423136628 | K41: 0.04001060833 | L41: 0.01904534562
A42: 33 | B42: ='Data Entry'!M36 -> 0.02023319356 | C42: 0.02540607349 | D42: 0.0310114038 | E42: 0.03455316869 | F42: 0.06049345613 | G42: 0.0394343115 | H42: 0.005172879928 | I42: 0.01077821024 | J42: 0.01431997513 | K42: 0.04026026257 | L42: 0.01920111795
A43: 34 | B43: ='Data Entry'!M37 -> 0.02023227211 | C43: 0.02543612362 | D43: 0.03108246078 | E43: 0.03462232838 | F43: 0.06071418942 | G43: 0.03956668449 | H43: 0.005203851511 | I43: 0.01085018867 | J43: 0.01439005628 | K43: 0.04048191731 | L43: 0.01933441238
A44: 35 | B44: ='Data Entry'!M38 -> 0.02024456235 | C44: 0.0254644566 | D44: 0.03114945736 | E44: 0.0346875361 | F44: 0.06092231026 | G44: 0.03969149368 | H44: 0.005219894254 | I44: 0.01090489501 | J44: 0.01444297375 | K44: 0.04067774792 | L44: 0.01944693133
A45: 36 | B45: ='Data Entry'!M39 -> 0.02026925022 | C45: 0.02549121553 | D45: 0.03121273191 | E45: 0.03474912116 | F45: 0.06111886938 | G45: 0.03980936925 | H45: 0.005221965314 | I45: 0.0109434817 | J45: 0.01447987095 | K45: 0.04084961916 | L45: 0.01954011903
A46: 37 | B46: ='Data Entry'!M40 -> 0.02030567687 | C46: 0.02551652803 | D46: 0.03127258622 | E46: 0.0348073773 | F46: 0.061304804 | G46: 0.0399208733 | H46: 0.005210851162 | I46: 0.01096690935 | J46: 0.01450170044 | K46: 0.04099912713 | L46: 0.01961519643
A47: 38 | B47: ='Data Entry'!M41 -> 0.02035331766 | C47: 0.02554050829 | D47: 0.03132929029 | E47: 0.03486256733 | F47: 0.06148095279 | G47: 0.0400265088 | H47: 0.005187190628 | I47: 0.01097597263 | J47: 0.01450924967 | K47: 0.04112763512 | L47: 0.01967319114
A48: 39 | B48: ='Data Entry'!M42 -> 0.02041176493 | C48: 0.0255632588 | D48: 0.03138308647 | E48: 0.0349149271 | F48: 0.06164806843 | G48: 0.04012672714 | H48: 0.005151493871 | I48: 0.01097132154 | J48: 0.01450316218 | K48: 0.0412363035 | L48: 0.01971496222
A49: 40 | B49: ='Data Entry'!M43 -> 0.02048071287 | C49: 0.02558487178 | D49: 0.03143419283 | E49: 0.03496466889 | F49: 0.06180682835 | G49: 0.0402219346 | H49: 0.00510415891 | I49: 0.01095347997 | J49: 0.01448395602 | K49: 0.04132611549 | L49: 0.01974122173
A50: 41 | B50: ='Data Entry'!M44 -> 0.02055994508 | C50: 0.02560543047 | D50: 0.03148280621 | E50: 0.03501198424 | F50: 0.06195784394 | G50: 0.04031249781 | H50: 0.00504548539 | I50: 0.01092286113 | J50: 0.01445203916 | K50: 0.04139789887 | L50: 0.01975255274
A51: 42 | B51: ='Data Entry'!M45 -> 0.02064932366 | C51: 0.02562501017 | D51: 0.03152910466 | E51: 0.03505704648 | F51: 0.06210166834 | G51: 0.0403987485 | H51: 0.004975686508 | I51: 0.010879781 | J51: 0.01440772282 | K51: 0.04145234468 | L51: 0.01974942484
A52: 43 | B52: ='Data Entry'!M46 -> 0.02074877942 | C52: 0.02564367919 | D52: 0.03157324969 | E52: 0.03510001281 | F52: 0.06223880324 | G52: 0.04048098753 | H52: 0.004894899766 | I52: 0.01082447027 | J52: 0.01435123338 | K52: 0.04149002382 | L52: 0.01973220811
A53: 44 | B53: ='Data Entry'!M47 -> 0.02085830503 | C53: 0.02566149962 | D53: 0.03161538813 | E53: 0.03514102611 | F53: 0.06236970475 | G53: 0.04055948843 | H53: 0.004803194585 | I53: 0.0107570831 | J53: 0.01428272108 | K53: 0.04151139972 | L53: 0.0197011834
A54: 45 | B54: ='Data Entry'!M48 -> 0.02097794633 | C54: 0.02567852802 | D54: 0.03165565376 | E54: =E$2+E$3*((1-EXP(-$A54/E$6))/($A54/E$6))+E$4*((1-EXP(-$A54/E$6))/($A54/E$6)-EXP(-$A54/E$6))+E$5*((1-EXP(-$A54/E$7))/($A54/E$7)-EXP(-$A54/E$7)) -> 0.03518021661 | F54: 0.06249478842 | G54: 0.04063450041 | H54: 0.004700581694 | I54: 0.01067770743 | J54: 0.01420227028 | K54: 0.04151684209 | L54: 0.01965655408
A55: 46 | B55: ='Data Entry'!M49 -> 0.02110779804 | C55: 0.02569481607 | D55: 0.0316941687 | E55: 0.03521770317 | F55: 0.06261443368 | G55: 0.04070625099 | H55: 0.00458701803 | I55: 0.01058637066 | J55: 0.01410990513 | K55: 0.04150663564 | L55: 0.01959845295
A56: 47 | B56: ='Data Entry'!M50 -> 0.02124799717 | C56: 0.025710411 | D56: 0.03173104471 | E56: 0.03525359456 | F56: 0.06272898765 | G56: 0.04077494836 | H56: 0.004462413833 | I56: 0.01048304754 | J56: 0.01400559739 | K56: 0.04148099048 | L56: 0.01952695119
A57: 48 | B57: ='Data Entry'!M51 -> 0.02139871902 | C57: 0.02572535615 | D57: 0.03176638422 | E57: 0.03528799047 | F57: 0.06283876854 | G57: 0.04084078334 | H57: 0.004326637127 | I57: 0.0103676652 | J57: 0.01388927145 | K57: 0.04144004952 | L57: 0.01944206432
A58: 49 | B58: ='Data Entry'!M52 -> 0.02156017301 | C58: 0.02573969129 | D58: 0.0318002813 | E58: 0.03532098247 | F58: 0.06294406857 | G58: 0.04090393118 | H58: 0.004179518277 | I58: 0.01024010829 | J58: 0.01376080946 | K58: 0.04138389556 | L58: 0.01934375817
A59: 50 | B59: ='Data Entry'!M53 -> 0.02173259912 | C59: 0.02575345302 | D59: 0.03183282249 | E59: 0.03535265479 | F59: 0.06304515661 | G59: 0.0409645531 | H59: 0.004020853901 | I59: 0.01010022337 | J59: 0.01362005567 | K59: 0.04131255749 | L59: 0.01923195398
A60: 51 | B60: ='Data Entry'!M54 -> 0.02191626483 | C60: 0.02576667508 | D60: 0.03186408757 | E60: 0.03538308506 | F60: 0.06314228041 | G60: 0.0410227977 | H60: 0.00385041025 | I60: 0.009947822735 | J60: 0.01346682022 | K60: 0.04122601558 | L60: 0.01910653287
A61: 52 | B61: ='Data Entry'!M55 -> 0.02211146212 | C61: 0.0257793886 | D61: 0.03189415013 | E61: 0.03541234493 | F61: 0.06323566868 | G61: 0.04107880212 | H61: 0.003667926482 | I61: 0.009782688018 | J61: 0.01330088281 | K61: 0.04112420656 | L61: 0.01896734
A62: 53 | B62: ='Data Entry'!M56 -> 0.02231850529 | C62: 0.02579162236 | D62: 0.03192307827 | E62: 0.03544050065 | F62: 0.06332553286 | G62: 0.04113269316 | H62: 0.003473117075 | I62: 0.009604572981 | J62: 0.01312199537 | K62: 0.04100702758 | L62: 0.01881418788
A63: 54 | B63: ='Data Entry'!M57 -> 0.02253772883 | C63: 0.02580340302 | D63: 0.03195093499 | E63: 0.03546761357 | F63: 0.06341206874 | G63: 0.04118458824 | H63: 0.003265674186 | I63: 0.009413206152 | J63: 0.01292988474 | K63: 0.04087433991 | L63: 0.01864685941
A64: 55 | B64: ='Data Entry'!M58 -> 0.02276948518 | C64: 0.02581475529 | D64: 0.03197777873 | E64: 0.03549374057 | F64: 0.06349545786 | G64: 0.04123459623 | H64: 0.003045270114 | I64: 0.009208293556 | J64: 0.01272425539 | K64: 0.04072597269 | L64: 0.01846511105
A65: 56 | B65: ='Data Entry'!M59 -> 0.02301414323 | C65: 0.02582570213 | D65: 0.03200366378 | E65: 0.03551893446 | F65: 0.0635758688 | G65: 0.04128281821 | H65: 0.002811558901 | I65: 0.008989520551 | J65: 0.01250479124 | K65: 0.04056172558 | L65: 0.01826867499
A66: 57 | B66: ='Data Entry'!M60 -> 0.02327208662 | C66: 0.02583626486 | D66: 0.03202864057 | E66: 0.03554324435 | F66: 0.0636534583 | G66: 0.0413293482 | H66: 0.002564178241 | I66: 0.008756553953 | J66: 0.01227115773 | K66: 0.04038137168 | L66: 0.01805726158
A67: 58 | B67: ='Data Entry'!M61 -> 0.02354371269 | C67: 0.02584646336 | D67: 0.0320527561 | E67: 0.03556671598 | F67: 0.06372837231 | G67: 0.0413742737 | H67: 0.002302750677 | I67: 0.008509043412 | J67: 0.01202300329 | K67: 0.04018465962 | L67: 0.01783056101
A68: 59 | B68: ='Data Entry'!M62 -> 0.02382943082 | C68: 0.02585631615 | D68: 0.03207605415 | E68: 0.03558939195 | F68: 0.06380074685 | G68: 0.04141767631 | H68: 0.002026885332 | I68: 0.008246623329 | J68: 0.01175996113 | K68: 0.03997131603 | L68: 0.01758824549
A69: 60 | B69: ='Data Entry'!M63 -> 0.02412966166 | C69: 0.02586584052 | D69: 0.0320985756 | E69: 0.03561131206 | F69: 0.06387070891 | G69: 0.04145963216 | H69: 0.00173617886 | I69: 0.007968913942 | J69: 0.0114816504 | K69: 0.03974104725 | L69: 0.0173299705
A70: 61 | B70: ='Data Entry'!M64 -> 0.02442013262 | C70: 0.02587505261 | D70: 0.03212035864 | E70: 0.03563251347 | F70: 0.06393837713 | G70: 0.04150021241 | H70: 0.00145491999 | I70: 0.007700226024 | J70: 0.01121238085 | K70: 0.03951824451 | L70: 0.01708007979
A71: 62 | B71: ='Data Entry'!M65 -> 0.02470131199 | C71: 0.02588396753 | D71: 0.032141439 | E71: 0.03565303097 | F71: 0.06400386251 | G71: 0.04153948362 | H71: 0.001182655546 | I71: 0.007440127017 | J71: 0.01095171898 | K71: 0.03930255052 | L71: 0.01683817163
A72: 63 | B72: ='Data Entry'!M66 -> 0.02497363857 | C72: 0.02589259945 | D72: 0.03216185015 | E72: 0.03567289712 | F72: 0.06406726898 | G72: 0.04157750812 | H72: 0.0009189608758 | I72: 0.00718821158 | J72: 0.01069925855 | K72: 0.03909363041 | L72: 0.01660386956
A73: 64 | B73: ='Data Entry'!M67 -> 0.02523752396 | C73: 0.02590096161 | D73: 0.03218162345 | E73: 0.03569214245 | F73: 0.064128694 | G73: 0.04161434436 | H73: 0.0006634376479 | I73: 0.006944099484 | J73: 0.01045461849 | K73: 0.03889117004 | L73: 0.0163768204
A74: 65 | B74: ='Data Entry'!M68 -> 0.02549335464 | C74: 0.02590906648 | D74: 0.03220078833 | E74: 0.03571079562 | F74: 0.06418822902 | G74: 0.04165004718 | H74: 0.0004157118379 | I74: 0.006707433694 | J74: 0.01021744098 | K74: 0.03869487438 | L74: 0.01615669254
A75: 66 | B75: ='Data Entry'!M69 -> 0.02574149384 | C75: =C$2+C$3*((1-EXP(-$A75/C$6))/($A75/C$6))+C$4*((1-EXP(-$A75/C$6))/($A75/C$6)-EXP(-$A75/C$6))+C$5*((1-EXP(-$A75/C$7))/($A75/C$7)-EXP(-$A75/C$7)) -> 0.02591692574 | D75: 0.03221937247 | E75: 0.03572888354 | F75: 0.06424595995 | G75: 0.04168466809 | H75: =MAX(C75-$B75,0) -> 0.000175431905 | I75: =MAX(D75-$B75,0) -> 0.006477878629 | J75: =MAX(E75-$B75,0) -> 0.009987389704 | K75: =MAX(F75-$B75,0) -> 0.03850446612 | L75: =MAX(G75-$B75,0) -> 0.01594317426
A76: =A75+1 -> 67 | B76: ='Data Entry'!M70 -> 0.02598228328 | C76: 0.0259245504 | D76: 0.03223740185 | E76: 0.03574643153 | F76: 0.06430196757 | G76: 0.04171825555 | H76: 0 | I76: 0.006255118573 | J76: 0.009764148248 | K76: 0.0383196843 | L76: 0.01573597227
A77: 68 | B77: ='Data Entry'!M71 -> 0.02621604473 | C77: 0.02593195081 | D77: 0.03225490096 | E77: 0.03576346339 | F77: 0.06435632791 | G77: 0.04175085513 | H77: 0 | I77: 0.006038856229 | J77: 0.009547418662 | K77: 0.03814028318 | L77: 0.0155348104
A78: 69 | B78: ='Data Entry'!M72 -> 0.02644308145 | C78: 0.02593913671 | D78: 0.03227189284 | E78: 0.03578000158 | F78: 0.06440911258 | G78: 0.0417825098 | H78: 0 | I78: 0.005828811391 | J78: 0.009336920126 | K78: 0.03796603113 | L78: 0.01533942835
A79: 70 | B79: ='Data Entry'!M73 -> 0.02666367951 | C79: 0.0259461173 | D79: 0.03228839925 | E79: 0.03579606725 | F79: 0.06446038912 | G79: 0.04181326006 | H79: 0 | I79: 0.005624719738 | J79: 0.009132387738 | K79: 0.03779670961 | L79: 0.01514958055
A80: 71 | B80: ='Data Entry'!M74 -> 0.02687810896 | C80: 0.02595290125 | D80: 0.03230444068 | E80: 0.03581168036 | F80: 0.06451022125 | G80: 0.0418431441 | H80: 0 | I80: 0.00542633172 | J80: 0.0089335714 | K80: 0.03763211229 | L80: 0.01496503514
A81: 72 | B81: ='Data Entry'!M75 -> 0.02708662498 | C81: 0.02595949676 | D81: 0.03232003652 | E81: 0.03582685978 | F81: 0.06455866916 | G81: 0.04187219804 | H81: 0 | I81: 0.005233411543 | J81: 0.008740234801 | K81: 0.03747204418 | L81: 0.01478557306
A82: 73 | B82: ='Data Entry'!M76 -> 0.02728946884 | C82: 0.02596591158 | D82: 0.03233520508 | E82: 0.03584162332 | F82: 0.06460578972 | G82: 0.04190045598 | H82: 0 | I82: 0.005045736234 | J82: 0.008552154478 | K82: 0.03731632088 | L82: 0.01461098713
A83: 74 | B83: ='Data Entry'!M77 -> 0.02748686889 | C83: 0.02597215301 | D83: 0.03234996367 | E83: 0.03585598785 | F83: 0.06465163676 | G83: 0.04192795018 | H83: 0 | I83: 0.00486309478 | J83: 0.008369118956 | K83: 0.03716476787 | L83: 0.01444108129
A84: 75 | B84: ='Data Entry'!M78 -> 0.02767904137 | C84: 0.02597822801 | D84: 0.03236432871 | E84: 0.03586996932 | F84: 0.06469626121 | G84: 0.04195471121 | H84: 0 | I84: 0.004685287336 | J84: 0.008190927954 | K84: 0.03701721984 | L84: 0.01427566984
A85: 76 | B85: ='Data Entry'!M79 -> 0.02786619121 | C85: 0.02598414315 | D85: 0.03237831571 | E85: 0.03588358287 | F85: 0.06473971133 | G85: 0.04198076801 | H85: 0 | I85: 0.0045121245 | J85: 0.008017391653 | K85: 0.03687352012 | L85: 0.01411457679
A86: 77 | B86: ='Data Entry'!M80 -> 0.02804851278 | C86: 0.02598990464 | D86: 0.03239193942 | E86: 0.03589684281 | F86: 0.06478203288 | G86: 0.042006148 | H86: 0 | I86: 0.004343426635 | J86: 0.007848330023 | K86: 0.03673352009 | L86: 0.01395763522
A87: 78 | B87: ='Data Entry'!M81 -> 0.02822619055 | C87: 0.0259955184 | D87: 0.0324052138 | E87: 0.03590976275 | F87: 0.06482326926 | G87: 0.04203087722 | H87: 0 | I87: 0.004179023249 | J87: 0.0076835722 | K87: 0.03659707871 | L87: 0.01380468667
A88: 79 | B88: ='Data Entry'!M82 -> 0.0283993997 | C88: 0.02600099004 | D88: 0.03241815212 | E88: 0.03592235561 | F88: 0.06486346168 | G88: 0.04205498039 | H88: 0 | I88: 0.004018752423 | J88: 0.007522955909 | K88: 0.03646406198 | L88: 0.01365558069
A89: 80 | B89: ='Data Entry'!M83 -> 0.02856830671 | C89: 0.02600632489 | D89: 0.03243076698 | E89: 0.03593463364 | F89: 0.06490264929 | G89: 0.04207848098 | H89: 0 | I89: 0.003862460274 | J89: 0.007366326932 | K89: 0.03633434258 | L89: 0.01351017427
A90: 81 | B90: ='Data Entry'!M84 -> 0.0287330699 | C90: 0.02601152801 | D90: 0.03244307037 | E90: 0.03594660852 | F90: 0.0649408693 | G90: 0.04210140131 | H90: 0 | I90: 0.003710000468 | J90: 0.007213538616 | K90: 0.0362077994 | L90: 0.01336833141
A91: 82 | B91: ='Data Entry'!M85 -> 0.02889383991 | C91: 0.02601660423 | D91: 0.03245507367 | E91: 0.03595829132 | F91: 0.06497815712 | G91: 0.0421237626 | H91: 0 | I91: 0.003561233759 | J91: 0.007064451408 | K91: 0.03608431721 | L91: 0.01322992269
A92: 83 | B92: ='Data Entry'!M86 -> 0.02905076017 | C92: 0.02602155813 | D92: 0.03246678774 | E92: 0.03596969261 | F92: 0.06501454643 | G92: 0.04214558507 | H92: 0 | I92: 0.003416027566 | J92: 0.006918932439 | K92: 0.03596378626 | L92: 0.0130948249
A93: 84 | B93: ='Data Entry'!M87 -> 0.02920396732 | C93: 0.02602639408 | D93: 0.0324782229 | E93: 0.03598082244 | F93: 0.06505006934 | G93: 0.04216688795 | H93: 0 | I93: 0.003274255578 | J93: 0.006776855123 | K93: 0.03584610202 | L93: 0.01296292064
A94: 85 | B94: ='Data Entry'!M88 -> 0.0293535916 | C94: 0.02603111625 | D94: 0.03248938899 | E94: 0.03599169039 | F94: 0.06508475641 | G94: 0.04218768959 | H94: 0 | I94: 0.003135797391 | J94: 0.006638098791 | K94: 0.03573116481 | L94: 0.01283409799
A95: 86 | B95: ='Data Entry'!M89 -> 0.02949975725 | C95: 0.02603572859 | D95: 0.03250029541 | E95: 0.0360023056 | F95: 0.06511863681 | G95: 0.04220800748 | H95: 0 | I95: 0.003000538163 | J95: 0.006502548352 | K95: 0.03561887956 | L95: 0.01270825023
A96: 87 | B96: ='Data Entry'!M90 -> 0.02964258281 | C96: 0.02604023491 | D96: 0.03251095111 | E96: 0.03601267678 | F96: 0.06515173834 | G96: 0.04222785828 | H96: 0 | I96: 0.002868368297 | J96: 0.00637009397 | K96: 0.03550915553 | L96: 0.01258527547
A97: 88 | B97: ='Data Entry'!M91 -> 0.02978218149 | C97: 0.02604463881 | D97: 0.03252136463 | E97: 0.03602281226 | F97: 0.06518408757 | G97: 0.04224725793 | H97: 0 | I97: 0.002739183147 | J97: 0.00624063077 | K97: 0.03540190608 | L97: 0.01246507644
A98: 89 | B98: ='Data Entry'!M92 -> 0.0299186614 | C98: 0.02604894374 | D98: 0.03253154414 | E98: 0.03603271997 | F98: 0.06521570985 | G98: 0.04226622163 | H98: 0 | I98: 0.002612882741 | J98: 0.006114058562 | K98: 0.03529704845 | L98: 0.01234756023
A99: 90 | B99: ='Data Entry'!M93 -> 0.03005212592 | C99: 0.02605315301 | D99: 0.03254149744 | E99: 0.0360424075 | F99: 0.06524662941 | G99: 0.04228476392 | H99: 0 | I99: 0.002489371522 | J99: 0.005990281581 | K99: 0.03519450349 | L99: 0.012232638
A100: 91 | B100: ='Data Entry'!M94 -> 0.03018267389 | C100: 0.02605726977 | D100: 0.03255123199 | E100: 0.03605188213 | F100: 0.06527686942 | G100: 0.04230289868 | H100: 0 | I100: 0.002368558105 | J100: 0.005869208243 | K100: 0.03509419554 | L100: 0.0121202248
A101: 92 | B101: ='Data Entry'!M95 -> 0.03031039986 | C101: 0.02606129703 | D101: 0.03256075492 | E101: 0.03606115078 | F101: 0.06530645204 | G101: 0.04232063921 | H101: 0 | I101: 0.002250355057 | J101: 0.005750750925 | K101: 0.03499605218 | L101: 0.01201023935
A102: 93 | B102: ='Data Entry'!M96 -> 0.03043539437 | C102: 0.02606523769 | D102: 0.03257007305 | E102: 0.03607022011 | F102: 0.06533539848 | G102: 0.04233799823 | H102: 0 | I102: 0.002134678681 | J102: 0.005634825747 | K102: 0.03490000411 | L102: 0.01190260386
A103: 94 | B103: ='Data Entry'!M97 -> 0.0305577441 | C103: 0.0260690945 | D103: 0.03257919292 | E103: 0.03607909648 | F103: 0.06536372903 | G103: 0.0423549879 | H103: 0 | I103: 0.002021448821 | J103: 0.005521352378 | K103: 0.03480598493 | L103: 0.0117972438
A104: 95 | B104: ='Data Entry'!M98 -> 0.03067753212 | C104: 0.02607287012 | D104: 0.0325881208 | E104: 0.03608778597 | F104: 0.06539146315 | G104: 0.04237161989 | H104: 0 | I104: 0.001910588676 | J104: 0.005410253851 | K104: 0.03471393103 | L104: 0.01169408777
A105: 96 | B105: ='Data Entry'!M99 -> 0.03079483805 | C105: 0.02607656707 | D105: 0.03259686268 | E105: 0.03609629443 | F105: 0.06541861947 | G105: 0.04238790539 | H105: 0 | I105: 0.001802024626 | J105: 0.005301456385 | K105: 0.03462378142 | L105: 0.01159306734
A106: 97 | B106: ='Data Entry'!M100 -> 0.03090973824 | C106: 0.0260801878 | D106: 0.03260542431 | E106: 0.03610462747 | F106: 0.06544521587 | G106: 0.0424038551 | H106: 0 | I106: 0.001695686068 | J106: 0.005194889225 | K106: 0.03453547763 | L106: 0.01149411686
A107: 98 | B107: ='Data Entry'!M101 -> 0.03102230595 | C107: 0.02608373464 | D107: 0.03261381122 | E107: 0.03611279043 | F107: 0.06547126949 | G107: 0.04241947931 | H107: 0 | I107: 0.001591505267 | J107: 0.005090484486 | K107: 0.03444896354 | L107: 0.01139717336
A108: 99 | B108: ='Data Entry'!M102 -> 0.03113261148 | C108: 0.02608720983 | D108: 0.03262202869 | E108: 0.03612078849 | F108: 0.06549679677 | G108: 0.04243478787 | H108: 0 | I108: 0.001489417208 | J108: 0.004988177013 | K108: 0.03436418529 | L108: 0.01130217639
A109: 100 | B109: ='Data Entry'!M103 -> 0.03124072235 | C109: 0.02609061551 | D109: 0.03263008181 | E109: 0.03612862659 | F109: 0.06552181351 | G109: 0.04244979027 | H109: 0 | I109: 0.001389359459 | J109: 0.004887904239 | K109: 0.03428109116 | L109: 0.01120906792
A110: 101 | B110: ='Data Entry'!M104 -> 0 | C110: 0.02609395375 | D110: 0.03263797547 | E110: 0.03613630948 | F110: 0.06554633487 | G110: 0.04246449559 | H110: 0.02609395375 | I110: 0.03263797547 | J110: 0.03613630948 | K110: 0.06554633487 | L110: 0.04246449559
A111: 102 | B111: ='Data Entry'!M105 -> 0 | C111: 0.02609722654 | D111: 0.03264571435 | E111: 0.03614384173 | F111: 0.06557037541 | G111: 0.04247891257 | H111: 0.02609722654 | I111: 0.03264571435 | J111: 0.03614384173 | K111: 0.06557037541 | L111: 0.04247891257
A112: 103 | B112: ='Data Entry'!M106 -> 0 | C112: 0.02610043578 | D112: 0.03265330296 | E112: 0.03615122771 | F112: 0.06559394915 | G112: 0.04249304961 | H112: 0.02610043578 | I112: 0.03265330296 | J112: 0.03615122771 | K112: 0.06559394915 | L112: 0.04249304961
A113: 104 | B113: ='Data Entry'!M107 -> 0 | C113: 0.0261035833 | D113: 0.03266074563 | E113: 0.03615847166 | F113: 0.06561706955 | G113: 0.04250691478 | H113: 0.0261035833 | I113: 0.03266074563 | J113: 0.03615847166 | K113: 0.06561706955 | L113: 0.04250691478
A114: 105 | B114: ='Data Entry'!M108 -> 0 | C114: 0.02610667087 | D114: 0.03266804654 | E114: 0.03616557763 | F114: 0.06563974955 | G114: 0.04252051585 | H114: 0.02610667087 | I114: 0.03266804654 | J114: 0.03616557763 | K114: 0.06563974955 | L114: 0.04252051585
A115: 106 | B115: ='Data Entry'!M109 -> 0 | C115: 0.02610970018 | D115: 0.0326752097 | E115: 0.03617254953 | F115: 0.06566200164 | G115: 0.0425338603 | H115: 0.02610970018 | I115: 0.0326752097 | J115: 0.03617254953 | K115: 0.06566200164 | L115: 0.0425338603
A116: 107 | B116: ='Data Entry'!M110 -> 0 | C116: 0.02611267287 | D116: 0.03268223897 | E116: 0.0361793911 | F116: 0.06568383779 | G116: 0.04254695532 | H116: 0.02611267287 | I116: 0.03268223897 | J116: 0.0361793911 | K116: 0.06568383779 | L116: 0.04254695532
A117: 108 | B117: ='Data Entry'!M111 -> 0 | C117: 0.02611559051 | D117: 0.03268913806 | E117: 0.03618610599 | F117: 0.06570526958 | G117: 0.04255980784 | H117: 0.02611559051 | I117: 0.03268913806 | J117: 0.03618610599 | K117: 0.06570526958 | L117: 0.04255980784
A118: 109 | B118: ='Data Entry'!M112 -> 0 | C118: 0.02611845462 | D118: 0.03269591056 | E118: 0.03619269766 | F118: 0.06572630812 | G118: 0.04257242453 | H118: 0.02611845462 | I118: 0.03269591056 | J118: 0.03619269766 | K118: 0.06572630812 | L118: 0.04257242453
A119: 110 | B119: ='Data Entry'!M113 -> 0 | C119: 0.02612126665 | D119: 0.03270255993 | E119: 0.03619916948 | F119: 0.06574696414 | G119: 0.04258481183 | H119: 0.02612126665 | I119: 0.03270255993 | J119: 0.03619916948 | K119: 0.06574696414 | L119: 0.04258481183
A120: 111 | B120: ='Data Entry'!M114 -> 0 | C120: 0.02612402801 | D120: 0.03270908949 | E120: 0.0362055247 | F120: 0.06576724798 | G120: 0.04259697594 | H120: 0.02612402801 | I120: 0.03270908949 | J120: 0.0362055247 | K120: 0.06576724798 | L120: 0.04259697594
A121: 112 | B121: ='Data Entry'!M115 -> 0 | C121: 0.02612674006 | D121: 0.03271550245 | E121: 0.03621176643 | F121: 0.06578716961 | G121: 0.04260892282 | H121: 0.02612674006 | I121: 0.03271550245 | J121: 0.03621176643 | K121: 0.06578716961 | L121: 0.04260892282
A122: 113 | B122: ='Data Entry'!M116 -> 0 | C122: 0.02612940412 | D122: 0.03272180191 | E122: 0.03621789769 | F122: 0.06580673864 | G122: 0.04262065826 | H122: 0.02612940412 | I122: 0.03272180191 | J122: 0.03621789769 | K122: 0.06580673864 | L122: 0.04262065826
A123: 114 | B123: ='Data Entry'!M117 -> 0 | C123: 0.02613202143 | D123: 0.03272799085 | E123: 0.03622392138 | F123: 0.06582596436 | G123: 0.04263218782 | H123: 0.02613202143 | I123: 0.03272799085 | J123: 0.03622392138 | K123: 0.06582596436 | L123: 0.04263218782
A124: 115 | B124: ='Data Entry'!M118 -> 0 | C124: 0.02613459323 | D124: 0.03273407216 | E124: 0.03622984031 | F124: 0.06584485572 | G124: 0.04264351686 | H124: 0.02613459323 | I124: 0.03273407216 | J124: 0.03622984031 | K124: 0.06584485572 | L124: 0.04264351686
A125: 116 | B125: ='Data Entry'!M119 -> 0 | C125: 0.02613712068 | D125: 0.03274004862 | E125: 0.03623565719 | F125: 0.06586342136 | G125: 0.04265465057 | H125: 0.02613712068 | I125: 0.03274004862 | J125: 0.03623565719 | K125: 0.06586342136 | L125: 0.04265465057
A126: 117 | B126: ='Data Entry'!M120 -> 0 | C126: 0.02613960493 | D126: 0.03274592291 | E126: 0.03624137463 | F126: 0.06588166964 | G126: 0.04266559396 | H126: 0.02613960493 | I126: 0.03274592291 | J126: 0.03624137463 | K126: 0.06588166964 | L126: 0.04266559396
A127: 118 | B127: ='Data Entry'!M121 -> 0 | C127: 0.02614204708 | D127: 0.03275169764 | E127: 0.03624699517 | F127: 0.06589960863 | G127: 0.04267635187 | H127: 0.02614204708 | I127: 0.03275169764 | J127: 0.03624699517 | K127: 0.06589960863 | L127: 0.04267635187
A128: 119 | B128: ='Data Entry'!M122 -> 0 | C128: 0.02614444818 | D128: 0.03275737532 | E128: 0.03625252125 | F128: 0.06591724613 | G128: 0.04268692898 | H128: 0.02614444818 | I128: 0.03275737532 | J128: 0.03625252125 | K128: 0.06591724613 | L128: 0.04268692898
A129: 120 | B129: ='Data Entry'!M123 -> 0 | C129: 0.02614680926 | D129: 0.03276295837 | E129: 0.03625795523 | F129: 0.06593458966 | G129: 0.0426973298 | H129: 0.02614680926 | I129: 0.03276295837 | J129: 0.03625795523 | K129: 0.06593458966 | L129: 0.0426973298
A130: 121 | B130: ='Data Entry'!M124 -> 0 | C130: 0.02614913131 | D130: 0.03276844913 | E130: 0.03626329939 | F130: 0.06595164653 | G130: 0.0427075587 | H130: 0.02614913131 | I130: 0.03276844913 | J130: 0.03626329939 | K130: 0.06595164653 | L130: 0.0427075587
A131: 122 | B131: ='Data Entry'!M125 -> 0 | C131: 0.0261514153 | D131: 0.03277384989 | E131: 0.03626855593 | F131: 0.06596842377 | G131: 0.04271761992 | H131: 0.0261514153 | I131: 0.03277384989 | J131: 0.03626855593 | K131: 0.06596842377 | L131: 0.04271761992
A132: 123 | B132: ='Data Entry'!M126 -> 0 | C132: 0.02615366215 | D132: 0.03277916282 | E132: 0.03627372701 | F132: 0.06598492822 | G132: 0.04272751755 | H132: 0.02615366215 | I132: 0.03277916282 | J132: 0.03627372701 | K132: 0.06598492822 | L132: 0.04272751755
A133: 124 | B133: ='Data Entry'!M127 -> 0 | C133: 0.02615587277 | D133: 0.03278439007 | E133: 0.03627881468 | F133: 0.06600116646 | G133: 0.04273725553 | H133: 0.02615587277 | I133: 0.03278439007 | J133: 0.03627881468 | K133: 0.06600116646 | L133: 0.04273725553
A134: 125 | B134: ='Data Entry'!M128 -> 0 | C134: 0.02615804801 | D134: 0.03278953368 | E134: 0.03628382095 | F134: 0.06601714489 | G134: 0.0427468377 | H134: 0.02615804801 | I134: 0.03278953368 | J134: 0.03628382095 | K134: 0.06601714489 | L134: 0.0427468377
A135: 126 | B135: ='Data Entry'!M129 -> 0 | C135: 0.02616018872 | D135: 0.03279459564 | E135: 0.03628874776 | F135: 0.0660328697 | G135: 0.04275626778 | H135: 0.02616018872 | I135: 0.03279459564 | J135: 0.03628874776 | K135: 0.0660328697 | L135: 0.04275626778
A136: 127 | B136: ='Data Entry'!M130 -> 0 | C136: 0.02616229572 | D136: 0.03279957789 | E136: 0.03629359698 | F136: 0.06604834687 | G136: 0.04276554935 | H136: 0.02616229572 | I136: 0.03279957789 | J136: 0.03629359698 | K136: 0.06604834687 | L136: 0.04276554935
A137: 128 | B137: ='Data Entry'!M131 -> 0 | C137: 0.0261643698 | D137: 0.03280448229 | E137: 0.03629837043 | F137: 0.06606358221 | G137: 0.0427746859 | H137: 0.0261643698 | I137: 0.03280448229 | J137: 0.03629837043 | K137: 0.06606358221 | L137: 0.0427746859
A138: 129 | B138: ='Data Entry'!M132 -> 0 | C138: 0.02616641173 | D138: 0.03280931065 | E138: 0.03630306987 | F138: 0.06607858134 | G138: 0.0427836808 | H138: 0.02616641173 | I138: 0.03280931065 | J138: 0.03630306987 | K138: 0.06607858134 | L138: 0.0427836808
A139: 130 | B139: ='Data Entry'!M133 -> 0 | C139: =C$2+C$3*((1-EXP(-$A139/C$6))/($A139/C$6))+C$4*((1-EXP(-$A139/C$6))/($A139/C$6)-EXP(-$A139/C$6))+C$5*((1-EXP(-$A139/C$7))/($A139/C$7)-EXP(-$A139/C$7)) -> 0.02616842224 | D139: 0.03281406473 | E139: 0.03630769701 | F139: 0.06609334972 | G139: =G$2+G$3*((1-EXP(-$A139/G$6))/($A139/G$6))+G$4*((1-EXP(-$A139/G$6))/($A139/G$6)-EXP(-$A139/G$6))+G$5*((1-EXP(-$A139/G$7))/($A139/G$7)-EXP(-$A139/G$7)) -> 0.04279253731 | H139: =MAX(C139-$B139,0) -> 0.02616842224 | I139: =MAX(D139-$B139,0) -> 0.03281406473 | J139: =MAX(E139-$B139,0) -> 0.03630769701 | K139: =MAX(F139-$B139,0) -> 0.06609334972 | L139: =MAX(G139-$B139,0) -> 0.04279253731
A140: =A139+1 -> 131 | B140: ='Data Entry'!M134 -> 0 | C140: 0.02617040205 | D140: 0.03281874623 | E140: 0.03631225351 | F140: 0.06610789263 | G140: 0.04280125861 | H140: 0.02617040205 | I140: 0.03281874623 | J140: 0.03631225351 | K140: 0.06610789263 | L140: 0.04280125861
A141: 132 | B141: ='Data Entry'!M135 -> 0 | C141: 0.02617235187 | D141: 0.0328233568 | E141: 0.03631674097 | F141: 0.06612221518 | G141: 0.04280984776 | H141: 0.02617235187 | I141: 0.0328233568 | J141: 0.03631674097 | K141: 0.06612221518 | L141: 0.04280984776
A142: 133 | B142: ='Data Entry'!M136 -> 0 | C142: 0.02617427237 | D142: 0.03282789804 | E142: 0.03632116095 | F142: 0.06613632237 | G142: 0.04281830776 | H142: 0.02617427237 | I142: 0.03282789804 | J142: 0.03632116095 | K142: 0.06613632237 | L142: 0.04281830776
A143: 134 | B143: ='Data Entry'!M137 -> 0 | C143: 0.0261761642 | D143: 0.03283237149 | E143: 0.03632551496 | F143: 0.06615021899 | G143: 0.04282664149 | H143: 0.0261761642 | I143: 0.03283237149 | J143: 0.03632551496 | K143: 0.06615021899 | L143: 0.04282664149
A144: 135 | B144: ='Data Entry'!M138 -> 0 | C144: 0.02617802801 | D144: 0.03283677867 | E144: 0.03632980447 | F144: 0.06616390974 | G144: 0.04283485176 | H144: 0.02617802801 | I144: 0.03283677867 | J144: 0.03632980447 | K144: 0.06616390974 | L144: 0.04283485176
A145: 136 | B145: ='Data Entry'!M139 -> 0 | C145: 0.0261798644 | D145: 0.03284112104 | E145: 0.03633403089 | F145: 0.06617739916 | G145: 0.04284294128 | H145: 0.0261798644 | I145: 0.03284112104 | J145: 0.03633403089 | K145: 0.06617739916 | L145: 0.04284294128
A146: 137 | B146: ='Data Entry'!M140 -> 0 | C146: 0.02618167399 | D146: 0.03284540002 | E146: 0.03633819562 | F146: 0.06619069165 | G146: 0.04285091272 | H146: 0.02618167399 | I146: 0.03284540002 | J146: 0.03633819562 | K146: 0.06619069165 | L146: 0.04285091272
A147: 138 | B147: ='Data Entry'!M141 -> 0 | C147: 0.02618345736 | D147: 0.03284961699 | E147: 0.03634229999 | F147: 0.0662037915 | G147: 0.04285876862 | H147: 0.02618345736 | I147: 0.03284961699 | J147: 0.03634229999 | K147: 0.0662037915 | L147: 0.04285876862
A148: 139 | B148: ='Data Entry'!M142 -> 0 | C148: 0.02618521506 | D148: 0.03285377328 | E148: 0.0363463453 | F148: 0.06621670286 | G148: 0.04286651149 | H148: 0.02618521506 | I148: 0.03285377328 | J148: 0.0363463453 | K148: 0.06621670286 | L148: 0.04286651149
A149: 140 | B149: ='Data Entry'!M143 -> 0 | C149: 0.02618694765 | D149: 0.03285787019 | E149: 0.03635033282 | F149: 0.06622942977 | G149: 0.04287414375 | H149: 0.02618694765 | I149: 0.03285787019 | J149: 0.03635033282 | K149: 0.06622942977 | L149: 0.04287414375
A150: 141 | B150: ='Data Entry'!M144 -> 0 | C150: 0.02618865567 | D150: 0.03286190899 | E150: 0.03635426378 | F150: 0.06624197616 | G150: 0.04288166774 | H150: 0.02618865567 | I150: 0.03286190899 | J150: 0.03635426378 | K150: 0.06624197616 | L150: 0.04288166774
A151: 142 | B151: ='Data Entry'!M145 -> 0 | C151: 0.02619033963 | D151: 0.03286589091 | E151: 0.03635813938 | F151: 0.06625434583 | G151: 0.04288908577 | H151: 0.02619033963 | I151: 0.03286589091 | J151: 0.03635813938 | K151: 0.06625434583 | L151: 0.04288908577
A152: 143 | B152: ='Data Entry'!M146 -> 0 | C152: 0.02619200004 | D152: 0.03286981713 | E152: 0.03636196077 | F152: 0.06626654251 | G152: 0.04289640005 | H152: 0.02619200004 | I152: 0.03286981713 | J152: 0.03636196077 | K152: 0.06626654251 | L152: 0.04289640005
A153: 144 | B153: ='Data Entry'!M147 -> 0 | C153: 0.02619363738 | D153: 0.03287368883 | E153: 0.03636572909 | F153: 0.06627856979 | G153: 0.04290361274 | H153: 0.02619363738 | I153: 0.03287368883 | J153: 0.03636572909 | K153: 0.06627856979 | L153: 0.04290361274
A154: 145 | B154: ='Data Entry'!M148 -> 0 | C154: 0.02619525214 | D154: 0.03287750712 | E154: 0.03636944543 | F154: 0.06629043117 | G154: 0.04291072594 | H154: 0.02619525214 | I154: 0.03287750712 | J154: 0.03636944543 | K154: 0.06629043117 | L154: 0.04291072594
A155: 146 | B155: ='Data Entry'!M149 -> 0 | C155: 0.02619684479 | D155: 0.03288127311 | E155: 0.03637311086 | F155: 0.06630213007 | G155: 0.04291774171 | H155: 0.02619684479 | I155: 0.03288127311 | J155: 0.03637311086 | K155: 0.06630213007 | L155: 0.04291774171
A156: 147 | B156: ='Data Entry'!M150 -> 0 | C156: 0.02619841576 | D156: 0.03288498785 | E156: 0.03637672642 | F156: 0.0663136698 | G156: 0.04292466202 | H156: 0.02619841576 | I156: 0.03288498785 | J156: 0.03637672642 | K156: 0.0663136698 | L156: 0.04292466202
A157: 148 | B157: ='Data Entry'!M151 -> 0 | C157: 0.02619996551 | D157: 0.0328886524 | E157: 0.03638029312 | F157: 0.06632505359 | G157: 0.04293148881 | H157: 0.02619996551 | I157: 0.0328886524 | J157: 0.03638029312 | K157: 0.06632505359 | L157: 0.04293148881
A158: 149 | B158: ='Data Entry'!M152 -> 0 | C158: 0.02620149445 | D158: 0.03289226776 | E158: 0.03638381195 | F158: 0.06633628457 | G158: 0.04293822397 | H158: 0.02620149445 | I158: 0.03289226776 | J158: 0.03638381195 | K158: 0.06633628457 | L158: 0.04293822397
A159: 150 | B159: ='Data Entry'!M153 -> 0 | C159: 0.02620300301 | D159: 0.03289583492 | E159: 0.03638728386 | F159: 0.06634736581 | G159: 0.04294486933 | H159: 0.02620300301 | I159: 0.03289583492 | J159: 0.03638728386 | K159: 0.06634736581 | L159: 0.04294486933
A160: 151 | B160: ='Data Entry'!M154 -> 0 | C160: 0.02620449158 | D160: 0.03289935483 | E160: 0.03639070979 | F160: 0.06635830028 | G160: 0.04295142666 | H160: 0.02620449158 | I160: 0.03289935483 | J160: 0.03639070979 | K160: 0.06635830028 | L160: 0.04295142666
A161: 152 | B161: ='Data Entry'!M155 -> 0 | C161: 0.02620596057 | D161: 0.03290282842 | E161: 0.03639409063 | F161: 0.06636909087 | G161: 0.04295789772 | H161: 0.02620596057 | I161: 0.03290282842 | J161: 0.03639409063 | K161: 0.06636909087 | L161: 0.04295789772
A162: 153 | B162: ='Data Entry'!M156 -> 0 | C162: 0.02620741036 | D162: 0.03290625661 | E162: 0.03639742728 | F162: 0.06637974041 | G162: 0.04296428419 | H162: 0.02620741036 | I162: 0.03290625661 | J162: 0.03639742728 | K162: 0.06637974041 | L162: 0.04296428419
A163: 154 | B163: ='Data Entry'!M157 -> 0 | C163: 0.02620884132 | D163: 0.03290964028 | E163: 0.0364007206 | F163: 0.06639025165 | G163: 0.04297058772 | H163: 0.02620884132 | I163: 0.03290964028 | J163: 0.0364007206 | K163: 0.06639025165 | L163: 0.04297058772
A164: 155 | B164: ='Data Entry'!M158 -> 0 | C164: 0.02621025381 | D164: 0.03291298028 | E164: 0.03640397143 | F164: 0.06640062725 | G164: 0.04297680991 | H164: 0.02621025381 | I164: 0.03291298028 | J164: 0.03640397143 | K164: 0.06640062725 | L164: 0.04297680991
A165: 156 | B165: ='Data Entry'!M159 -> 0 | C165: 0.0262116482 | D165: 0.03291627747 | E165: 0.03640718057 | F165: 0.06641086983 | G165: 0.04298295233 | H165: 0.0262116482 | I165: 0.03291627747 | J165: 0.03640718057 | K165: 0.06641086983 | L165: 0.04298295233
A166: 157 | B166: ='Data Entry'!M160 -> 0 | C166: 0.02621302482 | D166: 0.03291953265 | E166: 0.03641034884 | F166: 0.06642098194 | G166: 0.0429890165 | H166: 0.02621302482 | I166: 0.03291953265 | J166: 0.03641034884 | K166: 0.06642098194 | L166: 0.0429890165
A167: 158 | B167: ='Data Entry'!M161 -> 0 | C167: 0.02621438402 | D167: 0.03292274663 | E167: 0.036413477 | F167: 0.06643096604 | G167: 0.04299500391 | H167: 0.02621438402 | I167: 0.03292274663 | J167: 0.036413477 | K167: 0.06643096604 | L167: 0.04299500391
A168: 159 | B168: ='Data Entry'!M162 -> 0 | C168: 0.02621572612 | D168: 0.03292592018 | E168: 0.03641656582 | F168: 0.06644082456 | G168: 0.04300091601 | H168: 0.02621572612 | I168: 0.03292592018 | J168: 0.03641656582 | K168: 0.06644082456 | L168: 0.04300091601
A169: 160 | B169: ='Data Entry'!M163 -> 0 | C169: 0.02621705144 | D169: 0.03292905406 | E169: 0.03641961602 | F169: 0.06645055985 | G169: 0.04300675421 | H169: 0.02621705144 | I169: 0.03292905406 | J169: 0.03641961602 | K169: 0.06645055985 | L169: 0.04300675421
A170: 161 | B170: ='Data Entry'!M164 -> 0 | C170: 0.0262183603 | D170: 0.03293214901 | E170: 0.03642262833 | F170: 0.0664601742 | G170: 0.04301251988 | H170: 0.0262183603 | I170: 0.03293214901 | J170: 0.03642262833 | K170: 0.0664601742 | L170: 0.04301251988
A171: 162 | B171: ='Data Entry'!M165 -> 0 | C171: 0.02621965301 | D171: 0.03293520575 | E171: 0.03642560346 | F171: 0.06646966986 | G171: 0.04301821437 | H171: 0.02621965301 | I171: 0.03293520575 | J171: 0.03642560346 | K171: 0.06646966986 | L171: 0.04301821437
A172: 163 | B172: ='Data Entry'!M166 -> 0 | C172: 0.02622092985 | D172: 0.03293822499 | E172: 0.03642854208 | F172: 0.066479049 | G172: 0.04302383899 | H172: 0.02622092985 | I172: 0.03293822499 | J172: 0.03642854208 | K172: 0.066479049 | L172: 0.04302383899
A173: 164 | B173: ='Data Entry'!M167 -> 0 | C173: 0.02622219112 | D173: 0.0329412074 | E173: 0.03643144486 | F173: 0.06648831377 | G173: 0.04302939502 | H173: 0.02622219112 | I173: 0.0329412074 | J173: 0.03643144486 | K173: 0.06648831377 | L173: 0.04302939502
A174: 165 | B174: ='Data Entry'!M168 -> 0 | C174: 0.0262234371 | D174: 0.03294415367 | E174: 0.03643431246 | F174: 0.06649746623 | G174: 0.0430348837 | H174: 0.0262234371 | I174: 0.03294415367 | J174: 0.03643431246 | K174: 0.06649746623 | L174: 0.0430348837
A175: 166 | B175: ='Data Entry'!M169 -> 0 | C175: 0.02622466807 | D175: 0.03294706443 | E175: 0.0364371455 | F175: 0.06650650842 | G175: 0.04304030625 | H175: 0.02622466807 | I175: 0.03294706443 | J175: 0.0364371455 | K175: 0.06650650842 | L175: 0.04304030625
A176: 167 | B176: ='Data Entry'!M170 -> 0 | C176: 0.02622588429 | D176: 0.03294994034 | E176: 0.03643994462 | F176: 0.06651544233 | G176: 0.04304566386 | H176: 0.02622588429 | I176: 0.03294994034 | J176: 0.03643994462 | K176: 0.06651544233 | L176: 0.04304566386
A177: 168 | B177: ='Data Entry'!M171 -> 0 | C177: 0.02622708604 | D177: 0.03295278201 | E177: 0.03644271042 | F177: 0.06652426988 | G177: 0.04305095769 | H177: 0.02622708604 | I177: 0.03295278201 | J177: 0.03644271042 | K177: 0.06652426988 | L177: 0.04305095769
A178: 169 | B178: ='Data Entry'!M172 -> 0 | C178: 0.02622827357 | D178: 0.03295559006 | E178: 0.03644544348 | F178: 0.06653299296 | G178: 0.04305618888 | H178: 0.02622827357 | I178: 0.03295559006 | J178: 0.03644544348 | K178: 0.06653299296 | L178: 0.04305618888
A179: 170 | B179: ='Data Entry'!M173 -> 0 | C179: 0.02622944712 | D179: 0.03295836506 | E179: 0.03644814439 | F179: 0.06654161341 | G179: 0.04306135851 | H179: 0.02622944712 | I179: 0.03295836506 | J179: 0.03644814439 | K179: 0.06654161341 | L179: 0.04306135851
A180: 171 | B180: ='Data Entry'!M174 -> 0 | C180: 0.02623060695 | D180: 0.03296110761 | E180: 0.03645081372 | F180: 0.06655013304 | G180: 0.04306646769 | H180: 0.02623060695 | I180: 0.03296110761 | J180: 0.03645081372 | K180: 0.06655013304 | L180: 0.04306646769
A181: 172 | B181: ='Data Entry'!M175 -> 0 | C181: 0.0262317533 | D181: 0.03296381827 | E181: 0.036453452 | F181: 0.06655855361 | G181: 0.04307151746 | H181: 0.0262317533 | I181: 0.03296381827 | J181: 0.036453452 | K181: 0.06655855361 | L181: 0.04307151746
A182: 173 | B182: ='Data Entry'!M176 -> 0 | C182: 0.02623288639 | D182: 0.0329664976 | E182: 0.03645605978 | F182: 0.06656687683 | G182: 0.04307650884 | H182: 0.02623288639 | I182: 0.0329664976 | J182: 0.03645605978 | K182: 0.06656687683 | L182: 0.04307650884
A183: 174 | B183: ='Data Entry'!M177 -> 0 | C183: 0.02623400645 | D183: 0.03296914612 | E183: 0.03645863759 | F183: 0.06657510438 | G183: 0.04308144286 | H183: 0.02623400645 | I183: 0.03296914612 | J183: 0.03645863759 | K183: 0.06657510438 | L183: 0.04308144286
A184: 175 | B184: ='Data Entry'!M178 -> 0 | C184: 0.02623511372 | D184: 0.03297176438 | E184: 0.03646118594 | F184: 0.0665832379 | G184: 0.04308632048 | H184: 0.02623511372 | I184: 0.03297176438 | J184: 0.03646118594 | K184: 0.0665832379 | L184: 0.04308632048
A185: 176 | B185: ='Data Entry'!M179 -> 0 | C185: 0.0262362084 | D185: 0.03297435288 | E185: 0.03646370533 | F185: 0.06659127899 | G185: 0.04309114268 | H185: 0.0262362084 | I185: 0.03297435288 | J185: 0.03646370533 | K185: 0.06659127899 | L185: 0.04309114268
A186: 177 | B186: ='Data Entry'!M180 -> 0 | C186: 0.02623729072 | D186: 0.03297691214 | E186: 0.03646619625 | F186: 0.06659922923 | G186: 0.04309591039 | H186: 0.02623729072 | I186: 0.03297691214 | J186: 0.03646619625 | K186: 0.06659922923 | L186: 0.04309591039
A187: 178 | B187: ='Data Entry'!M181 -> 0 | C187: 0.02623836087 | D187: 0.03297944264 | E187: 0.03646865918 | F187: 0.06660709013 | G187: 0.04310062453 | H187: 0.02623836087 | I187: 0.03297944264 | J187: 0.03646865918 | K187: 0.06660709013 | L187: 0.04310062453
A188: 179 | B188: ='Data Entry'!M182 -> 0 | C188: 0.02623941907 | D188: 0.03298194486 | E188: 0.0364710946 | F188: 0.06661486321 | G188: 0.043105286 | H188: 0.02623941907 | I188: 0.03298194486 | J188: 0.0364710946 | K188: 0.06661486321 | L188: 0.043105286
A189: 180 | B189: ='Data Entry'!M183 -> 0 | C189: 0.02624046551 | D189: 0.03298441929 | E189: 0.03647350295 | F189: 0.06662254991 | G189: 0.04310989568 | H189: 0.02624046551 | I189: 0.03298441929 | J189: 0.03647350295 | K189: 0.06662254991 | L189: 0.04310989568
A190: 181 | B190: ='Data Entry'!M184 -> 0 | C190: 0.02624150038 | D190: 0.03298686637 | E190: 0.03647588469 | F190: 0.06663015168 | G190: 0.04311445442 | H190: 0.02624150038 | I190: 0.03298686637 | J190: 0.03647588469 | K190: 0.06663015168 | L190: 0.04311445442
A191: 182 | B191: ='Data Entry'!M185 -> 0 | C191: 0.02624252388 | D191: 0.03298928656 | E191: 0.03647824026 | F191: 0.06663766992 | G191: 0.04311896306 | H191: 0.02624252388 | I191: 0.03298928656 | J191: 0.03647824026 | K191: 0.06663766992 | L191: 0.04311896306
A192: 183 | B192: ='Data Entry'!M186 -> 0 | C192: 0.0262435362 | D192: 0.0329916803 | E192: 0.03648057009 | F192: 0.06664510599 | G192: 0.04312342243 | H192: 0.0262435362 | I192: 0.0329916803 | J192: 0.03648057009 | K192: 0.06664510599 | L192: 0.04312342243
A193: 184 | B193: ='Data Entry'!M187 -> 0 | C193: 0.02624453752 | D193: 0.03299404802 | E193: 0.03648287459 | F193: 0.06665246123 | G193: 0.04312783332 | H193: 0.02624453752 | I193: 0.03299404802 | J193: 0.03648287459 | K193: 0.06665246123 | L193: 0.04312783332
A194: 185 | B194: ='Data Entry'!M188 -> 0 | C194: 0.02624552801 | D194: 0.03299639015 | E194: 0.03648515418 | F194: 0.06665973695 | G194: 0.04313219654 | H194: 0.02624552801 | I194: 0.03299639015 | J194: 0.03648515418 | K194: 0.06665973695 | L194: 0.04313219654
A195: 186 | B195: ='Data Entry'!M189 -> 0 | C195: 0.02624650784 | D195: 0.03299870709 | E195: 0.03648740926 | F195: 0.06666693444 | G195: 0.04313651283 | H195: 0.02624650784 | I195: 0.03299870709 | J195: 0.03648740926 | K195: 0.06666693444 | L195: 0.04313651283
A196: 187 | B196: ='Data Entry'!M190 -> 0 | C196: 0.0262474772 | D196: 0.03300099925 | E196: 0.03648964021 | F196: 0.06667405496 | G196: 0.04314078296 | H196: 0.0262474772 | I196: 0.03300099925 | J196: 0.03648964021 | K196: 0.06667405496 | L196: 0.04314078296
A197: 188 | B197: ='Data Entry'!M191 -> 0 | C197: 0.02624843625 | D197: 0.03300326703 | E197: 0.03649184744 | F197: 0.06668109972 | G197: 0.04314500767 | H197: 0.02624843625 | I197: 0.03300326703 | J197: 0.03649184744 | K197: 0.06668109972 | L197: 0.04314500767
A198: 189 | B198: ='Data Entry'!M192 -> 0 | C198: 0.02624938515 | D198: 0.03300551081 | E198: 0.03649403131 | F198: 0.06668806994 | G198: 0.04314918767 | H198: 0.02624938515 | I198: 0.03300551081 | J198: 0.03649403131 | K198: 0.06668806994 | L198: 0.04314918767
A199: 190 | B199: ='Data Entry'!M193 -> 0 | C199: 0.02625032406 | D199: 0.03300773096 | E199: 0.03649619218 | F199: 0.06669496678 | G199: 0.04315332366 | H199: 0.02625032406 | I199: 0.03300773096 | J199: 0.03649619218 | K199: 0.06669496678 | L199: 0.04315332366
A200: 191 | B200: ='Data Entry'!M194 -> 0 | C200: 0.02625125314 | D200: 0.03300992788 | E200: 0.03649833044 | F200: 0.06670179141 | G200: 0.04315741635 | H200: 0.02625125314 | I200: 0.03300992788 | J200: 0.03649833044 | K200: 0.06670179141 | L200: 0.04315741635
A201: 192 | B201: ='Data Entry'!M195 -> 0 | C201: 0.02625217254 | D201: 0.0330121019 | E201: 0.03650044642 | F201: 0.06670854494 | G201: 0.04316146641 | H201: 0.02625217254 | I201: 0.0330121019 | J201: 0.03650044642 | K201: 0.06670854494 | L201: 0.04316146641
... 168 more rows

Sheet AAA Yield Curve
D1: Bond Name | E1: Next Coupon Date | F1: Maturity | G1: Cpn Payment Freq | H1: Clean Price | I1: AI | J1: Coupon Rate | K1: Cash Price | L1: Yield to Maturity | M1: Macauley Duration | N1: Duration | O1: Inverse of Macauley Duration | P1: Weights for Optimization
A2: Parameters | C2: 1 | D2: ='Data Entry'!B4 -> EK759849 Corp | E2: ='Data Entry'!C4 -> 12/1/2019 | F2: ='Data Entry'!D4 -> 6/1/2020 | G2: ='Data Entry'!E4 -> 2 | H2: ='Data Entry'!F4 -> 99.5305 | I2: ='Data Entry'!G4 -> 0.1130136986 | J2: ='Data Entry'!H4/100 -> 0.0125 | K2: ='Data Entry'!I4 -> 99.6435137 | L2: =YIELD(B$3,F2,J2,H2,100,G2,0) -> 0.01769739412 | M2: =MDURATION(B$3,F2,J2,L2,G2,0) -> 0.9027868411 | N2: =DURATION(B$3,F2,J2,L2,G2,0) -> 0.9107753284 | O2: =1/M2 -> 1.107681187 | P2: =O2/$O$33 -> 0.04597285506
A3: Current Day t=0 | B3: =Instructions!D35 -> 2019-07-02 | C3: =C2+1 -> 2 | D3: ='Data Entry'!B5 -> EI054583 Corp | E3: ='Data Entry'!C5 -> 11/25/2019 | F3: ='Data Entry'!D5 -> 11/25/2019 | G3: ='Data Entry'!E5 -> 2 | H3: ='Data Entry'!F5 -> 100.8045 | I3: ='Data Entry'!G5 -> 0.4888888889 | J3: ='Data Entry'!H5/100 -> 0.044 | K3: ='Data Entry'!I5 -> 101.2933889 | L3: =YIELD(B$3,F3,J3,H3,100,G3,0) -> 0.02345212508 | M3: =MDURATION(B$3,F3,J3,L3,G3,0) -> 0.3926183548 | N3: =DURATION(B$3,F3,J3,L3,G3,0) -> 0.3972222222 | O3: 2.547002675 | P3: =O3/$O$33 -> 0.1057100059
A4: Nelson Siegel Parameters | C4: 3 | D4: ='Data Entry'!B6 -> EK398301 Corp | E4: ='Data Entry'!C6 -> 7/24/2019 | F4: ='Data Entry'!D6 -> 7/24/2024 | G4: ='Data Entry'!E6 -> 2 | H4: ='Data Entry'!F6 -> 105.188 | I4: ='Data Entry'!G6 -> 1.40875 | J4: ='Data Entry'!H6/100 -> 0.0315 | K4: ='Data Entry'!I6 -> 106.59675 | L4: 0.02064970736 | M4: 4.619695937 | N4: 4.667393621 | O4: 0.216464463 | P4: 0.008984073663
A5: b0 | B5: 0.026427778 | C5: 4 | D5: ='Data Entry'!B7 -> EI054595 Corp | E5: ='Data Entry'!C7 -> 11/25/2019 | F5: ='Data Entry'!D7 -> 11/25/2039 | G5: ='Data Entry'!E7 -> 2 | H5: ='Data Entry'!F7 -> 134.572 | I5: ='Data Entry'!G7 -> 0.6222222222 | J5: ='Data Entry'!H7/100 -> 0.056 | K5: ='Data Entry'!I7 -> 135.1942222 | L5: 0.03264948266 | M5: 13.30694431 | N5: 13.52417673 | O5: 0.07514873262 | P5: 0.003118949597
A6: b1 | B6: -0.001546102995 | C6: 5 | D6: ='Data Entry'!B8 -> EK399453 Corp | E6: ='Data Entry'!C8 -> 7/24/2019 | F6: ='Data Entry'!D8 -> 7/24/2024 | G6: ='Data Entry'!E8 -> 2 | H6: ='Data Entry'!F8 -> 105.188 | I6: ='Data Entry'!G8 -> 1.40875 | J6: ='Data Entry'!H8/100 -> 0.0315 | K6: ='Data Entry'!I8 -> 106.59675 | L6: 0.02064970736 | M6: 4.619695937 | N6: 4.667393621 | O6: 0.216464463 | P6: 0.008984073663
A7: b2 | B7: -1.241364241 | C7: 6
A8: b3 | B8: 1.213472738 | C8: 7 | D8: ='Data Entry'!B10 -> EJ891161 Corp | E8: ='Data Entry'!C10 -> 10/22/2019 | F8: ='Data Entry'!D10 -> 10/22/2020 | G8: ='Data Entry'!E10 -> 2 | H8: ='Data Entry'!F10 -> 101.6605 | I8: ='Data Entry'!G10 -> 0.606 | J8: ='Data Entry'!H10/100 -> 0.0303 | K8: ='Data Entry'!I10 -> 102.2665 | L8: 0.01736926938 | M8: 1.272460275 | N8: 1.283511128 | O8: 0.7858791503 | P8: 0.03261688353
A9: tau | B9: 1.340100938 | C9: 8 | D9: ='Data Entry'!B11 -> EK159595 Corp | E9: ='Data Entry'!C11 -> 10/4/2019 | F9: ='Data Entry'!D11 -> 4/4/2024 | G9: ='Data Entry'!E11 -> 2 | H9: ='Data Entry'!F11 -> 106.647 | I9: ='Data Entry'!G11 -> 0.8202465753 | J9: ='Data Entry'!H11/100 -> 0.0329 | K9: ='Data Entry'!I11 -> 107.4672466 | L9: 0.0182399807 | M9: 4.380871882 | N9: 4.420825391 | O9: 0.2282650639 | P9: 0.009473842129
A10: rho | B10: 1.344825489 | C10: 9 | D10: ='Data Entry'!B12 -> EI108681 Corp | E10: ='Data Entry'!C12 -> 7/15/2019 | F10: ='Data Entry'!D12 -> 7/15/2020 | G10: ='Data Entry'!E12 -> 2 | H10: ='Data Entry'!F12 -> 102.7725 | I10: ='Data Entry'!G12 -> 2.142465753 | J10: ='Data Entry'!H12/100 -> 0.046 | K10: ='Data Entry'!I12 -> 104.9149658 | L10: 0.01884622085 | M10: 0.9939827722 | N10: 1.003349182 | O10: 1.006053654 | P10: 0.04175493757
C11: 10
C12: 11 | D12: ='Data Entry'!B14 -> EI666313 Corp
C13: 12
C14: 13 | D14: ='Data Entry'!B16 -> EK331665 Corp | E14: ='Data Entry'!C16 -> 8/19/2019 | F14: ='Data Entry'!D16 -> 8/19/2019 | G14: ='Data Entry'!E16 -> 2 | H14: ='Data Entry'!F16 -> 99.9295 | I14: ='Data Entry'!G16 -> 0.6611111111 | J14: ='Data Entry'!H16/100 -> 0.0175 | K14: ='Data Entry'!I16 -> 100.5906111 | L14: 0.02276884513 | M14: 0.1290859861 | N14: 0.1305555556 | O14: 7.7467743 | P14: 0.3215197082
C15: 14
C16: 15
C17: 16 | D17: ='Data Entry'!B19 -> EI545856 Corp | E17: ='Data Entry'!C19 -> 7/25/2019 | F17: ='Data Entry'!D19 -> 1/25/2021 | G17: ='Data Entry'!E19 -> 2 | H17: ='Data Entry'!F19 -> 103.7955 | I17: ='Data Entry'!G19 -> 1.889315068 | J17: ='Data Entry'!H19/100 -> 0.0431 | K17: ='Data Entry'!I19 -> 105.6848151 | L17: 0.01836185244 | M17: 1.489477213 | N17: 1.503151994 | O17: 0.6713765011 | P17: 0.02786460123
C18: 17
C19: 18 | D19: ='Data Entry'!B21 -> EI057829 Corp | E19: ='Data Entry'!C21 -> 11/25/2019 | F19: ='Data Entry'!D21 -> 11/25/2019 | G19: ='Data Entry'!E21 -> 2 | H19: ='Data Entry'!F21 -> 100.8045 | I19: ='Data Entry'!G21 -> 0.4888888889 | J19: ='Data Entry'!H21/100 -> 0.044 | K19: ='Data Entry'!I21 -> 101.2933889 | L19: 0.02345212508 | M19: 0.3926183548 | N19: 0.3972222222 | O19: 2.547002675 | P19: 0.1057100059
C20: 19
C21: 20 | D21: ='Data Entry'!B23 -> EK499492 Corp | E21: ='Data Entry'!C23 -> 9/20/2019 | F21: ='Data Entry'!D23 -> 9/20/2019 | G21: ='Data Entry'!E23 -> 2 | H21: ='Data Entry'!F23 -> 100.1285 | I21: ='Data Entry'!G23 -> 0.7457753425 | J21: ='Data Entry'!H23/100 -> 0.02568 | K21: ='Data Entry'!I23 -> 100.8742753 | L21: 0.01958159275 | M21: 0.2145658957 | N21: 0.2166666667 | O21: 4.660572906 | P21: 0.1934309666
C22: 21 | D22: ='Data Entry'!B24 -> EH348329 Corp
C23: 22
C24: 23
C25: 24 | D25: ='Data Entry'!B27 -> EF118458 Corp | E25: ='Data Entry'!C27 -> 12/15/2019 | F25: ='Data Entry'!D27 -> 12/15/2025 | G25: ='Data Entry'!E27 -> 2 | H25: ='Data Entry'!F27 -> 114.4755 | I25: ='Data Entry'!G27 -> 0.2316438356 | J25: ='Data Entry'!H27/100 -> 0.0445 | K25: ='Data Entry'!I27 -> 114.7071438 | L25: 0.02043929604 | M25: 5.672228678 | N25: 5.730196858 | O25: 0.1762975467 | P25: 0.007316998477
C26: 25 | D26: ='Data Entry'!B28 -> EI109073 Corp | E26: ='Data Entry'!C28 -> 7/15/2019 | F26: ='Data Entry'!D28 -> 7/15/2020 | G26: ='Data Entry'!E28 -> 2 | H26: ='Data Entry'!F28 -> 102.777 | I26: ='Data Entry'!G28 -> 2.155068493 | J26: ='Data Entry'!H28/100 -> 0.046 | K26: ='Data Entry'!I28 -> 104.9320685 | L26: 0.01880306721 | M26: 0.9940051317 | N26: 1.003350304 | O26: 1.006031023 | P26: 0.04175399832
C27: 26
C28: 27
C29: 28
C30: 29 | D30: ='Data Entry'!B32 -> EF579826 Corp | E30: ='Data Entry'!C32 -> 7/26/2019 | F30: ='Data Entry'!D32 -> 7/26/2021 | G30: ='Data Entry'!E32 -> 2 | H30: ='Data Entry'!F32 -> 106.417 | I30: ='Data Entry'!G32 -> 2.069178082 | J30: ='Data Entry'!H32/100 -> 0.0475 | K30: ='Data Entry'!I32 -> 108.4861781 | L30: 0.01581199974 | M30: 1.942804284 | N30: 1.958164094 | O30: 0.5147198863 | P30: 0.02136277388
C31: 30 | D31: ='Data Entry'!B33 -> EF355132 Corp | E31: ='Data Entry'!C33 -> 10/12/2019 | F31: ='Data Entry'!D33 -> 4/12/2021 | G31: ='Data Entry'!E33 -> 2 | H31: ='Data Entry'!F33 -> 104.8915 | I31: ='Data Entry'!G33 -> 1.034657534 | J31: ='Data Entry'!H33/100 -> 0.0455 | K31: ='Data Entry'!I33 -> 105.9261575 | L31: 0.01742334036 | M31: 1.699207126 | N31: 1.714010058 | O31: 0.5885097729 | P31: 0.02442532635
C32: 31 | D32: ='Data Entry'!B34 -> EJ951715 Corp | P32: 0
N33: Sum | O33: =SUM(O2:O32) -> 24.094244
A35: Payment Dates | B35: =IF(E2=0,F2,E2) -> 12/1/2019 | C35: =B35+IF($G2=1,365,0)+IF($G2=2,182.5,0)+IF($G2=4,91.25,0) -> 2020-05-31T12:00:00 | D35: =C35+IF($G2=1,365,0)+IF($G2=2,182.5,0)+IF($G2=4,91.25,0) -> 2020-11-30 | E35: 2021-05-31T12:00:00 | F35: 2021-11-30 | G35: 2022-05-31T12:00:00 | H35: 2022-11-30 | I35: 2023-05-31T12:00:00 | J35: 2023-11-30 | K35: 2024-05-30T12:00:00 | L35: 2024-11-29 | M35: 2025-05-30T12:00:00 | N35: 2025-11-29 | O35: 2026-05-30T12:00:00 | P35: 2026-11-29 | Q35: 2027-05-30T12:00:00 | R35: 2027-11-29 | S35: 2028-05-29T12:00:00 | T35: 2028-11-28 | U35: 2029-05-29T12:00:00 | V35: 2029-11-28 | W35: 2030-05-29T12:00:00 | X35: 2030-11-28 | Y35: 2031-05-29T12:00:00 | Z35: 2031-11-28 | AA35: 2032-05-28T12:00:00 | AB35: 2032-11-27 | AC35: 2033-05-28T12:00:00 | AD35: 2033-11-27 | AE35: 2034-05-28T12:00:00 | AF35: 2034-11-27 | AG35: 2035-05-28T12:00:00 | AH35: 2035-11-27 | AI35: 2036-05-27T12:00:00 | AJ35: 2036-11-26 | AK35: 2037-05-27T12:00:00 | AL35: 2037-11-26 | AM35: 2038-05-27T12:00:00 | AN35: 2038-11-26 | AO35: 2039-05-27T12:00:00 | AP35: 2039-11-26 | AQ35: 2040-05-26T12:00:00 | AR35: 2040-11-25 | AS35: 2041-05-26T12:00:00 | AT35: 2041-11-25 | AU35: 2042-05-26T12:00:00 | AV35: 2042-11-25 | AW35: 2043-05-26T12:00:00 | AX35: 2043-11-25 | AY35: 2044-05-25T12:00:00 | AZ35: 2044-11-24 | BA35: 2045-05-25T12:00:00 | BB35: 2045-11-24 | BC35: 2046-05-25T12:00:00 | BD35: 2046-11-24 | BE35: 2047-05-25T12:00:00 | BF35: 2047-11-24 | BG35: 2048-05-24T12:00:00 | BH35: 2048-11-23 | BI35: 2049-05-24T12:00:00 | BJ35: 2049-11-23 | BK35: 2050-05-24T12:00:00 | BL35: 2050-11-23 | BM35: 2051-05-24T12:00:00 | BN35: 2051-11-23 | BO35: 2052-05-23T12:00:00 | BP35: =BO35+IF($G2=1,365,0)+IF($G2=2,182.5,0)+IF($G2=4,91.25,0) -> 2052-11-22 | BQ35: 2053-05-23T12:00:00 | BR35: 2053-11-22 | BS35: 2054-05-23T12:00:00 | BT35: 2054-11-22 | BU35: 2055-05-23T12:00:00 | BV35: 2055-11-22 | BW35: 2056-05-22T12:00:00 | BX35: 2056-11-21 | BY35: 2057-05-22T12:00:00 | BZ35: 2057-11-21 | CA35: 2058-05-22T12:00:00 | CB35: 2058-11-21 | CC35: 2059-05-22T12:00:00 | CD35: 2059-11-21 | CE35: 2060-05-21T12:00:00 | CF35: 2060-11-20 | CG35: 2061-05-21T12:00:00 | CH35: 2061-11-20 | CI35: 2062-05-21T12:00:00 | CJ35: 2062-11-20 | CK35: 2063-05-21T12:00:00 | CL35: 2063-11-20 | CM35: 2064-05-20T12:00:00 | CN35: 2064-11-19 | CO35: 2065-05-20T12:00:00 | CP35: 2065-11-19 | CQ35: 2066-05-20T12:00:00 | CR35: 2066-11-19 | CS35: 2067-05-20T12:00:00 | CT35: 2067-11-19 | CU35: 2068-05-19T12:00:00 | CV35: 2068-11-18 | CW35: 2069-05-19T12:00:00 | CX35: 2069-11-18 | CY35: 2070-05-19T12:00:00 | CZ35: 2070-11-18 | DA35: 2071-05-19T12:00:00 | DB35: 2071-11-18 | DC35: 2072-05-18T12:00:00 | DD35: 2072-11-17 | DE35: 2073-05-18T12:00:00 | DF35: 2073-11-17 | DG35: 2074-05-18T12:00:00 | DH35: 2074-11-17 | DI35: 2075-05-18T12:00:00 | DJ35: 2075-11-17 | DK35: 2076-05-17T12:00:00 | DL35: 2076-11-16 | DM35: 2077-05-17T12:00:00 | DN35: 2077-11-16 | DO35: 2078-05-17T12:00:00 | DP35: 2078-11-16 | DQ35: 2079-05-17T12:00:00 | DR35: 2079-11-16 | DS35: 2080-05-16T12:00:00 | DT35: 2080-11-15 | DU35: 2081-05-16T12:00:00 | DV35: 2081-11-15 | DW35: 2082-05-16T12:00:00 | DX35: 2082-11-15 | DY35: 2083-05-16T12:00:00 | DZ35: 2083-11-15 | EA35: 2084-05-15T12:00:00 | EB35: =EA35+IF($G2=1,365,0)+IF($G2=2,182.5,0)+IF($G2=4,91.25,0) -> 2084-11-14 | EC35: 2085-05-15T12:00:00 | ED35: 2085-11-14 | EE35: 2086-05-15T12:00:00 | EF35: 2086-11-14 | EG35: 2087-05-15T12:00:00 | EH35: 2087-11-14 | EI35: 2088-05-14T12:00:00 | EJ35: 2088-11-13 | EK35: 2089-05-14T12:00:00 | EL35: 2089-11-13 | EM35: 2090-05-14T12:00:00 | EN35: 2090-11-13 | EO35: 2091-05-14T12:00:00 | EP35: 2091-11-13 | EQ35: 2092-05-13T12:00:00 | ER35: 2092-11-12 | ES35: 2093-05-13T12:00:00 | ET35: 2093-11-12 | EU35: 2094-05-13T12:00:00 | EV35: 2094-11-12 | EW35: 2095-05-13T12:00:00 | EX35: 2095-11-12 | EY35: 2096-05-12T12:00:00 | EZ35: 2096-11-11 | FA35: 2097-05-12T12:00:00 | FB35: 2097-11-11 | FC35: 2098-05-12T12:00:00 | FD35: 2098-11-11 | FE35: 2099-05-12T12:00:00 | FF35: 2099-11-11 | FG35: 2100-05-12T12:00:00 | FH35: 2100-11-11 | FI35: 2101-05-12T12:00:00 | FJ35: 2101-11-11 | FK35: 2102-05-12T12:00:00 | FL35: 2102-11-11 | FM35: 2103-05-12T12:00:00 | FN35: 2103-11-11 | FO35: 2104-05-11T12:00:00 | FP35: 2104-11-10 | FQ35: 2105-05-11T12:00:00 | FR35: 2105-11-10 | FS35: 2106-05-11T12:00:00 | FT35: 2106-11-10 | FU35: 2107-05-11T12:00:00 | FV35: 2107-11-10 | FW35: 2108-05-10T12:00:00 | FX35: 2108-11-09 | FY35: 2109-05-10T12:00:00 | FZ35: 2109-11-09 | GA35: 2110-05-10T12:00:00 | GB35: 2110-11-09 | GC35: 2111-05-10T12:00:00 | GD35: 2111-11-09 | GE35: 2112-05-09T12:00:00 | GF35: 2112-11-08 | GG35: 2113-05-09T12:00:00 | GH35: 2113-11-08 | GI35: 2114-05-09T12:00:00 | GJ35: 2114-11-08 | GK35: 2115-05-09T12:00:00 | GL35: 2115-11-08 | GM35: 2116-05-08T12:00:00 | GN35: =GM35+IF($G2=1,365,0)+IF($G2=2,182.5,0)+IF($G2=4,91.25,0) -> 2116-11-07 | GO35: 2117-05-08T12:00:00 | GP35: 2117-11-07 | GQ35: 2118-05-08T12:00:00 | GR35: 2118-11-07 | GS35: 2119-05-08T12:00:00
A36: Bond 1 | B36: =(IF(B35=F2,100,0)+IF(G2=1,1,0)*J2*100+IF(G2=2,0.5,0)*J2*100+IF(G2=4,0.25,0)*J2*100)*IF(ISBLANK(F2)=TRUE,0,1) -> 0.625 | C36: =IF(C35>$F2+1,0,1)*(IF(D36=0,100,0)+IF($G2=1,1,0)*$J2*100+IF($G2=2,0.5,0)*$J2*100+IF($G2=4,0.25,0)*$J2*100) -> 100.625 | D36: =IF(D35>$F2+1,0,1)*(IF(E36=0,100,0)+IF($G2=1,1,0)*$J2*100+IF($G2=2,0.5,0)*$J2*100+IF($G2=4,0.25,0)*$J2*100) -> 0 | E36: 0 | F36: 0 | G36: 0 | H36: 0 | I36: 0 | J36: 0 | K36: 0 | L36: 0 | M36: 0 | N36: 0 | O36: 0 | P36: 0 | Q36: 0 | R36: 0 | S36: 0 | T36: 0 | U36: 0 | V36: 0 | W36: 0 | X36: 0 | Y36: 0 | Z36: 0 | AA36: 0 | AB36: 0 | AC36: 0 | AD36: 0 | AE36: 0 | AF36: 0 | AG36: 0 | AH36: 0 | AI36: 0 | AJ36: 0 | AK36: 0 | AL36: 0 | AM36: 0 | AN36: 0 | AO36: 0 | AP36: 0 | AQ36: 0 | AR36: 0 | AS36: 0 | AT36: 0 | AU36: 0 | AV36: 0 | AW36: 0 | AX36: 0 | AY36: 0 | AZ36: 0 | BA36: 0 | BB36: 0 | BC36: 0 | BD36: 0 | BE36: 0 | BF36: 0 | BG36: 0 | BH36: 0 | BI36: 0 | BJ36: 0 | BK36: 0 | BL36: 0 | BM36: 0 | BN36: 0 | BO36: 0 | BP36: =IF(BP35>$F2+1,0,1)*(IF(BQ36=0,100,0)+IF($G2=1,1,0)*$J2*100+IF($G2=2,0.5,0)*$J2*100+IF($G2=4,0.25,0)*$J2*100) -> 0 | BQ36: 0 | BR36: 0 | BS36: 0 | BT36: 0 | BU36: 0 | BV36: 0 | BW36: 0 | BX36: 0 | BY36: 0 | BZ36: 0 | CA36: 0 | CB36: 0 | CC36: 0 | CD36: 0 | CE36: 0 | CF36: 0 | CG36: 0 | CH36: 0 | CI36: 0 | CJ36: 0 | CK36: 0 | CL36: 0 | CM36: 0 | CN36: 0 | CO36: 0 | CP36: 0 | CQ36: 0 | CR36: 0 | CS36: 0 | CT36: 0 | CU36: 0 | CV36: 0 | CW36: 0 | CX36: 0 | CY36: 0 | CZ36: 0 | DA36: 0 | DB36: 0 | DC36: 0 | DD36: 0 | DE36: 0 | DF36: 0 | DG36: 0 | DH36: 0 | DI36: 0 | DJ36: 0 | DK36: 0 | DL36: 0 | DM36: 0 | DN36: 0 | DO36: 0 | DP36: 0 | DQ36: 0 | DR36: 0 | DS36: 0 | DT36: 0 | DU36: 0 | DV36: 0 | DW36: 0 | DX36: 0 | DY36: 0 | DZ36: 0 | EA36: 0 | EB36: =IF(EB35>$F2+1,0,1)*(IF(EC36=0,100,0)+IF($G2=1,1,0)*$J2*100+IF($G2=2,0.5,0)*$J2*100+IF($G2=4,0.25,0)*$J2*100) -> 0 | EC36: 0 | ED36: 0 | EE36: 0 | EF36: 0 | EG36: 0 | EH36: 0 | EI36: 0 | EJ36: 0 | EK36: 0 | EL36: 0 | EM36: 0 | EN36: 0 | EO36: 0 | EP36: 0 | EQ36: 0 | ER36: 0 | ES36: 0 | ET36: 0 | EU36: 0 | EV36: 0 | EW36: 0 | EX36: 0 | EY36: 0 | EZ36: 0 | FA36: 0 | FB36: 0 | FC36: 0 | FD36: 0 | FE36: 0 | FF36: 0 | FG36: 0 | FH36: 0 | FI36: 0 | FJ36: 0 | FK36: 0 | FL36: 0 | FM36: 0 | FN36: 0 | FO36: 0 | FP36: 0 | FQ36: 0 | FR36: 0 | FS36: 0 | FT36: 0 | FU36: 0 | FV36: 0 | FW36: 0 | FX36: 0 | FY36: 0 | FZ36: 0 | GA36: 0 | GB36: 0 | GC36: 0 | GD36: 0 | GE36: 0 | GF36: 0 | GG36: 0 | GH36: 0 | GI36: 0 | GJ36: 0 | GK36: 0 | GL36: 0 | GM36: 0 | GN36: =IF(GN35>$F2+1,0,1)*(IF(GO36=0,100,0)+IF($G2=1,1,0)*$J2*100+IF($G2=2,0.5,0)*$J2*100+IF($G2=4,0.25,0)*$J2*100) -> 0 | GO36: 0 | GP36: 0 | GQ36: 0 | GR36: 0 | GS36: 0
A37: Payment Dates | B37: =IF(E3=0,F3,E3) -> 11/25/2019 | C37: =B37+IF($G3=1,365,0)+IF($G3=2,182.5,0)+IF($G3=4,91.25,0) -> 2020-05-25T12:00:00 | D37: =C37+IF($G3=1,365,0)+IF($G3=2,182.5,0)+IF($G3=4,91.25,0) -> 2020-11-24 | E37: 2021-05-25T12:00:00 | F37: 2021-11-24 | G37: 2022-05-25T12:00:00 | H37: 2022-11-24 | I37: 2023-05-25T12:00:00 | J37: 2023-11-24 | K37: 2024-05-24T12:00:00 | L37: 2024-11-23 | M37: 2025-05-24T12:00:00 | N37: 2025-11-23 | O37: 2026-05-24T12:00:00 | P37: 2026-11-23 | Q37: 2027-05-24T12:00:00 | R37: 2027-11-23 | S37: 2028-05-23T12:00:00 | T37: 2028-11-22 | U37: 2029-05-23T12:00:00 | V37: 2029-11-22 | W37: 2030-05-23T12:00:00 | X37: 2030-11-22 | Y37: 2031-05-23T12:00:00 | Z37: 2031-11-22 | AA37: 2032-05-22T12:00:00 | AB37: 2032-11-21 | AC37: 2033-05-22T12:00:00 | AD37: 2033-11-21 | AE37: 2034-05-22T12:00:00 | AF37: 2034-11-21 | AG37: 2035-05-22T12:00:00 | AH37: 2035-11-21 | AI37: 2036-05-21T12:00:00 | AJ37: 2036-11-20 | AK37: 2037-05-21T12:00:00 | AL37: 2037-11-20 | AM37: 2038-05-21T12:00:00 | AN37: 2038-11-20 | AO37: 2039-05-21T12:00:00 | AP37: 2039-11-20 | AQ37: 2040-05-20T12:00:00 | AR37: 2040-11-19 | AS37: 2041-05-20T12:00:00 | AT37: 2041-11-19 | AU37: 2042-05-20T12:00:00 | AV37: 2042-11-19 | AW37: 2043-05-20T12:00:00 | AX37: 2043-11-19 | AY37: 2044-05-19T12:00:00 | AZ37: 2044-11-18 | BA37: 2045-05-19T12:00:00 | BB37: 2045-11-18 | BC37: 2046-05-19T12:00:00 | BD37: 2046-11-18 | BE37: 2047-05-19T12:00:00 | BF37: 2047-11-18 | BG37: 2048-05-18T12:00:00 | BH37: 2048-11-17 | BI37: 2049-05-18T12:00:00 | BJ37: 2049-11-17 | BK37: 2050-05-18T12:00:00 | BL37: 2050-11-17 | BM37: 2051-05-18T12:00:00 | BN37: 2051-11-17 | BO37: 2052-05-17T12:00:00 | BP37: =BO37+IF($G3=1,365,0)+IF($G3=2,182.5,0)+IF($G3=4,91.25,0) -> 2052-11-16 | BQ37: 2053-05-17T12:00:00 | BR37: 2053-11-16 | BS37: 2054-05-17T12:00:00 | BT37: 2054-11-16 | BU37: 2055-05-17T12:00:00 | BV37: 2055-11-16 | BW37: 2056-05-16T12:00:00 | BX37: 2056-11-15 | BY37: 2057-05-16T12:00:00 | BZ37: 2057-11-15 | CA37: 2058-05-16T12:00:00 | CB37: 2058-11-15 | CC37: 2059-05-16T12:00:00 | CD37: 2059-11-15 | CE37: 2060-05-15T12:00:00 | CF37: 2060-11-14 | CG37: 2061-05-15T12:00:00 | CH37: 2061-11-14 | CI37: 2062-05-15T12:00:00 | CJ37: 2062-11-14 | CK37: 2063-05-15T12:00:00 | CL37: 2063-11-14 | CM37: 2064-05-14T12:00:00 | CN37: 2064-11-13 | CO37: 2065-05-14T12:00:00 | CP37: 2065-11-13 | CQ37: 2066-05-14T12:00:00 | CR37: 2066-11-13 | CS37: 2067-05-14T12:00:00 | CT37: 2067-11-13 | CU37: 2068-05-13T12:00:00 | CV37: 2068-11-12 | CW37: 2069-05-13T12:00:00 | CX37: 2069-11-12 | CY37: 2070-05-13T12:00:00 | CZ37: 2070-11-12 | DA37: 2071-05-13T12:00:00 | DB37: 2071-11-12 | DC37: 2072-05-12T12:00:00 | DD37: 2072-11-11 | DE37: 2073-05-12T12:00:00 | DF37: 2073-11-11 | DG37: 2074-05-12T12:00:00 | DH37: 2074-11-11 | DI37: 2075-05-12T12:00:00 | DJ37: 2075-11-11 | DK37: 2076-05-11T12:00:00 | DL37: 2076-11-10 | DM37: 2077-05-11T12:00:00 | DN37: 2077-11-10 | DO37: 2078-05-11T12:00:00 | DP37: 2078-11-10 | DQ37: 2079-05-11T12:00:00 | DR37: 2079-11-10 | DS37: 2080-05-10T12:00:00 | DT37: 2080-11-09 | DU37: 2081-05-10T12:00:00 | DV37: 2081-11-09 | DW37: 2082-05-10T12:00:00 | DX37: 2082-11-09 | DY37: 2083-05-10T12:00:00 | DZ37: 2083-11-09 | EA37: 2084-05-09T12:00:00 | EB37: =EA37+IF($G3=1,365,0)+IF($G3=2,182.5,0)+IF($G3=4,91.25,0) -> 2084-11-08 | EC37: 2085-05-09T12:00:00 | ED37: 2085-11-08 | EE37: 2086-05-09T12:00:00 | EF37: 2086-11-08 | EG37: 2087-05-09T12:00:00 | EH37: 2087-11-08 | EI37: 2088-05-08T12:00:00 | EJ37: 2088-11-07 | EK37: 2089-05-08T12:00:00 | EL37: 2089-11-07 | EM37: 2090-05-08T12:00:00 | EN37: 2090-11-07 | EO37: 2091-05-08T12:00:00 | EP37: 2091-11-07 | EQ37: 2092-05-07T12:00:00 | ER37: 2092-11-06 | ES37: 2093-05-07T12:00:00 | ET37: 2093-11-06 | EU37: 2094-05-07T12:00:00 | EV37: 2094-11-06 | EW37: 2095-05-07T12:00:00 | EX37: 2095-11-06 | EY37: 2096-05-06T12:00:00 | EZ37: 2096-11-05 | FA37: 2097-05-06T12:00:00 | FB37: 2097-11-05 | FC37: 2098-05-06T12:00:00 | FD37: 2098-11-05 | FE37: 2099-05-06T12:00:00 | FF37: 2099-11-05 | FG37: 2100-05-06T12:00:00 | FH37: 2100-11-05 | FI37: 2101-05-06T12:00:00 | FJ37: 2101-11-05 | FK37: 2102-05-06T12:00:00 | FL37: 2102-11-05 | FM37: 2103-05-06T12:00:00 | FN37: 2103-11-05 | FO37: 2104-05-05T12:00:00 | FP37: 2104-11-04 | FQ37: 2105-05-05T12:00:00 | FR37: 2105-11-04 | FS37: 2106-05-05T12:00:00 | FT37: 2106-11-04 | FU37: 2107-05-05T12:00:00 | FV37: 2107-11-04 | FW37: 2108-05-04T12:00:00 | FX37: 2108-11-03 | FY37: 2109-05-04T12:00:00 | FZ37: 2109-11-03 | GA37: 2110-05-04T12:00:00 | GB37: 2110-11-03 | GC37: 2111-05-04T12:00:00 | GD37: 2111-11-03 | GE37: 2112-05-03T12:00:00 | GF37: 2112-11-02 | GG37: 2113-05-03T12:00:00 | GH37: 2113-11-02 | GI37: 2114-05-03T12:00:00 | GJ37: 2114-11-02 | GK37: 2115-05-03T12:00:00 | GL37: 2115-11-02 | GM37: 2116-05-02T12:00:00 | GN37: =GM37+IF($G3=1,365,0)+IF($G3=2,182.5,0)+IF($G3=4,91.25,0) -> 2116-11-01 | GO37: 2117-05-02T12:00:00 | GP37: 2117-11-01 | GQ37: 2118-05-02T12:00:00 | GR37: 2118-11-01 | GS37: 2119-05-02T12:00:00
A38: Bond 2 | B38: =(IF(B37=F3,100,0)+IF(G3=1,1,0)*J3*100+IF(G3=2,0.5,0)*J3*100+IF(G3=4,0.25,0)*J3*100)*IF(ISBLANK(F3)=TRUE,0,1) -> 102.2 | C38: =IF(C37>$F3+1,0,1)*(IF(D38=0,100,0)+IF($G3=1,1,0)*$J3*100+IF($G3=2,0.5,0)*$J3*100+IF($G3=4,0.25,0)*$J3*100) -> 0 | D38: =IF(D37>$F3+1,0,1)*(IF(E38=0,100,0)+IF($G3=1,1,0)*$J3*100+IF($G3=2,0.5,0)*$J3*100+IF($G3=4,0.25,0)*$J3*100) -> 0 | E38: 0 | F38: 0 | G38: 0 | H38: 0 | I38: 0 | J38: 0 | K38: 0 | L38: 0 | M38: 0 | N38: 0 | O38: 0 | P38: 0 | Q38: 0 | R38: 0 | S38: 0 | T38: 0 | U38: 0 | V38: 0 | W38: 0 | X38: 0 | Y38: 0 | Z38: 0 | AA38: 0 | AB38: 0 | AC38: 0 | AD38: 0 | AE38: 0 | AF38: 0 | AG38: 0 | AH38: 0 | AI38: 0 | AJ38: 0 | AK38: 0 | AL38: 0 | AM38: 0 | AN38: 0 | AO38: 0 | AP38: 0 | AQ38: 0 | AR38: 0 | AS38: 0 | AT38: 0 | AU38: 0 | AV38: 0 | AW38: 0 | AX38: 0 | AY38: 0 | AZ38: 0 | BA38: 0 | BB38: 0 | BC38: 0 | BD38: 0 | BE38: 0 | BF38: 0 | BG38: 0 | BH38: 0 | BI38: 0 | BJ38: 0 | BK38: 0 | BL38: 0 | BM38: 0 | BN38: 0 | BO38: 0 | BP38: =IF(BP37>$F3+1,0,1)*(IF(BQ38=0,100,0)+IF($G3=1,1,0)*$J3*100+IF($G3=2,0.5,0)*$J3*100+IF($G3=4,0.25,0)*$J3*100) -> 0 | BQ38: 0 | BR38: 0 | BS38: 0 | BT38: 0 | BU38: 0 | BV38: 0 | BW38: 0 | BX38: 0 | BY38: 0 | BZ38: 0 | CA38: 0 | CB38: 0 | CC38: 0 | CD38: 0 | CE38: 0 | CF38: 0 | CG38: 0 | CH38: 0 | CI38: 0 | CJ38: 0 | CK38: 0 | CL38: 0 | CM38: 0 | CN38: 0 | CO38: 0 | CP38: 0 | CQ38: 0 | CR38: 0 | CS38: 0 | CT38: 0 | CU38: 0 | CV38: 0 | CW38: 0 | CX38: 0 | CY38: 0 | CZ38: 0 | DA38: 0 | DB38: 0 | DC38: 0 | DD38: 0 | DE38: 0 | DF38: 0 | DG38: 0 | DH38: 0 | DI38: 0 | DJ38: 0 | DK38: 0 | DL38: 0 | DM38: 0 | DN38: 0 | DO38: 0 | DP38: 0 | DQ38: 0 | DR38: 0 | DS38: 0 | DT38: 0 | DU38: 0 | DV38: 0 | DW38: 0 | DX38: 0 | DY38: 0 | DZ38: 0 | EA38: 0 | EB38: =IF(EB37>$F3+1,0,1)*(IF(EC38=0,100,0)+IF($G3=1,1,0)*$J3*100+IF($G3=2,0.5,0)*$J3*100+IF($G3=4,0.25,0)*$J3*100) -> 0 | EC38: 0 | ED38: 0 | EE38: 0 | EF38: 0 | EG38: 0 | EH38: 0 | EI38: 0 | EJ38: 0 | EK38: 0 | EL38: 0 | EM38: 0 | EN38: 0 | EO38: 0 | EP38: 0 | EQ38: 0 | ER38: 0 | ES38: 0 | ET38: 0 | EU38: 0 | EV38: 0 | EW38: 0 | EX38: 0 | EY38: 0 | EZ38: 0 | FA38: 0 | FB38: 0 | FC38: 0 | FD38: 0 | FE38: 0 | FF38: 0 | FG38: 0 | FH38: 0 | FI38: 0 | FJ38: 0 | FK38: 0 | FL38: 0 | FM38: 0 | FN38: 0 | FO38: 0 | FP38: 0 | FQ38: 0 | FR38: 0 | FS38: 0 | FT38: 0 | FU38: 0 | FV38: 0 | FW38: 0 | FX38: 0 | FY38: 0 | FZ38: 0 | GA38: 0 | GB38: 0 | GC38: 0 | GD38: 0 | GE38: 0 | GF38: 0 | GG38: 0 | GH38: 0 | GI38: 0 | GJ38: 0 | GK38: 0 | GL38: 0 | GM38: 0 | GN38: =IF(GN37>$F3+1,0,1)*(IF(GO38=0,100,0)+IF($G3=1,1,0)*$J3*100+IF($G3=2,0.5,0)*$J3*100+IF($G3=4,0.25,0)*$J3*100) -> 0 | GO38: 0 | GP38: 0 | GQ38: 0 | GR38: 0 | GS38: 0
A39: Payment Dates | B39: =IF(E4=0,F4,E4) -> 7/24/2019 | C39: =B39+IF($G4=1,365,0)+IF($G4=2,182.5,0)+IF($G4=4,91.25,0) -> 2020-01-22T12:00:00 | D39: =C39+IF($G4=1,365,0)+IF($G4=2,182.5,0)+IF($G4=4,91.25,0) -> 2020-07-23 | E39: 2021-01-21T12:00:00 | F39: 2021-07-23 | G39: 2022-01-21T12:00:00 | H39: 2022-07-23 | I39: 2023-01-21T12:00:00 | J39: 2023-07-23 | K39: 2024-01-21T12:00:00 | L39: 2024-07-22 | M39: 2025-01-20T12:00:00 | N39: 2025-07-22 | O39: 2026-01-20T12:00:00 | P39: 2026-07-22 | Q39: 2027-01-20T12:00:00 | R39: 2027-07-22 | S39: 2028-01-20T12:00:00 | T39: 2028-07-21 | U39: 2029-01-19T12:00:00 | V39: 2029-07-21 | W39: 2030-01-19T12:00:00 | X39: 2030-07-21 | Y39: 2031-01-19T12:00:00 | Z39: 2031-07-21 | AA39: 2032-01-19T12:00:00 | AB39: 2032-07-20 | AC39: 2033-01-18T12:00:00 | AD39: 2033-07-20 | AE39: 2034-01-18T12:00:00 | AF39: 2034-07-20 | AG39: 2035-01-18T12:00:00 | AH39: 2035-07-20 | AI39: 2036-01-18T12:00:00 | AJ39: 2036-07-19 | AK39: 2037-01-17T12:00:00 | AL39: 2037-07-19 | AM39: 2038-01-17T12:00:00 | AN39: 2038-07-19 | AO39: 2039-01-17T12:00:00 | AP39: 2039-07-19 | AQ39: 2040-01-17T12:00:00 | AR39: 2040-07-18 | AS39: 2041-01-16T12:00:00 | AT39: 2041-07-18 | AU39: 2042-01-16T12:00:00 | AV39: 2042-07-18 | AW39: 2043-01-16T12:00:00 | AX39: 2043-07-18 | AY39: 2044-01-16T12:00:00 | AZ39: 2044-07-17 | BA39: 2045-01-15T12:00:00 | BB39: 2045-07-17 | BC39: 2046-01-15T12:00:00 | BD39: 2046-07-17 | BE39: 2047-01-15T12:00:00 | BF39: 2047-07-17 | BG39: 2048-01-15T12:00:00 | BH39: 2048-07-16 | BI39: 2049-01-14T12:00:00 | BJ39: 2049-07-16 | BK39: 2050-01-14T12:00:00 | BL39: 2050-07-16 | BM39: 2051-01-14T12:00:00 | BN39: 2051-07-16 | BO39: 2052-01-14T12:00:00 | BP39: =BO39+IF($G4=1,365,0)+IF($G4=2,182.5,0)+IF($G4=4,91.25,0) -> 2052-07-15 | BQ39: 2053-01-13T12:00:00 | BR39: 2053-07-15 | BS39: 2054-01-13T12:00:00 | BT39: 2054-07-15 | BU39: 2055-01-13T12:00:00 | BV39: 2055-07-15 | BW39: 2056-01-13T12:00:00 | BX39: 2056-07-14 | BY39: 2057-01-12T12:00:00 | BZ39: 2057-07-14 | CA39: 2058-01-12T12:00:00 | CB39: 2058-07-14 | CC39: 2059-01-12T12:00:00 | CD39: 2059-07-14 | CE39: 2060-01-12T12:00:00 | CF39: 2060-07-13 | CG39: 2061-01-11T12:00:00 | CH39: 2061-07-13 | CI39: 2062-01-11T12:00:00 | CJ39: 2062-07-13 | CK39: 2063-01-11T12:00:00 | CL39: 2063-07-13 | CM39: 2064-01-11T12:00:00 | CN39: 2064-07-12 | CO39: 2065-01-10T12:00:00 | CP39: 2065-07-12 | CQ39: 2066-01-10T12:00:00 | CR39: 2066-07-12 | CS39: 2067-01-10T12:00:00 | CT39: 2067-07-12 | CU39: 2068-01-10T12:00:00 | CV39: 2068-07-11 | CW39: 2069-01-09T12:00:00 | CX39: 2069-07-11 | CY39: 2070-01-09T12:00:00 | CZ39: 2070-07-11 | DA39: 2071-01-09T12:00:00 | DB39: 2071-07-11 | DC39: 2072-01-09T12:00:00 | DD39: 2072-07-10 | DE39: 2073-01-08T12:00:00 | DF39: 2073-07-10 | DG39: 2074-01-08T12:00:00 | DH39: 2074-07-10 | DI39: 2075-01-08T12:00:00 | DJ39: 2075-07-10 | DK39: 2076-01-08T12:00:00 | DL39: 2076-07-09 | DM39: 2077-01-07T12:00:00 | DN39: 2077-07-09 | DO39: 2078-01-07T12:00:00 | DP39: 2078-07-09 | DQ39: 2079-01-07T12:00:00 | DR39: 2079-07-09 | DS39: 2080-01-07T12:00:00 | DT39: 2080-07-08 | DU39: 2081-01-06T12:00:00 | DV39: 2081-07-08 | DW39: 2082-01-06T12:00:00 | DX39: 2082-07-08 | DY39: 2083-01-06T12:00:00 | DZ39: 2083-07-08 | EA39: 2084-01-06T12:00:00 | EB39: =EA39+IF($G4=1,365,0)+IF($G4=2,182.5,0)+IF($G4=4,91.25,0) -> 2084-07-07 | EC39: 2085-01-05T12:00:00 | ED39: 2085-07-07 | EE39: 2086-01-05T12:00:00 | EF39: 2086-07-07 | EG39: 2087-01-05T12:00:00 | EH39: 2087-07-07 | EI39: 2088-01-05T12:00:00 | EJ39: 2088-07-06 | EK39: 2089-01-04T12:00:00 | EL39: 2089-07-06 | EM39: 2090-01-04T12:00:00 | EN39: 2090-07-06 | EO39: 2091-01-04T12:00:00 | EP39: 2091-07-06 | EQ39: 2092-01-04T12:00:00 | ER39: 2092-07-05 | ES39: 2093-01-03T12:00:00 | ET39: 2093-07-05 | EU39: 2094-01-03T12:00:00 | EV39: 2094-07-05 | EW39: 2095-01-03T12:00:00 | EX39: 2095-07-05 | EY39: 2096-01-03T12:00:00 | EZ39: 2096-07-04 | FA39: 2097-01-02T12:00:00 | FB39: 2097-07-04 | FC39: 2098-01-02T12:00:00 | FD39: 2098-07-04 | FE39: 2099-01-02T12:00:00 | FF39: 2099-07-04 | FG39: 2100-01-02T12:00:00 | FH39: 2100-07-04 | FI39: 2101-01-02T12:00:00 | FJ39: 2101-07-04 | FK39: 2102-01-02T12:00:00 | FL39: 2102-07-04 | FM39: 2103-01-02T12:00:00 | FN39: 2103-07-04 | FO39: 2104-01-02T12:00:00 | FP39: 2104-07-03 | FQ39: 2105-01-01T12:00:00 | FR39: 2105-07-03 | FS39: 2106-01-01T12:00:00 | FT39: 2106-07-03 | FU39: 2107-01-01T12:00:00 | FV39: 2107-07-03 | FW39: 2108-01-01T12:00:00 | FX39: 2108-07-02 | FY39: 2108-12-31T12:00:00 | FZ39: 2109-07-02 | GA39: 2109-12-31T12:00:00 | GB39: 2110-07-02 | GC39: 2110-12-31T12:00:00 | GD39: 2111-07-02 | GE39: 2111-12-31T12:00:00 | GF39: 2112-07-01 | GG39: 2112-12-30T12:00:00 | GH39: 2113-07-01 | GI39: 2113-12-30T12:00:00 | GJ39: 2114-07-01 | GK39: 2114-12-30T12:00:00 | GL39: 2115-07-01 | GM39: 2115-12-30T12:00:00 | GN39: =GM39+IF($G4=1,365,0)+IF($G4=2,182.5,0)+IF($G4=4,91.25,0) -> 2116-06-30 | GO39: 2116-12-29T12:00:00 | GP39: 2117-06-30 | GQ39: 2117-12-29T12:00:00 | GR39: 2118-06-30 | GS39: 2118-12-29T12:00:00
A40: Bond 3 | B40: =(IF(B39=F4,100,0)+IF(G4=1,1,0)*J4*100+IF(G4=2,0.5,0)*J4*100+IF(G4=4,0.25,0)*J4*100)*IF(ISBLANK(F4)=TRUE,0,1) -> 1.575 | C40: =IF(C39>$F4+1,0,1)*(IF(D40=0,100,0)+IF($G4=1,1,0)*$J4*100+IF($G4=2,0.5,0)*$J4*100+IF($G4=4,0.25,0)*$J4*100) -> 1.575 | D40: =IF(D39>$F4+1,0,1)*(IF(E40=0,100,0)+IF($G4=1,1,0)*$J4*100+IF($G4=2,0.5,0)*$J4*100+IF($G4=4,0.25,0)*$J4*100) -> 1.575 | E40: 1.575 | F40: 1.575 | G40: 1.575 | H40: 1.575 | I40: 1.575 | J40: 1.575 | K40: 1.575 | L40: 101.575 | M40: 0 | N40: 0 | O40: 0 | P40: 0 | Q40: 0 | R40: 0 | S40: 0 | T40: 0 | U40: 0 | V40: 0 | W40: 0 | X40: 0 | Y40: 0 | Z40: 0 | AA40: 0 | AB40: 0 | AC40: 0 | AD40: 0 | AE40: 0 | AF40: 0 | AG40: 0 | AH40: 0 | AI40: 0 | AJ40: 0 | AK40: 0 | AL40: 0 | AM40: 0 | AN40: 0 | AO40: 0 | AP40: 0 | AQ40: 0 | AR40: 0 | AS40: 0 | AT40: 0 | AU40: 0 | AV40: 0 | AW40: 0 | AX40: 0 | AY40: 0 | AZ40: 0 | BA40: 0 | BB40: 0 | BC40: 0 | BD40: 0 | BE40: 0 | BF40: 0 | BG40: 0 | BH40: 0 | BI40: 0 | BJ40: 0 | BK40: 0 | BL40: 0 | BM40: 0 | BN40: 0 | BO40: 0 | BP40: =IF(BP39>$F4+1,0,1)*(IF(BQ40=0,100,0)+IF($G4=1,1,0)*$J4*100+IF($G4=2,0.5,0)*$J4*100+IF($G4=4,0.25,0)*$J4*100) -> 0 | BQ40: 0 | BR40: 0 | BS40: 0 | BT40: 0 | BU40: 0 | BV40: 0 | BW40: 0 | BX40: 0 | BY40: 0 | BZ40: 0 | CA40: 0 | CB40: 0 | CC40: 0 | CD40: 0 | CE40: 0 | CF40: 0 | CG40: 0 | CH40: 0 | CI40: 0 | CJ40: 0 | CK40: 0 | CL40: 0 | CM40: 0 | CN40: 0 | CO40: 0 | CP40: 0 | CQ40: 0 | CR40: 0 | CS40: 0 | CT40: 0 | CU40: 0 | CV40: 0 | CW40: 0 | CX40: 0 | CY40: 0 | CZ40: 0 | DA40: 0 | DB40: 0 | DC40: 0 | DD40: 0 | DE40: 0 | DF40: 0 | DG40: 0 | DH40: 0 | DI40: 0 | DJ40: 0 | DK40: 0 | DL40: 0 | DM40: 0 | DN40: 0 | DO40: 0 | DP40: 0 | DQ40: 0 | DR40: 0 | DS40: 0 | DT40: 0 | DU40: 0 | DV40: 0 | DW40: 0 | DX40: 0 | DY40: 0 | DZ40: 0 | EA40: 0 | EB40: =IF(EB39>$F4+1,0,1)*(IF(EC40=0,100,0)+IF($G4=1,1,0)*$J4*100+IF($G4=2,0.5,0)*$J4*100+IF($G4=4,0.25,0)*$J4*100) -> 0 | EC40: 0 | ED40: 0 | EE40: 0 | EF40: 0 | EG40: 0 | EH40: 0 | EI40: 0 | EJ40: 0 | EK40: 0 | EL40: 0 | EM40: 0 | EN40: 0 | EO40: 0 | EP40: 0 | EQ40: 0 | ER40: 0 | ES40: 0 | ET40: 0 | EU40: 0 | EV40: 0 | EW40: 0 | EX40: 0 | EY40: 0 | EZ40: 0 | FA40: 0 | FB40: 0 | FC40: 0 | FD40: 0 | FE40: 0 | FF40: 0 | FG40: 0 | FH40: 0 | FI40: 0 | FJ40: 0 | FK40: 0 | FL40: 0 | FM40: 0 | FN40: 0 | FO40: 0 | FP40: 0 | FQ40: 0 | FR40: 0 | FS40: 0 | FT40: 0 | FU40: 0 | FV40: 0 | FW40: 0 | FX40: 0 | FY40: 0 | FZ40: 0 | GA40: 0 | GB40: 0 | GC40: 0 | GD40: 0 | GE40: 0 | GF40: 0 | GG40: 0 | GH40: 0 | GI40: 0 | GJ40: 0 | GK40: 0 | GL40: 0 | GM40: 0 | GN40: =IF(GN39>$F4+1,0,1)*(IF(GO40=0,100,0)+IF($G4=1,1,0)*$J4*100+IF($G4=2,0.5,0)*$J4*100+IF($G4=4,0.25,0)*$J4*100) -> 0 | GO40: 0 | GP40: 0 | GQ40: 0 | GR40: 0 | GS40: 0
A41: Payment Dates | B41: =IF(E5=0,F5,E5) -> 11/25/2019 | C41: =B41+IF($G5=1,365,0)+IF($G5=2,182.5,0)+IF($G5=4,91.25,0) -> 2020-05-25T12:00:00 | D41: =C41+IF($G5=1,365,0)+IF($G5=2,182.5,0)+IF($G5=4,91.25,0) -> 2020-11-24 | E41: 2021-05-25T12:00:00 | F41: 2021-11-24 | G41: 2022-05-25T12:00:00 | H41: 2022-11-24 | I41: 2023-05-25T12:00:00 | J41: 2023-11-24 | K41: 2024-05-24T12:00:00 | L41: 2024-11-23 | M41: 2025-05-24T12:00:00 | N41: 2025-11-23 | O41: 2026-05-24T12:00:00 | P41: 2026-11-23 | Q41: 2027-05-24T12:00:00 | R41: 2027-11-23 | S41: 2028-05-23T12:00:00 | T41: 2028-11-22 | U41: 2029-05-23T12:00:00 | V41: 2029-11-22 | W41: 2030-05-23T12:00:00 | X41: 2030-11-22 | Y41: 2031-05-23T12:00:00 | Z41: 2031-11-22 | AA41: 2032-05-22T12:00:00 | AB41: 2032-11-21 | AC41: 2033-05-22T12:00:00 | AD41: 2033-11-21 | AE41: 2034-05-22T12:00:00 | AF41: 2034-11-21 | AG41: 2035-05-22T12:00:00 | AH41: 2035-11-21 | AI41: 2036-05-21T12:00:00 | AJ41: 2036-11-20 | AK41: 2037-05-21T12:00:00 | AL41: 2037-11-20 | AM41: 2038-05-21T12:00:00 | AN41: 2038-11-20 | AO41: 2039-05-21T12:00:00 | AP41: 2039-11-20 | AQ41: 2040-05-20T12:00:00 | AR41: 2040-11-19 | AS41: 2041-05-20T12:00:00 | AT41: 2041-11-19 | AU41: 2042-05-20T12:00:00 | AV41: 2042-11-19 | AW41: 2043-05-20T12:00:00 | AX41: 2043-11-19 | AY41: 2044-05-19T12:00:00 | AZ41: 2044-11-18 | BA41: 2045-05-19T12:00:00 | BB41: 2045-11-18 | BC41: 2046-05-19T12:00:00 | BD41: 2046-11-18 | BE41: 2047-05-19T12:00:00 | BF41: 2047-11-18 | BG41: 2048-05-18T12:00:00 | BH41: 2048-11-17 | BI41: 2049-05-18T12:00:00 | BJ41: 2049-11-17 | BK41: 2050-05-18T12:00:00 | BL41: 2050-11-17 | BM41: 2051-05-18T12:00:00 | BN41: 2051-11-17 | BO41: 2052-05-17T12:00:00 | BP41: =BO41+IF($G5=1,365,0)+IF($G5=2,182.5,0)+IF($G5=4,91.25,0) -> 2052-11-16 | BQ41: 2053-05-17T12:00:00 | BR41: 2053-11-16 | BS41: 2054-05-17T12:00:00 | BT41: 2054-11-16 | BU41: 2055-05-17T12:00:00 | BV41: 2055-11-16 | BW41: 2056-05-16T12:00:00 | BX41: 2056-11-15 | BY41: 2057-05-16T12:00:00 | BZ41: 2057-11-15 | CA41: 2058-05-16T12:00:00 | CB41: 2058-11-15 | CC41: 2059-05-16T12:00:00 | CD41: 2059-11-15 | CE41: 2060-05-15T12:00:00 | CF41: 2060-11-14 | CG41: 2061-05-15T12:00:00 | CH41: 2061-11-14 | CI41: 2062-05-15T12:00:00 | CJ41: 2062-11-14 | CK41: 2063-05-15T12:00:00 | CL41: 2063-11-14 | CM41: 2064-05-14T12:00:00 | CN41: 2064-11-13 | CO41: 2065-05-14T12:00:00 | CP41: 2065-11-13 | CQ41: 2066-05-14T12:00:00 | CR41: 2066-11-13 | CS41: 2067-05-14T12:00:00 | CT41: 2067-11-13 | CU41: 2068-05-13T12:00:00 | CV41: 2068-11-12 | CW41: 2069-05-13T12:00:00 | CX41: 2069-11-12 | CY41: 2070-05-13T12:00:00 | CZ41: 2070-11-12 | DA41: 2071-05-13T12:00:00 | DB41: 2071-11-12 | DC41: 2072-05-12T12:00:00 | DD41: 2072-11-11 | DE41: 2073-05-12T12:00:00 | DF41: 2073-11-11 | DG41: 2074-05-12T12:00:00 | DH41: 2074-11-11 | DI41: 2075-05-12T12:00:00 | DJ41: 2075-11-11 | DK41: 2076-05-11T12:00:00 | DL41: 2076-11-10 | DM41: 2077-05-11T12:00:00 | DN41: 2077-11-10 | DO41: 2078-05-11T12:00:00 | DP41: 2078-11-10 | DQ41: 2079-05-11T12:00:00 | DR41: 2079-11-10 | DS41: 2080-05-10T12:00:00 | DT41: 2080-11-09 | DU41: 2081-05-10T12:00:00 | DV41: 2081-11-09 | DW41: 2082-05-10T12:00:00 | DX41: 2082-11-09 | DY41: 2083-05-10T12:00:00 | DZ41: 2083-11-09 | EA41: 2084-05-09T12:00:00 | EB41: =EA41+IF($G5=1,365,0)+IF($G5=2,182.5,0)+IF($G5=4,91.25,0) -> 2084-11-08 | EC41: 2085-05-09T12:00:00 | ED41: 2085-11-08 | EE41: 2086-05-09T12:00:00 | EF41: 2086-11-08 | EG41: 2087-05-09T12:00:00 | EH41: 2087-11-08 | EI41: 2088-05-08T12:00:00 | EJ41: 2088-11-07 | EK41: 2089-05-08T12:00:00 | EL41: 2089-11-07 | EM41: 2090-05-08T12:00:00 | EN41: 2090-11-07 | EO41: 2091-05-08T12:00:00 | EP41: 2091-11-07 | EQ41: 2092-05-07T12:00:00 | ER41: 2092-11-06 | ES41: 2093-05-07T12:00:00 | ET41: 2093-11-06 | EU41: 2094-05-07T12:00:00 | EV41: 2094-11-06 | EW41: 2095-05-07T12:00:00 | EX41: 2095-11-06 | EY41: 2096-05-06T12:00:00 | EZ41: 2096-11-05 | FA41: 2097-05-06T12:00:00 | FB41: 2097-11-05 | FC41: 2098-05-06T12:00:00 | FD41: 2098-11-05 | FE41: 2099-05-06T12:00:00 | FF41: 2099-11-05 | FG41: 2100-05-06T12:00:00 | FH41: 2100-11-05 | FI41: 2101-05-06T12:00:00 | FJ41: 2101-11-05 | FK41: 2102-05-06T12:00:00 | FL41: 2102-11-05 | FM41: 2103-05-06T12:00:00 | FN41: 2103-11-05 | FO41: 2104-05-05T12:00:00 | FP41: 2104-11-04 | FQ41: 2105-05-05T12:00:00 | FR41: 2105-11-04 | FS41: 2106-05-05T12:00:00 | FT41: 2106-11-04 | FU41: 2107-05-05T12:00:00 | FV41: 2107-11-04 | FW41: 2108-05-04T12:00:00 | FX41: 2108-11-03 | FY41: 2109-05-04T12:00:00 | FZ41: 2109-11-03 | GA41: 2110-05-04T12:00:00 | GB41: 2110-11-03 | GC41: 2111-05-04T12:00:00 | GD41: 2111-11-03 | GE41: 2112-05-03T12:00:00 | GF41: 2112-11-02 | GG41: 2113-05-03T12:00:00 | GH41: 2113-11-02 | GI41: 2114-05-03T12:00:00 | GJ41: 2114-11-02 | GK41: 2115-05-03T12:00:00 | GL41: 2115-11-02 | GM41: 2116-05-02T12:00:00 | GN41: =GM41+IF($G5=1,365,0)+IF($G5=2,182.5,0)+IF($G5=4,91.25,0) -> 2116-11-01 | GO41: 2117-05-02T12:00:00 | GP41: 2117-11-01 | GQ41: 2118-05-02T12:00:00 | GR41: 2118-11-01 | GS41: 2119-05-02T12:00:00
A42: Bond 4 | B42: =(IF(B41=F5,100,0)+IF(G5=1,1,0)*J5*100+IF(G5=2,0.5,0)*J5*100+IF(G5=4,0.25,0)*J5*100)*IF(ISBLANK(F5)=TRUE,0,1) -> 2.8 | C42: =IF(C41>$F5+1,0,1)*(IF(D42=0,100,0)+IF($G5=1,1,0)*$J5*100+IF($G5=2,0.5,0)*$J5*100+IF($G5=4,0.25,0)*$J5*100) -> 2.8 | D42: =IF(D41>$F5+1,0,1)*(IF(E42=0,100,0)+IF($G5=1,1,0)*$J5*100+IF($G5=2,0.5,0)*$J5*100+IF($G5=4,0.25,0)*$J5*100) -> 2.8 | E42: 2.8 | F42: 2.8 | G42: 2.8 | H42: 2.8 | I42: 2.8 | J42: 2.8 | K42: 2.8 | L42: 2.8 | M42: 2.8 | N42: 2.8 | O42: 2.8 | P42: 2.8 | Q42: 2.8 | R42: 2.8 | S42: 2.8 | T42: 2.8 | U42: 2.8 | V42: 2.8 | W42: 2.8 | X42: 2.8 | Y42: 2.8 | Z42: 2.8 | AA42: 2.8 | AB42: 2.8 | AC42: 2.8 | AD42: 2.8 | AE42: 2.8 | AF42: 2.8 | AG42: 2.8 | AH42: 2.8 | AI42: 2.8 | AJ42: 2.8 | AK42: 2.8 | AL42: 2.8 | AM42: 2.8 | AN42: 2.8 | AO42: 2.8 | AP42: 102.8 | AQ42: 0 | AR42: 0 | AS42: 0 | AT42: 0 | AU42: 0 | AV42: 0 | AW42: 0 | AX42: 0 | AY42: 0 | AZ42: 0 | BA42: 0 | BB42: 0 | BC42: 0 | BD42: 0 | BE42: 0 | BF42: 0 | BG42: 0 | BH42: 0 | BI42: 0 | BJ42: 0 | BK42: 0 | BL42: 0 | BM42: 0 | BN42: 0 | BO42: 0 | BP42: =IF(BP41>$F5+1,0,1)*(IF(BQ42=0,100,0)+IF($G5=1,1,0)*$J5*100+IF($G5=2,0.5,0)*$J5*100+IF($G5=4,0.25,0)*$J5*100) -> 0 | BQ42: 0 | BR42: 0 | BS42: 0 | BT42: 0 | BU42: 0 | BV42: 0 | BW42: 0 | BX42: 0 | BY42: 0 | BZ42: 0 | CA42: 0 | CB42: 0 | CC42: 0 | CD42: 0 | CE42: 0 | CF42: 0 | CG42: 0 | CH42: 0 | CI42: 0 | CJ42: 0 | CK42: 0 | CL42: 0 | CM42: 0 | CN42: 0 | CO42: 0 | CP42: 0 | CQ42: 0 | CR42: 0 | CS42: 0 | CT42: 0 | CU42: 0 | CV42: 0 | CW42: 0 | CX42: 0 | CY42: 0 | CZ42: 0 | DA42: 0 | DB42: 0 | DC42: 0 | DD42: 0 | DE42: 0 | DF42: 0 | DG42: 0 | DH42: 0 | DI42: 0 | DJ42: 0 | DK42: 0 | DL42: 0 | DM42: 0 | DN42: 0 | DO42: 0 | DP42: 0 | DQ42: 0 | DR42: 0 | DS42: 0 | DT42: 0 | DU42: 0 | DV42: 0 | DW42: 0 | DX42: 0 | DY42: 0 | DZ42: 0 | EA42: 0 | EB42: =IF(EB41>$F5+1,0,1)*(IF(EC42=0,100,0)+IF($G5=1,1,0)*$J5*100+IF($G5=2,0.5,0)*$J5*100+IF($G5=4,0.25,0)*$J5*100) -> 0 | EC42: 0 | ED42: 0 | EE42: 0 | EF42: 0 | EG42: 0 | EH42: 0 | EI42: 0 | EJ42: 0 | EK42: 0 | EL42: 0 | EM42: 0 | EN42: 0 | EO42: 0 | EP42: 0 | EQ42: 0 | ER42: 0 | ES42: 0 | ET42: 0 | EU42: 0 | EV42: 0 | EW42: 0 | EX42: 0 | EY42: 0 | EZ42: 0 | FA42: 0 | FB42: 0 | FC42: 0 | FD42: 0 | FE42: 0 | FF42: 0 | FG42: 0 | FH42: 0 | FI42: 0 | FJ42: 0 | FK42: 0 | FL42: 0 | FM42: 0 | FN42: 0 | FO42: 0 | FP42: 0 | FQ42: 0 | FR42: 0 | FS42: 0 | FT42: 0 | FU42: 0 | FV42: 0 | FW42: 0 | FX42: 0 | FY42: 0 | FZ42: 0 | GA42: 0 | GB42: 0 | GC42: 0 | GD42: 0 | GE42: 0 | GF42: 0 | GG42: 0 | GH42: 0 | GI42: 0 | GJ42: 0 | GK42: 0 | GL42: 0 | GM42: 0 | GN42: =IF(GN41>$F5+1,0,1)*(IF(GO42=0,100,0)+IF($G5=1,1,0)*$J5*100+IF($G5=2,0.5,0)*$J5*100+IF($G5=4,0.25,0)*$J5*100) -> 0 | GO42: 0 | GP42: 0 | GQ42: 0 | GR42: 0 | GS42: 0
A43: Payment Dates | B43: =IF(E6=0,F6,E6) -> 7/24/2019 | C43: =B43+IF($G6=1,365,0)+IF($G6=2,182.5,0)+IF($G6=4,91.25,0) -> 2020-01-22T12:00:00 | D43: =C43+IF($G6=1,365,0)+IF($G6=2,182.5,0)+IF($G6=4,91.25,0) -> 2020-07-23 | E43: 2021-01-21T12:00:00 | F43: 2021-07-23 | G43: 2022-01-21T12:00:00 | H43: 2022-07-23 | I43: 2023-01-21T12:00:00 | J43: 2023-07-23 | K43: 2024-01-21T12:00:00 | L43: 2024-07-22 | M43: 2025-01-20T12:00:00 | N43: 2025-07-22 | O43: 2026-01-20T12:00:00 | P43: 2026-07-22 | Q43: 2027-01-20T12:00:00 | R43: 2027-07-22 | S43: 2028-01-20T12:00:00 | T43: 2028-07-21 | U43: 2029-01-19T12:00:00 | V43: 2029-07-21 | W43: 2030-01-19T12:00:00 | X43: 2030-07-21 | Y43: 2031-01-19T12:00:00 | Z43: 2031-07-21 | AA43: 2032-01-19T12:00:00 | AB43: 2032-07-20 | AC43: 2033-01-18T12:00:00 | AD43: 2033-07-20 | AE43: 2034-01-18T12:00:00 | AF43: 2034-07-20 | AG43: 2035-01-18T12:00:00 | AH43: 2035-07-20 | AI43: 2036-01-18T12:00:00 | AJ43: 2036-07-19 | AK43: 2037-01-17T12:00:00 | AL43: 2037-07-19 | AM43: 2038-01-17T12:00:00 | AN43: 2038-07-19 | AO43: 2039-01-17T12:00:00 | AP43: 2039-07-19 | AQ43: 2040-01-17T12:00:00 | AR43: 2040-07-18 | AS43: 2041-01-16T12:00:00 | AT43: 2041-07-18 | AU43: 2042-01-16T12:00:00 | AV43: 2042-07-18 | AW43: 2043-01-16T12:00:00 | AX43: 2043-07-18 | AY43: 2044-01-16T12:00:00 | AZ43: 2044-07-17 | BA43: 2045-01-15T12:00:00 | BB43: 2045-07-17 | BC43: 2046-01-15T12:00:00 | BD43: 2046-07-17 | BE43: 2047-01-15T12:00:00 | BF43: 2047-07-17 | BG43: 2048-01-15T12:00:00 | BH43: 2048-07-16 | BI43: 2049-01-14T12:00:00 | BJ43: 2049-07-16 | BK43: 2050-01-14T12:00:00 | BL43: 2050-07-16 | BM43: 2051-01-14T12:00:00 | BN43: 2051-07-16 | BO43: 2052-01-14T12:00:00 | BP43: =BO43+IF($G6=1,365,0)+IF($G6=2,182.5,0)+IF($G6=4,91.25,0) -> 2052-07-15 | BQ43: 2053-01-13T12:00:00 | BR43: 2053-07-15 | BS43: 2054-01-13T12:00:00 | BT43: 2054-07-15 | BU43: 2055-01-13T12:00:00 | BV43: 2055-07-15 | BW43: 2056-01-13T12:00:00 | BX43: 2056-07-14 | BY43: 2057-01-12T12:00:00 | BZ43: 2057-07-14 | CA43: 2058-01-12T12:00:00 | CB43: 2058-07-14 | CC43: 2059-01-12T12:00:00 | CD43: 2059-07-14 | CE43: 2060-01-12T12:00:00 | CF43: 2060-07-13 | CG43: 2061-01-11T12:00:00 | CH43: 2061-07-13 | CI43: 2062-01-11T12:00:00 | CJ43: 2062-07-13 | CK43: 2063-01-11T12:00:00 | CL43: 2063-07-13 | CM43: 2064-01-11T12:00:00 | CN43: 2064-07-12 | CO43: 2065-01-10T12:00:00 | CP43: 2065-07-12 | CQ43: 2066-01-10T12:00:00 | CR43: 2066-07-12 | CS43: 2067-01-10T12:00:00 | CT43: 2067-07-12 | CU43: 2068-01-10T12:00:00 | CV43: 2068-07-11 | CW43: 2069-01-09T12:00:00 | CX43: 2069-07-11 | CY43: 2070-01-09T12:00:00 | CZ43: 2070-07-11 | DA43: 2071-01-09T12:00:00 | DB43: 2071-07-11 | DC43: 2072-01-09T12:00:00 | DD43: 2072-07-10 | DE43: 2073-01-08T12:00:00 | DF43: 2073-07-10 | DG43: 2074-01-08T12:00:00 | DH43: 2074-07-10 | DI43: 2075-01-08T12:00:00 | DJ43: 2075-07-10 | DK43: 2076-01-08T12:00:00 | DL43: 2076-07-09 | DM43: 2077-01-07T12:00:00 | DN43: 2077-07-09 | DO43: 2078-01-07T12:00:00 | DP43: 2078-07-09 | DQ43: 2079-01-07T12:00:00 | DR43: 2079-07-09 | DS43: 2080-01-07T12:00:00 | DT43: 2080-07-08 | DU43: 2081-01-06T12:00:00 | DV43: 2081-07-08 | DW43: 2082-01-06T12:00:00 | DX43: 2082-07-08 | DY43: 2083-01-06T12:00:00 | DZ43: 2083-07-08 | EA43: 2084-01-06T12:00:00 | EB43: =EA43+IF($G6=1,365,0)+IF($G6=2,182.5,0)+IF($G6=4,91.25,0) -> 2084-07-07 | EC43: 2085-01-05T12:00:00 | ED43: 2085-07-07 | EE43: 2086-01-05T12:00:00 | EF43: 2086-07-07 | EG43: 2087-01-05T12:00:00 | EH43: 2087-07-07 | EI43: 2088-01-05T12:00:00 | EJ43: 2088-07-06 | EK43: 2089-01-04T12:00:00 | EL43: 2089-07-06 | EM43: 2090-01-04T12:00:00 | EN43: 2090-07-06 | EO43: 2091-01-04T12:00:00 | EP43: 2091-07-06 | EQ43: 2092-01-04T12:00:00 | ER43: 2092-07-05 | ES43: 2093-01-03T12:00:00 | ET43: 2093-07-05 | EU43: 2094-01-03T12:00:00 | EV43: 2094-07-05 | EW43: 2095-01-03T12:00:00 | EX43: 2095-07-05 | EY43: 2096-01-03T12:00:00 | EZ43: 2096-07-04 | FA43: 2097-01-02T12:00:00 | FB43: 2097-07-04 | FC43: 2098-01-02T12:00:00 | FD43: 2098-07-04 | FE43: 2099-01-02T12:00:00 | FF43: 2099-07-04 | FG43: 2100-01-02T12:00:00 | FH43: 2100-07-04 | FI43: 2101-01-02T12:00:00 | FJ43: 2101-07-04 | FK43: 2102-01-02T12:00:00 | FL43: 2102-07-04 | FM43: 2103-01-02T12:00:00 | FN43: 2103-07-04 | FO43: 2104-01-02T12:00:00 | FP43: 2104-07-03 | FQ43: 2105-01-01T12:00:00 | FR43: 2105-07-03 | FS43: 2106-01-01T12:00:00 | FT43: 2106-07-03 | FU43: 2107-01-01T12:00:00 | FV43: 2107-07-03 | FW43: 2108-01-01T12:00:00 | FX43: 2108-07-02 | FY43: 2108-12-31T12:00:00 | FZ43: 2109-07-02 | GA43: 2109-12-31T12:00:00 | GB43: 2110-07-02 | GC43: 2110-12-31T12:00:00 | GD43: 2111-07-02 | GE43: 2111-12-31T12:00:00 | GF43: 2112-07-01 | GG43: 2112-12-30T12:00:00 | GH43: 2113-07-01 | GI43: 2113-12-30T12:00:00 | GJ43: 2114-07-01 | GK43: 2114-12-30T12:00:00 | GL43: 2115-07-01 | GM43: 2115-12-30T12:00:00 | GN43: =GM43+IF($G6=1,365,0)+IF($G6=2,182.5,0)+IF($G6=4,91.25,0) -> 2116-06-30 | GO43: 2116-12-29T12:00:00 | GP43: 2117-06-30 | GQ43: 2117-12-29T12:00:00 | GR43: 2118-06-30 | GS43: 2118-12-29T12:00:00
A44: Bond 5 | B44: =(IF(B43=F6,100,0)+IF(G6=1,1,0)*J6*100+IF(G6=2,0.5,0)*J6*100+IF(G6=4,0.25,0)*J6*100)*IF(ISBLANK(F6)=TRUE,0,1) -> 1.575 | C44: =IF(C43>$F6+1,0,1)*(IF(D44=0,100,0)+IF($G6=1,1,0)*$J6*100+IF($G6=2,0.5,0)*$J6*100+IF($G6=4,0.25,0)*$J6*100) -> 1.575 | D44: =IF(D43>$F6+1,0,1)*(IF(E44=0,100,0)+IF($G6=1,1,0)*$J6*100+IF($G6=2,0.5,0)*$J6*100+IF($G6=4,0.25,0)*$J6*100) -> 1.575 | E44: 1.575 | F44: 1.575 | G44: 1.575 | H44: 1.575 | I44: 1.575 | J44: 1.575 | K44: 1.575 | L44: 101.575 | M44: 0 | N44: 0 | O44: 0 | P44: 0 | Q44: 0 | R44: 0 | S44: 0 | T44: 0 | U44: 0 | V44: 0 | W44: 0 | X44: 0 | Y44: 0 | Z44: 0 | AA44: 0 | AB44: 0 | AC44: 0 | AD44: 0 | AE44: 0 | AF44: 0 | AG44: 0 | AH44: 0 | AI44: 0 | AJ44: 0 | AK44: 0 | AL44: 0 | AM44: 0 | AN44: 0 | AO44: 0 | AP44: 0 | AQ44: 0 | AR44: 0 | AS44: 0 | AT44: 0 | AU44: 0 | AV44: 0 | AW44: 0 | AX44: 0 | AY44: 0 | AZ44: 0 | BA44: 0 | BB44: 0 | BC44: 0 | BD44: 0 | BE44: 0 | BF44: 0 | BG44: 0 | BH44: 0 | BI44: 0 | BJ44: 0 | BK44: 0 | BL44: 0 | BM44: 0 | BN44: 0 | BO44: 0 | BP44: =IF(BP43>$F6+1,0,1)*(IF(BQ44=0,100,0)+IF($G6=1,1,0)*$J6*100+IF($G6=2,0.5,0)*$J6*100+IF($G6=4,0.25,0)*$J6*100) -> 0 | BQ44: 0 | BR44: 0 | BS44: 0 | BT44: 0 | BU44: 0 | BV44: 0 | BW44: 0 | BX44: 0 | BY44: 0 | BZ44: 0 | CA44: 0 | CB44: 0 | CC44: 0 | CD44: 0 | CE44: 0 | CF44: 0 | CG44: 0 | CH44: 0 | CI44: 0 | CJ44: 0 | CK44: 0 | CL44: 0 | CM44: 0 | CN44: 0 | CO44: 0 | CP44: 0 | CQ44: 0 | CR44: 0 | CS44: 0 | CT44: 0 | CU44: 0 | CV44: 0 | CW44: 0 | CX44: 0 | CY44: 0 | CZ44: 0 | DA44: 0 | DB44: 0 | DC44: 0 | DD44: 0 | DE44: 0 | DF44: 0 | DG44: 0 | DH44: 0 | DI44: 0 | DJ44: 0 | DK44: 0 | DL44: 0 | DM44: 0 | DN44: 0 | DO44: 0 | DP44: 0 | DQ44: 0 | DR44: 0 | DS44: 0 | DT44: 0 | DU44: 0 | DV44: 0 | DW44: 0 | DX44: 0 | DY44: 0 | DZ44: 0 | EA44: 0 | EB44: =IF(EB43>$F6+1,0,1)*(IF(EC44=0,100,0)+IF($G6=1,1,0)*$J6*100+IF($G6=2,0.5,0)*$J6*100+IF($G6=4,0.25,0)*$J6*100) -> 0 | EC44: 0 | ED44: 0 | EE44: 0 | EF44: 0 | EG44: 0 | EH44: 0 | EI44: 0 | EJ44: 0 | EK44: 0 | EL44: 0 | EM44: 0 | EN44: 0 | EO44: 0 | EP44: 0 | EQ44: 0 | ER44: 0 | ES44: 0 | ET44: 0 | EU44: 0 | EV44: 0 | EW44: 0 | EX44: 0 | EY44: 0 | EZ44: 0 | FA44: 0 | FB44: 0 | FC44: 0 | FD44: 0 | FE44: 0 | FF44: 0 | FG44: 0 | FH44: 0 | FI44: 0 | FJ44: 0 | FK44: 0 | FL44: 0 | FM44: 0 | FN44: 0 | FO44: 0 | FP44: 0 | FQ44: 0 | FR44: 0 | FS44: 0 | FT44: 0 | FU44: 0 | FV44: 0 | FW44: 0 | FX44: 0 | FY44: 0 | FZ44: 0 | GA44: 0 | GB44: 0 | GC44: 0 | GD44: 0 | GE44: 0 | GF44: 0 | GG44: 0 | GH44: 0 | GI44: 0 | GJ44: 0 | GK44: 0 | GL44: 0 | GM44: 0 | GN44: =IF(GN43>$F6+1,0,1)*(IF(GO44=0,100,0)+IF($G6=1,1,0)*$J6*100+IF($G6=2,0.5,0)*$J6*100+IF($G6=4,0.25,0)*$J6*100) -> 0 | GO44: 0 | GP44: 0 | GQ44: 0 | GR44: 0 | GS44: 0
A45: Payment Dates | B45: =IF(E7=0,F7,E7) -> 00:00:00 | C45: =B45+IF($G7=1,365,0)+IF($G7=2,182.5,0)+IF($G7=4,91.25,0) -> 00:00:00 | D45: =C45+IF($G7=1,365,0)+IF($G7=2,182.5,0)+IF($G7=4,91.25,0) -> 00:00:00 | E45: 00:00:00 | F45: 00:00:00 | G45: 00:00:00 | H45: 00:00:00 | I45: 00:00:00 | J45: 00:00:00 | K45: 00:00:00 | L45: 00:00:00 | M45: 00:00:00 | N45: 00:00:00 | O45: 00:00:00 | P45: 00:00:00 | Q45: 00:00:00 | R45: 00:00:00 | S45: 00:00:00 | T45: 00:00:00 | U45: 00:00:00 | V45: 00:00:00 | W45: 00:00:00 | X45: 00:00:00 | Y45: 00:00:00 | Z45: 00:00:00 | AA45: 00:00:00 | AB45: 00:00:00 | AC45: 00:00:00 | AD45: 00:00:00 | AE45: 00:00:00 | AF45: 00:00:00 | AG45: 00:00:00 | AH45: 00:00:00 | AI45: 00:00:00 | AJ45: 00:00:00 | AK45: 00:00:00 | AL45: 00:00:00 | AM45: 00:00:00 | AN45: 00:00:00 | AO45: 00:00:00 | AP45: 00:00:00 | AQ45: 00:00:00 | AR45: 00:00:00 | AS45: 00:00:00 | AT45: 00:00:00 | AU45: 00:00:00 | AV45: 00:00:00 | AW45: 00:00:00 | AX45: 00:00:00 | AY45: 00:00:00 | AZ45: 00:00:00 | BA45: 00:00:00 | BB45: 00:00:00 | BC45: 00:00:00 | BD45: 00:00:00 | BE45: 00:00:00 | BF45: 00:00:00 | BG45: 00:00:00 | BH45: 00:00:00 | BI45: 00:00:00 | BJ45: 00:00:00 | BK45: 00:00:00 | BL45: 00:00:00 | BM45: 00:00:00 | BN45: 00:00:00 | BO45: 00:00:00 | BP45: =BO45+IF($G7=1,365,0)+IF($G7=2,182.5,0)+IF($G7=4,91.25,0) -> 00:00:00 | BQ45: 00:00:00 | BR45: 00:00:00 | BS45: 00:00:00 | BT45: 00:00:00 | BU45: 00:00:00 | BV45: 00:00:00 | BW45: 00:00:00 | BX45: 00:00:00 | BY45: 00:00:00 | BZ45: 00:00:00 | CA45: 00:00:00 | CB45: 00:00:00 | CC45: 00:00:00 | CD45: 00:00:00 | CE45: 00:00:00 | CF45: 00:00:00 | CG45: 00:00:00 | CH45: 00:00:00 | CI45: 00:00:00 | CJ45: 00:00:00 | CK45: 00:00:00 | CL45: 00:00:00 | CM45: 00:00:00 | CN45: 00:00:00 | CO45: 00:00:00 | CP45: 00:00:00 | CQ45: 00:00:00 | CR45: 00:00:00 | CS45: 00:00:00 | CT45: 00:00:00 | CU45: 00:00:00 | CV45: 00:00:00 | CW45: 00:00:00 | CX45: 00:00:00 | CY45: 00:00:00 | CZ45: 00:00:00 | DA45: 00:00:00 | DB45: 00:00:00 | DC45: 00:00:00 | DD45: 00:00:00 | DE45: 00:00:00 | DF45: 00:00:00 | DG45: 00:00:00 | DH45: 00:00:00 | DI45: 00:00:00 | DJ45: 00:00:00 | DK45: 00:00:00 | DL45: 00:00:00 | DM45: 00:00:00 | DN45: 00:00:00 | DO45: 00:00:00 | DP45: 00:00:00 | DQ45: 00:00:00 | DR45: 00:00:00 | DS45: 00:00:00 | DT45: 00:00:00 | DU45: 00:00:00 | DV45: 00:00:00 | DW45: 00:00:00 | DX45: 00:00:00 | DY45: 00:00:00 | DZ45: 00:00:00 | EA45: 00:00:00 | EB45: =EA45+IF($G7=1,365,0)+IF($G7=2,182.5,0)+IF($G7=4,91.25,0) -> 00:00:00 | EC45: 00:00:00 | ED45: 00:00:00 | EE45: 00:00:00 | EF45: 00:00:00 | EG45: 00:00:00 | EH45: 00:00:00 | EI45: 00:00:00 | EJ45: 00:00:00 | EK45: 00:00:00 | EL45: 00:00:00 | EM45: 00:00:00 | EN45: 00:00:00 | EO45: 00:00:00 | EP45: 00:00:00 | EQ45: 00:00:00 | ER45: 00:00:00 | ES45: 00:00:00 | ET45: 00:00:00 | EU45: 00:00:00 | EV45: 00:00:00 | EW45: 00:00:00 | EX45: 00:00:00 | EY45: 00:00:00 | EZ45: 00:00:00 | FA45: 00:00:00 | FB45: 00:00:00 | FC45: 00:00:00 | FD45: 00:00:00 | FE45: 00:00:00 | FF45: 00:00:00 | FG45: 00:00:00 | FH45: 00:00:00 | FI45: 00:00:00 | FJ45: 00:00:00 | FK45: 00:00:00 | FL45: 00:00:00 | FM45: 00:00:00 | FN45: 00:00:00 | FO45: 00:00:00 | FP45: 00:00:00 | FQ45: 00:00:00 | FR45: 00:00:00 | FS45: 00:00:00 | FT45: 00:00:00 | FU45: 00:00:00 | FV45: 00:00:00 | FW45: 00:00:00 | FX45: 00:00:00 | FY45: 00:00:00 | FZ45: 00:00:00 | GA45: 00:00:00 | GB45: 00:00:00 | GC45: 00:00:00 | GD45: 00:00:00 | GE45: 00:00:00 | GF45: 00:00:00 | GG45: 00:00:00 | GH45: 00:00:00 | GI45: 00:00:00 | GJ45: 00:00:00 | GK45: 00:00:00 | GL45: 00:00:00 | GM45: 00:00:00 | GN45: =GM45+IF($G7=1,365,0)+IF($G7=2,182.5,0)+IF($G7=4,91.25,0) -> 00:00:00 | GO45: 00:00:00 | GP45: 00:00:00 | GQ45: 00:00:00 | GR45: 00:00:00 | GS45: 00:00:00
A46: Bond 6 | B46: =(IF(B45=F7,100,0)+IF(G7=1,1,0)*J7*100+IF(G7=2,0.5,0)*J7*100+IF(G7=4,0.25,0)*J7*100)*IF(ISBLANK(F7)=TRUE,0,1) -> 0 | C46: =IF(C45>$F7+1,0,1)*(IF(D46=0,100,0)+IF($G7=1,1,0)*$J7*100+IF($G7=2,0.5,0)*$J7*100+IF($G7=4,0.25,0)*$J7*100) -> 100 | D46: =IF(D45>$F7+1,0,1)*(IF(E46=0,100,0)+IF($G7=1,1,0)*$J7*100+IF($G7=2,0.5,0)*$J7*100+IF($G7=4,0.25,0)*$J7*100) -> 0 | E46: 100 | F46: 0 | G46: 100 | H46: 0 | I46: 100 | J46: 0 | K46: 100 | L46: 0 | M46: 100 | N46: 0 | O46: 100 | P46: 0 | Q46: 100 | R46: 0 | S46: 100 | T46: 0 | U46: 100 | V46: 0 | W46: 100 | X46: 0 | Y46: 100 | Z46: 0 | AA46: 100 | AB46: 0 | AC46: 100 | AD46: 0 | AE46: 100 | AF46: 0 | AG46: 100 | AH46: 0 | AI46: 100 | AJ46: 0 | AK46: 100 | AL46: 0 | AM46: 100 | AN46: 0 | AO46: 100 | AP46: 0 | AQ46: 100 | AR46: 0 | AS46: 100 | AT46: 0 | AU46: 100 | AV46: 0 | AW46: 100 | AX46: 0 | AY46: 100 | AZ46: 0 | BA46: 100 | BB46: 0 | BC46: 100 | BD46: 0 | BE46: 100 | BF46: 0 | BG46: 100 | BH46: 0 | BI46: 100 | BJ46: 0 | BK46: 100 | BL46: 0 | BM46: 100 | BN46: 0 | BO46: 100 | BP46: =IF(BP45>$F7+1,0,1)*(IF(BQ46=0,100,0)+IF($G7=1,1,0)*$J7*100+IF($G7=2,0.5,0)*$J7*100+IF($G7=4,0.25,0)*$J7*100) -> 0 | BQ46: 100 | BR46: 0 | BS46: 100 | BT46: 0 | BU46: 100 | BV46: 0 | BW46: 100 | BX46: 0 | BY46: 100 | BZ46: 0 | CA46: 100 | CB46: 0 | CC46: 100 | CD46: 0 | CE46: 100 | CF46: 0 | CG46: 100 | CH46: 0 | CI46: 100 | CJ46: 0 | CK46: 100 | CL46: 0 | CM46: 100 | CN46: 0 | CO46: 100 | CP46: 0 | CQ46: 100 | CR46: 0 | CS46: 100 | CT46: 0 | CU46: 100 | CV46: 0 | CW46: 100 | CX46: 0 | CY46: 100 | CZ46: 0 | DA46: 100 | DB46: 0 | DC46: 100 | DD46: 0 | DE46: 100 | DF46: 0 | DG46: 100 | DH46: 0 | DI46: 100 | DJ46: 0 | DK46: 100 | DL46: 0 | DM46: 100 | DN46: 0 | DO46: 100 | DP46: 0 | DQ46: 100 | DR46: 0 | DS46: 100 | DT46: 0 | DU46: 100 | DV46: 0 | DW46: 100 | DX46: 0 | DY46: 100 | DZ46: 0 | EA46: 100 | EB46: =IF(EB45>$F7+1,0,1)*(IF(EC46=0,100,0)+IF($G7=1,1,0)*$J7*100+IF($G7=2,0.5,0)*$J7*100+IF($G7=4,0.25,0)*$J7*100) -> 0 | EC46: 100 | ED46: 0 | EE46: 100 | EF46: 0 | EG46: 100 | EH46: 0 | EI46: 100 | EJ46: 0 | EK46: 100 | EL46: 0 | EM46: 100 | EN46: 0 | EO46: 100 | EP46: 0 | EQ46: 100 | ER46: 0 | ES46: 100 | ET46: 0 | EU46: 100 | EV46: 0 | EW46: 100 | EX46: 0 | EY46: 100 | EZ46: 0 | FA46: 100 | FB46: 0 | FC46: 100 | FD46: 0 | FE46: 100 | FF46: 0 | FG46: 100 | FH46: 0 | FI46: 100 | FJ46: 0 | FK46: 100 | FL46: 0 | FM46: 100 | FN46: 0 | FO46: 100 | FP46: 0 | FQ46: 100 | FR46: 0 | FS46: 100 | FT46: 0 | FU46: 100 | FV46: 0 | FW46: 100 | FX46: 0 | FY46: 100 | FZ46: 0 | GA46: 100 | GB46: 0 | GC46: 100 | GD46: 0 | GE46: 100 | GF46: 0 | GG46: 100 | GH46: 0 | GI46: 100 | GJ46: 0 | GK46: 100 | GL46: 0 | GM46: 100 | GN46: =IF(GN45>$F7+1,0,1)*(IF(GO46=0,100,0)+IF($G7=1,1,0)*$J7*100+IF($G7=2,0.5,0)*$J7*100+IF($G7=4,0.25,0)*$J7*100) -> 0 | GO46: 100 | GP46: 0 | GQ46: 100 | GR46: 0 | GS46: 100
A47: Payment Dates | B47: =IF(E8=0,F8,E8) -> 10/22/2019 | C47: =B47+IF($G8=1,365,0)+IF($G8=2,182.5,0)+IF($G8=4,91.25,0) -> 2020-04-21T12:00:00 | D47: =C47+IF($G8=1,365,0)+IF($G8=2,182.5,0)+IF($G8=4,91.25,0) -> 2020-10-21 | E47: 2021-04-21T12:00:00 | F47: 2021-10-21 | G47: 2022-04-21T12:00:00 | H47: 2022-10-21 | I47: 2023-04-21T12:00:00 | J47: 2023-10-21 | K47: 2024-04-20T12:00:00 | L47: 2024-10-20 | M47: 2025-04-20T12:00:00 | N47: 2025-10-20 | O47: 2026-04-20T12:00:00 | P47: 2026-10-20 | Q47: 2027-04-20T12:00:00 | R47: 2027-10-20 | S47: 2028-04-19T12:00:00 | T47: 2028-10-19 | U47: 2029-04-19T12:00:00 | V47: 2029-10-19 | W47: 2030-04-19T12:00:00 | X47: 2030-10-19 | Y47: 2031-04-19T12:00:00 | Z47: 2031-10-19 | AA47: 2032-04-18T12:00:00 | AB47: 2032-10-18 | AC47: 2033-04-18T12:00:00 | AD47: 2033-10-18 | AE47: 2034-04-18T12:00:00 | AF47: 2034-10-18 | AG47: 2035-04-18T12:00:00 | AH47: 2035-10-18 | AI47: 2036-04-17T12:00:00 | AJ47: 2036-10-17 | AK47: 2037-04-17T12:00:00 | AL47: 2037-10-17 | AM47: 2038-04-17T12:00:00 | AN47: 2038-10-17 | AO47: 2039-04-17T12:00:00 | AP47: 2039-10-17 | AQ47: 2040-04-16T12:00:00 | AR47: 2040-10-16 | AS47: 2041-04-16T12:00:00 | AT47: 2041-10-16 | AU47: 2042-04-16T12:00:00 | AV47: 2042-10-16 | AW47: 2043-04-16T12:00:00 | AX47: 2043-10-16 | AY47: 2044-04-15T12:00:00 | AZ47: 2044-10-15 | BA47: 2045-04-15T12:00:00 | BB47: 2045-10-15 | BC47: 2046-04-15T12:00:00 | BD47: 2046-10-15 | BE47: 2047-04-15T12:00:00 | BF47: 2047-10-15 | BG47: 2048-04-14T12:00:00 | BH47: 2048-10-14 | BI47: 2049-04-14T12:00:00 | BJ47: 2049-10-14 | BK47: 2050-04-14T12:00:00 | BL47: 2050-10-14 | BM47: 2051-04-14T12:00:00 | BN47: 2051-10-14 | BO47: 2052-04-13T12:00:00 | BP47: =BO47+IF($G8=1,365,0)+IF($G8=2,182.5,0)+IF($G8=4,91.25,0) -> 2052-10-13 | BQ47: 2053-04-13T12:00:00 | BR47: 2053-10-13 | BS47: 2054-04-13T12:00:00 | BT47: 2054-10-13 | BU47: 2055-04-13T12:00:00 | BV47: 2055-10-13 | BW47: 2056-04-12T12:00:00 | BX47: 2056-10-12 | BY47: 2057-04-12T12:00:00 | BZ47: 2057-10-12 | CA47: 2058-04-12T12:00:00 | CB47: 2058-10-12 | CC47: 2059-04-12T12:00:00 | CD47: 2059-10-12 | CE47: 2060-04-11T12:00:00 | CF47: 2060-10-11 | CG47: 2061-04-11T12:00:00 | CH47: 2061-10-11 | CI47: 2062-04-11T12:00:00 | CJ47: 2062-10-11 | CK47: 2063-04-11T12:00:00 | CL47: 2063-10-11 | CM47: 2064-04-10T12:00:00 | CN47: 2064-10-10 | CO47: 2065-04-10T12:00:00 | CP47: 2065-10-10 | CQ47: 2066-04-10T12:00:00 | CR47: 2066-10-10 | CS47: 2067-04-10T12:00:00 | CT47: 2067-10-10 | CU47: 2068-04-09T12:00:00 | CV47: 2068-10-09 | CW47: 2069-04-09T12:00:00 | CX47: 2069-10-09 | CY47: 2070-04-09T12:00:00 | CZ47: 2070-10-09 | DA47: 2071-04-09T12:00:00 | DB47: 2071-10-09 | DC47: 2072-04-08T12:00:00 | DD47: 2072-10-08 | DE47: 2073-04-08T12:00:00 | DF47: 2073-10-08 | DG47: 2074-04-08T12:00:00 | DH47: 2074-10-08 | DI47: 2075-04-08T12:00:00 | DJ47: 2075-10-08 | DK47: 2076-04-07T12:00:00 | DL47: 2076-10-07 | DM47: 2077-04-07T12:00:00 | DN47: 2077-10-07 | DO47: 2078-04-07T12:00:00 | DP47: 2078-10-07 | DQ47: 2079-04-07T12:00:00 | DR47: 2079-10-07 | DS47: 2080-04-06T12:00:00 | DT47: 2080-10-06 | DU47: 2081-04-06T12:00:00 | DV47: 2081-10-06 | DW47: 2082-04-06T12:00:00 | DX47: 2082-10-06 | DY47: 2083-04-06T12:00:00 | DZ47: 2083-10-06 | EA47: 2084-04-05T12:00:00 | EB47: =EA47+IF($G8=1,365,0)+IF($G8=2,182.5,0)+IF($G8=4,91.25,0) -> 2084-10-05 | EC47: 2085-04-05T12:00:00 | ED47: 2085-10-05 | EE47: 2086-04-05T12:00:00 | EF47: 2086-10-05 | EG47: 2087-04-05T12:00:00 | EH47: 2087-10-05 | EI47: 2088-04-04T12:00:00 | EJ47: 2088-10-04 | EK47: 2089-04-04T12:00:00 | EL47: 2089-10-04 | EM47: 2090-04-04T12:00:00 | EN47: 2090-10-04 | EO47: 2091-04-04T12:00:00 | EP47: 2091-10-04 | EQ47: 2092-04-03T12:00:00 | ER47: 2092-10-03 | ES47: 2093-04-03T12:00:00 | ET47: 2093-10-03 | EU47: 2094-04-03T12:00:00 | EV47: 2094-10-03 | EW47: 2095-04-03T12:00:00 | EX47: 2095-10-03 | EY47: 2096-04-02T12:00:00 | EZ47: 2096-10-02 | FA47: 2097-04-02T12:00:00 | FB47: 2097-10-02 | FC47: 2098-04-02T12:00:00 | FD47: 2098-10-02 | FE47: 2099-04-02T12:00:00 | FF47: 2099-10-02 | FG47: 2100-04-02T12:00:00 | FH47: 2100-10-02 | FI47: 2101-04-02T12:00:00 | FJ47: 2101-10-02 | FK47: 2102-04-02T12:00:00 | FL47: 2102-10-02 | FM47: 2103-04-02T12:00:00 | FN47: 2103-10-02 | FO47: 2104-04-01T12:00:00 | FP47: 2104-10-01 | FQ47: 2105-04-01T12:00:00 | FR47: 2105-10-01 | FS47: 2106-04-01T12:00:00 | FT47: 2106-10-01 | FU47: 2107-04-01T12:00:00 | FV47: 2107-10-01 | FW47: 2108-03-31T12:00:00 | FX47: 2108-09-30 | FY47: 2109-03-31T12:00:00 | FZ47: 2109-09-30 | GA47: 2110-03-31T12:00:00 | GB47: 2110-09-30 | GC47: 2111-03-31T12:00:00 | GD47: 2111-09-30 | GE47: 2112-03-30T12:00:00 | GF47: 2112-09-29 | GG47: 2113-03-30T12:00:00 | GH47: 2113-09-29 | GI47: 2114-03-30T12:00:00 | GJ47: 2114-09-29 | GK47: 2115-03-30T12:00:00 | GL47: 2115-09-29 | GM47: 2116-03-29T12:00:00 | GN47: =GM47+IF($G8=1,365,0)+IF($G8=2,182.5,0)+IF($G8=4,91.25,0) -> 2116-09-28 | GO47: 2117-03-29T12:00:00 | GP47: 2117-09-28 | GQ47: 2118-03-29T12:00:00 | GR47: 2118-09-28 | GS47: 2119-03-29T12:00:00
A48: Bond 7 | B48: =(IF(B47=F8,100,0)+IF(G8=1,1,0)*J8*100+IF(G8=2,0.5,0)*J8*100+IF(G8=4,0.25,0)*J8*100)*IF(ISBLANK(F8)=TRUE,0,1) -> 1.515 | C48: =IF(C47>$F8+1,0,1)*(IF(D48=0,100,0)+IF($G8=1,1,0)*$J8*100+IF($G8=2,0.5,0)*$J8*100+IF($G8=4,0.25,0)*$J8*100) -> 1.515 | D48: =IF(D47>$F8+1,0,1)*(IF(E48=0,100,0)+IF($G8=1,1,0)*$J8*100+IF($G8=2,0.5,0)*$J8*100+IF($G8=4,0.25,0)*$J8*100) -> 101.515 | E48: 0 | F48: 0 | G48: 0 | H48: 0 | I48: 0 | J48: 0 | K48: 0 | L48: 0 | M48: 0 | N48: 0 | O48: 0 | P48: 0 | Q48: 0 | R48: 0 | S48: 0 | T48: 0 | U48: 0 | V48: 0 | W48: 0 | X48: 0 | Y48: 0 | Z48: 0 | AA48: 0 | AB48: 0 | AC48: 0 | AD48: 0 | AE48: 0 | AF48: 0 | AG48: 0 | AH48: 0 | AI48: 0 | AJ48: 0 | AK48: 0 | AL48: 0 | AM48: 0 | AN48: 0 | AO48: 0 | AP48: 0 | AQ48: 0 | AR48: 0 | AS48: 0 | AT48: 0 | AU48: 0 | AV48: 0 | AW48: 0 | AX48: 0 | AY48: 0 | AZ48: 0 | BA48: 0 | BB48: 0 | BC48: 0 | BD48: 0 | BE48: 0 | BF48: 0 | BG48: 0 | BH48: 0 | BI48: 0 | BJ48: 0 | BK48: 0 | BL48: 0 | BM48: 0 | BN48: 0 | BO48: 0 | BP48: =IF(BP47>$F8+1,0,1)*(IF(BQ48=0,100,0)+IF($G8=1,1,0)*$J8*100+IF($G8=2,0.5,0)*$J8*100+IF($G8=4,0.25,0)*$J8*100) -> 0 | BQ48: 0 | BR48: 0 | BS48: 0 | BT48: 0 | BU48: 0 | BV48: 0 | BW48: 0 | BX48: 0 | BY48: 0 | BZ48: 0 | CA48: 0 | CB48: 0 | CC48: 0 | CD48: 0 | CE48: 0 | CF48: 0 | CG48: 0 | CH48: 0 | CI48: 0 | CJ48: 0 | CK48: 0 | CL48: 0 | CM48: 0 | CN48: 0 | CO48: 0 | CP48: 0 | CQ48: 0 | CR48: 0 | CS48: 0 | CT48: 0 | CU48: 0 | CV48: 0 | CW48: 0 | CX48: 0 | CY48: 0 | CZ48: 0 | DA48: 0 | DB48: 0 | DC48: 0 | DD48: 0 | DE48: 0 | DF48: 0 | DG48: 0 | DH48: 0 | DI48: 0 | DJ48: 0 | DK48: 0 | DL48: 0 | DM48: 0 | DN48: 0 | DO48: 0 | DP48: 0 | DQ48: 0 | DR48: 0 | DS48: 0 | DT48: 0 | DU48: 0 | DV48: 0 | DW48: 0 | DX48: 0 | DY48: 0 | DZ48: 0 | EA48: 0 | EB48: =IF(EB47>$F8+1,0,1)*(IF(EC48=0,100,0)+IF($G8=1,1,0)*$J8*100+IF($G8=2,0.5,0)*$J8*100+IF($G8=4,0.25,0)*$J8*100) -> 0 | EC48: 0 | ED48: 0 | EE48: 0 | EF48: 0 | EG48: 0 | EH48: 0 | EI48: 0 | EJ48: 0 | EK48: 0 | EL48: 0 | EM48: 0 | EN48: 0 | EO48: 0 | EP48: 0 | EQ48: 0 | ER48: 0 | ES48: 0 | ET48: 0 | EU48: 0 | EV48: 0 | EW48: 0 | EX48: 0 | EY48: 0 | EZ48: 0 | FA48: 0 | FB48: 0 | FC48: 0 | FD48: 0 | FE48: 0 | FF48: 0 | FG48: 0 | FH48: 0 | FI48: 0 | FJ48: 0 | FK48: 0 | FL48: 0 | FM48: 0 | FN48: 0 | FO48: 0 | FP48: 0 | FQ48: 0 | FR48: 0 | FS48: 0 | FT48: 0 | FU48: 0 | FV48: 0 | FW48: 0 | FX48: 0 | FY48: 0 | FZ48: 0 | GA48: 0 | GB48: 0 | GC48: 0 | GD48: 0 | GE48: 0 | GF48: 0 | GG48: 0 | GH48: 0 | GI48: 0 | GJ48: 0 | GK48: 0 | GL48: 0 | GM48: 0 | GN48: =IF(GN47>$F8+1,0,1)*(IF(GO48=0,100,0)+IF($G8=1,1,0)*$J8*100+IF($G8=2,0.5,0)*$J8*100+IF($G8=4,0.25,0)*$J8*100) -> 0 | GO48: 0 | GP48: 0 | GQ48: 0 | GR48: 0 | GS48: 0
A49: Payment Dates | B49: =IF(E9=0,F9,E9) -> 10/4/2019 | C49: =B49+IF($G9=1,365,0)+IF($G9=2,182.5,0)+IF($G9=4,91.25,0) -> 2020-04-03T12:00:00 | D49: =C49+IF($G9=1,365,0)+IF($G9=2,182.5,0)+IF($G9=4,91.25,0) -> 2020-10-03 | E49: 2021-04-03T12:00:00 | F49: 2021-10-03 | G49: 2022-04-03T12:00:00 | H49: 2022-10-03 | I49: 2023-04-03T12:00:00 | J49: 2023-10-03 | K49: 2024-04-02T12:00:00 | L49: 2024-10-02 | M49: 2025-04-02T12:00:00 | N49: 2025-10-02 | O49: 2026-04-02T12:00:00 | P49: 2026-10-02 | Q49: 2027-04-02T12:00:00 | R49: 2027-10-02 | S49: 2028-04-01T12:00:00 | T49: 2028-10-01 | U49: 2029-04-01T12:00:00 | V49: 2029-10-01 | W49: 2030-04-01T12:00:00 | X49: 2030-10-01 | Y49: 2031-04-01T12:00:00 | Z49: 2031-10-01 | AA49: 2032-03-31T12:00:00 | AB49: 2032-09-30 | AC49: 2033-03-31T12:00:00 | AD49: 2033-09-30 | AE49: 2034-03-31T12:00:00 | AF49: 2034-09-30 | AG49: 2035-03-31T12:00:00 | AH49: 2035-09-30 | AI49: 2036-03-30T12:00:00 | AJ49: 2036-09-29 | AK49: 2037-03-30T12:00:00 | AL49: 2037-09-29 | AM49: 2038-03-30T12:00:00 | AN49: 2038-09-29 | AO49: 2039-03-30T12:00:00 | AP49: 2039-09-29 | AQ49: 2040-03-29T12:00:00 | AR49: 2040-09-28 | AS49: 2041-03-29T12:00:00 | AT49: 2041-09-28 | AU49: 2042-03-29T12:00:00 | AV49: 2042-09-28 | AW49: 2043-03-29T12:00:00 | AX49: 2043-09-28 | AY49: 2044-03-28T12:00:00 | AZ49: 2044-09-27 | BA49: 2045-03-28T12:00:00 | BB49: 2045-09-27 | BC49: 2046-03-28T12:00:00 | BD49: 2046-09-27 | BE49: 2047-03-28T12:00:00 | BF49: 2047-09-27 | BG49: 2048-03-27T12:00:00 | BH49: 2048-09-26 | BI49: 2049-03-27T12:00:00 | BJ49: 2049-09-26 | BK49: 2050-03-27T12:00:00 | BL49: 2050-09-26 | BM49: 2051-03-27T12:00:00 | BN49: 2051-09-26 | BO49: 2052-03-26T12:00:00 | BP49: =BO49+IF($G9=1,365,0)+IF($G9=2,182.5,0)+IF($G9=4,91.25,0) -> 2052-09-25 | BQ49: 2053-03-26T12:00:00 | BR49: 2053-09-25 | BS49: 2054-03-26T12:00:00 | BT49: 2054-09-25 | BU49: 2055-03-26T12:00:00 | BV49: 2055-09-25 | BW49: 2056-03-25T12:00:00 | BX49: 2056-09-24 | BY49: 2057-03-25T12:00:00 | BZ49: 2057-09-24 | CA49: 2058-03-25T12:00:00 | CB49: 2058-09-24 | CC49: 2059-03-25T12:00:00 | CD49: 2059-09-24 | CE49: 2060-03-24T12:00:00 | CF49: 2060-09-23 | CG49: 2061-03-24T12:00:00 | CH49: 2061-09-23 | CI49: 2062-03-24T12:00:00 | CJ49: 2062-09-23 | CK49: 2063-03-24T12:00:00 | CL49: 2063-09-23 | CM49: 2064-03-23T12:00:00 | CN49: 2064-09-22 | CO49: 2065-03-23T12:00:00 | CP49: 2065-09-22 | CQ49: 2066-03-23T12:00:00 | CR49: 2066-09-22 | CS49: 2067-03-23T12:00:00 | CT49: 2067-09-22 | CU49: 2068-03-22T12:00:00 | CV49: 2068-09-21 | CW49: 2069-03-22T12:00:00 | CX49: 2069-09-21 | CY49: 2070-03-22T12:00:00 | CZ49: 2070-09-21 | DA49: 2071-03-22T12:00:00 | DB49: 2071-09-21 | DC49: 2072-03-21T12:00:00 | DD49: 2072-09-20 | DE49: 2073-03-21T12:00:00 | DF49: 2073-09-20 | DG49: 2074-03-21T12:00:00 | DH49: 2074-09-20 | DI49: 2075-03-21T12:00:00 | DJ49: 2075-09-20 | DK49: 2076-03-20T12:00:00 | DL49: 2076-09-19 | DM49: 2077-03-20T12:00:00 | DN49: 2077-09-19 | DO49: 2078-03-20T12:00:00 | DP49: 2078-09-19 | DQ49: 2079-03-20T12:00:00 | DR49: 2079-09-19 | DS49: 2080-03-19T12:00:00 | DT49: 2080-09-18 | DU49: 2081-03-19T12:00:00 | DV49: 2081-09-18 | DW49: 2082-03-19T12:00:00 | DX49: 2082-09-18 | DY49: 2083-03-19T12:00:00 | DZ49: 2083-09-18 | EA49: 2084-03-18T12:00:00 | EB49: =EA49+IF($G9=1,365,0)+IF($G9=2,182.5,0)+IF($G9=4,91.25,0) -> 2084-09-17 | EC49: 2085-03-18T12:00:00 | ED49: 2085-09-17 | EE49: 2086-03-18T12:00:00 | EF49: 2086-09-17 | EG49: 2087-03-18T12:00:00 | EH49: 2087-09-17 | EI49: 2088-03-17T12:00:00 | EJ49: 2088-09-16 | EK49: 2089-03-17T12:00:00 | EL49: 2089-09-16 | EM49: 2090-03-17T12:00:00 | EN49: 2090-09-16 | EO49: 2091-03-17T12:00:00 | EP49: 2091-09-16 | EQ49: 2092-03-16T12:00:00 | ER49: 2092-09-15 | ES49: 2093-03-16T12:00:00 | ET49: 2093-09-15 | EU49: 2094-03-16T12:00:00 | EV49: 2094-09-15 | EW49: 2095-03-16T12:00:00 | EX49: 2095-09-15 | EY49: 2096-03-15T12:00:00 | EZ49: 2096-09-14 | FA49: 2097-03-15T12:00:00 | FB49: 2097-09-14 | FC49: 2098-03-15T12:00:00 | FD49: 2098-09-14 | FE49: 2099-03-15T12:00:00 | FF49: 2099-09-14 | FG49: 2100-03-15T12:00:00 | FH49: 2100-09-14 | FI49: 2101-03-15T12:00:00 | FJ49: 2101-09-14 | FK49: 2102-03-15T12:00:00 | FL49: 2102-09-14 | FM49: 2103-03-15T12:00:00 | FN49: 2103-09-14 | FO49: 2104-03-14T12:00:00 | FP49: 2104-09-13 | FQ49: 2105-03-14T12:00:00 | FR49: 2105-09-13 | FS49: 2106-03-14T12:00:00 | FT49: 2106-09-13 | FU49: 2107-03-14T12:00:00 | FV49: 2107-09-13 | FW49: 2108-03-13T12:00:00 | FX49: 2108-09-12 | FY49: 2109-03-13T12:00:00 | FZ49: 2109-09-12 | GA49: 2110-03-13T12:00:00 | GB49: 2110-09-12 | GC49: 2111-03-13T12:00:00 | GD49: 2111-09-12 | GE49: 2112-03-12T12:00:00 | GF49: 2112-09-11 | GG49: 2113-03-12T12:00:00 | GH49: 2113-09-11 | GI49: 2114-03-12T12:00:00 | GJ49: 2114-09-11 | GK49: 2115-03-12T12:00:00 | GL49: 2115-09-11 | GM49: 2116-03-11T12:00:00 | GN49: =GM49+IF($G9=1,365,0)+IF($G9=2,182.5,0)+IF($G9=4,91.25,0) -> 2116-09-10 | GO49: 2117-03-11T12:00:00 | GP49: 2117-09-10 | GQ49: 2118-03-11T12:00:00 | GR49: 2118-09-10 | GS49: 2119-03-11T12:00:00
A50: Bond 8 | B50: =(IF(B49=F9,100,0)+IF(G9=1,1,0)*J9*100+IF(G9=2,0.5,0)*J9*100+IF(G9=4,0.25,0)*J9*100)*IF(ISBLANK(F9)=TRUE,0,1) -> 1.645 | C50: =IF(C49>$F9+1,0,1)*(IF(D50=0,100,0)+IF($G9=1,1,0)*$J9*100+IF($G9=2,0.5,0)*$J9*100+IF($G9=4,0.25,0)*$J9*100) -> 1.645 | D50: =IF(D49>$F9+1,0,1)*(IF(E50=0,100,0)+IF($G9=1,1,0)*$J9*100+IF($G9=2,0.5,0)*$J9*100+IF($G9=4,0.25,0)*$J9*100) -> 1.645 | E50: 1.645 | F50: 1.645 | G50: 1.645 | H50: 1.645 | I50: 1.645 | J50: 1.645 | K50: 101.645 | L50: 0 | M50: 0 | N50: 0 | O50: 0 | P50: 0 | Q50: 0 | R50: 0 | S50: 0 | T50: 0 | U50: 0 | V50: 0 | W50: 0 | X50: 0 | Y50: 0 | Z50: 0 | AA50: 0 | AB50: 0 | AC50: 0 | AD50: 0 | AE50: 0 | AF50: 0 | AG50: 0 | AH50: 0 | AI50: 0 | AJ50: 0 | AK50: 0 | AL50: 0 | AM50: 0 | AN50: 0 | AO50: 0 | AP50: 0 | AQ50: 0 | AR50: 0 | AS50: 0 | AT50: 0 | AU50: 0 | AV50: 0 | AW50: 0 | AX50: 0 | AY50: 0 | AZ50: 0 | BA50: 0 | BB50: 0 | BC50: 0 | BD50: 0 | BE50: 0 | BF50: 0 | BG50: 0 | BH50: 0 | BI50: 0 | BJ50: 0 | BK50: 0 | BL50: 0 | BM50: 0 | BN50: 0 | BO50: 0 | BP50: =IF(BP49>$F9+1,0,1)*(IF(BQ50=0,100,0)+IF($G9=1,1,0)*$J9*100+IF($G9=2,0.5,0)*$J9*100+IF($G9=4,0.25,0)*$J9*100) -> 0 | BQ50: 0 | BR50: 0 | BS50: 0 | BT50: 0 | BU50: 0 | BV50: 0 | BW50: 0 | BX50: 0 | BY50: 0 | BZ50: 0 | CA50: 0 | CB50: 0 | CC50: 0 | CD50: 0 | CE50: 0 | CF50: 0 | CG50: 0 | CH50: 0 | CI50: 0 | CJ50: 0 | CK50: 0 | CL50: 0 | CM50: 0 | CN50: 0 | CO50: 0 | CP50: 0 | CQ50: 0 | CR50: 0 | CS50: 0 | CT50: 0 | CU50: 0 | CV50: 0 | CW50: 0 | CX50: 0 | CY50: 0 | CZ50: 0 | DA50: 0 | DB50: 0 | DC50: 0 | DD50: 0 | DE50: 0 | DF50: 0 | DG50: 0 | DH50: 0 | DI50: 0 | DJ50: 0 | DK50: 0 | DL50: 0 | DM50: 0 | DN50: 0 | DO50: 0 | DP50: 0 | DQ50: 0 | DR50: 0 | DS50: 0 | DT50: 0 | DU50: 0 | DV50: 0 | DW50: 0 | DX50: 0 | DY50: 0 | DZ50: 0 | EA50: 0 | EB50: =IF(EB49>$F9+1,0,1)*(IF(EC50=0,100,0)+IF($G9=1,1,0)*$J9*100+IF($G9=2,0.5,0)*$J9*100+IF($G9=4,0.25,0)*$J9*100) -> 0 | EC50: 0 | ED50: 0 | EE50: 0 | EF50: 0 | EG50: 0 | EH50: 0 | EI50: 0 | EJ50: 0 | EK50: 0 | EL50: 0 | EM50: 0 | EN50: 0 | EO50: 0 | EP50: 0 | EQ50: 0 | ER50: 0 | ES50: 0 | ET50: 0 | EU50: 0 | EV50: 0 | EW50: 0 | EX50: 0 | EY50: 0 | EZ50: 0 | FA50: 0 | FB50: 0 | FC50: 0 | FD50: 0 | FE50: 0 | FF50: 0 | FG50: 0 | FH50: 0 | FI50: 0 | FJ50: 0 | FK50: 0 | FL50: 0 | FM50: 0 | FN50: 0 | FO50: 0 | FP50: 0 | FQ50: 0 | FR50: 0 | FS50: 0 | FT50: 0 | FU50: 0 | FV50: 0 | FW50: 0 | FX50: 0 | FY50: 0 | FZ50: 0 | GA50: 0 | GB50: 0 | GC50: 0 | GD50: 0 | GE50: 0 | GF50: 0 | GG50: 0 | GH50: 0 | GI50: 0 | GJ50: 0 | GK50: 0 | GL50: 0 | GM50: 0 | GN50: =IF(GN49>$F9+1,0,1)*(IF(GO50=0,100,0)+IF($G9=1,1,0)*$J9*100+IF($G9=2,0.5,0)*$J9*100+IF($G9=4,0.25,0)*$J9*100) -> 0 | GO50: 0 | GP50: 0 | GQ50: 0 | GR50: 0 | GS50: 0
A51: Payment Dates | B51: =IF(E10=0,F10,E10) -> 7/15/2019 | C51: =B51+IF($G10=1,365,0)+IF($G10=2,182.5,0)+IF($G10=4,91.25,0) -> 2020-01-13T12:00:00 | D51: =C51+IF($G10=1,365,0)+IF($G10=2,182.5,0)+IF($G10=4,91.25,0) -> 2020-07-14 | E51: 2021-01-12T12:00:00 | F51: 2021-07-14 | G51: 2022-01-12T12:00:00 | H51: 2022-07-14 | I51: 2023-01-12T12:00:00 | J51: 2023-07-14 | K51: 2024-01-12T12:00:00 | L51: 2024-07-13 | M51: 2025-01-11T12:00:00 | N51: 2025-07-13 | O51: 2026-01-11T12:00:00 | P51: 2026-07-13 | Q51: 2027-01-11T12:00:00 | R51: 2027-07-13 | S51: 2028-01-11T12:00:00 | T51: 2028-07-12 | U51: 2029-01-10T12:00:00 | V51: 2029-07-12 | W51: 2030-01-10T12:00:00 | X51: 2030-07-12 | Y51: 2031-01-10T12:00:00 | Z51: 2031-07-12 | AA51: 2032-01-10T12:00:00 | AB51: 2032-07-11 | AC51: 2033-01-09T12:00:00 | AD51: 2033-07-11 | AE51: 2034-01-09T12:00:00 | AF51: 2034-07-11 | AG51: 2035-01-09T12:00:00 | AH51: 2035-07-11 | AI51: 2036-01-09T12:00:00 | AJ51: 2036-07-10 | AK51: 2037-01-08T12:00:00 | AL51: 2037-07-10 | AM51: 2038-01-08T12:00:00 | AN51: 2038-07-10 | AO51: 2039-01-08T12:00:00 | AP51: 2039-07-10 | AQ51: 2040-01-08T12:00:00 | AR51: 2040-07-09 | AS51: 2041-01-07T12:00:00 | AT51: 2041-07-09 | AU51: 2042-01-07T12:00:00 | AV51: 2042-07-09 | AW51: 2043-01-07T12:00:00 | AX51: 2043-07-09 | AY51: 2044-01-07T12:00:00 | AZ51: 2044-07-08 | BA51: 2045-01-06T12:00:00 | BB51: 2045-07-08 | BC51: 2046-01-06T12:00:00 | BD51: 2046-07-08 | BE51: 2047-01-06T12:00:00 | BF51: 2047-07-08 | BG51: 2048-01-06T12:00:00 | BH51: 2048-07-07 | BI51: 2049-01-05T12:00:00 | BJ51: 2049-07-07 | BK51: 2050-01-05T12:00:00 | BL51: 2050-07-07 | BM51: 2051-01-05T12:00:00 | BN51: 2051-07-07 | BO51: 2052-01-05T12:00:00 | BP51: =BO51+IF($G10=1,365,0)+IF($G10=2,182.5,0)+IF($G10=4,91.25,0) -> 2052-07-06 | BQ51: 2053-01-04T12:00:00 | BR51: 2053-07-06 | BS51: 2054-01-04T12:00:00 | BT51: 2054-07-06 | BU51: 2055-01-04T12:00:00 | BV51: 2055-07-06 | BW51: 2056-01-04T12:00:00 | BX51: 2056-07-05 | BY51: 2057-01-03T12:00:00 | BZ51: 2057-07-05 | CA51: 2058-01-03T12:00:00 | CB51: 2058-07-05 | CC51: 2059-01-03T12:00:00 | CD51: 2059-07-05 | CE51: 2060-01-03T12:00:00 | CF51: 2060-07-04 | CG51: 2061-01-02T12:00:00 | CH51: 2061-07-04 | CI51: 2062-01-02T12:00:00 | CJ51: 2062-07-04 | CK51: 2063-01-02T12:00:00 | CL51: 2063-07-04 | CM51: 2064-01-02T12:00:00 | CN51: 2064-07-03 | CO51: 2065-01-01T12:00:00 | CP51: 2065-07-03 | CQ51: 2066-01-01T12:00:00 | CR51: 2066-07-03 | CS51: 2067-01-01T12:00:00 | CT51: 2067-07-03 | CU51: 2068-01-01T12:00:00 | CV51: 2068-07-02 | CW51: 2068-12-31T12:00:00 | CX51: 2069-07-02 | CY51: 2069-12-31T12:00:00 | CZ51: 2070-07-02 | DA51: 2070-12-31T12:00:00 | DB51: 2071-07-02 | DC51: 2071-12-31T12:00:00 | DD51: 2072-07-01 | DE51: 2072-12-30T12:00:00 | DF51: 2073-07-01 | DG51: 2073-12-30T12:00:00 | DH51: 2074-07-01 | DI51: 2074-12-30T12:00:00 | DJ51: 2075-07-01 | DK51: 2075-12-30T12:00:00 | DL51: 2076-06-30 | DM51: 2076-12-29T12:00:00 | DN51: 2077-06-30 | DO51: 2077-12-29T12:00:00 | DP51: 2078-06-30 | DQ51: 2078-12-29T12:00:00 | DR51: 2079-06-30 | DS51: 2079-12-29T12:00:00 | DT51: 2080-06-29 | DU51: 2080-12-28T12:00:00 | DV51: 2081-06-29 | DW51: 2081-12-28T12:00:00 | DX51: 2082-06-29 | DY51: 2082-12-28T12:00:00 | DZ51: 2083-06-29 | EA51: 2083-12-28T12:00:00 | EB51: =EA51+IF($G10=1,365,0)+IF($G10=2,182.5,0)+IF($G10=4,91.25,0) -> 2084-06-28 | EC51: 2084-12-27T12:00:00 | ED51: 2085-06-28 | EE51: 2085-12-27T12:00:00 | EF51: 2086-06-28 | EG51: 2086-12-27T12:00:00 | EH51: 2087-06-28 | EI51: 2087-12-27T12:00:00 | EJ51: 2088-06-27 | EK51: 2088-12-26T12:00:00 | EL51: 2089-06-27 | EM51: 2089-12-26T12:00:00 | EN51: 2090-06-27 | EO51: 2090-12-26T12:00:00 | EP51: 2091-06-27 | EQ51: 2091-12-26T12:00:00 | ER51: 2092-06-26 | ES51: 2092-12-25T12:00:00 | ET51: 2093-06-26 | EU51: 2093-12-25T12:00:00 | EV51: 2094-06-26 | EW51: 2094-12-25T12:00:00 | EX51: 2095-06-26 | EY51: 2095-12-25T12:00:00 | EZ51: 2096-06-25 | FA51: 2096-12-24T12:00:00 | FB51: 2097-06-25 | FC51: 2097-12-24T12:00:00 | FD51: 2098-06-25 | FE51: 2098-12-24T12:00:00 | FF51: 2099-06-25 | FG51: 2099-12-24T12:00:00 | FH51: 2100-06-25 | FI51: 2100-12-24T12:00:00 | FJ51: 2101-06-25 | FK51: 2101-12-24T12:00:00 | FL51: 2102-06-25 | FM51: 2102-12-24T12:00:00 | FN51: 2103-06-25 | FO51: 2103-12-24T12:00:00 | FP51: 2104-06-24 | FQ51: 2104-12-23T12:00:00 | FR51: 2105-06-24 | FS51: 2105-12-23T12:00:00 | FT51: 2106-06-24 | FU51: 2106-12-23T12:00:00 | FV51: 2107-06-24 | FW51: 2107-12-23T12:00:00 | FX51: 2108-06-23 | FY51: 2108-12-22T12:00:00 | FZ51: 2109-06-23 | GA51: 2109-12-22T12:00:00 | GB51: 2110-06-23 | GC51: 2110-12-22T12:00:00 | GD51: 2111-06-23 | GE51: 2111-12-22T12:00:00 | GF51: 2112-06-22 | GG51: 2112-12-21T12:00:00 | GH51: 2113-06-22 | GI51: 2113-12-21T12:00:00 | GJ51: 2114-06-22 | GK51: 2114-12-21T12:00:00 | GL51: 2115-06-22 | GM51: 2115-12-21T12:00:00 | GN51: =GM51+IF($G10=1,365,0)+IF($G10=2,182.5,0)+IF($G10=4,91.25,0) -> 2116-06-21 | GO51: 2116-12-20T12:00:00 | GP51: 2117-06-21 | GQ51: 2117-12-20T12:00:00 | GR51: 2118-06-21 | GS51: 2118-12-20T12:00:00
A52: Bond 9 | B52: =(IF(B51=F10,100,0)+IF(G10=1,1,0)*J10*100+IF(G10=2,0.5,0)*J10*100+IF(G10=4,0.25,0)*J10*100)*IF(ISBLANK(F10)=TRUE,0,1) -> 2.3 | C52: =IF(C51>$F10+1,0,1)*(IF(D52=0,100,0)+IF($G10=1,1,0)*$J10*100+IF($G10=2,0.5,0)*$J10*100+IF($G10=4,0.25,0)*$J10*100) -> 2.3 | D52: =IF(D51>$F10+1,0,1)*(IF(E52=0,100,0)+IF($G10=1,1,0)*$J10*100+IF($G10=2,0.5,0)*$J10*100+IF($G10=4,0.25,0)*$J10*100) -> 102.3 | E52: 0 | F52: 0 | G52: 0 | H52: 0 | I52: 0 | J52: 0 | K52: 0 | L52: 0 | M52: 0 | N52: 0 | O52: 0 | P52: 0 | Q52: 0 | R52: 0 | S52: 0 | T52: 0 | U52: 0 | V52: 0 | W52: 0 | X52: 0 | Y52: 0 | Z52: 0 | AA52: 0 | AB52: 0 | AC52: 0 | AD52: 0 | AE52: 0 | AF52: 0 | AG52: 0 | AH52: 0 | AI52: 0 | AJ52: 0 | AK52: 0 | AL52: 0 | AM52: 0 | AN52: 0 | AO52: 0 | AP52: 0 | AQ52: 0 | AR52: 0 | AS52: 0 | AT52: 0 | AU52: 0 | AV52: 0 | AW52: 0 | AX52: 0 | AY52: 0 | AZ52: 0 | BA52: 0 | BB52: 0 | BC52: 0 | BD52: 0 | BE52: 0 | BF52: 0 | BG52: 0 | BH52: 0 | BI52: 0 | BJ52: 0 | BK52: 0 | BL52: 0 | BM52: 0 | BN52: 0 | BO52: 0 | BP52: =IF(BP51>$F10+1,0,1)*(IF(BQ52=0,100,0)+IF($G10=1,1,0)*$J10*100+IF($G10=2,0.5,0)*$J10*100+IF($G10=4,0.25,0)*$J10*100) -> 0 | BQ52: 0 | BR52: 0 | BS52: 0 | BT52: 0 | BU52: 0 | BV52: 0 | BW52: 0 | BX52: 0 | BY52: 0 | BZ52: 0 | CA52: 0 | CB52: 0 | CC52: 0 | CD52: 0 | CE52: 0 | CF52: 0 | CG52: 0 | CH52: 0 | CI52: 0 | CJ52: 0 | CK52: 0 | CL52: 0 | CM52: 0 | CN52: 0 | CO52: 0 | CP52: 0 | CQ52: 0 | CR52: 0 | CS52: 0 | CT52: 0 | CU52: 0 | CV52: 0 | CW52: 0 | CX52: 0 | CY52: 0 | CZ52: 0 | DA52: 0 | DB52: 0 | DC52: 0 | DD52: 0 | DE52: 0 | DF52: 0 | DG52: 0 | DH52: 0 | DI52: 0 | DJ52: 0 | DK52: 0 | DL52: 0 | DM52: 0 | DN52: 0 | DO52: 0 | DP52: 0 | DQ52: 0 | DR52: 0 | DS52: 0 | DT52: 0 | DU52: 0 | DV52: 0 | DW52: 0 | DX52: 0 | DY52: 0 | DZ52: 0 | EA52: 0 | EB52: =IF(EB51>$F10+1,0,1)*(IF(EC52=0,100,0)+IF($G10=1,1,0)*$J10*100+IF($G10=2,0.5,0)*$J10*100+IF($G10=4,0.25,0)*$J10*100) -> 0 | EC52: 0 | ED52: 0 | EE52: 0 | EF52: 0 | EG52: 0 | EH52: 0 | EI52: 0 | EJ52: 0 | EK52: 0 | EL52: 0 | EM52: 0 | EN52: 0 | EO52: 0 | EP52: 0 | EQ52: 0 | ER52: 0 | ES52: 0 | ET52: 0 | EU52: 0 | EV52: 0 | EW52: 0 | EX52: 0 | EY52: 0 | EZ52: 0 | FA52: 0 | FB52: 0 | FC52: 0 | FD52: 0 | FE52: 0 | FF52: 0 | FG52: 0 | FH52: 0 | FI52: 0 | FJ52: 0 | FK52: 0 | FL52: 0 | FM52: 0 | FN52: 0 | FO52: 0 | FP52: 0 | FQ52: 0 | FR52: 0 | FS52: 0 | FT52: 0 | FU52: 0 | FV52: 0 | FW52: 0 | FX52: 0 | FY52: 0 | FZ52: 0 | GA52: 0 | GB52: 0 | GC52: 0 | GD52: 0 | GE52: 0 | GF52: 0 | GG52: 0 | GH52: 0 | GI52: 0 | GJ52: 0 | GK52: 0 | GL52: 0 | GM52: 0 | GN52: =IF(GN51>$F10+1,0,1)*(IF(GO52=0,100,0)+IF($G10=1,1,0)*$J10*100+IF($G10=2,0.5,0)*$J10*100+IF($G10=4,0.25,0)*$J10*100) -> 0 | GO52: 0 | GP52: 0 | GQ52: 0 | GR52: 0 | GS52: 0
A53: Payment Dates | B53: =IF(E11=0,F11,E11) -> 00:00:00 | C53: =B53+IF($G11=1,365,0)+IF($G11=2,182.5,0)+IF($G11=4,91.25,0) -> 00:00:00 | D53: =C53+IF($G11=1,365,0)+IF($G11=2,182.5,0)+IF($G11=4,91.25,0) -> 00:00:00 | E53: 00:00:00 | F53: 00:00:00 | G53: 00:00:00 | H53: 00:00:00 | I53: 00:00:00 | J53: 00:00:00 | K53: 00:00:00 | L53: 00:00:00 | M53: 00:00:00 | N53: 00:00:00 | O53: 00:00:00 | P53: 00:00:00 | Q53: 00:00:00 | R53: 00:00:00 | S53: 00:00:00 | T53: 00:00:00 | U53: 00:00:00 | V53: 00:00:00 | W53: 00:00:00 | X53: 00:00:00 | Y53: 00:00:00 | Z53: 00:00:00 | AA53: 00:00:00 | AB53: 00:00:00 | AC53: 00:00:00 | AD53: 00:00:00 | AE53: 00:00:00 | AF53: 00:00:00 | AG53: 00:00:00 | AH53: 00:00:00 | AI53: 00:00:00 | AJ53: 00:00:00 | AK53: 00:00:00 | AL53: 00:00:00 | AM53: 00:00:00 | AN53: 00:00:00 | AO53: 00:00:00 | AP53: 00:00:00 | AQ53: 00:00:00 | AR53: 00:00:00 | AS53: 00:00:00 | AT53: 00:00:00 | AU53: 00:00:00 | AV53: 00:00:00 | AW53: 00:00:00 | AX53: 00:00:00 | AY53: 00:00:00 | AZ53: 00:00:00 | BA53: 00:00:00 | BB53: 00:00:00 | BC53: 00:00:00 | BD53: 00:00:00 | BE53: 00:00:00 | BF53: 00:00:00 | BG53: 00:00:00 | BH53: 00:00:00 | BI53: 00:00:00 | BJ53: 00:00:00 | BK53: 00:00:00 | BL53: 00:00:00 | BM53: 00:00:00 | BN53: 00:00:00 | BO53: 00:00:00 | BP53: =BO53+IF($G11=1,365,0)+IF($G11=2,182.5,0)+IF($G11=4,91.25,0) -> 00:00:00 | BQ53: 00:00:00 | BR53: 00:00:00 | BS53: 00:00:00 | BT53: 00:00:00 | BU53: 00:00:00 | BV53: 00:00:00 | BW53: 00:00:00 | BX53: 00:00:00 | BY53: 00:00:00 | BZ53: 00:00:00 | CA53: 00:00:00 | CB53: 00:00:00 | CC53: 00:00:00 | CD53: 00:00:00 | CE53: 00:00:00 | CF53: 00:00:00 | CG53: 00:00:00 | CH53: 00:00:00 | CI53: 00:00:00 | CJ53: 00:00:00 | CK53: 00:00:00 | CL53: 00:00:00 | CM53: 00:00:00 | CN53: 00:00:00 | CO53: 00:00:00 | CP53: 00:00:00 | CQ53: 00:00:00 | CR53: 00:00:00 | CS53: 00:00:00 | CT53: 00:00:00 | CU53: 00:00:00 | CV53: 00:00:00 | CW53: 00:00:00 | CX53: 00:00:00 | CY53: 00:00:00 | CZ53: 00:00:00 | DA53: 00:00:00 | DB53: 00:00:00 | DC53: 00:00:00 | DD53: 00:00:00 | DE53: 00:00:00 | DF53: 00:00:00 | DG53: 00:00:00 | DH53: 00:00:00 | DI53: 00:00:00 | DJ53: 00:00:00 | DK53: 00:00:00 | DL53: 00:00:00 | DM53: 00:00:00 | DN53: 00:00:00 | DO53: 00:00:00 | DP53: 00:00:00 | DQ53: 00:00:00 | DR53: 00:00:00 | DS53: 00:00:00 | DT53: 00:00:00 | DU53: 00:00:00 | DV53: 00:00:00 | DW53: 00:00:00 | DX53: 00:00:00 | DY53: 00:00:00 | DZ53: 00:00:00 | EA53: 00:00:00 | EB53: =EA53+IF($G11=1,365,0)+IF($G11=2,182.5,0)+IF($G11=4,91.25,0) -> 00:00:00 | EC53: 00:00:00 | ED53: 00:00:00 | EE53: 00:00:00 | EF53: 00:00:00 | EG53: 00:00:00 | EH53: 00:00:00 | EI53: 00:00:00 | EJ53: 00:00:00 | EK53: 00:00:00 | EL53: 00:00:00 | EM53: 00:00:00 | EN53: 00:00:00 | EO53: 00:00:00 | EP53: 00:00:00 | EQ53: 00:00:00 | ER53: 00:00:00 | ES53: 00:00:00 | ET53: 00:00:00 | EU53: 00:00:00 | EV53: 00:00:00 | EW53: 00:00:00 | EX53: 00:00:00 | EY53: 00:00:00 | EZ53: 00:00:00 | FA53: 00:00:00 | FB53: 00:00:00 | FC53: 00:00:00 | FD53: 00:00:00 | FE53: 00:00:00 | FF53: 00:00:00 | FG53: 00:00:00 | FH53: 00:00:00 | FI53: 00:00:00 | FJ53: 00:00:00 | FK53: 00:00:00 | FL53: 00:00:00 | FM53: 00:00:00 | FN53: 00:00:00 | FO53: 00:00:00 | FP53: 00:00:00 | FQ53: 00:00:00 | FR53: 00:00:00 | FS53: 00:00:00 | FT53: 00:00:00 | FU53: 00:00:00 | FV53: 00:00:00 | FW53: 00:00:00 | FX53: 00:00:00 | FY53: 00:00:00 | FZ53: 00:00:00 | GA53: 00:00:00 | GB53: 00:00:00 | GC53: 00:00:00 | GD53: 00:00:00 | GE53: 00:00:00 | GF53: 00:00:00 | GG53: 00:00:00 | GH53: 00:00:00 | GI53: 00:00:00 | GJ53: 00:00:00 | GK53: 00:00:00 | GL53: 00:00:00 | GM53: 00:00:00 | GN53: =GM53+IF($G11=1,365,0)+IF($G11=2,182.5,0)+IF($G11=4,91.25,0) -> 00:00:00 | GO53: 00:00:00 | GP53: 00:00:00 | GQ53: 00:00:00 | GR53: 00:00:00 | GS53: 00:00:00
A54: Bond 10 | B54: =(IF(B53=F11,100,0)+IF(G11=1,1,0)*J11*100+IF(G11=2,0.5,0)*J11*100+IF(G11=4,0.25,0)*J11*100)*IF(ISBLANK(F11)=TRUE,0,1) -> 0 | C54: =IF(C53>$F11+1,0,1)*(IF(D54=0,100,0)+IF($G11=1,1,0)*$J11*100+IF($G11=2,0.5,0)*$J11*100+IF($G11=4,0.25,0)*$J11*100) -> 100 | D54: =IF(D53>$F11+1,0,1)*(IF(E54=0,100,0)+IF($G11=1,1,0)*$J11*100+IF($G11=2,0.5,0)*$J11*100+IF($G11=4,0.25,0)*$J11*100) -> 0 | E54: 100 | F54: 0 | G54: 100 | H54: 0 | I54: 100 | J54: 0 | K54: 100 | L54: 0 | M54: 100 | N54: 0 | O54: 100 | P54: 0 | Q54: 100 | R54: 0 | S54: 100 | T54: 0 | U54: 100 | V54: 0 | W54: 100 | X54: 0 | Y54: 100 | Z54: 0 | AA54: 100 | AB54: 0 | AC54: 100 | AD54: 0 | AE54: 100 | AF54: 0 | AG54: 100 | AH54: 0 | AI54: 100 | AJ54: 0 | AK54: 100 | AL54: 0 | AM54: 100 | AN54: 0 | AO54: 100 | AP54: 0 | AQ54: 100 | AR54: 0 | AS54: 100 | AT54: 0 | AU54: 100 | AV54: 0 | AW54: 100 | AX54: 0 | AY54: 100 | AZ54: 0 | BA54: 100 | BB54: 0 | BC54: 100 | BD54: 0 | BE54: 100 | BF54: 0 | BG54: 100 | BH54: 0 | BI54: 100 | BJ54: 0 | BK54: 100 | BL54: 0 | BM54: 100 | BN54: 0 | BO54: 100 | BP54: =IF(BP53>$F11+1,0,1)*(IF(BQ54=0,100,0)+IF($G11=1,1,0)*$J11*100+IF($G11=2,0.5,0)*$J11*100+IF($G11=4,0.25,0)*$J11*100) -> 0 | BQ54: 100 | BR54: 0 | BS54: 100 | BT54: 0 | BU54: 100 | BV54: 0 | BW54: 100 | BX54: 0 | BY54: 100 | BZ54: 0 | CA54: 100 | CB54: 0 | CC54: 100 | CD54: 0 | CE54: 100 | CF54: 0 | CG54: 100 | CH54: 0 | CI54: 100 | CJ54: 0 | CK54: 100 | CL54: 0 | CM54: 100 | CN54: 0 | CO54: 100 | CP54: 0 | CQ54: 100 | CR54: 0 | CS54: 100 | CT54: 0 | CU54: 100 | CV54: 0 | CW54: 100 | CX54: 0 | CY54: 100 | CZ54: 0 | DA54: 100 | DB54: 0 | DC54: 100 | DD54: 0 | DE54: 100 | DF54: 0 | DG54: 100 | DH54: 0 | DI54: 100 | DJ54: 0 | DK54: 100 | DL54: 0 | DM54: 100 | DN54: 0 | DO54: 100 | DP54: 0 | DQ54: 100 | DR54: 0 | DS54: 100 | DT54: 0 | DU54: 100 | DV54: 0 | DW54: 100 | DX54: 0 | DY54: 100 | DZ54: 0 | EA54: 100 | EB54: =IF(EB53>$F11+1,0,1)*(IF(EC54=0,100,0)+IF($G11=1,1,0)*$J11*100+IF($G11=2,0.5,0)*$J11*100+IF($G11=4,0.25,0)*$J11*100) -> 0 | EC54: 100 | ED54: 0 | EE54: 100 | EF54: 0 | EG54: 100 | EH54: 0 | EI54: 100 | EJ54: 0 | EK54: 100 | EL54: 0 | EM54: 100 | EN54: 0 | EO54: 100 | EP54: 0 | EQ54: 100 | ER54: 0 | ES54: 100 | ET54: 0 | EU54: 100 | EV54: 0 | EW54: 100 | EX54: 0 | EY54: 100 | EZ54: 0 | FA54: 100 | FB54: 0 | FC54: 100 | FD54: 0 | FE54: 100 | FF54: 0 | FG54: 100 | FH54: 0 | FI54: 100 | FJ54: 0 | FK54: 100 | FL54: 0 | FM54: 100 | FN54: 0 | FO54: 100 | FP54: 0 | FQ54: 100 | FR54: 0 | FS54: 100 | FT54: 0 | FU54: 100 | FV54: 0 | FW54: 100 | FX54: 0 | FY54: 100 | FZ54: 0 | GA54: 100 | GB54: 0 | GC54: 100 | GD54: 0 | GE54: 100 | GF54: 0 | GG54: 100 | GH54: 0 | GI54: 100 | GJ54: 0 | GK54: 100 | GL54: 0 | GM54: 100 | GN54: =IF(GN53>$F11+1,0,1)*(IF(GO54=0,100,0)+IF($G11=1,1,0)*$J11*100+IF($G11=2,0.5,0)*$J11*100+IF($G11=4,0.25,0)*$J11*100) -> 0 | GO54: 100 | GP54: 0 | GQ54: 100 | GR54: 0 | GS54: 100
A55: Payment Dates | B55: =IF(E12=0,F12,E12) -> 00:00:00 | C55: =B55+IF($G12=1,365,0)+IF($G12=2,182.5,0)+IF($G12=4,91.25,0) -> 00:00:00 | D55: =C55+IF($G12=1,365,0)+IF($G12=2,182.5,0)+IF($G12=4,91.25,0) -> 00:00:00 | E55: 00:00:00 | F55: 00:00:00 | G55: 00:00:00 | H55: 00:00:00 | I55: 00:00:00 | J55: 00:00:00 | K55: 00:00:00 | L55: 00:00:00 | M55: 00:00:00 | N55: 00:00:00 | O55: 00:00:00 | P55: 00:00:00 | Q55: 00:00:00 | R55: 00:00:00 | S55: 00:00:00 | T55: 00:00:00 | U55: 00:00:00 | V55: 00:00:00 | W55: 00:00:00 | X55: 00:00:00 | Y55: 00:00:00 | Z55: 00:00:00 | AA55: 00:00:00 | AB55: 00:00:00 | AC55: 00:00:00 | AD55: 00:00:00 | AE55: 00:00:00 | AF55: 00:00:00 | AG55: 00:00:00 | AH55: 00:00:00 | AI55: 00:00:00 | AJ55: 00:00:00 | AK55: 00:00:00 | AL55: 00:00:00 | AM55: 00:00:00 | AN55: 00:00:00 | AO55: 00:00:00 | AP55: 00:00:00 | AQ55: 00:00:00 | AR55: 00:00:00 | AS55: 00:00:00 | AT55: 00:00:00 | AU55: 00:00:00 | AV55: 00:00:00 | AW55: 00:00:00 | AX55: 00:00:00 | AY55: 00:00:00 | AZ55: 00:00:00 | BA55: 00:00:00 | BB55: 00:00:00 | BC55: 00:00:00 | BD55: 00:00:00 | BE55: 00:00:00 | BF55: 00:00:00 | BG55: 00:00:00 | BH55: 00:00:00 | BI55: 00:00:00 | BJ55: 00:00:00 | BK55: 00:00:00 | BL55: 00:00:00 | BM55: 00:00:00 | BN55: 00:00:00 | BO55: 00:00:00 | BP55: =BO55+IF($G12=1,365,0)+IF($G12=2,182.5,0)+IF($G12=4,91.25,0) -> 00:00:00 | BQ55: 00:00:00 | BR55: 00:00:00 | BS55: 00:00:00 | BT55: 00:00:00 | BU55: 00:00:00 | BV55: 00:00:00 | BW55: 00:00:00 | BX55: 00:00:00 | BY55: 00:00:00 | BZ55: 00:00:00 | CA55: 00:00:00 | CB55: 00:00:00 | CC55: 00:00:00 | CD55: 00:00:00 | CE55: 00:00:00 | CF55: 00:00:00 | CG55: 00:00:00 | CH55: 00:00:00 | CI55: 00:00:00 | CJ55: 00:00:00 | CK55: 00:00:00 | CL55: 00:00:00 | CM55: 00:00:00 | CN55: 00:00:00 | CO55: 00:00:00 | CP55: 00:00:00 | CQ55: 00:00:00 | CR55: 00:00:00 | CS55: 00:00:00 | CT55: 00:00:00 | CU55: 00:00:00 | CV55: 00:00:00 | CW55: 00:00:00 | CX55: 00:00:00 | CY55: 00:00:00 | CZ55: 00:00:00 | DA55: 00:00:00 | DB55: 00:00:00 | DC55: 00:00:00 | DD55: 00:00:00 | DE55: 00:00:00 | DF55: 00:00:00 | DG55: 00:00:00 | DH55: 00:00:00 | DI55: 00:00:00 | DJ55: 00:00:00 | DK55: 00:00:00 | DL55: 00:00:00 | DM55: 00:00:00 | DN55: 00:00:00 | DO55: 00:00:00 | DP55: 00:00:00 | DQ55: 00:00:00 | DR55: 00:00:00 | DS55: 00:00:00 | DT55: 00:00:00 | DU55: 00:00:00 | DV55: 00:00:00 | DW55: 00:00:00 | DX55: 00:00:00 | DY55: 00:00:00 | DZ55: 00:00:00 | EA55: 00:00:00 | EB55: =EA55+IF($G12=1,365,0)+IF($G12=2,182.5,0)+IF($G12=4,91.25,0) -> 00:00:00 | EC55: 00:00:00 | ED55: 00:00:00 | EE55: 00:00:00 | EF55: 00:00:00 | EG55: 00:00:00 | EH55: 00:00:00 | EI55: 00:00:00 | EJ55: 00:00:00 | EK55: 00:00:00 | EL55: 00:00:00 | EM55: 00:00:00 | EN55: 00:00:00 | EO55: 00:00:00 | EP55: 00:00:00 | EQ55: 00:00:00 | ER55: 00:00:00 | ES55: 00:00:00 | ET55: 00:00:00 | EU55: 00:00:00 | EV55: 00:00:00 | EW55: 00:00:00 | EX55: 00:00:00 | EY55: 00:00:00 | EZ55: 00:00:00 | FA55: 00:00:00 | FB55: 00:00:00 | FC55: 00:00:00 | FD55: 00:00:00 | FE55: 00:00:00 | FF55: 00:00:00 | FG55: 00:00:00 | FH55: 00:00:00 | FI55: 00:00:00 | FJ55: 00:00:00 | FK55: 00:00:00 | FL55: 00:00:00 | FM55: 00:00:00 | FN55: 00:00:00 | FO55: 00:00:00 | FP55: 00:00:00 | FQ55: 00:00:00 | FR55: 00:00:00 | FS55: 00:00:00 | FT55: 00:00:00 | FU55: 00:00:00 | FV55: 00:00:00 | FW55: 00:00:00 | FX55: 00:00:00 | FY55: 00:00:00 | FZ55: 00:00:00 | GA55: 00:00:00 | GB55: 00:00:00 | GC55: 00:00:00 | GD55: 00:00:00 | GE55: 00:00:00 | GF55: 00:00:00 | GG55: 00:00:00 | GH55: 00:00:00 | GI55: 00:00:00 | GJ55: 00:00:00 | GK55: 00:00:00 | GL55: 00:00:00 | GM55: 00:00:00 | GN55: =GM55+IF($G12=1,365,0)+IF($G12=2,182.5,0)+IF($G12=4,91.25,0) -> 00:00:00 | GO55: 00:00:00 | GP55: 00:00:00 | GQ55: 00:00:00 | GR55: 00:00:00 | GS55: 00:00:00
A56: Bond 11 | B56: =(IF(B55=F12,100,0)+IF(G12=1,1,0)*J12*100+IF(G12=2,0.5,0)*J12*100+IF(G12=4,0.25,0)*J12*100)*IF(ISBLANK(F12)=TRUE,0,1) -> 0 | C56: =IF(C55>$F12+2,0,1)*(IF(D56=0,100,0)+IF($G12=1,1,0)*$J12*100+IF($G12=2,0.5,0)*$J12*100+IF($G12=4,0.25,0)*$J12*100) -> 100 | D56: =IF(D55>$F12+2,0,1)*(IF(E56=0,100,0)+IF($G12=1,1,0)*$J12*100+IF($G12=2,0.5,0)*$J12*100+IF($G12=4,0.25,0)*$J12*100) -> 0 | E56: 100 | F56: 0 | G56: 100 | H56: 0 | I56: 100 | J56: 0 | K56: 100 | L56: 0 | M56: 100 | N56: 0 | O56: 100 | P56: 0 | Q56: 100 | R56: 0 | S56: 100 | T56: 0 | U56: 100 | V56: 0 | W56: 100 | X56: 0 | Y56: 100 | Z56: 0 | AA56: 100 | AB56: 0 | AC56: 100 | AD56: 0 | AE56: 100 | AF56: 0 | AG56: 100 | AH56: 0 | AI56: 100 | AJ56: 0 | AK56: 100 | AL56: 0 | AM56: 100 | AN56: 0 | AO56: 100 | AP56: 0 | AQ56: 100 | AR56: 0 | AS56: 100 | AT56: 0 | AU56: 100 | AV56: 0 | AW56: 100 | AX56: 0 | AY56: 100 | AZ56: 0 | BA56: 100 | BB56: 0 | BC56: 100 | BD56: 0 | BE56: 100 | BF56: 0 | BG56: 100 | BH56: 0 | BI56: 100 | BJ56: 0 | BK56: 100 | BL56: 0 | BM56: 100 | BN56: 0 | BO56: 100 | BP56: =IF(BP55>$F12+2,0,1)*(IF(BQ56=0,100,0)+IF($G12=1,1,0)*$J12*100+IF($G12=2,0.5,0)*$J12*100+IF($G12=4,0.25,0)*$J12*100) -> 0 | BQ56: 100 | BR56: 0 | BS56: 100 | BT56: 0 | BU56: 100 | BV56: 0 | BW56: 100 | BX56: 0 | BY56: 100 | BZ56: 0 | CA56: 100 | CB56: 0 | CC56: 100 | CD56: 0 | CE56: 100 | CF56: 0 | CG56: 100 | CH56: 0 | CI56: 100 | CJ56: 0 | CK56: 100 | CL56: 0 | CM56: 100 | CN56: 0 | CO56: 100 | CP56: 0 | CQ56: 100 | CR56: 0 | CS56: 100 | CT56: 0 | CU56: 100 | CV56: 0 | CW56: 100 | CX56: 0 | CY56: 100 | CZ56: 0 | DA56: 100 | DB56: 0 | DC56: 100 | DD56: 0 | DE56: 100 | DF56: 0 | DG56: 100 | DH56: 0 | DI56: 100 | DJ56: 0 | DK56: 100 | DL56: 0 | DM56: 100 | DN56: 0 | DO56: 100 | DP56: 0 | DQ56: 100 | DR56: 0 | DS56: 100 | DT56: 0 | DU56: 100 | DV56: 0 | DW56: 100 | DX56: 0 | DY56: 100 | DZ56: 0 | EA56: 100 | EB56: =IF(EB55>$F12+2,0,1)*(IF(EC56=0,100,0)+IF($G12=1,1,0)*$J12*100+IF($G12=2,0.5,0)*$J12*100+IF($G12=4,0.25,0)*$J12*100) -> 0 | EC56: 100 | ED56: 0 | EE56: 100 | EF56: 0 | EG56: 100 | EH56: 0 | EI56: 100 | EJ56: 0 | EK56: 100 | EL56: 0 | EM56: 100 | EN56: 0 | EO56: 100 | EP56: 0 | EQ56: 100 | ER56: 0 | ES56: 100 | ET56: 0 | EU56: 100 | EV56: 0 | EW56: 100 | EX56: 0 | EY56: 100 | EZ56: 0 | FA56: 100 | FB56: 0 | FC56: 100 | FD56: 0 | FE56: 100 | FF56: 0 | FG56: 100 | FH56: 0 | FI56: 100 | FJ56: 0 | FK56: 100 | FL56: 0 | FM56: 100 | FN56: 0 | FO56: 100 | FP56: 0 | FQ56: 100 | FR56: 0 | FS56: 100 | FT56: 0 | FU56: 100 | FV56: 0 | FW56: 100 | FX56: 0 | FY56: 100 | FZ56: 0 | GA56: 100 | GB56: 0 | GC56: 100 | GD56: 0 | GE56: 100 | GF56: 0 | GG56: 100 | GH56: 0 | GI56: 100 | GJ56: 0 | GK56: 100 | GL56: 0 | GM56: 100 | GN56: =IF(GN55>$F12+2,0,1)*(IF(GO56=0,100,0)+IF($G12=1,1,0)*$J12*100+IF($G12=2,0.5,0)*$J12*100+IF($G12=4,0.25,0)*$J12*100) -> 0 | GO56: 100 | GP56: 0 | GQ56: 100 | GR56: 0 | GS56: 100
A57: Payment Dates | B57: =IF(E13=0,F13,E13) -> 00:00:00 | C57: =B57+IF($G13=1,365,0)+IF($G13=2,182.5,0)+IF($G13=4,91.25,0) -> 00:00:00 | D57: =C57+IF($G13=1,365,0)+IF($G13=2,182.5,0)+IF($G13=4,91.25,0) -> 00:00:00 | E57: 00:00:00 | F57: 00:00:00 | G57: 00:00:00 | H57: 00:00:00 | I57: 00:00:00 | J57: 00:00:00 | K57: 00:00:00 | L57: 00:00:00 | M57: 00:00:00 | N57: 00:00:00 | O57: 00:00:00 | P57: 00:00:00 | Q57: 00:00:00 | R57: 00:00:00 | S57: 00:00:00 | T57: 00:00:00 | U57: 00:00:00 | V57: 00:00:00 | W57: 00:00:00 | X57: 00:00:00 | Y57: 00:00:00 | Z57: 00:00:00 | AA57: 00:00:00 | AB57: 00:00:00 | AC57: 00:00:00 | AD57: 00:00:00 | AE57: 00:00:00 | AF57: 00:00:00 | AG57: 00:00:00 | AH57: 00:00:00 | AI57: 00:00:00 | AJ57: 00:00:00 | AK57: 00:00:00 | AL57: 00:00:00 | AM57: 00:00:00 | AN57: 00:00:00 | AO57: 00:00:00 | AP57: 00:00:00 | AQ57: 00:00:00 | AR57: 00:00:00 | AS57: 00:00:00 | AT57: 00:00:00 | AU57: 00:00:00 | AV57: 00:00:00 | AW57: 00:00:00 | AX57: 00:00:00 | AY57: 00:00:00 | AZ57: 00:00:00 | BA57: 00:00:00 | BB57: 00:00:00 | BC57: 00:00:00 | BD57: 00:00:00 | BE57: 00:00:00 | BF57: 00:00:00 | BG57: 00:00:00 | BH57: 00:00:00 | BI57: 00:00:00 | BJ57: 00:00:00 | BK57: 00:00:00 | BL57: 00:00:00 | BM57: 00:00:00 | BN57: 00:00:00 | BO57: 00:00:00 | BP57: =BO57+IF($G13=1,365,0)+IF($G13=2,182.5,0)+IF($G13=4,91.25,0) -> 00:00:00 | BQ57: 00:00:00 | BR57: 00:00:00 | BS57: 00:00:00 | BT57: 00:00:00 | BU57: 00:00:00 | BV57: 00:00:00 | BW57: 00:00:00 | BX57: 00:00:00 | BY57: 00:00:00 | BZ57: 00:00:00 | CA57: 00:00:00 | CB57: 00:00:00 | CC57: 00:00:00 | CD57: 00:00:00 | CE57: 00:00:00 | CF57: 00:00:00 | CG57: 00:00:00 | CH57: 00:00:00 | CI57: 00:00:00 | CJ57: 00:00:00 | CK57: 00:00:00 | CL57: 00:00:00 | CM57: 00:00:00 | CN57: 00:00:00 | CO57: 00:00:00 | CP57: 00:00:00 | CQ57: 00:00:00 | CR57: 00:00:00 | CS57: 00:00:00 | CT57: 00:00:00 | CU57: 00:00:00 | CV57: 00:00:00 | CW57: 00:00:00 | CX57: 00:00:00 | CY57: 00:00:00 | CZ57: 00:00:00 | DA57: 00:00:00 | DB57: 00:00:00 | DC57: 00:00:00 | DD57: 00:00:00 | DE57: 00:00:00 | DF57: 00:00:00 | DG57: 00:00:00 | DH57: 00:00:00 | DI57: 00:00:00 | DJ57: 00:00:00 | DK57: 00:00:00 | DL57: 00:00:00 | DM57: 00:00:00 | DN57: 00:00:00 | DO57: 00:00:00 | DP57: 00:00:00 | DQ57: 00:00:00 | DR57: 00:00:00 | DS57: 00:00:00 | DT57: 00:00:00 | DU57: 00:00:00 | DV57: 00:00:00 | DW57: 00:00:00 | DX57: 00:00:00 | DY57: 00:00:00 | DZ57: 00:00:00 | EA57: 00:00:00 | EB57: =EA57+IF($G13=1,365,0)+IF($G13=2,182.5,0)+IF($G13=4,91.25,0) -> 00:00:00 | EC57: 00:00:00 | ED57: 00:00:00 | EE57: 00:00:00 | EF57: 00:00:00 | EG57: 00:00:00 | EH57: 00:00:00 | EI57: 00:00:00 | EJ57: 00:00:00 | EK57: 00:00:00 | EL57: 00:00:00 | EM57: 00:00:00 | EN57: 00:00:00 | EO57: 00:00:00 | EP57: 00:00:00 | EQ57: 00:00:00 | ER57: 00:00:00 | ES57: 00:00:00 | ET57: 00:00:00 | EU57: 00:00:00 | EV57: 00:00:00 | EW57: 00:00:00 | EX57: 00:00:00 | EY57: 00:00:00 | EZ57: 00:00:00 | FA57: 00:00:00 | FB57: 00:00:00 | FC57: 00:00:00 | FD57: 00:00:00 | FE57: 00:00:00 | FF57: 00:00:00 | FG57: 00:00:00 | FH57: 00:00:00 | FI57: 00:00:00 | FJ57: 00:00:00 | FK57: 00:00:00 | FL57: 00:00:00 | FM57: 00:00:00 | FN57: 00:00:00 | FO57: 00:00:00 | FP57: 00:00:00 | FQ57: 00:00:00 | FR57: 00:00:00 | FS57: 00:00:00 | FT57: 00:00:00 | FU57: 00:00:00 | FV57: 00:00:00 | FW57: 00:00:00 | FX57: 00:00:00 | FY57: 00:00:00 | FZ57: 00:00:00 | GA57: 00:00:00 | GB57: 00:00:00 | GC57: 00:00:00 | GD57: 00:00:00 | GE57: 00:00:00 | GF57: 00:00:00 | GG57: 00:00:00 | GH57: 00:00:00 | GI57: 00:00:00 | GJ57: 00:00:00 | GK57: 00:00:00 | GL57: 00:00:00 | GM57: 00:00:00 | GN57: =GM57+IF($G13=1,365,0)+IF($G13=2,182.5,0)+IF($G13=4,91.25,0) -> 00:00:00 | GO57: 00:00:00 | GP57: 00:00:00 | GQ57: 00:00:00 | GR57: 00:00:00 | GS57: 00:00:00
A58: Bond 12 | B58: =(IF(B57=F13,100,0)+IF(G13=1,1,0)*J13*100+IF(G13=2,0.5,0)*J13*100+IF(G13=4,0.25,0)*J13*100)*IF(ISBLANK(F13)=TRUE,0,1) -> 0 | C58: =IF(C57>$F13+1,0,1)*(IF(D58=0,100,0)+IF($G13=1,1,0)*$J13*100+IF($G13=2,0.5,0)*$J13*100+IF($G13=4,0.25,0)*$J13*100) -> 100 | D58: =IF(D57>$F13+1,0,1)*(IF(E58=0,100,0)+IF($G13=1,1,0)*$J13*100+IF($G13=2,0.5,0)*$J13*100+IF($G13=4,0.25,0)*$J13*100) -> 0 | E58: 100 | F58: 0 | G58: 100 | H58: 0 | I58: 100 | J58: 0 | K58: 100 | L58: 0 | M58: 100 | N58: 0 | O58: 100 | P58: 0 | Q58: 100 | R58: 0 | S58: 100 | T58: 0 | U58: 100 | V58: 0 | W58: 100 | X58: 0 | Y58: 100 | Z58: 0 | AA58: 100 | AB58: 0 | AC58: 100 | AD58: 0 | AE58: 100 | AF58: 0 | AG58: 100 | AH58: 0 | AI58: 100 | AJ58: 0 | AK58: 100 | AL58: 0 | AM58: 100 | AN58: 0 | AO58: 100 | AP58: 0 | AQ58: 100 | AR58: 0 | AS58: 100 | AT58: 0 | AU58: 100 | AV58: 0 | AW58: 100 | AX58: 0 | AY58: 100 | AZ58: 0 | BA58: 100 | BB58: 0 | BC58: 100 | BD58: 0 | BE58: 100 | BF58: 0 | BG58: 100 | BH58: 0 | BI58: 100 | BJ58: 0 | BK58: 100 | BL58: 0 | BM58: 100 | BN58: 0 | BO58: 100 | BP58: =IF(BP57>$F13+1,0,1)*(IF(BQ58=0,100,0)+IF($G13=1,1,0)*$J13*100+IF($G13=2,0.5,0)*$J13*100+IF($G13=4,0.25,0)*$J13*100) -> 0 | BQ58: 100 | BR58: 0 | BS58: 100 | BT58: 0 | BU58: 100 | BV58: 0 | BW58: 100 | BX58: 0 | BY58: 100 | BZ58: 0 | CA58: 100 | CB58: 0 | CC58: 100 | CD58: 0 | CE58: 100 | CF58: 0 | CG58: 100 | CH58: 0 | CI58: 100 | CJ58: 0 | CK58: 100 | CL58: 0 | CM58: 100 | CN58: 0 | CO58: 100 | CP58: 0 | CQ58: 100 | CR58: 0 | CS58: 100 | CT58: 0 | CU58: 100 | CV58: 0 | CW58: 100 | CX58: 0 | CY58: 100 | CZ58: 0 | DA58: 100 | DB58: 0 | DC58: 100 | DD58: 0 | DE58: 100 | DF58: 0 | DG58: 100 | DH58: 0 | DI58: 100 | DJ58: 0 | DK58: 100 | DL58: 0 | DM58: 100 | DN58: 0 | DO58: 100 | DP58: 0 | DQ58: 100 | DR58: 0 | DS58: 100 | DT58: 0 | DU58: 100 | DV58: 0 | DW58: 100 | DX58: 0 | DY58: 100 | DZ58: 0 | EA58: 100 | EB58: =IF(EB57>$F13+1,0,1)*(IF(EC58=0,100,0)+IF($G13=1,1,0)*$J13*100+IF($G13=2,0.5,0)*$J13*100+IF($G13=4,0.25,0)*$J13*100) -> 0 | EC58: 100 | ED58: 0 | EE58: 100 | EF58: 0 | EG58: 100 | EH58: 0 | EI58: 100 | EJ58: 0 | EK58: 100 | EL58: 0 | EM58: 100 | EN58: 0 | EO58: 100 | EP58: 0 | EQ58: 100 | ER58: 0 | ES58: 100 | ET58: 0 | EU58: 100 | EV58: 0 | EW58: 100 | EX58: 0 | EY58: 100 | EZ58: 0 | FA58: 100 | FB58: 0 | FC58: 100 | FD58: 0 | FE58: 100 | FF58: 0 | FG58: 100 | FH58: 0 | FI58: 100 | FJ58: 0 | FK58: 100 | FL58: 0 | FM58: 100 | FN58: 0 | FO58: 100 | FP58: 0 | FQ58: 100 | FR58: 0 | FS58: 100 | FT58: 0 | FU58: 100 | FV58: 0 | FW58: 100 | FX58: 0 | FY58: 100 | FZ58: 0 | GA58: 100 | GB58: 0 | GC58: 100 | GD58: 0 | GE58: 100 | GF58: 0 | GG58: 100 | GH58: 0 | GI58: 100 | GJ58: 0 | GK58: 100 | GL58: 0 | GM58: 100 | GN58: =IF(GN57>$F13+1,0,1)*(IF(GO58=0,100,0)+IF($G13=1,1,0)*$J13*100+IF($G13=2,0.5,0)*$J13*100+IF($G13=4,0.25,0)*$J13*100) -> 0 | GO58: 100 | GP58: 0 | GQ58: 100 | GR58: 0 | GS58: 100
A59: Payment Dates | B59: =IF(E14=0,F14,E14) -> 8/19/2019 | C59: =B59+IF($G14=1,365,0)+IF($G14=2,182.5,0)+IF($G14=4,91.25,0) -> 2020-02-17T12:00:00 | D59: =C59+IF($G14=1,365,0)+IF($G14=2,182.5,0)+IF($G14=4,91.25,0) -> 2020-08-18 | E59: 2021-02-16T12:00:00 | F59: 2021-08-18 | G59: 2022-02-16T12:00:00 | H59: 2022-08-18 | I59: 2023-02-16T12:00:00 | J59: 2023-08-18 | K59: 2024-02-16T12:00:00 | L59: 2024-08-17 | M59: 2025-02-15T12:00:00 | N59: 2025-08-17 | O59: 2026-02-15T12:00:00 | P59: 2026-08-17 | Q59: 2027-02-15T12:00:00 | R59: 2027-08-17 | S59: 2028-02-15T12:00:00 | T59: 2028-08-16 | U59: 2029-02-14T12:00:00 | V59: 2029-08-16 | W59: 2030-02-14T12:00:00 | X59: 2030-08-16 | Y59: 2031-02-14T12:00:00 | Z59: 2031-08-16 | AA59: 2032-02-14T12:00:00 | AB59: 2032-08-15 | AC59: 2033-02-13T12:00:00 | AD59: 2033-08-15 | AE59: 2034-02-13T12:00:00 | AF59: 2034-08-15 | AG59: 2035-02-13T12:00:00 | AH59: 2035-08-15 | AI59: 2036-02-13T12:00:00 | AJ59: 2036-08-14 | AK59: 2037-02-12T12:00:00 | AL59: 2037-08-14 | AM59: 2038-02-12T12:00:00 | AN59: 2038-08-14 | AO59: 2039-02-12T12:00:00 | AP59: 2039-08-14 | AQ59: 2040-02-12T12:00:00 | AR59: 2040-08-13 | AS59: 2041-02-11T12:00:00 | AT59: 2041-08-13 | AU59: 2042-02-11T12:00:00 | AV59: 2042-08-13 | AW59: 2043-02-11T12:00:00 | AX59: 2043-08-13 | AY59: 2044-02-11T12:00:00 | AZ59: 2044-08-12 | BA59: 2045-02-10T12:00:00 | BB59: 2045-08-12 | BC59: 2046-02-10T12:00:00 | BD59: 2046-08-12 | BE59: 2047-02-10T12:00:00 | BF59: 2047-08-12 | BG59: 2048-02-10T12:00:00 | BH59: 2048-08-11 | BI59: 2049-02-09T12:00:00 | BJ59: 2049-08-11 | BK59: 2050-02-09T12:00:00 | BL59: 2050-08-11 | BM59: 2051-02-09T12:00:00 | BN59: 2051-08-11 | BO59: 2052-02-09T12:00:00 | BP59: =BO59+IF($G14=1,365,0)+IF($G14=2,182.5,0)+IF($G14=4,91.25,0) -> 2052-08-10 | BQ59: 2053-02-08T12:00:00 | BR59: 2053-08-10 | BS59: 2054-02-08T12:00:00 | BT59: 2054-08-10 | BU59: 2055-02-08T12:00:00 | BV59: 2055-08-10 | BW59: 2056-02-08T12:00:00 | BX59: 2056-08-09 | BY59: 2057-02-07T12:00:00 | BZ59: 2057-08-09 | CA59: 2058-02-07T12:00:00 | CB59: 2058-08-09 | CC59: 2059-02-07T12:00:00 | CD59: 2059-08-09 | CE59: 2060-02-07T12:00:00 | CF59: 2060-08-08 | CG59: 2061-02-06T12:00:00 | CH59: 2061-08-08 | CI59: 2062-02-06T12:00:00 | CJ59: 2062-08-08 | CK59: 2063-02-06T12:00:00 | CL59: 2063-08-08 | CM59: 2064-02-06T12:00:00 | CN59: 2064-08-07 | CO59: 2065-02-05T12:00:00 | CP59: 2065-08-07 | CQ59: 2066-02-05T12:00:00 | CR59: 2066-08-07 | CS59: 2067-02-05T12:00:00 | CT59: 2067-08-07 | CU59: 2068-02-05T12:00:00 | CV59: 2068-08-06 | CW59: 2069-02-04T12:00:00 | CX59: 2069-08-06 | CY59: 2070-02-04T12:00:00 | CZ59: 2070-08-06 | DA59: 2071-02-04T12:00:00 | DB59: 2071-08-06 | DC59: 2072-02-04T12:00:00 | DD59: 2072-08-05 | DE59: 2073-02-03T12:00:00 | DF59: 2073-08-05 | DG59: 2074-02-03T12:00:00 | DH59: 2074-08-05 | DI59: 2075-02-03T12:00:00 | DJ59: 2075-08-05 | DK59: 2076-02-03T12:00:00 | DL59: 2076-08-04 | DM59: 2077-02-02T12:00:00 | DN59: 2077-08-04 | DO59: 2078-02-02T12:00:00 | DP59: 2078-08-04 | DQ59: 2079-02-02T12:00:00 | DR59: 2079-08-04 | DS59: 2080-02-02T12:00:00 | DT59: 2080-08-03 | DU59: 2081-02-01T12:00:00 | DV59: 2081-08-03 | DW59: 2082-02-01T12:00:00 | DX59: 2082-08-03 | DY59: 2083-02-01T12:00:00 | DZ59: 2083-08-03 | EA59: 2084-02-01T12:00:00 | EB59: =EA59+IF($G14=1,365,0)+IF($G14=2,182.5,0)+IF($G14=4,91.25,0) -> 2084-08-02 | EC59: 2085-01-31T12:00:00 | ED59: 2085-08-02 | EE59: 2086-01-31T12:00:00 | EF59: 2086-08-02 | EG59: 2087-01-31T12:00:00 | EH59: 2087-08-02 | EI59: 2088-01-31T12:00:00 | EJ59: 2088-08-01 | EK59: 2089-01-30T12:00:00 | EL59: 2089-08-01 | EM59: 2090-01-30T12:00:00 | EN59: 2090-08-01 | EO59: 2091-01-30T12:00:00 | EP59: 2091-08-01 | EQ59: 2092-01-30T12:00:00 | ER59: 2092-07-31 | ES59: 2093-01-29T12:00:00 | ET59: 2093-07-31 | EU59: 2094-01-29T12:00:00 | EV59: 2094-07-31 | EW59: 2095-01-29T12:00:00 | EX59: 2095-07-31 | EY59: 2096-01-29T12:00:00 | EZ59: 2096-07-30 | FA59: 2097-01-28T12:00:00 | FB59: 2097-07-30 | FC59: 2098-01-28T12:00:00 | FD59: 2098-07-30 | FE59: 2099-01-28T12:00:00 | FF59: 2099-07-30 | FG59: 2100-01-28T12:00:00 | FH59: 2100-07-30 | FI59: 2101-01-28T12:00:00 | FJ59: 2101-07-30 | FK59: 2102-01-28T12:00:00 | FL59: 2102-07-30 | FM59: 2103-01-28T12:00:00 | FN59: 2103-07-30 | FO59: 2104-01-28T12:00:00 | FP59: 2104-07-29 | FQ59: 2105-01-27T12:00:00 | FR59: 2105-07-29 | FS59: 2106-01-27T12:00:00 | FT59: 2106-07-29 | FU59: 2107-01-27T12:00:00 | FV59: 2107-07-29 | FW59: 2108-01-27T12:00:00 | FX59: 2108-07-28 | FY59: 2109-01-26T12:00:00 | FZ59: 2109-07-28 | GA59: 2110-01-26T12:00:00 | GB59: 2110-07-28 | GC59: 2111-01-26T12:00:00 | GD59: 2111-07-28 | GE59: 2112-01-26T12:00:00 | GF59: 2112-07-27 | GG59: 2113-01-25T12:00:00 | GH59: 2113-07-27 | GI59: 2114-01-25T12:00:00 | GJ59: 2114-07-27 | GK59: 2115-01-25T12:00:00 | GL59: 2115-07-27 | GM59: 2116-01-25T12:00:00 | GN59: =GM59+IF($G14=1,365,0)+IF($G14=2,182.5,0)+IF($G14=4,91.25,0) -> 2116-07-26 | GO59: 2117-01-24T12:00:00 | GP59: 2117-07-26 | GQ59: 2118-01-24T12:00:00 | GR59: 2118-07-26 | GS59: 2119-01-24T12:00:00
A60: Bond 13 | B60: =(IF(B59=F14,100,0)+IF(G14=1,1,0)*J14*100+IF(G14=2,0.5,0)*J14*100+IF(G14=4,0.25,0)*J14*100)*IF(ISBLANK(F14)=TRUE,0,1) -> 100.875 | C60: =IF(C59>$F14+2,0,1)*(IF(D60=0,100,0)+IF($G14=1,1,0)*$J14*100+IF($G14=2,0.5,0)*$J14*100+IF($G14=4,0.25,0)*$J14*100) -> 0 | D60: =IF(D59>$F14+1,0,1)*(IF(E60=0,100,0)+IF($G14=1,1,0)*$J14*100+IF($G14=2,0.5,0)*$J14*100+IF($G14=4,0.25,0)*$J14*100) -> 0 | E60: 0 | F60: 0 | G60: 0 | H60: 0 | I60: 0 | J60: 0 | K60: 0 | L60: 0 | M60: 0 | N60: 0 | O60: 0 | P60: 0 | Q60: 0 | R60: 0 | S60: 0 | T60: 0 | U60: 0 | V60: 0 | W60: 0 | X60: 0 | Y60: 0 | Z60: 0 | AA60: 0 | AB60: 0 | AC60: 0 | AD60: 0 | AE60: 0 | AF60: 0 | AG60: 0 | AH60: 0 | AI60: 0 | AJ60: 0 | AK60: 0 | AL60: 0 | AM60: 0 | AN60: 0 | AO60: 0 | AP60: 0 | AQ60: 0 | AR60: 0 | AS60: 0 | AT60: 0 | AU60: 0 | AV60: 0 | AW60: 0 | AX60: 0 | AY60: 0 | AZ60: 0 | BA60: 0 | BB60: 0 | BC60: 0 | BD60: 0 | BE60: 0 | BF60: 0 | BG60: 0 | BH60: 0 | BI60: 0 | BJ60: 0 | BK60: 0 | BL60: 0 | BM60: 0 | BN60: 0 | BO60: 0 | BP60: =IF(BP59>$F14+1,0,1)*(IF(BQ60=0,100,0)+IF($G14=1,1,0)*$J14*100+IF($G14=2,0.5,0)*$J14*100+IF($G14=4,0.25,0)*$J14*100) -> 0 | BQ60: 0 | BR60: 0 | BS60: 0 | BT60: 0 | BU60: 0 | BV60: 0 | BW60: 0 | BX60: 0 | BY60: 0 | BZ60: 0 | CA60: 0 | CB60: 0 | CC60: 0 | CD60: 0 | CE60: 0 | CF60: 0 | CG60: 0 | CH60: 0 | CI60: 0 | CJ60: 0 | CK60: 0 | CL60: 0 | CM60: 0 | CN60: 0 | CO60: 0 | CP60: 0 | CQ60: 0 | CR60: 0 | CS60: 0 | CT60: 0 | CU60: 0 | CV60: 0 | CW60: 0 | CX60: 0 | CY60: 0 | CZ60: 0 | DA60: 0 | DB60: 0 | DC60: 0 | DD60: 0 | DE60: 0 | DF60: 0 | DG60: 0 | DH60: 0 | DI60: 0 | DJ60: 0 | DK60: 0 | DL60: 0 | DM60: 0 | DN60: 0 | DO60: 0 | DP60: 0 | DQ60: 0 | DR60: 0 | DS60: 0 | DT60: 0 | DU60: 0 | DV60: 0 | DW60: 0 | DX60: 0 | DY60: 0 | DZ60: 0 | EA60: 0 | EB60: =IF(EB59>$F14+1,0,1)*(IF(EC60=0,100,0)+IF($G14=1,1,0)*$J14*100+IF($G14=2,0.5,0)*$J14*100+IF($G14=4,0.25,0)*$J14*100) -> 0 | EC60: 0 | ED60: 0 | EE60: 0 | EF60: 0 | EG60: 0 | EH60: 0 | EI60: 0 | EJ60: 0 | EK60: 0 | EL60: 0 | EM60: 0 | EN60: 0 | EO60: 0 | EP60: 0 | EQ60: 0 | ER60: 0 | ES60: 0 | ET60: 0 | EU60: 0 | EV60: 0 | EW60: 0 | EX60: 0 | EY60: 0 | EZ60: 0 | FA60: 0 | FB60: 0 | FC60: 0 | FD60: 0 | FE60: 0 | FF60: 0 | FG60: 0 | FH60: 0 | FI60: 0 | FJ60: 0 | FK60: 0 | FL60: 0 | FM60: 0 | FN60: 0 | FO60: 0 | FP60: 0 | FQ60: 0 | FR60: 0 | FS60: 0 | FT60: 0 | FU60: 0 | FV60: 0 | FW60: 0 | FX60: 0 | FY60: 0 | FZ60: 0 | GA60: 0 | GB60: 0 | GC60: 0 | GD60: 0 | GE60: 0 | GF60: 0 | GG60: 0 | GH60: 0 | GI60: 0 | GJ60: 0 | GK60: 0 | GL60: 0 | GM60: 0 | GN60: =IF(GN59>$F14+1,0,1)*(IF(GO60=0,100,0)+IF($G14=1,1,0)*$J14*100+IF($G14=2,0.5,0)*$J14*100+IF($G14=4,0.25,0)*$J14*100) -> 0 | GO60: 0 | GP60: 0 | GQ60: 0 | GR60: 0 | GS60: 0
A61: Payment Dates | B61: =IF(E15=0,F15,E15) -> 00:00:00 | C61: =B61+IF($G15=1,365,0)+IF($G15=2,182.5,0)+IF($G15=4,91.25,0) -> 00:00:00 | D61: =C61+IF($G15=1,365,0)+IF($G15=2,182.5,0)+IF($G15=4,91.25,0) -> 00:00:00 | E61: 00:00:00 | F61: 00:00:00 | G61: 00:00:00 | H61: 00:00:00 | I61: 00:00:00 | J61: 00:00:00 | K61: 00:00:00 | L61: 00:00:00 | M61: 00:00:00 | N61: 00:00:00 | O61: 00:00:00 | P61: 00:00:00 | Q61: 00:00:00 | R61: 00:00:00 | S61: 00:00:00 | T61: 00:00:00 | U61: 00:00:00 | V61: 00:00:00 | W61: 00:00:00 | X61: 00:00:00 | Y61: 00:00:00 | Z61: 00:00:00 | AA61: 00:00:00 | AB61: 00:00:00 | AC61: 00:00:00 | AD61: 00:00:00 | AE61: 00:00:00 | AF61: 00:00:00 | AG61: 00:00:00 | AH61: 00:00:00 | AI61: 00:00:00 | AJ61: 00:00:00 | AK61: 00:00:00 | AL61: 00:00:00 | AM61: 00:00:00 | AN61: 00:00:00 | AO61: 00:00:00 | AP61: 00:00:00 | AQ61: 00:00:00 | AR61: 00:00:00 | AS61: 00:00:00 | AT61: 00:00:00 | AU61: 00:00:00 | AV61: 00:00:00 | AW61: 00:00:00 | AX61: 00:00:00 | AY61: 00:00:00 | AZ61: 00:00:00 | BA61: 00:00:00 | BB61: 00:00:00 | BC61: 00:00:00 | BD61: 00:00:00 | BE61: 00:00:00 | BF61: 00:00:00 | BG61: 00:00:00 | BH61: 00:00:00 | BI61: 00:00:00 | BJ61: 00:00:00 | BK61: 00:00:00 | BL61: 00:00:00 | BM61: 00:00:00 | BN61: 00:00:00 | BO61: 00:00:00 | BP61: =BO61+IF($G15=1,365,0)+IF($G15=2,182.5,0)+IF($G15=4,91.25,0) -> 00:00:00 | BQ61: 00:00:00 | BR61: 00:00:00 | BS61: 00:00:00 | BT61: 00:00:00 | BU61: 00:00:00 | BV61: 00:00:00 | BW61: 00:00:00 | BX61: 00:00:00 | BY61: 00:00:00 | BZ61: 00:00:00 | CA61: 00:00:00 | CB61: 00:00:00 | CC61: 00:00:00 | CD61: 00:00:00 | CE61: 00:00:00 | CF61: 00:00:00 | CG61: 00:00:00 | CH61: 00:00:00 | CI61: 00:00:00 | CJ61: 00:00:00 | CK61: 00:00:00 | CL61: 00:00:00 | CM61: 00:00:00 | CN61: 00:00:00 | CO61: 00:00:00 | CP61: 00:00:00 | CQ61: 00:00:00 | CR61: 00:00:00 | CS61: 00:00:00 | CT61: 00:00:00 | CU61: 00:00:00 | CV61: 00:00:00 | CW61: 00:00:00 | CX61: 00:00:00 | CY61: 00:00:00 | CZ61: 00:00:00 | DA61: 00:00:00 | DB61: 00:00:00 | DC61: 00:00:00 | DD61: 00:00:00 | DE61: 00:00:00 | DF61: 00:00:00 | DG61: 00:00:00 | DH61: 00:00:00 | DI61: 00:00:00 | DJ61: 00:00:00 | DK61: 00:00:00 | DL61: 00:00:00 | DM61: 00:00:00 | DN61: 00:00:00 | DO61: 00:00:00 | DP61: 00:00:00 | DQ61: 00:00:00 | DR61: 00:00:00 | DS61: 00:00:00 | DT61: 00:00:00 | DU61: 00:00:00 | DV61: 00:00:00 | DW61: 00:00:00 | DX61: 00:00:00 | DY61: 00:00:00 | DZ61: 00:00:00 | EA61: 00:00:00 | EB61: =EA61+IF($G15=1,365,0)+IF($G15=2,182.5,0)+IF($G15=4,91.25,0) -> 00:00:00 | EC61: 00:00:00 | ED61: 00:00:00 | EE61: 00:00:00 | EF61: 00:00:00 | EG61: 00:00:00 | EH61: 00:00:00 | EI61: 00:00:00 | EJ61: 00:00:00 | EK61: 00:00:00 | EL61: 00:00:00 | EM61: 00:00:00 | EN61: 00:00:00 | EO61: 00:00:00 | EP61: 00:00:00 | EQ61: 00:00:00 | ER61: 00:00:00 | ES61: 00:00:00 | ET61: 00:00:00 | EU61: 00:00:00 | EV61: 00:00:00 | EW61: 00:00:00 | EX61: 00:00:00 | EY61: 00:00:00 | EZ61: 00:00:00 | FA61: 00:00:00 | FB61: 00:00:00 | FC61: 00:00:00 | FD61: 00:00:00 | FE61: 00:00:00 | FF61: 00:00:00 | FG61: 00:00:00 | FH61: 00:00:00 | FI61: 00:00:00 | FJ61: 00:00:00 | FK61: 00:00:00 | FL61: 00:00:00 | FM61: 00:00:00 | FN61: 00:00:00 | FO61: 00:00:00 | FP61: 00:00:00 | FQ61: 00:00:00 | FR61: 00:00:00 | FS61: 00:00:00 | FT61: 00:00:00 | FU61: 00:00:00 | FV61: 00:00:00 | FW61: 00:00:00 | FX61: 00:00:00 | FY61: 00:00:00 | FZ61: 00:00:00 | GA61: 00:00:00 | GB61: 00:00:00 | GC61: 00:00:00 | GD61: 00:00:00 | GE61: 00:00:00 | GF61: 00:00:00 | GG61: 00:00:00 | GH61: 00:00:00 | GI61: 00:00:00 | GJ61: 00:00:00 | GK61: 00:00:00 | GL61: 00:00:00 | GM61: 00:00:00 | GN61: =GM61+IF($G15=1,365,0)+IF($G15=2,182.5,0)+IF($G15=4,91.25,0) -> 00:00:00 | GO61: 00:00:00 | GP61: 00:00:00 | GQ61: 00:00:00 | GR61: 00:00:00 | GS61: 00:00:00
A62: Bond 14 | B62: =(IF(B61=F15,100,0)+IF(G15=1,1,0)*J15*100+IF(G15=2,0.5,0)*J15*100+IF(G15=4,0.25,0)*J15*100)*IF(ISBLANK(F15)=TRUE,0,1) -> 0 | C62: =IF(C61>$F15+1,0,1)*(IF(D62=0,100,0)+IF($G15=1,1,0)*$J15*100+IF($G15=2,0.5,0)*$J15*100+IF($G15=4,0.25,0)*$J15*100) -> 100 | D62: =IF(D61>$F15+1,0,1)*(IF(E62=0,100,0)+IF($G15=1,1,0)*$J15*100+IF($G15=2,0.5,0)*$J15*100+IF($G15=4,0.25,0)*$J15*100) -> 0 | E62: 100 | F62: 0 | G62: 100 | H62: 0 | I62: 100 | J62: 0 | K62: 100 | L62: 0 | M62: 100 | N62: 0 | O62: 100 | P62: 0 | Q62: 100 | R62: 0 | S62: 100 | T62: 0 | U62: 100 | V62: 0 | W62: 100 | X62: 0 | Y62: 100 | Z62: 0 | AA62: 100 | AB62: 0 | AC62: 100 | AD62: 0 | AE62: 100 | AF62: 0 | AG62: 100 | AH62: 0 | AI62: 100 | AJ62: 0 | AK62: 100 | AL62: 0 | AM62: 100 | AN62: 0 | AO62: 100 | AP62: 0 | AQ62: 100 | AR62: 0 | AS62: 100 | AT62: 0 | AU62: 100 | AV62: 0 | AW62: 100 | AX62: 0 | AY62: 100 | AZ62: 0 | BA62: 100 | BB62: 0 | BC62: 100 | BD62: 0 | BE62: 100 | BF62: 0 | BG62: 100 | BH62: 0 | BI62: 100 | BJ62: 0 | BK62: 100 | BL62: 0 | BM62: 100 | BN62: 0 | BO62: 100 | BP62: =IF(BP61>$F15+1,0,1)*(IF(BQ62=0,100,0)+IF($G15=1,1,0)*$J15*100+IF($G15=2,0.5,0)*$J15*100+IF($G15=4,0.25,0)*$J15*100) -> 0 | BQ62: 100 | BR62: 0 | BS62: 100 | BT62: 0 | BU62: 100 | BV62: 0 | BW62: 100 | BX62: 0 | BY62: 100 | BZ62: 0 | CA62: 100 | CB62: 0 | CC62: 100 | CD62: 0 | CE62: 100 | CF62: 0 | CG62: 100 | CH62: 0 | CI62: 100 | CJ62: 0 | CK62: 100 | CL62: 0 | CM62: 100 | CN62: 0 | CO62: 100 | CP62: 0 | CQ62: 100 | CR62: 0 | CS62: 100 | CT62: 0 | CU62: 100 | CV62: 0 | CW62: 100 | CX62: 0 | CY62: 100 | CZ62: 0 | DA62: 100 | DB62: 0 | DC62: 100 | DD62: 0 | DE62: 100 | DF62: 0 | DG62: 100 | DH62: 0 | DI62: 100 | DJ62: 0 | DK62: 100 | DL62: 0 | DM62: 100 | DN62: 0 | DO62: 100 | DP62: 0 | DQ62: 100 | DR62: 0 | DS62: 100 | DT62: 0 | DU62: 100 | DV62: 0 | DW62: 100 | DX62: 0 | DY62: 100 | DZ62: 0 | EA62: 100 | EB62: =IF(EB61>$F15+1,0,1)*(IF(EC62=0,100,0)+IF($G15=1,1,0)*$J15*100+IF($G15=2,0.5,0)*$J15*100+IF($G15=4,0.25,0)*$J15*100) -> 0 | EC62: 100 | ED62: 0 | EE62: 100 | EF62: 0 | EG62: 100 | EH62: 0 | EI62: 100 | EJ62: 0 | EK62: 100 | EL62: 0 | EM62: 100 | EN62: 0 | EO62: 100 | EP62: 0 | EQ62: 100 | ER62: 0 | ES62: 100 | ET62: 0 | EU62: 100 | EV62: 0 | EW62: 100 | EX62: 0 | EY62: 100 | EZ62: 0 | FA62: 100 | FB62: 0 | FC62: 100 | FD62: 0 | FE62: 100 | FF62: 0 | FG62: 100 | FH62: 0 | FI62: 100 | FJ62: 0 | FK62: 100 | FL62: 0 | FM62: 100 | FN62: 0 | FO62: 100 | FP62: 0 | FQ62: 100 | FR62: 0 | FS62: 100 | FT62: 0 | FU62: 100 | FV62: 0 | FW62: 100 | FX62: 0 | FY62: 100 | FZ62: 0 | GA62: 100 | GB62: 0 | GC62: 100 | GD62: 0 | GE62: 100 | GF62: 0 | GG62: 100 | GH62: 0 | GI62: 100 | GJ62: 0 | GK62: 100 | GL62: 0 | GM62: 100 | GN62: =IF(GN61>$F15+1,0,1)*(IF(GO62=0,100,0)+IF($G15=1,1,0)*$J15*100+IF($G15=2,0.5,0)*$J15*100+IF($G15=4,0.25,0)*$J15*100) -> 0 | GO62: 100 | GP62: 0 | GQ62: 100 | GR62: 0 | GS62: 100
A63: Payment Dates | B63: =IF(E16=0,F16,E16) -> 00:00:00 | C63: =B63+IF($G16=1,365,0)+IF($G16=2,182.5,0)+IF($G16=4,91.25,0) -> 00:00:00 | D63: =C63+IF($G16=1,365,0)+IF($G16=2,182.5,0)+IF($G16=4,91.25,0) -> 00:00:00 | E63: 00:00:00 | F63: 00:00:00 | G63: 00:00:00 | H63: 00:00:00 | I63: 00:00:00 | J63: 00:00:00 | K63: 00:00:00 | L63: 00:00:00 | M63: 00:00:00 | N63: 00:00:00 | O63: 00:00:00 | P63: 00:00:00 | Q63: 00:00:00 | R63: 00:00:00 | S63: 00:00:00 | T63: 00:00:00 | U63: 00:00:00 | V63: 00:00:00 | W63: 00:00:00 | X63: 00:00:00 | Y63: 00:00:00 | Z63: 00:00:00 | AA63: 00:00:00 | AB63: 00:00:00 | AC63: 00:00:00 | AD63: 00:00:00 | AE63: 00:00:00 | AF63: 00:00:00 | AG63: 00:00:00 | AH63: 00:00:00 | AI63: 00:00:00 | AJ63: 00:00:00 | AK63: 00:00:00 | AL63: 00:00:00 | AM63: 00:00:00 | AN63: 00:00:00 | AO63: 00:00:00 | AP63: 00:00:00 | AQ63: 00:00:00 | AR63: 00:00:00 | AS63: 00:00:00 | AT63: 00:00:00 | AU63: 00:00:00 | AV63: 00:00:00 | AW63: 00:00:00 | AX63: 00:00:00 | AY63: 00:00:00 | AZ63: 00:00:00 | BA63: 00:00:00 | BB63: 00:00:00 | BC63: 00:00:00 | BD63: 00:00:00 | BE63: 00:00:00 | BF63: 00:00:00 | BG63: 00:00:00 | BH63: 00:00:00 | BI63: 00:00:00 | BJ63: 00:00:00 | BK63: 00:00:00 | BL63: 00:00:00 | BM63: 00:00:00 | BN63: 00:00:00 | BO63: 00:00:00 | BP63: =BO63+IF($G16=1,365,0)+IF($G16=2,182.5,0)+IF($G16=4,91.25,0) -> 00:00:00 | BQ63: 00:00:00 | BR63: 00:00:00 | BS63: 00:00:00 | BT63: 00:00:00 | BU63: 00:00:00 | BV63: 00:00:00 | BW63: 00:00:00 | BX63: 00:00:00 | BY63: 00:00:00 | BZ63: 00:00:00 | CA63: 00:00:00 | CB63: 00:00:00 | CC63: 00:00:00 | CD63: 00:00:00 | CE63: 00:00:00 | CF63: 00:00:00 | CG63: 00:00:00 | CH63: 00:00:00 | CI63: 00:00:00 | CJ63: 00:00:00 | CK63: 00:00:00 | CL63: 00:00:00 | CM63: 00:00:00 | CN63: 00:00:00 | CO63: 00:00:00 | CP63: 00:00:00 | CQ63: 00:00:00 | CR63: 00:00:00 | CS63: 00:00:00 | CT63: 00:00:00 | CU63: 00:00:00 | CV63: 00:00:00 | CW63: 00:00:00 | CX63: 00:00:00 | CY63: 00:00:00 | CZ63: 00:00:00 | DA63: 00:00:00 | DB63: 00:00:00 | DC63: 00:00:00 | DD63: 00:00:00 | DE63: 00:00:00 | DF63: 00:00:00 | DG63: 00:00:00 | DH63: 00:00:00 | DI63: 00:00:00 | DJ63: 00:00:00 | DK63: 00:00:00 | DL63: 00:00:00 | DM63: 00:00:00 | DN63: 00:00:00 | DO63: 00:00:00 | DP63: 00:00:00 | DQ63: 00:00:00 | DR63: 00:00:00 | DS63: 00:00:00 | DT63: 00:00:00 | DU63: 00:00:00 | DV63: 00:00:00 | DW63: 00:00:00 | DX63: 00:00:00 | DY63: 00:00:00 | DZ63: 00:00:00 | EA63: 00:00:00 | EB63: =EA63+IF($G16=1,365,0)+IF($G16=2,182.5,0)+IF($G16=4,91.25,0) -> 00:00:00 | EC63: 00:00:00 | ED63: 00:00:00 | EE63: 00:00:00 | EF63: 00:00:00 | EG63: 00:00:00 | EH63: 00:00:00 | EI63: 00:00:00 | EJ63: 00:00:00 | EK63: 00:00:00 | EL63: 00:00:00 | EM63: 00:00:00 | EN63: 00:00:00 | EO63: 00:00:00 | EP63: 00:00:00 | EQ63: 00:00:00 | ER63: 00:00:00 | ES63: 00:00:00 | ET63: 00:00:00 | EU63: 00:00:00 | EV63: 00:00:00 | EW63: 00:00:00 | EX63: 00:00:00 | EY63: 00:00:00 | EZ63: 00:00:00 | FA63: 00:00:00 | FB63: 00:00:00 | FC63: 00:00:00 | FD63: 00:00:00 | FE63: 00:00:00 | FF63: 00:00:00 | FG63: 00:00:00 | FH63: 00:00:00 | FI63: 00:00:00 | FJ63: 00:00:00 | FK63: 00:00:00 | FL63: 00:00:00 | FM63: 00:00:00 | FN63: 00:00:00 | FO63: 00:00:00 | FP63: 00:00:00 | FQ63: 00:00:00 | FR63: 00:00:00 | FS63: 00:00:00 | FT63: 00:00:00 | FU63: 00:00:00 | FV63: 00:00:00 | FW63: 00:00:00 | FX63: 00:00:00 | FY63: 00:00:00 | FZ63: 00:00:00 | GA63: 00:00:00 | GB63: 00:00:00 | GC63: 00:00:00 | GD63: 00:00:00 | GE63: 00:00:00 | GF63: 00:00:00 | GG63: 00:00:00 | GH63: 00:00:00 | GI63: 00:00:00 | GJ63: 00:00:00 | GK63: 00:00:00 | GL63: 00:00:00 | GM63: 00:00:00 | GN63: =GM63+IF($G16=1,365,0)+IF($G16=2,182.5,0)+IF($G16=4,91.25,0) -> 00:00:00 | GO63: 00:00:00 | GP63: 00:00:00 | GQ63: 00:00:00 | GR63: 00:00:00 | GS63: 00:00:00
A64: Bond 15 | B64: =(IF(B63=F16,100,0)+IF(G16=1,1,0)*J16*100+IF(G16=2,0.5,0)*J16*100+IF(G16=4,0.25,0)*J16*100)*IF(ISBLANK(F16)=TRUE,0,1) -> 0 | C64: =IF(C63>$F16+1,0,1)*(IF(D64=0,100,0)+IF($G16=1,1,0)*$J16*100+IF($G16=2,0.5,0)*$J16*100+IF($G16=4,0.25,0)*$J16*100) -> 100 | D64: =IF(D63>$F16+1,0,1)*(IF(E64=0,100,0)+IF($G16=1,1,0)*$J16*100+IF($G16=2,0.5,0)*$J16*100+IF($G16=4,0.25,0)*$J16*100) -> 0 | E64: 100 | F64: 0 | G64: 100 | H64: 0 | I64: 100 | J64: 0 | K64: 100 | L64: 0 | M64: 100 | N64: 0 | O64: 100 | P64: 0 | Q64: 100 | R64: 0 | S64: 100 | T64: 0 | U64: 100 | V64: 0 | W64: 100 | X64: 0 | Y64: 100 | Z64: 0 | AA64: 100 | AB64: 0 | AC64: 100 | AD64: 0 | AE64: 100 | AF64: 0 | AG64: 100 | AH64: 0 | AI64: 100 | AJ64: 0 | AK64: 100 | AL64: 0 | AM64: 100 | AN64: 0 | AO64: 100 | AP64: 0 | AQ64: 100 | AR64: 0 | AS64: 100 | AT64: 0 | AU64: 100 | AV64: 0 | AW64: 100 | AX64: 0 | AY64: 100 | AZ64: 0 | BA64: 100 | BB64: 0 | BC64: 100 | BD64: 0 | BE64: 100 | BF64: 0 | BG64: 100 | BH64: 0 | BI64: 100 | BJ64: 0 | BK64: 100 | BL64: 0 | BM64: 100 | BN64: 0 | BO64: 100 | BP64: =IF(BP63>$F16+1,0,1)*(IF(BQ64=0,100,0)+IF($G16=1,1,0)*$J16*100+IF($G16=2,0.5,0)*$J16*100+IF($G16=4,0.25,0)*$J16*100) -> 0 | BQ64: 100 | BR64: 0 | BS64: 100 | BT64: 0 | BU64: 100 | BV64: 0 | BW64: 100 | BX64: 0 | BY64: 100 | BZ64: 0 | CA64: 100 | CB64: 0 | CC64: 100 | CD64: 0 | CE64: 100 | CF64: 0 | CG64: 100 | CH64: 0 | CI64: 100 | CJ64: 0 | CK64: 100 | CL64: 0 | CM64: 100 | CN64: 0 | CO64: 100 | CP64: 0 | CQ64: 100 | CR64: 0 | CS64: 100 | CT64: 0 | CU64: 100 | CV64: 0 | CW64: 100 | CX64: 0 | CY64: 100 | CZ64: 0 | DA64: 100 | DB64: 0 | DC64: 100 | DD64: 0 | DE64: 100 | DF64: 0 | DG64: 100 | DH64: 0 | DI64: 100 | DJ64: 0 | DK64: 100 | DL64: 0 | DM64: 100 | DN64: 0 | DO64: 100 | DP64: 0 | DQ64: 100 | DR64: 0 | DS64: 100 | DT64: 0 | DU64: 100 | DV64: 0 | DW64: 100 | DX64: 0 | DY64: 100 | DZ64: 0 | EA64: 100 | EB64: =IF(EB63>$F16+1,0,1)*(IF(EC64=0,100,0)+IF($G16=1,1,0)*$J16*100+IF($G16=2,0.5,0)*$J16*100+IF($G16=4,0.25,0)*$J16*100) -> 0 | EC64: 100 | ED64: 0 | EE64: 100 | EF64: 0 | EG64: 100 | EH64: 0 | EI64: 100 | EJ64: 0 | EK64: 100 | EL64: 0 | EM64: 100 | EN64: 0 | EO64: 100 | EP64: 0 | EQ64: 100 | ER64: 0 | ES64: 100 | ET64: 0 | EU64: 100 | EV64: 0 | EW64: 100 | EX64: 0 | EY64: 100 | EZ64: 0 | FA64: 100 | FB64: 0 | FC64: 100 | FD64: 0 | FE64: 100 | FF64: 0 | FG64: 100 | FH64: 0 | FI64: 100 | FJ64: 0 | FK64: 100 | FL64: 0 | FM64: 100 | FN64: 0 | FO64: 100 | FP64: 0 | FQ64: 100 | FR64: 0 | FS64: 100 | FT64: 0 | FU64: 100 | FV64: 0 | FW64: 100 | FX64: 0 | FY64: 100 | FZ64: 0 | GA64: 100 | GB64: 0 | GC64: 100 | GD64: 0 | GE64: 100 | GF64: 0 | GG64: 100 | GH64: 0 | GI64: 100 | GJ64: 0 | GK64: 100 | GL64: 0 | GM64: 100 | GN64: =IF(GN63>$F16+1,0,1)*(IF(GO64=0,100,0)+IF($G16=1,1,0)*$J16*100+IF($G16=2,0.5,0)*$J16*100+IF($G16=4,0.25,0)*$J16*100) -> 0 | GO64: 100 | GP64: 0 | GQ64: 100 | GR64: 0 | GS64: 100
A65: Payment Dates | B65: =IF(E17=0,F17,E17) -> 7/25/2019 | C65: =B65+IF($G17=1,365,0)+IF($G17=2,182.5,0)+IF($G17=4,91.25,0) -> 2020-01-23T12:00:00 | D65: =C65+IF($G17=1,365,0)+IF($G17=2,182.5,0)+IF($G17=4,91.25,0) -> 2020-07-24 | E65: 2021-01-22T12:00:00 | F65: 2021-07-24 | G65: 2022-01-22T12:00:00 | H65: 2022-07-24 | I65: 2023-01-22T12:00:00 | J65: 2023-07-24 | K65: 2024-01-22T12:00:00 | L65: 2024-07-23 | M65: 2025-01-21T12:00:00 | N65: 2025-07-23 | O65: 2026-01-21T12:00:00 | P65: 2026-07-23 | Q65: 2027-01-21T12:00:00 | R65: 2027-07-23 | S65: 2028-01-21T12:00:00 | T65: 2028-07-22 | U65: 2029-01-20T12:00:00 | V65: 2029-07-22 | W65: 2030-01-20T12:00:00 | X65: 2030-07-22 | Y65: 2031-01-20T12:00:00 | Z65: 2031-07-22 | AA65: 2032-01-20T12:00:00 | AB65: 2032-07-21 | AC65: 2033-01-19T12:00:00 | AD65: 2033-07-21 | AE65: 2034-01-19T12:00:00 | AF65: 2034-07-21 | AG65: 2035-01-19T12:00:00 | AH65: 2035-07-21 | AI65: 2036-01-19T12:00:00 | AJ65: 2036-07-20 | AK65: 2037-01-18T12:00:00 | AL65: 2037-07-20 | AM65: 2038-01-18T12:00:00 | AN65: 2038-07-20 | AO65: 2039-01-18T12:00:00 | AP65: 2039-07-20 | AQ65: 2040-01-18T12:00:00 | AR65: 2040-07-19 | AS65: 2041-01-17T12:00:00 | AT65: 2041-07-19 | AU65: 2042-01-17T12:00:00 | AV65: 2042-07-19 | AW65: 2043-01-17T12:00:00 | AX65: 2043-07-19 | AY65: 2044-01-17T12:00:00 | AZ65: 2044-07-18 | BA65: 2045-01-16T12:00:00 | BB65: 2045-07-18 | BC65: 2046-01-16T12:00:00 | BD65: 2046-07-18 | BE65: 2047-01-16T12:00:00 | BF65: 2047-07-18 | BG65: 2048-01-16T12:00:00 | BH65: 2048-07-17 | BI65: 2049-01-15T12:00:00 | BJ65: 2049-07-17 | BK65: 2050-01-15T12:00:00 | BL65: 2050-07-17 | BM65: 2051-01-15T12:00:00 | BN65: 2051-07-17 | BO65: 2052-01-15T12:00:00 | BP65: =BO65+IF($G17=1,365,0)+IF($G17=2,182.5,0)+IF($G17=4,91.25,0) -> 2052-07-16 | BQ65: 2053-01-14T12:00:00 | BR65: 2053-07-16 | BS65: 2054-01-14T12:00:00 | BT65: 2054-07-16 | BU65: 2055-01-14T12:00:00 | BV65: 2055-07-16 | BW65: 2056-01-14T12:00:00 | BX65: 2056-07-15 | BY65: 2057-01-13T12:00:00 | BZ65: 2057-07-15 | CA65: 2058-01-13T12:00:00 | CB65: 2058-07-15 | CC65: 2059-01-13T12:00:00 | CD65: 2059-07-15 | CE65: 2060-01-13T12:00:00 | CF65: 2060-07-14 | CG65: 2061-01-12T12:00:00 | CH65: 2061-07-14 | CI65: 2062-01-12T12:00:00 | CJ65: 2062-07-14 | CK65: 2063-01-12T12:00:00 | CL65: 2063-07-14 | CM65: 2064-01-12T12:00:00 | CN65: 2064-07-13 | CO65: 2065-01-11T12:00:00 | CP65: 2065-07-13 | CQ65: 2066-01-11T12:00:00 | CR65: 2066-07-13 | CS65: 2067-01-11T12:00:00 | CT65: 2067-07-13 | CU65: 2068-01-11T12:00:00 | CV65: 2068-07-12 | CW65: 2069-01-10T12:00:00 | CX65: 2069-07-12 | CY65: 2070-01-10T12:00:00 | CZ65: 2070-07-12 | DA65: 2071-01-10T12:00:00 | DB65: 2071-07-12 | DC65: 2072-01-10T12:00:00 | DD65: 2072-07-11 | DE65: 2073-01-09T12:00:00 | DF65: 2073-07-11 | DG65: 2074-01-09T12:00:00 | DH65: 2074-07-11 | DI65: 2075-01-09T12:00:00 | DJ65: 2075-07-11 | DK65: 2076-01-09T12:00:00 | DL65: 2076-07-10 | DM65: 2077-01-08T12:00:00 | DN65: 2077-07-10 | DO65: 2078-01-08T12:00:00 | DP65: 2078-07-10 | DQ65: 2079-01-08T12:00:00 | DR65: 2079-07-10 | DS65: 2080-01-08T12:00:00 | DT65: 2080-07-09 | DU65: 2081-01-07T12:00:00 | DV65: 2081-07-09 | DW65: 2082-01-07T12:00:00 | DX65: 2082-07-09 | DY65: 2083-01-07T12:00:00 | DZ65: 2083-07-09 | EA65: 2084-01-07T12:00:00 | EB65: =EA65+IF($G17=1,365,0)+IF($G17=2,182.5,0)+IF($G17=4,91.25,0) -> 2084-07-08 | EC65: 2085-01-06T12:00:00 | ED65: 2085-07-08 | EE65: 2086-01-06T12:00:00 | EF65: 2086-07-08 | EG65: 2087-01-06T12:00:00 | EH65: 2087-07-08 | EI65: 2088-01-06T12:00:00 | EJ65: 2088-07-07 | EK65: 2089-01-05T12:00:00 | EL65: 2089-07-07 | EM65: 2090-01-05T12:00:00 | EN65: 2090-07-07 | EO65: 2091-01-05T12:00:00 | EP65: 2091-07-07 | EQ65: 2092-01-05T12:00:00 | ER65: 2092-07-06 | ES65: 2093-01-04T12:00:00 | ET65: 2093-07-06 | EU65: 2094-01-04T12:00:00 | EV65: 2094-07-06 | EW65: 2095-01-04T12:00:00 | EX65: 2095-07-06 | EY65: 2096-01-04T12:00:00 | EZ65: 2096-07-05 | FA65: 2097-01-03T12:00:00 | FB65: 2097-07-05 | FC65: 2098-01-03T12:00:00 | FD65: 2098-07-05 | FE65: 2099-01-03T12:00:00 | FF65: 2099-07-05 | FG65: 2100-01-03T12:00:00 | FH65: 2100-07-05 | FI65: 2101-01-03T12:00:00 | FJ65: 2101-07-05 | FK65: 2102-01-03T12:00:00 | FL65: 2102-07-05 | FM65: 2103-01-03T12:00:00 | FN65: 2103-07-05 | FO65: 2104-01-03T12:00:00 | FP65: 2104-07-04 | FQ65: 2105-01-02T12:00:00 | FR65: 2105-07-04 | FS65: 2106-01-02T12:00:00 | FT65: 2106-07-04 | FU65: 2107-01-02T12:00:00 | FV65: 2107-07-04 | FW65: 2108-01-02T12:00:00 | FX65: 2108-07-03 | FY65: 2109-01-01T12:00:00 | FZ65: 2109-07-03 | GA65: 2110-01-01T12:00:00 | GB65: 2110-07-03 | GC65: 2111-01-01T12:00:00 | GD65: 2111-07-03 | GE65: 2112-01-01T12:00:00 | GF65: 2112-07-02 | GG65: 2112-12-31T12:00:00 | GH65: 2113-07-02 | GI65: 2113-12-31T12:00:00 | GJ65: 2114-07-02 | GK65: 2114-12-31T12:00:00 | GL65: 2115-07-02 | GM65: 2115-12-31T12:00:00 | GN65: =GM65+IF($G17=1,365,0)+IF($G17=2,182.5,0)+IF($G17=4,91.25,0) -> 2116-07-01 | GO65: 2116-12-30T12:00:00 | GP65: 2117-07-01 | GQ65: 2117-12-30T12:00:00 | GR65: 2118-07-01 | GS65: 2118-12-30T12:00:00
A66: Bond 16 | B66: =(IF(B65=F17,100,0)+IF(G17=1,1,0)*J17*100+IF(G17=2,0.5,0)*J17*100+IF(G17=4,0.25,0)*J17*100)*IF(ISBLANK(F17)=TRUE,0,1) -> 2.155 | C66: =IF(C65>$F17+1,0,1)*(IF(D66=0,100,0)+IF($G17=1,1,0)*$J17*100+IF($G17=2,0.5,0)*$J17*100+IF($G17=4,0.25,0)*$J17*100) -> 2.155 | D66: =IF(D65>$F17+1,0,1)*(IF(E66=0,100,0)+IF($G17=1,1,0)*$J17*100+IF($G17=2,0.5,0)*$J17*100+IF($G17=4,0.25,0)*$J17*100) -> 2.155 | E66: 102.155 | F66: 0 | G66: 0 | H66: 0 | I66: 0 | J66: 0 | K66: 0 | L66: 0 | M66: 0 | N66: 0 | O66: 0 | P66: 0 | Q66: 0 | R66: 0 | S66: 0 | T66: 0 | U66: 0 | V66: 0 | W66: 0 | X66: 0 | Y66: 0 | Z66: 0 | AA66: 0 | AB66: 0 | AC66: 0 | AD66: 0 | AE66: 0 | AF66: 0 | AG66: 0 | AH66: 0 | AI66: 0 | AJ66: 0 | AK66: 0 | AL66: 0 | AM66: 0 | AN66: 0 | AO66: 0 | AP66: 0 | AQ66: 0 | AR66: 0 | AS66: 0 | AT66: 0 | AU66: 0 | AV66: 0 | AW66: 0 | AX66: 0 | AY66: 0 | AZ66: 0 | BA66: 0 | BB66: 0 | BC66: 0 | BD66: 0 | BE66: 0 | BF66: 0 | BG66: 0 | BH66: 0 | BI66: 0 | BJ66: 0 | BK66: 0 | BL66: 0 | BM66: 0 | BN66: 0 | BO66: 0 | BP66: =IF(BP65>$F17+1,0,1)*(IF(BQ66=0,100,0)+IF($G17=1,1,0)*$J17*100+IF($G17=2,0.5,0)*$J17*100+IF($G17=4,0.25,0)*$J17*100) -> 0 | BQ66: 0 | BR66: 0 | BS66: 0 | BT66: 0 | BU66: 0 | BV66: 0 | BW66: 0 | BX66: 0 | BY66: 0 | BZ66: 0 | CA66: 0 | CB66: 0 | CC66: 0 | CD66: 0 | CE66: 0 | CF66: 0 | CG66: 0 | CH66: 0 | CI66: 0 | CJ66: 0 | CK66: 0 | CL66: 0 | CM66: 0 | CN66: 0 | CO66: 0 | CP66: 0 | CQ66: 0 | CR66: 0 | CS66: 0 | CT66: 0 | CU66: 0 | CV66: 0 | CW66: 0 | CX66: 0 | CY66: 0 | CZ66: 0 | DA66: 0 | DB66: 0 | DC66: 0 | DD66: 0 | DE66: 0 | DF66: 0 | DG66: 0 | DH66: 0 | DI66: 0 | DJ66: 0 | DK66: 0 | DL66: 0 | DM66: 0 | DN66: 0 | DO66: 0 | DP66: 0 | DQ66: 0 | DR66: 0 | DS66: 0 | DT66: 0 | DU66: 0 | DV66: 0 | DW66: 0 | DX66: 0 | DY66: 0 | DZ66: 0 | EA66: 0 | EB66: =IF(EB65>$F17+1,0,1)*(IF(EC66=0,100,0)+IF($G17=1,1,0)*$J17*100+IF($G17=2,0.5,0)*$J17*100+IF($G17=4,0.25,0)*$J17*100) -> 0 | EC66: 0 | ED66: 0 | EE66: 0 | EF66: 0 | EG66: 0 | EH66: 0 | EI66: 0 | EJ66: 0 | EK66: 0 | EL66: 0 | EM66: 0 | EN66: 0 | EO66: 0 | EP66: 0 | EQ66: 0 | ER66: 0 | ES66: 0 | ET66: 0 | EU66: 0 | EV66: 0 | EW66: 0 | EX66: 0 | EY66: 0 | EZ66: 0 | FA66: 0 | FB66: 0 | FC66: 0 | FD66: 0 | FE66: 0 | FF66: 0 | FG66: 0 | FH66: 0 | FI66: 0 | FJ66: 0 | FK66: 0 | FL66: 0 | FM66: 0 | FN66: 0 | FO66: 0 | FP66: 0 | FQ66: 0 | FR66: 0 | FS66: 0 | FT66: 0 | FU66: 0 | FV66: 0 | FW66: 0 | FX66: 0 | FY66: 0 | FZ66: 0 | GA66: 0 | GB66: 0 | GC66: 0 | GD66: 0 | GE66: 0 | GF66: 0 | GG66: 0 | GH66: 0 | GI66: 0 | GJ66: 0 | GK66: 0 | GL66: 0 | GM66: 0 | GN66: =IF(GN65>$F17+1,0,1)*(IF(GO66=0,100,0)+IF($G17=1,1,0)*$J17*100+IF($G17=2,0.5,0)*$J17*100+IF($G17=4,0.25,0)*$J17*100) -> 0 | GO66: 0 | GP66: 0 | GQ66: 0 | GR66: 0 | GS66: 0
A67: Payment Dates | B67: =IF(E18=0,F18,E18) -> 00:00:00 | C67: =B67+IF($G18=1,365,0)+IF($G18=2,182.5,0)+IF($G18=4,91.25,0) -> 00:00:00 | D67: =C67+IF($G18=1,365,0)+IF($G18=2,182.5,0)+IF($G18=4,91.25,0) -> 00:00:00 | E67: 00:00:00 | F67: 00:00:00 | G67: 00:00:00 | H67: 00:00:00 | I67: 00:00:00 | J67: 00:00:00 | K67: 00:00:00 | L67: 00:00:00 | M67: 00:00:00 | N67: 00:00:00 | O67: 00:00:00 | P67: 00:00:00 | Q67: 00:00:00 | R67: 00:00:00 | S67: 00:00:00 | T67: 00:00:00 | U67: 00:00:00 | V67: 00:00:00 | W67: 00:00:00 | X67: 00:00:00 | Y67: 00:00:00 | Z67: 00:00:00 | AA67: 00:00:00 | AB67: 00:00:00 | AC67: 00:00:00 | AD67: 00:00:00 | AE67: 00:00:00 | AF67: 00:00:00 | AG67: 00:00:00 | AH67: 00:00:00 | AI67: 00:00:00 | AJ67: 00:00:00 | AK67: 00:00:00 | AL67: 00:00:00 | AM67: 00:00:00 | AN67: 00:00:00 | AO67: 00:00:00 | AP67: 00:00:00 | AQ67: 00:00:00 | AR67: 00:00:00 | AS67: 00:00:00 | AT67: 00:00:00 | AU67: 00:00:00 | AV67: 00:00:00 | AW67: 00:00:00 | AX67: 00:00:00 | AY67: 00:00:00 | AZ67: 00:00:00 | BA67: 00:00:00 | BB67: 00:00:00 | BC67: 00:00:00 | BD67: 00:00:00 | BE67: 00:00:00 | BF67: 00:00:00 | BG67: 00:00:00 | BH67: 00:00:00 | BI67: 00:00:00 | BJ67: 00:00:00 | BK67: 00:00:00 | BL67: 00:00:00 | BM67: 00:00:00 | BN67: 00:00:00 | BO67: 00:00:00 | BP67: =BO67+IF($G18=1,365,0)+IF($G18=2,182.5,0)+IF($G18=4,91.25,0) -> 00:00:00 | BQ67: 00:00:00 | BR67: 00:00:00 | BS67: 00:00:00 | BT67: 00:00:00 | BU67: 00:00:00 | BV67: 00:00:00 | BW67: 00:00:00 | BX67: 00:00:00 | BY67: 00:00:00 | BZ67: 00:00:00 | CA67: 00:00:00 | CB67: 00:00:00 | CC67: 00:00:00 | CD67: 00:00:00 | CE67: 00:00:00 | CF67: 00:00:00 | CG67: 00:00:00 | CH67: 00:00:00 | CI67: 00:00:00 | CJ67: 00:00:00 | CK67: 00:00:00 | CL67: 00:00:00 | CM67: 00:00:00 | CN67: 00:00:00 | CO67: 00:00:00 | CP67: 00:00:00 | CQ67: 00:00:00 | CR67: 00:00:00 | CS67: 00:00:00 | CT67: 00:00:00 | CU67: 00:00:00 | CV67: 00:00:00 | CW67: 00:00:00 | CX67: 00:00:00 | CY67: 00:00:00 | CZ67: 00:00:00 | DA67: 00:00:00 | DB67: 00:00:00 | DC67: 00:00:00 | DD67: 00:00:00 | DE67: 00:00:00 | DF67: 00:00:00 | DG67: 00:00:00 | DH67: 00:00:00 | DI67: 00:00:00 | DJ67: 00:00:00 | DK67: 00:00:00 | DL67: 00:00:00 | DM67: 00:00:00 | DN67: 00:00:00 | DO67: 00:00:00 | DP67: 00:00:00 | DQ67: 00:00:00 | DR67: 00:00:00 | DS67: 00:00:00 | DT67: 00:00:00 | DU67: 00:00:00 | DV67: 00:00:00 | DW67: 00:00:00 | DX67: 00:00:00 | DY67: 00:00:00 | DZ67: 00:00:00 | EA67: 00:00:00 | EB67: =EA67+IF($G18=1,365,0)+IF($G18=2,182.5,0)+IF($G18=4,91.25,0) -> 00:00:00 | EC67: 00:00:00 | ED67: 00:00:00 | EE67: 00:00:00 | EF67: 00:00:00 | EG67: 00:00:00 | EH67: 00:00:00 | EI67: 00:00:00 | EJ67: 00:00:00 | EK67: 00:00:00 | EL67: 00:00:00 | EM67: 00:00:00 | EN67: 00:00:00 | EO67: 00:00:00 | EP67: 00:00:00 | EQ67: 00:00:00 | ER67: 00:00:00 | ES67: 00:00:00 | ET67: 00:00:00 | EU67: 00:00:00 | EV67: 00:00:00 | EW67: 00:00:00 | EX67: 00:00:00 | EY67: 00:00:00 | EZ67: 00:00:00 | FA67: 00:00:00 | FB67: 00:00:00 | FC67: 00:00:00 | FD67: 00:00:00 | FE67: 00:00:00 | FF67: 00:00:00 | FG67: 00:00:00 | FH67: 00:00:00 | FI67: 00:00:00 | FJ67: 00:00:00 | FK67: 00:00:00 | FL67: 00:00:00 | FM67: 00:00:00 | FN67: 00:00:00 | FO67: 00:00:00 | FP67: 00:00:00 | FQ67: 00:00:00 | FR67: 00:00:00 | FS67: 00:00:00 | FT67: 00:00:00 | FU67: 00:00:00 | FV67: 00:00:00 | FW67: 00:00:00 | FX67: 00:00:00 | FY67: 00:00:00 | FZ67: 00:00:00 | GA67: 00:00:00 | GB67: 00:00:00 | GC67: 00:00:00 | GD67: 00:00:00 | GE67: 00:00:00 | GF67: 00:00:00 | GG67: 00:00:00 | GH67: 00:00:00 | GI67: 00:00:00 | GJ67: 00:00:00 | GK67: 00:00:00 | GL67: 00:00:00 | GM67: 00:00:00 | GN67: =GM67+IF($G18=1,365,0)+IF($G18=2,182.5,0)+IF($G18=4,91.25,0) -> 00:00:00 | GO67: 00:00:00 | GP67: 00:00:00 | GQ67: 00:00:00 | GR67: 00:00:00 | GS67: 00:00:00
A68: Bond 17 | B68: =(IF(B67=F18,100,0)+IF(G18=1,1,0)*J18*100+IF(G18=2,0.5,0)*J18*100+IF(G18=4,0.25,0)*J18*100)*IF(ISBLANK(F18)=TRUE,0,1) -> 0 | C68: =IF(C67>$F18+1,0,1)*(IF(D68=0,100,0)+IF($G18=1,1,0)*$J18*100+IF($G18=2,0.5,0)*$J18*100+IF($G18=4,0.25,0)*$J18*100) -> 100 | D68: =IF(D67>$F18+1,0,1)*(IF(E68=0,100,0)+IF($G18=1,1,0)*$J18*100+IF($G18=2,0.5,0)*$J18*100+IF($G18=4,0.25,0)*$J18*100) -> 0 | E68: 100 | F68: 0 | G68: 100 | H68: 0 | I68: 100 | J68: 0 | K68: 100 | L68: 0 | M68: 100 | N68: 0 | O68: 100 | P68: 0 | Q68: 100 | R68: 0 | S68: 100 | T68: 0 | U68: 100 | V68: 0 | W68: 100 | X68: 0 | Y68: 100 | Z68: 0 | AA68: 100 | AB68: 0 | AC68: 100 | AD68: 0 | AE68: 100 | AF68: 0 | AG68: 100 | AH68: 0 | AI68: 100 | AJ68: 0 | AK68: 100 | AL68: 0 | AM68: 100 | AN68: 0 | AO68: 100 | AP68: 0 | AQ68: 100 | AR68: 0 | AS68: 100 | AT68: 0 | AU68: 100 | AV68: 0 | AW68: 100 | AX68: 0 | AY68: 100 | AZ68: 0 | BA68: 100 | BB68: 0 | BC68: 100 | BD68: 0 | BE68: 100 | BF68: 0 | BG68: 100 | BH68: 0 | BI68: 100 | BJ68: 0 | BK68: 100 | BL68: 0 | BM68: 100 | BN68: 0 | BO68: 100 | BP68: =IF(BP67>$F18+1,0,1)*(IF(BQ68=0,100,0)+IF($G18=1,1,0)*$J18*100+IF($G18=2,0.5,0)*$J18*100+IF($G18=4,0.25,0)*$J18*100) -> 0 | BQ68: 100 | BR68: 0 | BS68: 100 | BT68: 0 | BU68: 100 | BV68: 0 | BW68: 100 | BX68: 0 | BY68: 100 | BZ68: 0 | CA68: 100 | CB68: 0 | CC68: 100 | CD68: 0 | CE68: 100 | CF68: 0 | CG68: 100 | CH68: 0 | CI68: 100 | CJ68: 0 | CK68: 100 | CL68: 0 | CM68: 100 | CN68: 0 | CO68: 100 | CP68: 0 | CQ68: 100 | CR68: 0 | CS68: 100 | CT68: 0 | CU68: 100 | CV68: 0 | CW68: 100 | CX68: 0 | CY68: 100 | CZ68: 0 | DA68: 100 | DB68: 0 | DC68: 100 | DD68: 0 | DE68: 100 | DF68: 0 | DG68: 100 | DH68: 0 | DI68: 100 | DJ68: 0 | DK68: 100 | DL68: 0 | DM68: 100 | DN68: 0 | DO68: 100 | DP68: 0 | DQ68: 100 | DR68: 0 | DS68: 100 | DT68: 0 | DU68: 100 | DV68: 0 | DW68: 100 | DX68: 0 | DY68: 100 | DZ68: 0 | EA68: 100 | EB68: =IF(EB67>$F18+1,0,1)*(IF(EC68=0,100,0)+IF($G18=1,1,0)*$J18*100+IF($G18=2,0.5,0)*$J18*100+IF($G18=4,0.25,0)*$J18*100) -> 0 | EC68: 100 | ED68: 0 | EE68: 100 | EF68: 0 | EG68: 100 | EH68: 0 | EI68: 100 | EJ68: 0 | EK68: 100 | EL68: 0 | EM68: 100 | EN68: 0 | EO68: 100 | EP68: 0 | EQ68: 100 | ER68: 0 | ES68: 100 | ET68: 0 | EU68: 100 | EV68: 0 | EW68: 100 | EX68: 0 | EY68: 100 | EZ68: 0 | FA68: 100 | FB68: 0 | FC68: 100 | FD68: 0 | FE68: 100 | FF68: 0 | FG68: 100 | FH68: 0 | FI68: 100 | FJ68: 0 | FK68: 100 | FL68: 0 | FM68: 100 | FN68: 0 | FO68: 100 | FP68: 0 | FQ68: 100 | FR68: 0 | FS68: 100 | FT68: 0 | FU68: 100 | FV68: 0 | FW68: 100 | FX68: 0 | FY68: 100 | FZ68: 0 | GA68: 100 | GB68: 0 | GC68: 100 | GD68: 0 | GE68: 100 | GF68: 0 | GG68: 100 | GH68: 0 | GI68: 100 | GJ68: 0 | GK68: 100 | GL68: 0 | GM68: 100 | GN68: =IF(GN67>$F18+1,0,1)*(IF(GO68=0,100,0)+IF($G18=1,1,0)*$J18*100+IF($G18=2,0.5,0)*$J18*100+IF($G18=4,0.25,0)*$J18*100) -> 0 | GO68: 100 | GP68: 0 | GQ68: 100 | GR68: 0 | GS68: 100
A69: Payment Dates | B69: =IF(E19=0,F19,E19) -> 11/25/2019 | C69: =B69+IF($G19=1,365,0)+IF($G19=2,182.5,0)+IF($G19=4,91.25,0) -> 2020-05-25T12:00:00 | D69: =C69+IF($G19=1,365,0)+IF($G19=2,182.5,0)+IF($G19=4,91.25,0) -> 2020-11-24 | E69: 2021-05-25T12:00:00 | F69: 2021-11-24 | G69: 2022-05-25T12:00:00 | H69: 2022-11-24 | I69: 2023-05-25T12:00:00 | J69: 2023-11-24 | K69: 2024-05-24T12:00:00 | L69: 2024-11-23 | M69: 2025-05-24T12:00:00 | N69: 2025-11-23 | O69: 2026-05-24T12:00:00 | P69: 2026-11-23 | Q69: 2027-05-24T12:00:00 | R69: 2027-11-23 | S69: 2028-05-23T12:00:00 | T69: 2028-11-22 | U69: 2029-05-23T12:00:00 | V69: 2029-11-22 | W69: 2030-05-23T12:00:00 | X69: 2030-11-22 | Y69: 2031-05-23T12:00:00 | Z69: 2031-11-22 | AA69: 2032-05-22T12:00:00 | AB69: 2032-11-21 | AC69: 2033-05-22T12:00:00 | AD69: 2033-11-21 | AE69: 2034-05-22T12:00:00 | AF69: 2034-11-21 | AG69: 2035-05-22T12:00:00 | AH69: 2035-11-21 | AI69: 2036-05-21T12:00:00 | AJ69: 2036-11-20 | AK69: 2037-05-21T12:00:00 | AL69: 2037-11-20 | AM69: 2038-05-21T12:00:00 | AN69: 2038-11-20 | AO69: 2039-05-21T12:00:00 | AP69: 2039-11-20 | AQ69: 2040-05-20T12:00:00 | AR69: 2040-11-19 | AS69: 2041-05-20T12:00:00 | AT69: 2041-11-19 | AU69: 2042-05-20T12:00:00 | AV69: 2042-11-19 | AW69: 2043-05-20T12:00:00 | AX69: 2043-11-19 | AY69: 2044-05-19T12:00:00 | AZ69: 2044-11-18 | BA69: 2045-05-19T12:00:00 | BB69: 2045-11-18 | BC69: 2046-05-19T12:00:00 | BD69: 2046-11-18 | BE69: 2047-05-19T12:00:00 | BF69: 2047-11-18 | BG69: 2048-05-18T12:00:00 | BH69: 2048-11-17 | BI69: 2049-05-18T12:00:00 | BJ69: 2049-11-17 | BK69: 2050-05-18T12:00:00 | BL69: 2050-11-17 | BM69: 2051-05-18T12:00:00 | BN69: 2051-11-17 | BO69: 2052-05-17T12:00:00 | BP69: =BO69+IF($G19=1,365,0)+IF($G19=2,182.5,0)+IF($G19=4,91.25,0) -> 2052-11-16 | BQ69: 2053-05-17T12:00:00 | BR69: 2053-11-16 | BS69: 2054-05-17T12:00:00 | BT69: 2054-11-16 | BU69: 2055-05-17T12:00:00 | BV69: 2055-11-16 | BW69: 2056-05-16T12:00:00 | BX69: 2056-11-15 | BY69: 2057-05-16T12:00:00 | BZ69: 2057-11-15 | CA69: 2058-05-16T12:00:00 | CB69: 2058-11-15 | CC69: 2059-05-16T12:00:00 | CD69: 2059-11-15 | CE69: 2060-05-15T12:00:00 | CF69: 2060-11-14 | CG69: 2061-05-15T12:00:00 | CH69: 2061-11-14 | CI69: 2062-05-15T12:00:00 | CJ69: 2062-11-14 | CK69: 2063-05-15T12:00:00 | CL69: 2063-11-14 | CM69: 2064-05-14T12:00:00 | CN69: 2064-11-13 | CO69: 2065-05-14T12:00:00 | CP69: 2065-11-13 | CQ69: 2066-05-14T12:00:00 | CR69: 2066-11-13 | CS69: 2067-05-14T12:00:00 | CT69: 2067-11-13 | CU69: 2068-05-13T12:00:00 | CV69: 2068-11-12 | CW69: 2069-05-13T12:00:00 | CX69: 2069-11-12 | CY69: 2070-05-13T12:00:00 | CZ69: 2070-11-12 | DA69: 2071-05-13T12:00:00 | DB69: 2071-11-12 | DC69: 2072-05-12T12:00:00 | DD69: 2072-11-11 | DE69: 2073-05-12T12:00:00 | DF69: 2073-11-11 | DG69: 2074-05-12T12:00:00 | DH69: 2074-11-11 | DI69: 2075-05-12T12:00:00 | DJ69: 2075-11-11 | DK69: 2076-05-11T12:00:00 | DL69: 2076-11-10 | DM69: 2077-05-11T12:00:00 | DN69: 2077-11-10 | DO69: 2078-05-11T12:00:00 | DP69: 2078-11-10 | DQ69: 2079-05-11T12:00:00 | DR69: 2079-11-10 | DS69: 2080-05-10T12:00:00 | DT69: 2080-11-09 | DU69: 2081-05-10T12:00:00 | DV69: 2081-11-09 | DW69: 2082-05-10T12:00:00 | DX69: 2082-11-09 | DY69: 2083-05-10T12:00:00 | DZ69: 2083-11-09 | EA69: 2084-05-09T12:00:00 | EB69: =EA69+IF($G19=1,365,0)+IF($G19=2,182.5,0)+IF($G19=4,91.25,0) -> 2084-11-08 | EC69: 2085-05-09T12:00:00 | ED69: 2085-11-08 | EE69: 2086-05-09T12:00:00 | EF69: 2086-11-08 | EG69: 2087-05-09T12:00:00 | EH69: 2087-11-08 | EI69: 2088-05-08T12:00:00 | EJ69: 2088-11-07 | EK69: 2089-05-08T12:00:00 | EL69: 2089-11-07 | EM69: 2090-05-08T12:00:00 | EN69: 2090-11-07 | EO69: 2091-05-08T12:00:00 | EP69: 2091-11-07 | EQ69: 2092-05-07T12:00:00 | ER69: 2092-11-06 | ES69: 2093-05-07T12:00:00 | ET69: 2093-11-06 | EU69: 2094-05-07T12:00:00 | EV69: 2094-11-06 | EW69: 2095-05-07T12:00:00 | EX69: 2095-11-06 | EY69: 2096-05-06T12:00:00 | EZ69: 2096-11-05 | FA69: 2097-05-06T12:00:00 | FB69: 2097-11-05 | FC69: 2098-05-06T12:00:00 | FD69: 2098-11-05 | FE69: 2099-05-06T12:00:00 | FF69: 2099-11-05 | FG69: 2100-05-06T12:00:00 | FH69: 2100-11-05 | FI69: 2101-05-06T12:00:00 | FJ69: 2101-11-05 | FK69: 2102-05-06T12:00:00 | FL69: 2102-11-05 | FM69: 2103-05-06T12:00:00 | FN69: 2103-11-05 | FO69: 2104-05-05T12:00:00 | FP69: 2104-11-04 | FQ69: 2105-05-05T12:00:00 | FR69: 2105-11-04 | FS69: 2106-05-05T12:00:00 | FT69: 2106-11-04 | FU69: 2107-05-05T12:00:00 | FV69: 2107-11-04 | FW69: 2108-05-04T12:00:00 | FX69: 2108-11-03 | FY69: 2109-05-04T12:00:00 | FZ69: 2109-11-03 | GA69: 2110-05-04T12:00:00 | GB69: 2110-11-03 | GC69: 2111-05-04T12:00:00 | GD69: 2111-11-03 | GE69: 2112-05-03T12:00:00 | GF69: 2112-11-02 | GG69: 2113-05-03T12:00:00 | GH69: 2113-11-02 | GI69: 2114-05-03T12:00:00 | GJ69: 2114-11-02 | GK69: 2115-05-03T12:00:00 | GL69: 2115-11-02 | GM69: 2116-05-02T12:00:00 | GN69: =GM69+IF($G19=1,365,0)+IF($G19=2,182.5,0)+IF($G19=4,91.25,0) -> 2116-11-01 | GO69: 2117-05-02T12:00:00 | GP69: 2117-11-01 | GQ69: 2118-05-02T12:00:00 | GR69: 2118-11-01 | GS69: 2119-05-02T12:00:00
A70: Bond 18 | B70: =(IF(B69=F19,100,0)+IF(G19=1,1,0)*J19*100+IF(G19=2,0.5,0)*J19*100+IF(G19=4,0.25,0)*J19*100)*IF(ISBLANK(F19)=TRUE,0,1) -> 102.2 | C70: =IF(C69>$F19+1,0,1)*(IF(D70=0,100,0)+IF($G19=1,1,0)*$J19*100+IF($G19=2,0.5,0)*$J19*100+IF($G19=4,0.25,0)*$J19*100) -> 0 | D70: =IF(D69>$F19+1,0,1)*(IF(E70=0,100,0)+IF($G19=1,1,0)*$J19*100+IF($G19=2,0.5,0)*$J19*100+IF($G19=4,0.25,0)*$J19*100) -> 0 | E70: 0 | F70: 0 | G70: 0 | H70: 0 | I70: 0 | J70: 0 | K70: 0 | L70: 0 | M70: 0 | N70: 0 | O70: 0 | P70: 0 | Q70: 0 | R70: 0 | S70: 0 | T70: 0 | U70: 0 | V70: 0 | W70: 0 | X70: 0 | Y70: 0 | Z70: 0 | AA70: 0 | AB70: 0 | AC70: 0 | AD70: 0 | AE70: 0 | AF70: 0 | AG70: 0 | AH70: 0 | AI70: 0 | AJ70: 0 | AK70: 0 | AL70: 0 | AM70: 0 | AN70: 0 | AO70: 0 | AP70: 0 | AQ70: 0 | AR70: 0 | AS70: 0 | AT70: 0 | AU70: 0 | AV70: 0 | AW70: 0 | AX70: 0 | AY70: 0 | AZ70: 0 | BA70: 0 | BB70: 0 | BC70: 0 | BD70: 0 | BE70: 0 | BF70: 0 | BG70: 0 | BH70: 0 | BI70: 0 | BJ70: 0 | BK70: 0 | BL70: 0 | BM70: 0 | BN70: 0 | BO70: 0 | BP70: =IF(BP69>$F19+1,0,1)*(IF(BQ70=0,100,0)+IF($G19=1,1,0)*$J19*100+IF($G19=2,0.5,0)*$J19*100+IF($G19=4,0.25,0)*$J19*100) -> 0 | BQ70: 0 | BR70: 0 | BS70: 0 | BT70: 0 | BU70: 0 | BV70: 0 | BW70: 0 | BX70: 0 | BY70: 0 | BZ70: 0 | CA70: 0 | CB70: 0 | CC70: 0 | CD70: 0 | CE70: 0 | CF70: 0 | CG70: 0 | CH70: 0 | CI70: 0 | CJ70: 0 | CK70: 0 | CL70: 0 | CM70: 0 | CN70: 0 | CO70: 0 | CP70: 0 | CQ70: 0 | CR70: 0 | CS70: 0 | CT70: 0 | CU70: 0 | CV70: 0 | CW70: 0 | CX70: 0 | CY70: 0 | CZ70: 0 | DA70: 0 | DB70: 0 | DC70: 0 | DD70: 0 | DE70: 0 | DF70: 0 | DG70: 0 | DH70: 0 | DI70: 0 | DJ70: 0 | DK70: 0 | DL70: 0 | DM70: 0 | DN70: 0 | DO70: 0 | DP70: 0 | DQ70: 0 | DR70: 0 | DS70: 0 | DT70: 0 | DU70: 0 | DV70: 0 | DW70: 0 | DX70: 0 | DY70: 0 | DZ70: 0 | EA70: 0 | EB70: =IF(EB69>$F19+1,0,1)*(IF(EC70=0,100,0)+IF($G19=1,1,0)*$J19*100+IF($G19=2,0.5,0)*$J19*100+IF($G19=4,0.25,0)*$J19*100) -> 0 | EC70: 0 | ED70: 0 | EE70: 0 | EF70: 0 | EG70: 0 | EH70: 0 | EI70: 0 | EJ70: 0 | EK70: 0 | EL70: 0 | EM70: 0 | EN70: 0 | EO70: 0 | EP70: 0 | EQ70: 0 | ER70: 0 | ES70: 0 | ET70: 0 | EU70: 0 | EV70: 0 | EW70: 0 | EX70: 0 | EY70: 0 | EZ70: 0 | FA70: 0 | FB70: 0 | FC70: 0 | FD70: 0 | FE70: 0 | FF70: 0 | FG70: 0 | FH70: 0 | FI70: 0 | FJ70: 0 | FK70: 0 | FL70: 0 | FM70: 0 | FN70: 0 | FO70: 0 | FP70: 0 | FQ70: 0 | FR70: 0 | FS70: 0 | FT70: 0 | FU70: 0 | FV70: 0 | FW70: 0 | FX70: 0 | FY70: 0 | FZ70: 0 | GA70: 0 | GB70: 0 | GC70: 0 | GD70: 0 | GE70: 0 | GF70: 0 | GG70: 0 | GH70: 0 | GI70: 0 | GJ70: 0 | GK70: 0 | GL70: 0 | GM70: 0 | GN70: =IF(GN69>$F19+1,0,1)*(IF(GO70=0,100,0)+IF($G19=1,1,0)*$J19*100+IF($G19=2,0.5,0)*$J19*100+IF($G19=4,0.25,0)*$J19*100) -> 0 | GO70: 0 | GP70: 0 | GQ70: 0 | GR70: 0 | GS70: 0
A71: Payment Dates | B71: =IF(E20=0,F20,E20) -> 00:00:00 | C71: =B71+IF($G20=1,365,0)+IF($G20=2,182.5,0)+IF($G20=4,91.25,0) -> 00:00:00 | D71: =C71+IF($G20=1,365,0)+IF($G20=2,182.5,0)+IF($G20=4,91.25,0) -> 00:00:00 | E71: 00:00:00 | F71: 00:00:00 | G71: 00:00:00 | H71: 00:00:00 | I71: 00:00:00 | J71: 00:00:00 | K71: 00:00:00 | L71: 00:00:00 | M71: 00:00:00 | N71: 00:00:00 | O71: 00:00:00 | P71: 00:00:00 | Q71: 00:00:00 | R71: 00:00:00 | S71: 00:00:00 | T71: 00:00:00 | U71: 00:00:00 | V71: 00:00:00 | W71: 00:00:00 | X71: 00:00:00 | Y71: 00:00:00 | Z71: 00:00:00 | AA71: 00:00:00 | AB71: 00:00:00 | AC71: 00:00:00 | AD71: 00:00:00 | AE71: 00:00:00 | AF71: 00:00:00 | AG71: 00:00:00 | AH71: 00:00:00 | AI71: 00:00:00 | AJ71: 00:00:00 | AK71: 00:00:00 | AL71: 00:00:00 | AM71: 00:00:00 | AN71: 00:00:00 | AO71: 00:00:00 | AP71: 00:00:00 | AQ71: 00:00:00 | AR71: 00:00:00 | AS71: 00:00:00 | AT71: 00:00:00 | AU71: 00:00:00 | AV71: 00:00:00 | AW71: 00:00:00 | AX71: 00:00:00 | AY71: 00:00:00 | AZ71: 00:00:00 | BA71: 00:00:00 | BB71: 00:00:00 | BC71: 00:00:00 | BD71: 00:00:00 | BE71: 00:00:00 | BF71: 00:00:00 | BG71: 00:00:00 | BH71: 00:00:00 | BI71: 00:00:00 | BJ71: 00:00:00 | BK71: 00:00:00 | BL71: 00:00:00 | BM71: 00:00:00 | BN71: 00:00:00 | BO71: 00:00:00 | BP71: =BO71+IF($G20=1,365,0)+IF($G20=2,182.5,0)+IF($G20=4,91.25,0) -> 00:00:00 | BQ71: 00:00:00 | BR71: 00:00:00 | BS71: 00:00:00 | BT71: 00:00:00 | BU71: 00:00:00 | BV71: 00:00:00 | BW71: 00:00:00 | BX71: 00:00:00 | BY71: 00:00:00 | BZ71: 00:00:00 | CA71: 00:00:00 | CB71: 00:00:00 | CC71: 00:00:00 | CD71: 00:00:00 | CE71: 00:00:00 | CF71: 00:00:00 | CG71: 00:00:00 | CH71: 00:00:00 | CI71: 00:00:00 | CJ71: 00:00:00 | CK71: 00:00:00 | CL71: 00:00:00 | CM71: 00:00:00 | CN71: 00:00:00 | CO71: 00:00:00 | CP71: 00:00:00 | CQ71: 00:00:00 | CR71: 00:00:00 | CS71: 00:00:00 | CT71: 00:00:00 | CU71: 00:00:00 | CV71: 00:00:00 | CW71: 00:00:00 | CX71: 00:00:00 | CY71: 00:00:00 | CZ71: 00:00:00 | DA71: 00:00:00 | DB71: 00:00:00 | DC71: 00:00:00 | DD71: 00:00:00 | DE71: 00:00:00 | DF71: 00:00:00 | DG71: 00:00:00 | DH71: 00:00:00 | DI71: 00:00:00 | DJ71: 00:00:00 | DK71: 00:00:00 | DL71: 00:00:00 | DM71: 00:00:00 | DN71: 00:00:00 | DO71: 00:00:00 | DP71: 00:00:00 | DQ71: 00:00:00 | DR71: 00:00:00 | DS71: 00:00:00 | DT71: 00:00:00 | DU71: 00:00:00 | DV71: 00:00:00 | DW71: 00:00:00 | DX71: 00:00:00 | DY71: 00:00:00 | DZ71: 00:00:00 | EA71: 00:00:00 | EB71: =EA71+IF($G20=1,365,0)+IF($G20=2,182.5,0)+IF($G20=4,91.25,0) -> 00:00:00 | EC71: 00:00:00 | ED71: 00:00:00 | EE71: 00:00:00 | EF71: 00:00:00 | EG71: 00:00:00 | EH71: 00:00:00 | EI71: 00:00:00 | EJ71: 00:00:00 | EK71: 00:00:00 | EL71: 00:00:00 | EM71: 00:00:00 | EN71: 00:00:00 | EO71: 00:00:00 | EP71: 00:00:00 | EQ71: 00:00:00 | ER71: 00:00:00 | ES71: 00:00:00 | ET71: 00:00:00 | EU71: 00:00:00 | EV71: 00:00:00 | EW71: 00:00:00 | EX71: 00:00:00 | EY71: 00:00:00 | EZ71: 00:00:00 | FA71: 00:00:00 | FB71: 00:00:00 | FC71: 00:00:00 | FD71: 00:00:00 | FE71: 00:00:00 | FF71: 00:00:00 | FG71: 00:00:00 | FH71: 00:00:00 | FI71: 00:00:00 | FJ71: 00:00:00 | FK71: 00:00:00 | FL71: 00:00:00 | FM71: 00:00:00 | FN71: 00:00:00 | FO71: 00:00:00 | FP71: 00:00:00 | FQ71: 00:00:00 | FR71: 00:00:00 | FS71: 00:00:00 | FT71: 00:00:00 | FU71: 00:00:00 | FV71: 00:00:00 | FW71: 00:00:00 | FX71: 00:00:00 | FY71: 00:00:00 | FZ71: 00:00:00 | GA71: 00:00:00 | GB71: 00:00:00 | GC71: 00:00:00 | GD71: 00:00:00 | GE71: 00:00:00 | GF71: 00:00:00 | GG71: 00:00:00 | GH71: 00:00:00 | GI71: 00:00:00 | GJ71: 00:00:00 | GK71: 00:00:00 | GL71: 00:00:00 | GM71: 00:00:00 | GN71: =GM71+IF($G20=1,365,0)+IF($G20=2,182.5,0)+IF($G20=4,91.25,0) -> 00:00:00 | GO71: 00:00:00 | GP71: 00:00:00 | GQ71: 00:00:00 | GR71: 00:00:00 | GS71: 00:00:00
A72: Bond 19 | B72: =(IF(B71=F20,100,0)+IF(G20=1,1,0)*J20*100+IF(G20=2,0.5,0)*J20*100+IF(G20=4,0.25,0)*J20*100)*IF(ISBLANK(F20)=TRUE,0,1) -> 0 | C72: =IF(C71>$F20+1,0,1)*(IF(D72=0,100,0)+IF($G20=1,1,0)*$J20*100+IF($G20=2,0.5,0)*$J20*100+IF($G20=4,0.25,0)*$J20*100) -> 100 | D72: =IF(D71>$F20+1,0,1)*(IF(E72=0,100,0)+IF($G20=1,1,0)*$J20*100+IF($G20=2,0.5,0)*$J20*100+IF($G20=4,0.25,0)*$J20*100) -> 0 | E72: 100 | F72: 0 | G72: 100 | H72: 0 | I72: 100 | J72: 0 | K72: 100 | L72: 0 | M72: 100 | N72: 0 | O72: 100 | P72: 0 | Q72: 100 | R72: 0 | S72: 100 | T72: 0 | U72: 100 | V72: 0 | W72: 100 | X72: 0 | Y72: 100 | Z72: 0 | AA72: 100 | AB72: 0 | AC72: 100 | AD72: 0 | AE72: 100 | AF72: 0 | AG72: 100 | AH72: 0 | AI72: 100 | AJ72: 0 | AK72: 100 | AL72: 0 | AM72: 100 | AN72: 0 | AO72: 100 | AP72: 0 | AQ72: 100 | AR72: 0 | AS72: 100 | AT72: 0 | AU72: 100 | AV72: 0 | AW72: 100 | AX72: 0 | AY72: 100 | AZ72: 0 | BA72: 100 | BB72: 0 | BC72: 100 | BD72: 0 | BE72: 100 | BF72: 0 | BG72: 100 | BH72: 0 | BI72: 100 | BJ72: 0 | BK72: 100 | BL72: 0 | BM72: 100 | BN72: 0 | BO72: 100 | BP72: =IF(BP71>$F20+1,0,1)*(IF(BQ72=0,100,0)+IF($G20=1,1,0)*$J20*100+IF($G20=2,0.5,0)*$J20*100+IF($G20=4,0.25,0)*$J20*100) -> 0 | BQ72: 100 | BR72: 0 | BS72: 100 | BT72: 0 | BU72: 100 | BV72: 0 | BW72: 100 | BX72: 0 | BY72: 100 | BZ72: 0 | CA72: 100 | CB72: 0 | CC72: 100 | CD72: 0 | CE72: 100 | CF72: 0 | CG72: 100 | CH72: 0 | CI72: 100 | CJ72: 0 | CK72: 100 | CL72: 0 | CM72: 100 | CN72: 0 | CO72: 100 | CP72: 0 | CQ72: 100 | CR72: 0 | CS72: 100 | CT72: 0 | CU72: 100 | CV72: 0 | CW72: 100 | CX72: 0 | CY72: 100 | CZ72: 0 | DA72: 100 | DB72: 0 | DC72: 100 | DD72: 0 | DE72: 100 | DF72: 0 | DG72: 100 | DH72: 0 | DI72: 100 | DJ72: 0 | DK72: 100 | DL72: 0 | DM72: 100 | DN72: 0 | DO72: 100 | DP72: 0 | DQ72: 100 | DR72: 0 | DS72: 100 | DT72: 0 | DU72: 100 | DV72: 0 | DW72: 100 | DX72: 0 | DY72: 100 | DZ72: 0 | EA72: 100 | EB72: =IF(EB71>$F20+1,0,1)*(IF(EC72=0,100,0)+IF($G20=1,1,0)*$J20*100+IF($G20=2,0.5,0)*$J20*100+IF($G20=4,0.25,0)*$J20*100) -> 0 | EC72: 100 | ED72: 0 | EE72: 100 | EF72: 0 | EG72: 100 | EH72: 0 | EI72: 100 | EJ72: 0 | EK72: 100 | EL72: 0 | EM72: 100 | EN72: 0 | EO72: 100 | EP72: 0 | EQ72: 100 | ER72: 0 | ES72: 100 | ET72: 0 | EU72: 100 | EV72: 0 | EW72: 100 | EX72: 0 | EY72: 100 | EZ72: 0 | FA72: 100 | FB72: 0 | FC72: 100 | FD72: 0 | FE72: 100 | FF72: 0 | FG72: 100 | FH72: 0 | FI72: 100 | FJ72: 0 | FK72: 100 | FL72: 0 | FM72: 100 | FN72: 0 | FO72: 100 | FP72: 0 | FQ72: 100 | FR72: 0 | FS72: 100 | FT72: 0 | FU72: 100 | FV72: 0 | FW72: 100 | FX72: 0 | FY72: 100 | FZ72: 0 | GA72: 100 | GB72: 0 | GC72: 100 | GD72: 0 | GE72: 100 | GF72: 0 | GG72: 100 | GH72: 0 | GI72: 100 | GJ72: 0 | GK72: 100 | GL72: 0 | GM72: 100 | GN72: =IF(GN71>$F20+1,0,1)*(IF(GO72=0,100,0)+IF($G20=1,1,0)*$J20*100+IF($G20=2,0.5,0)*$J20*100+IF($G20=4,0.25,0)*$J20*100) -> 0 | GO72: 100 | GP72: 0 | GQ72: 100 | GR72: 0 | GS72: 100
